Workbook

Sheet 0_Taula Farratges (hidden)
A1: Nombre Forrajes | B1: MS % | C1: UFL | D1: UFV | E1: MNT_PB | F1: PDIA | G1: PDI | H1: BPR | I1: UEL | J1: UEB | K1: UEM | L1: NI ref | M1: dMO | N1: MOD | O1: EE | P1: FB | Q1: NDF | R1: ADF | S1: Lignina | T1: Cenizas | U1: Ca | V1: P | W1: Mg | X1: Cl | Y1: K | Z1: Na | AA1: S | AB1: Co | AC1: Cu | AD1: Mo | AE1: Almidón | AF1: Fe | AG1: Mn | AH1: Se | AI1: Zn | AJ1: Vit A | AK1: Vit D | AL1: Vit E | AM1: AG | AN1: DT_N | AO1: PF | AP1: MOF
A3: ENSILADO ALFALFA Inicio botones florales prehenificado | B3: 33.5 | C3: 0.84 | D3: 0.76 | E3: 206 | F3: 32 | G3: 78 | H3: 79 | I3: 0.9797376592 | J3: 0.97 | K3: 1.11 | L3: 2.4 | M3: 0.66 | N3: 583 | O3: 40 | P3: 292 | Q3: 472 | R3: 313 | S3: 64.3 | T3: 117 | U3: 3.8 | V3: 1.7 | W3: 2.3 | AJ3: 3000 | AK3: 200 | AL3: 5 | AM3: 26.4988 | AN3: 0.83 | AO3: 80 | AP3: 550.6914111
A4: ENSILADO ALFALFA antes floración prehenificado | B4: 33.5 | C4: 0.9478567903 | D4: 0.9046584391 | E4: 198.2 | F4: 21.802 | G4: 61.32585238 | H4: 64.24775046 | I4: 0.9937421911 | J4: 0.9777668498 | K4: 1.121023222 | L4: 2.403858178 | M4: 0.707306 | N4: 605.0295524 | O4: 18.7 | P4: 249.7 | Q4: 424.6 | R4: 336.1 | S4: 65.9 | T4: 144.6 | U4: 3.84 | V4: 1.82 | AJ4: 3000 | AK4: 200 | AL4: 5 | AM4: 25.2206 | AN4: 0.8 | AO4: 80 | AP4: 534.6627196
A5: ENSILADO ALFALFA botones florales prehenificado | B5: 33.5 | C5: 0.79 | D5: 0.7 | E5: 193 | F5: 29 | G5: 74 | H5: 70 | I5: 1.01 | J5: 1 | K5: 1.15 | L5: 2.3 | M5: 0.64 | N5: 568 | O5: 39 | P5: 308 | Q5: 482 | R5: 324 | T5: 112 | U5: 3.8 | V5: 1.7 | W5: 2.3
A6: ENSILADO Alfalfa rebrotes floración prehenificado | B6: 33.5 | C6: 0.78 | D6: 0.69 | E6: 198 | F6: 27.79205 | G6: 74 | H6: 74 | I6: 1.01 | J6: 1 | K6: 1.1 | L6: 2.4 | M6: 0.63 | N6: 564 | O6: 39 | P6: 319 | Q6: 488 | R6: 331 | S6: 61.9 | T6: 105 | U6: 3.6 | V6: 1.5 | W6: 1.8 | AJ6: 3000 | AK6: 200 | AL6: 5 | AM6: 27.0051 | AN6: 0.79 | AO6: 80 | AP6: 551.9218578
A7: ENSILADO Maíz Lechoso | B7: 25 | C7: 0.9421569565 | D7: 0.8895769703 | E7: 80 | F7: 12 | G7: 61 | H7: -29 | I7: 1.080663836 | J7: 1.21 | K7: 1.28 | L7: 1.4 | M7: 0.71 | N7: 674 | O7: 31 | P7: 228 | Q7: 446 | R7: 235 | S7: 30.4 | T7: 50 | U7: 0.8 | V7: 1.3 | W7: 1.2 | AE7: 193 | AM7: 24 | AN7: 0.75 | AO7: 100 | AP7: 588.3446
A8: ENSILADO Maíz Lechoso-pastoso | B8: 27.5 | C8: 0.9460784782 | D8: 0.8997884851 | E8: 79 | F8: 12 | G8: 61 | H8: -30.5 | I8: 1.046979863 | J8: 1.16 | K8: 1.279261934 | L8: 1.4 | M8: 0.7135 | N8: 680 | O8: 31 | P8: 217.5 | Q8: 429.5 | R8: 222.5 | S8: 29.85 | T8: 48.5 | U8: 0.8 | V8: 1.3 | W8: 1.2 | AE8: 282 | AM8: 24 | AN8: 0.75 | AO8: 125 | AP8: 608.5998
A9: ENSILADO Maíz Pastoso | B9: 30 | C9: 0.95 | D9: 0.91 | E9: 78 | F9: 12 | G9: 61 | H9: -32 | I9: 1.01329589 | J9: 1.11 | K9: 1.278523867 | L9: 1.4 | M9: 0.717 | N9: 686 | O9: 31 | P9: 207 | Q9: 413 | R9: 210 | S9: 29.3 | T9: 47 | U9: 0.8 | V9: 1.3 | W9: 1.2 | AE9: 234 | AM9: 24 | AN9: 0.75 | AO9: 80 | AP9: 619.39492
A10: ENSILADO Maíz Pastoso-vidrioso | B10: 32.5 | C10: 0.9570058234 | D10: 0.9127317295 | E10: 77 | F10: 12 | G10: 61.5 | H10: -33.5 | I10: 0.9816479448 | J10: 1.075 | K10: 1.279261934 | L10: 1.4 | M10: 0.7235 | N10: 688 | O10: 31 | P10: 203.5 | Q10: 406.5 | R10: 207 | S10: 27.9 | T10: 45.5 | U10: 0.8 | V10: 1.3 | W10: 1.2 | AE10: 278 | AM10: 24 | AN10: 0.75 | AO10: 100 | AP10: 612.5872382
A11: ENSILADO Maíz Vidrioso | B11: 35 | C11: 0.9640116468 | D11: 0.9154634589 | E11: 76 | F11: 12 | G11: 62 | H11: -35 | I11: 0.95 | J11: 1.04 | K11: 1.28 | L11: 1.4 | M11: 0.73 | N11: 690 | O11: 31 | P11: 200 | Q11: 400 | R11: 204 | S11: 26.5 | T11: 44 | U11: 0.8 | V11: 1.3 | W11: 1.2 | AE11: 322 | AM11: 24 | AN11: 0.75 | AO11: 80 | AP11: 601.7570275
A12: Ensilado maíz vidrioso > 35% MS | B12: 41.5 | C12: 0.95 | D12: 0.91 | E12: 79 | F12: 12 | G12: 63 | H12: -33 | I12: 0.9 | J12: 0.96 | K12: 1.28 | L12: 1.4 | M12: 0.72 | N12: 690 | O12: 31 | P12: 202 | Q12: 403 | R12: 204 | T12: 41 | U12: 0.8 | V12: 1.3 | W12: 1.2
A13: Ensilado maíz, espigas completas (Pastone) | B13: 53 | C13: 1,08 | E13: 83 | F13: 27 | G13: 78 | H13: -42 | I13: 0,97 | L13: 1,4 | M13: 0.78 | N13: 768.16 | O13: 31 | P13: 90 | Q13: 318 | R13: 104 | T13: 19 | U13: 0.8 | V13: 1.26 | W13: 1.5 | AE13: 400 | AM13: 24 | AN13: 0.63 | AO13: 0.87
A14: ENSILADO Trigo Lechoso-pastoso | B14: 35 | C14: 0.69 | D14: 0.6 | E14: 98 | F14: 17 | G14: 62 | H14: -12 | I14: 1.01 | J14: 1.01 | K14: 1.36 | L14: 2 | M14: 0.59 | N14: 526 | O14: 25 | P14: 267 | Q14: 522 | R14: 313 | T14: 108 | U14: 1.6 | V14: 1.7 | W14: 1.4
A15: ENSILADO Avena Lechoso-pastoso | B15: 31 | C15: 0.6642411484 | D15: 0.5695207363 | E15: 96.6 | F15: 18.9336 | G15: 47.97507469 | H15: -17.51123621 | I15: 1.154955419 | J15: 1.282660589 | K15: 1.791224433 | L15: 1.504435061 | M15: 0.56 | N15: 508.704 | O15: 45 | P15: 333.4 | Q15: 600.1 | R15: 385.3 | S15: 49.3 | T15: 91.6 | U15: 1.6 | V15: 1.7 | AC15: 5 | AD15: 0.13 | AG15: 30 | AJ15: 5000 | AK15: 200 | AL15: 5 | AM15: 19 | AN15: 0.72 | AO15: 80 | AP15: 433.84195
A16: ENSILADO Zulla Botones Florales en Floración, Bolas | B16: 27.16 | C16: 0.754603903 | D16: 0.6728644459 | E16: 140.9 | F16: 16.27395 | G16: 57.0350509 | H16: 33.42177985 | I16: 1.075441606 | J16: 1.126048654 | K16: 1.267021205 | L16: 2.126863251 | M16: 0.60143 | N16: 526.25125 | O16: 27 | P16: 353.5 | Q16: 537.2 | R16: 351.6765 | T16: 125 | U16: 3.6 | V16: 2.1 | AM16: 20.4647 | AN16: 0.79 | AO16: 150 | AP16: 306.2478463
A17: ENSILADO Zulla Inicio Floración a Fructificación | B17: 19.66 | C17: 0.7669925154 | D17: 0.6858718121 | E17: 135.6 | F17: 15.6618 | G17: 56.90934942 | H17: 28.47470403 | I17: 1.080492689 | J17: 1.135321292 | K17: 1.273160331 | L17: 2.116607605 | M17: 0.605612 | N17: 535.7243752 | O17: 27 | P17: 349.4 | Q17: 589.3 | R17: 349.3026 | T17: 115.4 | U17: 3.6 | V17: 2.1 | AM17: 20.0248 | AN17: 0.79 | AO17: 150 | AP17: 316.8191373
A18: ENSILADO Cebada Lechoso-pastoso | B18: 35 | C18: 0.73 | D18: 0.64 | E18: 81 | F18: 14 | G18: 60 | H18: -27 | I18: 1.06 | J18: 1.1 | K18: 1.36 | L18: 2 | M18: 0.59 | N18: 549 | O18: 25 | P18: 200 | Q18: 449 | R18: 249 | T18: 70 | U18: 1.3 | V18: 1.5 | W18: 1.8
A19: ENSILADO Prado natural plano, gramíneas en gran parte | B19: 48 | C19: 0.9301076693 | D19: 0.8656931921 | E19: 114.3 | F19: 15.0876 | G19: 51.5305866 | H19: -5.252929949 | I19: 1.131789867 | J19: 1.229566374 | K19: 1.638343115 | L19: 1.644820804 | M19: 0.668711 | N19: 599.165056 | O19: 22.2 | P19: 311.3 | Q19: 584.2 | R19: 385 | T19: 104 | U19: 3.48 | V19: 1.82 | AJ19: 8000 | AK19: 200 | AL19: 5 | AM19: 18.2569 | AN19: 0.78 | AO19: 115 | AP19: 535.9795542
A20: ENSILADO Raigrás italiano 1 semana antes inicio espigado prehenificado | B20: 33.5 | C20: 0.9154038958 | D20: 0.8723292381 | E20: 123 | F20: 17 | G20: 67 | H20: 5 | I20: 1.05 | J20: 1.07 | K20: 1.35 | L20: 2 | M20: 0.73 | N20: 649.7 | O20: 36 | P20: 246 | Q20: 510 | R20: 275 | T20: 110 | U20: 1.84 | V20: 1.56 | AJ20: 8000 | AK20: 200 | AL20: 5 | AM20: 19 | AN20: 0.79 | AO20: 80 | AP20: 588.49475
A21: ENSILADO Raigrás italiano Final espigado prehenificado | B21: 33.5 | C21: 0.78 | D21: 0.71 | E21: 95 | F21: 12 | G21: 59 | H21: -14 | I21: 1.11 | J21: 1.18 | K21: 1.62 | L21: 1.7 | M21: 0.66 | N21: 594.66 | O21: 33 | P21: 297 | Q21: 571 | R21: 327 | T21: 99 | U21: 1.84 | V21: 1.38 | AJ21: 8000 | AK21: 200 | AL21: 5 | AM21: 17 | AN21: 0.79 | AO21: 80 | AP21: 534.52605
A22: ENSILADO Raigrás italiano Inicio espigado prehenificado | B22: 33.5 | C22: 0.88 | D22: 0.82 | E22: 117 | F22: 16 | G22: 65 | H22: 1 | I22: 1.06 | J22: 1.08 | K22: 1.39 | L22: 1.9 | M22: 0.706043 | N22: 631.9 | O22: 35 | P22: 254 | Q22: 520 | R22: 283 | T22: 110 | U22: 1.84 | V22: 1.56 | AJ22: 8000 | AK22: 200 | AL22: 5 | AM22: 19 | AN22: 0.79 | AO22: 80 | AP22: 570.0426753
A23: ENSILADO Sorgo Pastoso | B23: 24 | C23: 0.8946611737 | D23: 0.8448988526 | E23: 102.3 | F23: 26.4957 | G23: 67.48794219 | H23: -32.54844063 | I23: 1.126297354 | J23: 1.216028017 | K23: 1.608406605 | L23: 1.675435074 | M23: 0.701 | N23: 644.7097 | O23: 25 | P23: 293.4 | Q23: 586.4 | R23: 346.8 | S23: 42.4 | T23: 80.3 | U23: 2.24 | V23: 1.584 | AJ23: 5000 | AK23: 200 | AL23: 5 | AM23: 19 | AN23: 0.63 | AO23: 80 | AP23: 572.00891
A24: ENSILADO Triticale lechoso | B24: 28.1 | C24: 0.7185428841 | D24: 0.6315093177 | E24: 99.8 | F24: 19.5608 | G24: 51.20239422 | H24: -17.39059614 | I24: 1.146293336 | J24: 1.262798213 | K24: 1.742230253 | L24: 1.546742077 | M24: 0.5903225806 | N24: 537.6067742 | O24: 46.6 | P24: 329.3 | Q24: 589.7 | R24: 373.5 | S24: 46.2 | T24: 89.3 | U24: 1.96 | V24: 1.914 | AJ24: 5000 | AK24: 200 | AL24: 5 | AM24: 19 | AN24: 0.72 | AO24: 80 | AP24: 464.2085694
A25: HENO Alfalfa Botones florales | B25: 85 | C25: 0.72 | D25: 0.63 | E25: 174 | F25: 39 | G25: 86 | H25: 37 | I25: 1.03 | J25: 1.04 | K25: 1.2 | L25: 2.2 | M25: 0.6 | N25: 544 | O25: 26 | P25: 351 | Q25: 548 | R25: 352 | T25: 93 | U25: 3.8 | V25: 1.4 | W25: 2.5 | AC25: 7.1 | AG25: 29 | AI25: 24.6 | AJ25: 45000 | AK25: 400 | AL25: 10 | AM25: 21.823 | AN25: 0.72 | AP25: 344.9931188
A26: HENO Alfalfa Floración | B26: 85 | C26: 0.66 | D26: 0.56 | E26: 163 | F26: 36 | G26: 82 | H26: 30 | I26: 1.04 | J26: 1.05 | K26: 1.23 | L26: 2.2 | M26: 0.57 | N26: 521 | O26: 25 | P26: 374 | Q26: 564 | R26: 367 | T26: 85 | U26: 3.6 | V26: 1.3 | W26: 2.5 | AJ26: 45000 | AK26: 400 | AL26: 10 | AM26: 20.91 | AN26: 0.72 | AP26: 324.6684585
A27: HENO Alfalfa floración (Cataluña) | B27: 89 | C27: 0.7804774848 | D27: 0.7084236384 | E27: 174.5 | F27: 36.645 | G27: 73.40253262 | H27: 36.23664732 | I27: 1.017963166 | J27: 1.029102189 | K27: 1.286335584 | L27: 2.094928316 | M27: 0.623962 | N27: 555.950142 | O27: 19.8 | P27: 271.5 | Q27: 446.6 | R27: 316.7 | S27: 69.1 | T27: 109 | U27: 3.8 | V27: 1.3 | AB27: 0.1 | AC27: 4.6 | AD27: 0.6 | AG27: 42.9 | AH27: 0.03 | AI27: 21.3 | AJ27: 45000 | AK27: 400 | AL27: 10 | AM27: 22.1135 | AN27: 0.72 | AP27: 466.3887716
A28: HENO Alfalfa Inicio vegetación | B28: 85 | C28: 0.7631700038 | D28: 0.6873563 | E28: 168.5 | F28: 35.385 | G28: 71.39879666 | H28: 32.37218784 | I28: 1.027253066 | J28: 1.045286018 | K28: 1.31089825 | L28: 2.055675061 | M28: 0.612562 | N28: 548.9168082 | O28: 21.2 | P28: 283.4 | Q28: 483.1 | R28: 326.7 | S28: 69.3 | T28: 103.9 | U28: 3.75 | V28: 1.68 | AB28: 0.1 | AC28: 4.6 | AD28: 0.6 | AG28: 42.9 | AH28: 0.03 | AI28: 21.3 | AJ28: 45000 | AK28: 400 | AL28: 10 | AM28: 21.6155 | AN28: 0.72 | AP28: 460.0530203
A29: HENO Alfalfa rebrotes (Cataluña) | B29: 89 | C29: 0.8220547044 | D29: 0.7561386752 | E29: 179.3 | F29: 37.653 | G29: 76.25857889 | H29: 38.09099042 | I29: 1.006503009 | J29: 1.009490389 | K29: 1.256671417 | L29: 2.14437983 | M29: 0.64471 | N29: 577.982515 | O29: 19.8 | P29: 259.6 | Q29: 442.1 | R29: 298.5 | S29: 65.8 | T29: 103.5 | U29: 3.3 | V29: 1.54 | AB29: 0.1 | AC29: 4.6 | AD29: 0.6 | AG29: 42.9 | AH29: 0.03 | AI29: 21.3 | AJ29: 45000 | AK29: 400 | AL29: 10 | AM29: 22.5119 | AN29: 0.72 | AP29: 488.6649455
A30: HENO Alfalfa rebrotes de floración | B30: 85 | C30: 0.71 | D30: 0.62 | E30: 177 | F30: 38 | G30: 85 | H30: 39 | I30: 1.03 | J30: 1.04 | K30: 1.17 | L30: 2.3 | M30: 0.6 | N30: 548 | O30: 26 | P30: 361 | Q30: 555 | R30: 359 | T30: 86 | U30: 3.3 | V30: 1.3 | W30: 2 | AB30: 0.1 | AC30: 4.6 | AD30: 0.6 | AG30: 42.9 | AH30: 0.03 | AI30: 21.3 | AJ30: 45000 | AK30: 400 | AL30: 10 | AM30: 22.072 | AN30: 0.72 | AP30: 334.8526972
A31: HENO Alfalfa Sin especificar (verano) IAMZ | B31: 90 | C31: 0.8027529859 | D31: 0.732612327 | E31: 187 | F31: 39.27 | G31: 76.69014372 | H31: 44.68883486 | I31: 1.004731173 | J31: 1.006321977 | K31: 1.25219197 | L31: 2.152050886 | M31: 0.631828 | N31: 566.117888 | O31: 25 | P31: 284 | Q31: 583.76 | R31: 309.8 | T31: 104 | U31: 3.8 | V31: 1.3 | AJ31: 45000 | AK31: 400 | AL31: 10 | AM31: 23.151 | AN31: 0.72 | AP31: 474.0078601
A32: HENO Alfalfa Sin especificar (primavera) IAMZ | B32: 90 | C32: 0.8022678479 | D32: 0.7359621515 | E32: 171 | F32: 35.91 | G32: 73.93543875 | H32: 32.77416797 | I32: 1.014835798 | J32: 1.023836553 | K32: 1.278138126 | L32: 2.108364335 | M32: 0.64072 | N32: 567.0372 | O32: 25 | P32: 300 | Q32: 394 | R32: 302 | T32: 115 | U32: 3.8 | V32: 1.3 | AJ32: 45000 | AK32: 400 | AL32: 10 | AM32: 21.823 | AN32: 0.72 | AP32: 479.4969685
A33: HENO Bromo Final vegetación | B33: 85 | C33: 0.7641928518 | D33: 0.6935543947 | E33: 100 | F33: 20.3 | G33: 58.49315002 | H33: -20.42784718 | I33: 1.083509489 | J33: 1.149054212 | K33: 1.470370044 | L33: 1.832722892 | M33: 0.62749 | N33: 564.741 | O33: 34 | P33: 320 | Q33: 640 | R33: 333 | T33: 100 | U33: 1.24 | V33: 2.03 | AJ33: 50000 | AK33: 50 | AL33: 5 | AM33: 15.93 | AN33: 0.71 | AP33: 494.5458579
A34: HENO Avena Floración | B34: 90 | C34: 0.6748031786 | D34: 0.5822746186 | E34: 140 | F34: 33.32 | G34: 65.22813994 | H34: 6.340615698 | I34: 1.074914591 | J34: 1.131741987 | K34: 1.444961085 | L34: 1.864950459 | M34: 0.55566 | N34: 509.54022 | O34: 33 | P34: 320 | Q34: 620 | R34: 390 | S34: 60 | T34: 83 | U34: 2.52 | V34: 0.66 | AJ34: 50000 | AK34: 50 | AL34: 5 | AM34: 19.25 | AN34: 0.66 | AP34: 419.8801711
A35: HENO Avena Inicio espigado | B35: 90 | C35: 0.7865238981 | D35: 0.7057522891 | E35: 175 | F35: 41.65 | G35: 77.97898436 | H35: 25.71188765 | I35: 1.023756676 | J35: 1.039063255 | K35: 1.301625956 | L35: 2.070318916 | M35: 0.60695 | N35: 567.49825 | O35: 26 | P35: 290 | Q35: 580 | R35: 350 | S35: 40 | T35: 65 | U35: 2.52 | V35: 0.66 | AJ35: 50000 | AK35: 50 | AL35: 5 | AM35: 22.155 | AN35: 0.66 | AP35: 471.7400882
A36: HENO Dactilo Floración | B36: 85 | C36: 0.6267609342 | D36: 0.5315550907 | E36: 88 | F36: 17.248 | G36: 48.36165599 | H36: -22.60508827 | I36: 1.134465219 | J36: 1.249296501 | K36: 1.633810149 | L36: 1.649384319 | M36: 0.537152 | N36: 491.49408 | O36: 27 | P36: 372 | Q36: 684.08 | R36: 404 | T36: 85 | U36: 0.92 | V36: 1.26 | AJ36: 50000 | AK36: 50 | AL36: 5 | AM36: 14.934 | AN36: 0.72 | AP36: 418.5686824
A37: HENO Zulla Final floración | B37: 87.6 | C37: 0.7974276922 | D37: 0.7271766252 | E37: 143 | F37: 30.03 | G37: 68.40600963 | H37: 11.57181812 | I37: 1.041902847 | J37: 1.071676354 | K37: 1.350515054 | L37: 1.995372678 | M37: 0.63274 | N37: 575.16066 | O37: 13.5 | P37: 287 | Q37: 414 | R37: 309 | T37: 91 | U37: 0.36 | V37: 0.21 | AJ37: 45000 | AK37: 400 | AL37: 10 | AM37: 19.499 | AN37: 0.72 | AP37: 493.9941847
A38: HENO Festuca Floración | B38: 88.2 | C38: 0.7394322088 | D38: 0.6592885094 | E38: 116 | F38: 23.548 | G38: 59.75765181 | H38: -7.64311645 | I38: 1.079354117 | J38: 1.140751809 | K38: 1.457997654 | L38: 1.848275155 | M38: 0.6004725 | N38: 550.6332825 | O38: 27 | P38: 331 | Q38: 637.34 | R38: 354.45 | T38: 83 | U38: 0.92 | V38: 1.26 | AJ38: 50000 | AK38: 50 | AL38: 5 | AM38: 17.258 | AN38: 0.71 | AP38: 474.7304096
A39: HENO Cebada Espigado | B39: 78.5 | C39: 0.5919301713 | D39: 0.4925934379 | E39: 112 | F39: 26.656 | G39: 55.09811221 | H39: -9.266789075 | I39: 1.11967543 | J39: 1.218703295 | K39: 1.584554034 | L39: 1.700655693 | M39: 0.514628 | N39: 464.709084 | O39: 12.5 | P39: 285 | Q39: 584.9 | R39: 422 | T39: 97 | U39: 1.18 | V39: 1.65 | W39: 1.6 | Y39: 14.15 | Z39: 1.75 | AA39: 1.7 | AB39: 0.07 | AC39: 24 | AF39: 101 | AG39: 27 | AH39: 0.16 | AI39: 48 | AM39: 16.926 | AN39: 0.66 | AP39: 379.9275254
A40: HENO Ordi Inicio espigado | B40: 83.7 | C40: 0.7873403043 | D40: 0.7263260237 | E40: 108 | F40: 25.704 | G40: 65.002965 | H40: -20.29450546 | I40: 1.065656642 | J40: 1.11556277 | K40: 1.417509819 | L40: 1.901066789 | M40: 0.653002 | N40: 570.723748 | O40: 12.5 | P40: 285 | Q40: 584.9 | R40: 313 | T40: 126 | U40: 1.18 | V40: 1.65 | W40: 1.6 | Y40: 14.15 | Z40: 1.75 | AA40: 1.7 | AB40: 0.07 | AC40: 24 | AF40: 101 | AG40: 27 | AH40: 0.16 | AI40: 48 | AJ40: 50000 | AK40: 50 | AL40: 5 | AM40: 16.594 | AN40: 0.66 | AP40: 496.5856114
A41: HENO Cebada Lechosa | B41: 90 | C41: 0.7063206172 | D41: 0.6214014901 | E41: 135 | F41: 32.13 | G41: 65.96134992 | H41: 1.60549777 | I41: 1.06938303 | J41: 1.121640879 | K41: 1.428604953 | L41: 1.886302322 | M41: 0.58099 | N41: 526.37694 | O41: 12.5 | P41: 285 | Q41: 610 | R41: 370 | T41: 94 | U41: 1.44 | V41: 1.584 | W41: 1.6 | Y41: 14.15 | Z41: 1.75 | AA41: 1.7 | AB41: 0.07 | AC41: 24 | AF41: 101 | AG41: 27 | AH41: 0.16 | AI41: 48 | AJ41: 50000 | AK41: 50 | AL41: 5 | AM41: 18.835 | AN41: 0.66 | AP41: 439.8400866
A42: HENO Cebada Vidrioso | B42: 76.3 | C42: 0.7403468234 | D42: 0.6622083638 | E42: 99 | F42: 23.562 | G42: 60.20475676 | H42: -25.00432611 | I42: 1.093450987 | J42: 1.167979739 | K42: 1.500772141 | L42: 1.795596257 | M42: 0.605886 | N42: 554.38569 | O42: 12.5 | P42: 285 | Q42: 584.9 | R42: 350 | T42: 85 | U42: 1.44 | V42: 1.584 | W42: 1.8 | Y42: 11.8 | Z42: 1.4 | AA42: 1.7 | AB42: 0.07 | AC42: 24 | AF42: 101 | AG42: 27 | AH42: 0.16 | AI42: 48 | AJ42: 50000 | AK42: 50 | AL42: 5 | AM42: 15.847 | AN42: 0.66 | AP42: 479.4760238
A43: HENO Raigrás italiano Espigado | B43: 85 | C43: 0.7551388452 | D43: 0.682416558 | E43: 79 | F43: 13.825 | G43: 52.18563094 | H43: -32.77260482 | I43: 1.106265531 | J43: 1.193403103 | K43: 1.540819033 | L43: 1.74892754 | M43: 0.622116 | N43: 566.12556 | O43: 26 | P43: 307 | Q43: 609.98 | R43: 337 | T43: 90 | U43: 1.6 | V43: 1.61 | W43: 2 | Y43: 20 | Z43: 2 | AC43: 4.9 | AG43: 110 | AI43: 26.5 | AJ43: 50000 | AK43: 50 | AL43: 5 | AM43: 14.187 | AN43: 0.75 | AP43: 502.8178696
A44: HENO Raigrás italiano Floración | B44: 85 | C44: 0.6767027483 | D44: 0.590716319 | E44: 52 | F44: 10.92 | G44: 45.71239642 | H44: -52.98300282 | I44: 1.155610109 | J44: 1.294411723 | K44: 1.707296002 | L44: 1.578391115 | M44: 0.574748 | N44: 528.76816 | O44: 24 | P44: 344 | Q44: 652.16 | R44: 374 | T44: 80 | U44: 1.6 | V44: 1.26 | AJ44: 50000 | AK44: 50 | AL44: 5 | AM44: 11.946 | AN44: 0.7 | AP44: 466.1057416
A45: HENO Raigrás italiano rebrotes de espigado con hojas | B45: 85 | C45: 0.8845575231 | D45: 0.835550182 | E45: 107 | F45: 23.219 | G45: 65.95615613 | H45: -22.33097018 | I45: 1.050313537 | J45: 1.087684312 | K45: 1.37366381 | L45: 1.961746987 | M45: 0.69441 | N45: 629.13546 | O45: 29 | P45: 256 | Q45: 567 | R45: 291 | T45: 94 | U45: 1.6 | V45: 1.89 | W45: 2 | Y45: 20 | Z45: 2 | AJ45: 50000 | AK45: 50 | AL45: 5 | AM45: 16.511 | AN45: 0.69 | AP45: 560.3751069
A46: HENO Trébol blanco Vegetativo | B46: 90 | C46: 0.7981872668 | D46: 0.7236613654 | E46: 220 | F46: 56.1 | G46: 91.79713043 | H46: 57.22036526 | I46: 0.9822368086 | J46: 0.9683089799 | K46: 1.196312677 | L46: 2.252572334 | M46: 0.6202 | N46: 557.5598 | O46: 27 | P46: 212 | Q46: 360 | R46: 320 | S46: 70 | T46: 101 | U46: 3.1 | V46: 1.6 | W46: 4.3 | X46: 3.2 | Y46: 16.2 | Z46: 1.9 | AA46: 1.7 | AB46: 0.16 | AC46: 11 | AF46: 184 | AG46: 73 | AI46: 17 | AJ46: 45000 | AK46: 400 | AL46: 10 | AM46: 25.89 | AN46: 0.66 | AP46: 446.5874095
A47: HENO Trébol violeta Final floración | B47: 89 | C47: 0.7112930165 | D47: 0.6233057215 | E47: 160 | F47: 40.8 | G47: 73.88731868 | H47: 18.87200844 | I47: 1.049059571 | J47: 1.083978186 | K47: 1.370545909 | L47: 1.966209831 | M47: 0.5746 | N47: 525.759 | O47: 28 | P47: 288 | Q47: 460 | R47: 360 | S47: 80 | T47: 85 | U47: 3.1 | V47: 1.6 | AJ47: 45000 | AK47: 400 | AL47: 10 | AM47: 20.91 | AN47: 0.66 | AP47: 429.1792985
A48: HENO Veza (< 20%)-Avena corte precoz INRA | B48: 81 | C48: 0.74 | D48: 0.66 | E48: 129 | F48: 29 | G48: 81 | H48: -31.06451623 | I48: 1.031870043 | J48: 1.053472022 | K48: 1.21 | L48: 2.23 | M48: 0.7 | N48: 870 | P48: 270 | Q48: 575 | R48: 308 | T48: 130 | U48: 2.756 | V48: 0.988 | AN48: 0.64 | AP48: 803.2617
A49: HENO Veza (>50%)-Avena corte precoz INRA | B49: 84 | C49: 0.73 | D49: 0.65 | E49: 158 | F49: 42 | G49: 93 | H49: -18.58155175 | I49: 1.020408163 | J49: 1.024501769 | K49: 0.86 | L49: 3.13 | M49: 0.68 | N49: 881 | P49: 333 | Q49: 674 | R49: 378 | T49: 119 | U49: 3.01 | V49: 1.415 | AN49: 0.6 | AP49: 799.8825
A50: HENO Veza (>50%)-Avena corte tardío INRA | B50: 81 | C50: 0.65 | D50: 0.55 | E50: 123 | F50: 31 | G50: 81 | H50: -43.47657607 | I50: 1.07880684 | J50: 1.128333036 | K50: 0.89 | L50: 3.02 | M50: 0.61 | N50: 929 | P50: 268 | Q50: 584 | R50: 309 | T50: 71 | U50: 3.01 | V50: 1.415 | AN50: 0.6 | AP50: 854.0553
A51: HENO Veza (20-50%)-Avena corte precoz INRA | B51: 79 | C51: 0.72 | D51: 0.65 | E51: 104 | F51: 24 | G51: 75 | H51: -50.30615175 | I51: 1.065092359 | J51: 1.108776844 | K51: 1.21 | L51: 2.23 | M51: 0.68 | N51: 897 | P51: 280 | Q51: 595 | R51: 323 | T51: 103 | U51: 2.756 | V51: 0.988 | AN51: 0.63 | AP51: 833.8825
A52: HENO Veza (20-50%)-Avena corte tardío INRA | B52: 82 | C52: 0.64 | D52: 0.55 | E52: 99 | F52: 23 | G52: 72 | H52: -53.56774055 | I52: 1.090181359 | J52: 1.155366373 | K52: 1.39 | L52: 1.94 | M52: 0.63 | N52: 901 | P52: 333 | Q52: 675 | R52: 385 | T52: 99 | U52: 3.01 | V52: 1.415 | AN52: 0.63 | AP52: 835.4345
A53: HENO Veza Botones | B53: 92 | C53: 0.7602900998 | D53: 0.6840692248 | E53: 217 | F53: 55.335 | G53: 89.49619547 | H53: 56.93371672 | I53: 0.9884905805 | J53: 0.9786155001 | K53: 1.211628532 | L53: 2.224098202 | M53: 0.6088 | N53: 533.9176 | O53: 25 | P53: 244 | Q53: 470 | R53: 330 | T53: 123 | U53: 3.7 | V53: 2.3 | AJ53: 45000 | AK53: 400 | AL53: 10 | AM53: 25.641 | AN53: 0.66 | AP53: 423.0359288
A54: HENO Veza Final floración | B54: 85 | C54: 0.9139505759 | D54: 0.8625564777 | E54: 197 | F54: 50.235 | G54: 92.18452814 | H54: 36.48201349 | I54: 0.9773405656 | J54: 0.960845548 | K54: 1.184313609 | L54: 2.275394642 | M54: 0.688144 | N54: 623.458464 | O54: 25 | P54: 232 | Q54: 524.48 | R54: 260.4 | T54: 94 | U54: 3.5 | V54: 2.17 | AJ54: 45000 | AK54: 400 | AL54: 10 | AM54: 23.981 | AN54: 0.66 | AP54: 523.89411
A55: HENO Veza Fructificación | B55: 91 | C55: 0.8320963568 | D55: 0.7657742026 | E55: 186 | F55: 47.43 | G55: 85.84481608 | H55: 32.08838466 | I55: 1.000806021 | J55: 0.9997563541 | K55: 1.242213475 | L55: 2.169337956 | M55: 0.64528 | N55: 583.33312 | O55: 20 | P55: 236 | Q55: 453 | R55: 298 | T55: 96 | U55: 3.5 | V55: 2.1 | AJ55: 45000 | AK55: 400 | AL55: 10 | AM55: 23.068 | AN55: 0.66 | AP55: 484.0280298
A56: HENO Veza Inicio botones | B56: 91.4 | C56: 0.9721214262 | D56: 0.932227536 | E56: 196 | F56: 49.98 | G56: 94.63849626 | H56: 33.46866561 | I56: 0.9680489979 | J56: 0.9458914147 | K56: 1.16210933 | L56: 2.318870324 | M56: 0.718468 | N56: 653.80588 | O56: 25 | P56: 204 | Q56: 492.56 | R56: 233.8 | T56: 90 | U56: 3.5 | V56: 2.1 | AJ56: 45000 | AK56: 400 | AL56: 10 | AM56: 23.898 | AN56: 0.66 | AP56: 556.6249568
A57: HENO Veza Inicio floración | B57: 90 | C57: 0.7518572372 | D57: 0.6734733305 | E57: 225 | F57: 57.375 | G57: 90.85954176 | H57: 62.84705998 | I57: 0.9844856593 | J57: 0.9718713426 | K57: 1.201833094 | L57: 2.242225526 | M57: 0.60196 | N57: 527.91892 | O57: 25 | P57: 244 | Q57: 538.16 | R57: 336 | T57: 123 | U57: 3.5 | V57: 2.1 | AJ57: 45000 | AK57: 400 | AL57: 10 | AM57: 26.305 | AN57: 0.66 | AP57: 414.2272603
A58: HENO Veza Pastoso | B58: 90.2 | C58: 0.9492342693 | D58: 0.908971077 | E58: 188 | F58: 47.94 | G58: 91.99944958 | H58: 28.96923571 | I58: 0.9750278921 | J58: 0.9572930027 | K58: 1.178699078 | L58: 2.286233093 | M58: 0.71596 | N58: 640.7842 | O58: 20 | P58: 278 | Q58: 576.92 | R58: 236 | T58: 105 | U58: 3.5 | V58: 2.1 | AJ58: 45000 | AK58: 400 | AL58: 10 | AM58: 23.234 | AN58: 0.66 | AP58: 545.7686271
A59: PAJA trigo | B59: 88 | C59: 0.5448944996 | D59: 0.4422046337 | E59: 35 | F59: 7.84 | G59: 35.75192835 | H59: -59.96328956 | I59: 1.215855774 | J59: 1.428129804 | K59: 1.940357448 | L59: 1.388806399 | M59: 0.49196 | N59: 452.6032 | O59: 15 | P59: 420 | Q59: 738.8 | R59: 439 | T59: 80 | U59: 0.8 | V59: 0.66 | W59: 1.4 | Y59: 16.5 | Z59: 2.1 | AM59: 10.535 | AN59: 0.68 | AP59: 387.9456129
A60: PAJA Maíz rastrojo | B60: 85 | C60: 0.6529503033 | D60: 0.5611555319 | E60: 59 | F60: 14.042 | G60: 47.1604761 | H60: -49.08081739 | I60: 1.157472222 | J60: 1.298062411 | K60: 1.714069322 | L60: 1.572153941 | M60: 0.554526 | N60: 514.600128 | O60: 13 | P60: 344 | Q60: 670 | R60: 390 | S60: 110 | T60: 72 | U60: 2.28 | V60: 0.66 | W60: 1.4 | Y60: 16.5 | Z60: 2.1 | AJ60: 50000 | AK60: 50 | AL60: 5 | AM60: 12.527 | AN60: 0.66 | AP60: 447.1601862
A61: PAJA Trigo tratada amoniaco | B61: 88 | C61: 0.565316952 | D61: 0.4605385981 | E61: 100 | F61: 22.4 | G61: 49.60791438 | H61: -16.60686793 | I61: 1.141925732 | J61: 1.264114285 | K61: 1.659586355 | L61: 1.623766568 | M61: 0.49287 | N61: 453.4404 | O61: 15 | P61: 420 | Q61: 738.8 | R61: 439 | T61: 80 | U61: 0.8 | V61: 0.7 | AM61: 15.93 | AN61: 0.66 | AP61: 371.8618627
A62: PAJA Avena | B62: 88 | C62: 0.5381272518 | D62: 0.4366356893 | E62: 32 | F62: 7.392 | G62: 35.09975274 | H62: -62.00686823 | I62: 1.219499726 | J62: 1.436733453 | K62: 1.955627715 | L62: 1.377962083 | M62: 0.491918 | N62: 447.64538 | O62: 15 | P62: 420 | Q62: 738.8 | R62: 439 | T62: 90 | U62: 1.4 | V62: 0.66 | AJ62: 50000 | AK62: 50 | AL62: 5 | AM62: 10.286 | AN62: 0.67 | AP62: 383.5447598
A63: Paja Cebada | B63: 88 | C63: 0.54583885 | D63: 0.4430524613 | E63: 38 | F63: 8.512 | G63: 36.3914354 | H63: -57.86991626 | I63: 1.212233533 | J63: 1.419628584 | K63: 1.925323806 | L63: 1.399650714 | M63: 0.492002 | N63: 452.64184 | O63: 12.5 | P63: 420 | Q63: 738.8 | R63: 439 | T63: 80 | U63: 1.4 | V63: 0.66 | W63: 1.4 | Y63: 16.5 | Z63: 2.1 | AC63: 3.1 | AG63: 17.6 | AI63: 7.3 | AJ63: 50000 | AK63: 50 | AL63: 5 | AM63: 10.784 | AN63: 0.68 | AP63: 387.2032859
A64: Paja Cebada tratada amoniaco | B64: 88 | C64: 0.565316952 | D64: 0.4605385981 | E64: 100 | F64: 22.4 | G64: 49.60791438 | H64: -16.60686793 | I64: 1.141925732 | J64: 1.264114285 | K64: 1.659586355 | L64: 1.623766568 | M64: 0.49287 | N64: 453.4404 | O64: 12.5 | P64: 420 | Q64: 738.8 | R64: 439 | T64: 80 | U64: 1.4 | V64: 0.66 | AM64: 15.93 | AN64: 0.66 | AP64: 371.8618627
A65: VERDE Alfalfa Inicio botones florales | B65: 18.83 | C65: 0.8954507068 | D65: 0.8453932124 | E65: 196.7 | F65: 33.93075 | G65: 74.37573864 | H65: 59.44643611 | I65: 0.9783295072 | J65: 0.9618149826 | K65: 0.9515972519 | L65: 2.83185017 | M65: 0.674826 | N65: 585.2091072 | O65: 22.6 | P65: 277.4 | Q65: 442.1 | R65: 334.4 | S65: 74.3 | T65: 132.8 | U65: 4.8 | V65: 1.9 | AC65: 8.8 | AD65: 1.3 | AG65: 26.7 | AI65: 32.3 | AJ65: 120000 | AK65: 20 | AL65: 100 | AM65: 20.3135 | AN65: 0.77 | AP65: 502.6782183
A66: VERDE Alfalfa Vegetativo 30 cm | B66: 14.4 | C66: 1.057970395 | D66: 1.037917837 | E66: 246 | F66: 40.59 | G66: 87.13790609 | H66: 95.11408255 | I66: 0.9343019937 | J66: 0.8904932233 | K66: 0.8622791436 | L66: 3.125183834 | M66: 0.75199 | N66: 654.98329 | O66: 33 | P66: 201 | Q66: 489.14 | R66: 259 | T66: 129 | U66: 4.8 | V66: 2.6 | AC66: 8.8 | AD66: 1.3 | AG66: 26.7 | AI66: 32.3 | AJ66: 120000 | AK66: 20 | AL66: 100 | AM66: 25.49 | AN66: 0.78 | AP66: 568.7888379
A67: VERDE Maíz Pastoso | B67: 30.7 | C67: 1.336519373 | D67: 1.297656969 | E67: 77.4 | F67: 13.932 | G67: 58.79146932 | H67: -42.36519209 | I67: 1.02870768 | J67: 1.049139944 | K67: 1.066392013 | L67: 1.4 | M67: 0.720464135 | N67: 687.4668776 | O67: 23.8 | P67: 208 | Q67: 454.4 | R67: 243.9 | S67: 29.5 | T67: 45.8 | U67: 0.9 | V67: 1.3 | AA67: 1.1 | AE67: 271 | AF67: 160 | AJ67: 80000 | AK67: 30 | AL67: 20 | AM67: 15.357 | AN67: 0.76 | AP67: 630.3086521
A68: VERDE Avena Floración | B68: 17.7 | C68: 0.8229420319 | D68: 0.7662555366 | E68: 101 | F68: 18.9375 | G68: 59.89304518 | H68: -17.97919135 | I68: 1.102855944 | J68: 1.190232315 | K68: 1.265754423 | L68: 2.128991841 | M68: 0.66 | N68: 594 | O68: 32 | P68: 333 | Q68: 639.62 | R68: 364 | T68: 100 | U68: 1.6 | V68: 1.98 | AJ68: 80000 | AK68: 30 | AL68: 20 | AM68: 17.835 | AN68: 0.75 | AP68: 526.5534262
A69: VERDE Avena Inicio alargamiento tallos | B69: 14.9 | C69: 1.064086631 | D69: 1.064854725 | E69: 120 | F69: 26.1 | G69: 78.54094724 | H69: -13.57775696 | I69: 1.020791557 | J69: 1.034988504 | K69: 1.047364373 | L69: 2.572916273 | M69: 0.8100113766 | N69: 712 | O69: 34 | P69: 230 | Q69: 522.2 | R69: 257 | T69: 121 | U69: 2 | V69: 2.64 | AJ69: 80000 | AK69: 30 | AL69: 20 | AM69: 19.83 | AN69: 0.74 | AP69: 646.839457
A70: VERDE Avena Inicio espigado | B70: 20.6 | C70: 0.9133309306 | D70: 0.8741939522 | E70: 102 | F70: 19.89 | G70: 65.21758227 | H70: -21.9507916 | I70: 1.060258573 | J70: 1.1072336 | K70: 1.146303874 | L70: 2.350843351 | M70: 0.7104972376 | N70: 643 | O70: 32 | P70: 302 | Q70: 604.28 | R70: 331 | T70: 95 | U70: 1.8 | V70: 2.31 | AJ70: 80000 | AK70: 30 | AL70: 20 | AM70: 17.94 | AN70: 0.74 | AP70: 578.0360445
A71: VERDE Avena Lechoso-pastoso | B71: 31.8 | C71: 0.735658448 | D71: 0.6565506562 | E71: 67 | F71: 12.5625 | G71: 48.69970816 | H71: -40.32371469 | I71: 1.10231487 | J71: 1.18914327 | K71: 1.26414502 | L71: 2.131702295 | M71: 0.5894396552 | N71: 547 | O71: 25 | P71: 270 | Q71: 567.8 | R71: 298 | T71: 72 | U71: 1.4 | V71: 1.65 | AJ71: 80000 | AK71: 30 | AL71: 20 | AM71: 14.265 | AN71: 0.75 | AP71: 482.6664074
A72: VERDE Avena Pastoso | B72: 38.3 | C72: 0.7072537332 | D72: 0.6232506884 | E72: 63 | F72: 12.285 | G72: 46.82400532 | H72: -42.66801408 | I72: 1.085210225 | J72: 1.155186303 | K72: 1.214532939 | L72: 2.218779543 | M72: 0.5698924731 | N72: 530 | O72: 25 | P72: 263 | Q72: 559.82 | R72: 291 | T72: 70 | U72: 1.2 | V72: 1.65 | AJ72: 80000 | AK72: 30 | AL72: 20 | AM72: 13.845 | AN72: 0.74 | AP72: 464.7846187
A73: VERDE Zulla Botones | B73: 11 | C73: 0.9871458131 | D73: 0.9668537027 | E73: 199 | F73: 40.2975 | G73: 86.21303252 | H73: 49.55476384 | I73: 0.9828422118 | J73: 0.9693798556 | K73: 0.9612993691 | L73: 2.803269123 | M73: 0.753 | N73: 637.791 | O73: 27 | P73: 200 | Q73: 488 | R73: 230 | T73: 153 | U73: 3.3 | V73: 2.1 | AJ73: 120000 | AK73: 20 | AL73: 100 | AM73: 20.555 | AN73: 0.73 | AP73: 554.1757463
A74: VERDE Zulla Botones florales, 1r año | B74: 13.77 | C74: 0.9661408557 | D74: 0.9305393291 | E74: 168.9 | F74: 34.20225 | G74: 86.94535264 | H74: 26.68590212 | I74: 1.000730959 | J74: 0.9998558827 | K74: 1.000844288 | L74: 2.692507587 | M74: 0.717953 | N74: 645.1525658 | O74: 27 | P74: 234.7 | Q74: 348.5 | R74: 330.4 | T74: 101.4 | U74: 3.6 | V74: 2.1 | AM74: 17.3945 | AN74: 0.73 | AP74: 566.6355756
A75: VERDE Zulla Botones Florales, 2º año | B75: 12.51 | C75: 0.8951169505 | D75: 0.8483103437 | E75: 168.9 | F75: 34.20225 | G75: 85.02746379 | H75: 29.68260345 | I75: 1.021257856 | J75: 1.035817512 | K75: 1.048474402 | L75: 2.570192304 | M75: 0.686441 | N75: 605.6468943 | O75: 27 | P75: 265.9 | Q75: 382.3 | R75: 352.4 | T75: 117.7 | U75: 3.6 | V75: 2.1 | AM75: 17.3945 | AN75: 0.73 | AP75: 524.9568365
A76: VERDE Zulla Final floración | B76: 15.3 | C76: 0.8276145297 | D76: 0.7672213764 | E76: 152 | F76: 29.64 | G76: 68.69210074 | H76: 20.9161303 | I76: 1.041416423 | J76: 1.072209943 | K76: 1.097775658 | L76: 2.454764615 | M76: 0.64695 | N76: 574.4916 | O76: 21 | P76: 305 | Q76: 607.7 | R76: 329.75 | T76: 112 | U76: 2.7 | V76: 3.5 | AJ76: 120000 | AK76: 20 | AL76: 100 | AM76: 15.62 | AN76: 0.74 | AP76: 496.437687
A77: VERDE Zulla Floración | B77: 13.5 | C77: 0.8566351193 | D77: 0.8059033998 | E77: 155 | F77: 30.225 | G77: 70.91503133 | H77: 22.20440079 | I77: 1.033625341 | J77: 1.058015117 | K77: 1.078411657 | L77: 2.498842463 | M77: 0.67321 | N77: 586.36591 | O77: 23 | P77: 279 | Q77: 578.06 | R77: 305.05 | T77: 129 | U77: 3.6 | V77: 2.1 | AJ77: 120000 | AK77: 20 | AL77: 100 | AM77: 15.935 | AN77: 0.74 | AP77: 509.3963728
A78: VERDE Zulla Floración, 1r año | B78: 14.92 | C78: 0.8896999035 | D78: 0.8413566291 | E78: 162.4 | F78: 31.668 | G78: 82.56252045 | H78: 26.45331179 | I78: 1.017849675 | J78: 1.029771407 | K78: 1.040391915 | L78: 2.590159344 | M78: 0.682098 | N78: 604.6116672 | O78: 23 | P78: 270.2 | Q78: 390.1 | R78: 346.3 | T78: 113.6 | U78: 2.7 | V78: 3.5 | AM78: 16.712 | AN78: 0.74 | AP78: 526.4629793
A79: VERDE Zulla Floración, 2º año | B79: 17.12 | C79: 0.8321434211 | D79: 0.7722857657 | E79: 141.1 | F79: 27.5145 | G79: 77.40801428 | H79: 12.25538394 | I79: 1.04040746 | J79: 1.070362352 | K79: 1.095245434 | L79: 2.460435584 | M79: 0.64897 | N79: 579.984489 | O79: 23 | P79: 303 | Q79: 452.6 | R79: 406.5 | T79: 106.3 | U79: 2.7 | V79: 3.5 | AM79: 14.4755 | AN79: 0.74 | AP79: 504.7095418
A80: VERDE Zulla Fructificación, 1r año | B80: 18.93 | C80: 0.7740194666 | D80: 0.7050334795 | E80: 130.8 | F80: 25.506 | G80: 74.01316404 | H80: 6.799556184 | I80: 1.056133358 | J80: 1.099480224 | K80: 1.135467666 | L80: 2.373278359 | M80: 0.618165 | N80: 549.4868685 | O80: 21 | P80: 333.5 | Q80: 519.6 | R80: 450.7 | T80: 111.1 | U80: 2.7 | V80: 3.5 | AM80: 13.394 | AN80: 0.74 | AP80: 474.5819724
A81: VERDE Zulla Fructificación, 2º año | B81: 20.03 | C81: 0.7714311913 | D81: 0.6990913505 | E81: 135.4 | F81: 26.403 | G81: 74.79356037 | H81: 10.38574942 | I81: 1.052200861 | J81: 1.092134028 | K81: 1.125249773 | L81: 2.394829046 | M81: 0.609681 | N81: 548.6519319 | O81: 21 | P81: 341.9 | Q81: 491.1 | R81: 452.9 | T81: 100.1 | U81: 2.7 | V81: 3.5 | AM81: 13.877 | AN81: 0.74 | AP81: 472.0479914
A82: VERDE Zulla hoja, 1r año | B82: 11 | C82: 1.096854529 | D82: 1.092315415 | E82: 233.5 | F82: 47.28375 | G82: 101.4759961 | H82: 71.57961546 | I82: 0.9440674911 | J82: 0.9059343706 | K82: 0.8812924975 | L82: 3.057759878 | M82: 0.789865 | N82: 687.814442 | O82: 27 | P82: 163.5 | Q82: 249.6 | R82: 234.1 | T82: 129.2 | U82: 3.3 | V82: 2.1 | AM82: 24.1775 | AN82: 0.73 | AP82: 598.1277405
A83: VERDE Zulla hoja, 2º año | B83: 11 | C83: 1.099747568 | D83: 1.095573936 | E83: 240.5 | F83: 48.70125 | G83: 102.775997 | H83: 76.87320774 | I83: 0.9385770623 | J83: 0.8972271293 | K83: 0.8705493025 | L83: 3.095494801 | M83: 0.790269 | N83: 686.9808417 | O83: 27 | P83: 163.1 | Q83: 272.8 | R83: 253.3 | T83: 130.7 | U83: 3.3 | V83: 2.1 | AM83: 24.9125 | AN83: 0.73 | AP83: 595.5743013
A84: VERDE Zulla yemas florales, 1r año | B84: 11.91 | C84: 0.971662067 | D84: 0.9400058138 | E84: 170.3 | F84: 34.48575 | G84: 87.26725566 | H84: 27.64789741 | I84: 1.00280174 | J84: 1.003435006 | K84: 1.005537317 | L84: 2.679941156 | M84: 0.727447 | N84: 645.6819572 | O84: 27 | P84: 225.3 | Q84: 323.9 | R84: 304.2 | T84: 112.4 | U84: 3.6 | V84: 2.1 | AM84: 17.5415 | AN84: 0.73 | AP84: 567.4701334
A85: VERDE Zulla yemas florales, 2º año | B85: 12.06 | C85: 0.9414798783 | D85: 0.9030186208 | E85: 177.4 | F85: 35.9235 | G85: 87.76027264 | H85: 34.30704275 | I85: 1.00595395 | J85: 1.008904022 | K85: 1.012728493 | L85: 2.660911447 | M85: 0.709469 | N85: 628.1638526 | O85: 27 | P85: 243.1 | Q85: 360.2 | R85: 330.5 | T85: 114.6 | U85: 3.6 | V85: 2.1 | AM85: 18.287 | AN85: 0.73 | AP85: 546.9396001
A86: VERDE Zulla Inicio Floración, 1r año | B86: 14.5 | C86: 0.9196215428 | D86: 0.8756744961 | E86: 167 | F86: 32.565 | G86: 84.17295987 | H86: 28.74256271 | I86: 1.010019035 | J86: 1.015994101 | K86: 1.022087499 | L86: 2.63654613 | M86: 0.695127 | N86: 620.3313348 | O86: 23 | P86: 257.3 | Q86: 366 | R86: 334.1 | T86: 107.6 | U86: 3.6 | V86: 2.1 | AM86: 17.195 | AN86: 0.74 | AP86: 541.967139
A87: VERDE Zulla Inicio Floración, 2º año | B87: 15.37 | C87: 0.8688196702 | D87: 0.8142223989 | E87: 151.5 | F87: 29.5425 | G87: 80.22335033 | H87: 18.72117137 | I87: 1.03172308 | J87: 1.054574304 | K87: 1.073743818 | L87: 2.50970557 | M87: 0.666039 | N87: 598.4360415 | O87: 23 | P87: 286.1 | Q87: 406 | R87: 371.5 | T87: 101.5 | U87: 3.6 | V87: 2.1 | AM87: 15.5675 | AN87: 0.74 | AP87: 521.8195916
A88: VERDE Zulla tallo hoja, 1r año | B88: 11.5 | C88: 1.018584209 | D88: 0.9979952283 | E88: 186 | F88: 37.665 | G88: 91.19718606 | H88: 37.93595928 | I88: 0.988232989 | J88: 0.9784811434 | K88: 0.9730315989 | L88: 2.76946899 | M88: 0.754515 | N88: 664.0486515 | O88: 27 | P88: 198.5 | Q88: 280.5 | R88: 269.9 | T88: 119.9 | U88: 3.3 | V88: 2.1 | AM88: 19.19 | AN88: 0.73 | AP88: 583.7835984
A89: VERDE Zulla tallo hoja, 2º año | B89: 10.03 | C89: 1.027185591 | D89: 1.007222315 | E89: 206.5 | F89: 41.81625 | G89: 95.04208597 | H89: 53.3796313 | I89: 0.9734076994 | J89: 0.9536197806 | K89: 0.9411371114 | L89: 2.863324384 | M89: 0.755121 | N89: 662.4676533 | O89: 27 | P89: 197.9 | Q89: 311.2 | R89: 290.4 | T89: 122.7 | U89: 3.3 | V89: 2.1 | AM89: 21.3425 | AN89: 0.73 | AP89: 577.1261293
A90: VERDE Raigrás italiano 1 semana antes inicio espigado | B90: 16.4 | C90: 0.95 | D90: 0.92 | E90: 112 | F90: 24 | G90: 79 | H90: -18 | I90: 1.01 | J90: 1.02 | K90: 1.02 | L90: 2.6 | M90: 0.75 | N90: 663.3721 | O90: 33 | P90: 230 | Q90: 495 | R90: 255 | T90: 101 | U90: 1.7 | V90: 1.6 | W90: 1.4 | Y90: 30 | Z90: 3 | AA90: 1 | AC90: 6 | AG90: 80 | AI90: 23 | AJ90: 80000 | AK90: 30 | AL90: 20 | AM90: 18.99 | AN90: 0.73 | AP90: 597.0361265
A91: VERDE Raigrás italiano Espiga a 10 cm | B91: 15.8 | C91: 1.073514419 | D91: 1.069426873 | E91: 168 | F91: 26.46 | G91: 77.8462145 | H91: 31.10451486 | I91: 0.9910346389 | J91: 0.9832391547 | K91: 0.9791911182 | L91: 2.752047879 | M91: 0.79572 | N91: 705.00792 | O91: 39 | P91: 188 | Q91: 474.32 | R91: 213 | T91: 114 | U91: 1.8 | V91: 2.1 | W91: 1.7 | Y91: 30 | Z91: 3 | AA91: 1 | AC91: 8.1 | AG91: 85.1 | AM91: 24.87 | AN91: 0.79 | AP91: 636.2376237
A92: VERDE Raigrás italiano Espigado | B92: 17.8 | C92: 0.8818407587 | D92: 0.8377966687 | E92: 88 | F92: 19.14 | G92: 63.38289694 | H92: -34.0522143 | I92: 1.091434895 | J92: 1.167439208 | K92: 1.232308365 | L92: 2.186774769 | M92: 0.69765 | N92: 629.97795 | O92: 30 | P92: 265 | Q92: 562.1 | R92: 293 | T92: 97 | U92: 1.8 | V92: 1.5 | AC92: 5 | AG92: 79.6 | AI92: 23.8 | AJ92: 80000 | AK92: 30 | AL92: 20 | AM92: 16.47 | AN92: 0.71 | AP92: 565.5384465
A93: VERDE Raigrás italiano Final espigado | B93: 20.4 | C93: 0.8544008851 | D93: 0.8031831803 | E93: 80 | F93: 17.4 | G93: 60.32551195 | H93: -38.91893425 | I93: 1.096771795 | J93: 1.178039486 | K93: 1.247801042 | L93: 2.15962381 | M93: 0.67756 | N93: 617.93472 | O93: 29 | P93: 284 | Q93: 583.76 | R93: 313 | T93: 88 | U93: 1.8 | V93: 1.5 | W93: 2.3 | Y93: 26 | Z93: 1.5 | AJ93: 80000 | AK93: 30 | AL93: 20 | AM93: 15.63 | AN93: 0.71 | AP93: 554.2271801
A94: VERDE Raigrás italiano Floración | B94: 27.5 | C94: 0.8068536711 | D94: 0.7469697818 | E94: 60 | F94: 13.5 | G94: 54.39933876 | H94: -52.28407859 | I94: 1.094509341 | J94: 1.173534971 | K94: 1.241204453 | L94: 2.171101492 | M94: 0.64963 | N94: 595.06108 | O94: 27 | P94: 307 | Q94: 609.98 | R94: 337 | T94: 84 | U94: 1.8 | V94: 1.2 | AJ94: 80000 | AK94: 30 | AL94: 20 | AM94: 13.53 | AN94: 0.7 | AP94: 534.2709123
A95: VERDE Raigrás italiano Hoja primavera | B95: 15.1 | C95: 1.1 | D95: 1.09899354 | E95: 191 | F95: 34.38 | G95: 86.07504607 | H95: 44.12488481 | I95: 0.9708980146 | J95: 0.9494630462 | K95: 0.9358514742 | L95: 2.879496281 | M95: 0.81287 | N95: 704.75829 | O95: 43 | P95: 178 | Q95: 462.92 | R95: 203 | T95: 133 | U95: 2 | V95: 2.4 | W95: 1.7 | Y95: 30 | Z95: 3 | AC95: 8.1 | AG95: 85.1 | AM95: 27.285 | AN95: 0.76 | AP95: 628.165719
A96: VERDE Raigrás italiano Hoja otoño/invierno | B96: 16.6 | C96: 0.987525423 | D96: 0.968623439 | E96: 190 | F96: 37.05 | G96: 83.72930525 | H96: 43.99629972 | I96: 0.9908485486 | J96: 0.9829225231 | K96: 0.9787806617 | L96: 2.753201964 | M96: 0.75792 | N96: 649.53744 | O96: 41 | P96: 238 | Q96: 531.32 | R96: 265 | T96: 143 | U96: 2.28 | V96: 2.58 | AM96: 27.18 | AN96: 0.74 | AP96: 566.5326882
A97: VERDE Raigrás italiano Inicio espigado | B97: 16.5 | C97: 0.9368495611 | D97: 0.9041024886 | E97: 105 | F97: 21.2625 | G97: 67.81242603 | H97: -21.5953848 | I97: 1.067222853 | J97: 1.120433875 | K97: 1.164876603 | L97: 2.313361632 | M97: 0.72817 | N97: 654.62483 | O97: 32 | P97: 238 | Q97: 531.32 | R97: 265 | T97: 101 | U97: 1.8 | V97: 1.8 | W97: 1.7 | Y97: 30 | Z97: 3 | AA97: 1 | AC97: 5 | AG97: 80 | AI97: 23 | AJ97: 80000 | AK97: 30 | AL97: 20 | AM97: 18.255 | AN97: 0.73 | AP97: 589.3655744
A98: VERDE Raigrás italiano Inicio floración | B98: 24 | C98: 0.8342394507 | D98: 0.7793634604 | E98: 70 | F98: 15.225 | G98: 57.3422064 | H98: -45.48047731 | I98: 1.094099952 | J98: 1.172721579 | K98: 1.240015355 | L98: 2.173183444 | M98: 0.66587 | N98: 608.60518 | O98: 28 | P98: 293 | Q98: 594.02 | R98: 322 | T98: 86 | U98: 1.8 | V98: 1.2 | AJ98: 80000 | AK98: 30 | AL98: 20 | AM98: 14.58 | AN98: 0.71 | AP98: 546.7382102
A99: VERDE Triticale Lechoso-pastoso | B99: 40.51 | C99: 0.7866308836 | D99: 0.7130740068 | E99: 71.9 | F99: 13.48125 | G99: 51.74268223 | H99: -38.67729114 | I99: 1.046395966 | J99: 1.081369429 | K99: 1.110363008 | L99: 2.426936796 | M99: 0.6102620087 | N99: 574.9278384 | O99: 14.8 | P99: 299 | Q99: 618.4 | R99: 350.1 | S99: 43.5 | T99: 57.9 | U99: 1.16 | V99: 0.99 | W99: 2.7 | Y99: 25 | Z99: 1.7 | AA99: 3 | AC99: 8.6 | AD99: 0.44 | AG99: 43.9 | AI99: 24.1 | AJ99: 80000 | AK99: 30 | AL99: 20 | AM99: 14.7795 | AN99: 0.75 | AP99: 510.8802662
A100: EBM jdscy | B100: 32.5 | C100: 0.9570058234 | D100: 0.9127317295 | E100: 77 | F100: 12 | G100: 61.5 | H100: -33.5 | I100: 0.9816479448 | J100: 1.075 | K100: 1.279261934 | L100: 1.4 | M100: 0.7235 | N100: 688 | O100: 31 | P100: 203.5 | Q100: 406.5 | R100: 207 | S100: 27.9 | T100: 45.5 | U100: 0.8 | V100: 1.3 | W100: 1.2 | AE100: 278 | AM100: 24 | AN100: 0.75 | AO100: 100 | AP100: 612.5872382
AU182: 42.3956712
AU183: Falta valor MNT
AU184: Falta valor MNT
AU185: Falta valor MNT
AU186: Falta valor MNT
AU187: 46.5085928
AU188: 46.87
AU189: 40.675
AU190: 62.7678912
AU191: 49.73
AU192: 40.39
AU193: 49.3864328
AU194: 54.28
AU195: 54.28
AU196: 54.28
AU200: 34.69
AU301: Falta valor MNT
AU302: Falta valor MNT
AU303: Falta valor MNT
AU304: Falta valor MNT
AU305: Falta valor MNT
AU306: Falta valor MNT
AU307: Falta valor MNT
AU308: Falta valor MNT
AU309: Falta valor MNT
AU310: Falta valor MNT
AU311: Falta valor MNT
AU312: Falta valor MNT
AU313: Falta valor MNT
AU314: Falta valor MNT
AU315: Falta valor MNT
AU316: Falta valor MNT
AU317: Falta valor MNT
AU318: Falta valor MNT
AU319: Falta valor MNT
AU320: Falta valor MNT
AU321: Falta valor MNT
AU322: Falta valor MNT
AU323: Falta valor MNT
AU324: Falta valor MNT
AU325: Falta valor MNT
AU326: Falta valor MNT
AU327: Falta valor MNT
AU328: Falta valor MNT
AU329: Falta valor MNT
AU330: Falta valor MNT
AU331: Falta valor MNT
AU332: Falta valor MNT
AU333: Falta valor MNT
AU334: Falta valor MNT
AU335: Falta valor MNT
AU336: Falta valor MNT
AU337: Falta valor MNT
AU338: Falta valor MNT
AU339: Falta valor MNT
AU340: Falta valor MNT
AU341: Falta valor MNT
AU342: Falta valor MNT
AU343: Falta valor MNT
AU344: Falta valor MNT
AU345: Falta valor MNT
AU346: Falta valor MNT
AU347: Falta valor MNT
AU348: Falta valor MNT
AU349: Falta valor MNT
AU350: Falta valor MNT
AU351: Falta valor MNT
AU352: Falta valor MNT
AU353: Falta valor MNT
AU354: Falta valor MNT
AU355: Falta valor MNT
AU356: Falta valor MNT
AU357: Falta valor MNT
AU358: Falta valor MNT
AU359: Falta valor MNT
AU360: Falta valor MNT
AU361: Falta valor MNT
AU362: Falta valor MNT
AU363: Falta valor MNT
AU364: Falta valor MNT
AU365: Falta valor MNT
AU366: Falta valor MNT
AU367: Falta valor MNT
AU368: Falta valor MNT
AU369: Falta valor MNT
AU370: Falta valor MNT
AU371: Falta valor MNT
AU372: Falta valor MNT
AU373: Falta valor MNT
AU374: Falta valor MNT
AU375: Falta valor MNT
AU376: Falta valor MNT
AU377: Falta valor MNT
AU378: Falta valor MNT
AU379: Falta valor MNT
AU380: Falta valor MNT
AU381: Falta valor MNT
AU382: Falta valor MNT
AU383: Falta valor MNT
AU384: Falta valor MNT
AU385: Falta valor MNT
... 89 more rows

Sheet 0_Taula Concentrats (hidden)
A1: Nombre Concentrados | B1: MS | C1: UFL | D1: UFV | E1: MNT_PB | F1: PDIA | G1: PDI | H1: BPR | I1: UEL | J1: UEB | K1: UEM | L1: NI ref | M1: dMO | N1: MOD_TDN | O1: EE | P1: FB | Q1: NDF | R1: ADF | S1: Lignina | T1: Cenizas | U1: Ca | V1: P | W1: Mg | X1: Cl | Y1: K | Z1: Na | AA1: S | AB1: Co | AC1: Cu | AD1: Mo | AE1: Almidón | AF1: Fe | AG1: Mn | AH1: Se | AI1: Zn | AJ1: Vit A | AK1: Vit D | AL1: Vit E | AM1: AG | AN1: DT_N | AO1: dr | AP1: MOF
A3: Alfalfa deshidratada y aglomerados | B3: 90.2 | C3: 0.7398701174 | D3: 0.6738447078 | E3: 233 | F3: 68.64631679 | G3: 116.147103 | H3: 51.38002158 | I3: 0.3789 | L3: 2 | M3: 0.6658 | N3: 579.9118 | O3: 34 | P3: 237 | Q3: 405 | R3: 280 | S3: 76 | T3: 129 | U3: 3.84 | V3: 1.768 | AM3: 17 | AN3: 0.6663643659 | AO3: 0.8830573093
A4: Alforfón grano | B4: 88 | C4: 1.000775785 | D4: 0.9661592102 | E4: 125 | F4: 34.09988724 | G4: 90.96989041 | H4: -20.55937996 | I4: 0.2129 | L4: 2 | M4: 0.74393 | N4: 726.81961 | O4: 28 | P4: 118 | Q4: 301 | R4: 158.9 | S4: 33.4 | T4: 23 | U4: 0.605 | V4: 2.775 | W4: 1.2 | X4: 0.5 | Y4: 5.1 | Z4: 0.6 | AA4: 1.6 | AB4: 0.06 | AC4: 11 | AF4: 50 | AG4: 38 | AI4: 10 | AM4: 21 | AN4: 0.6993867196 | AO4: 0.9074752038 | AP4: 668.2667467
A5: Alforfón segundas | B5: 89 | C5: 1.185521315 | D5: 1.168586189 | E5: 335 | F5: 98.39838218 | G5: 150.650279 | H5: 125.2564113 | I5: 0.2129 | L5: 2 | M5: 0.79562 | N5: 751.8609 | O5: 82 | P5: 83 | Q5: 251.39 | R5: 114.99 | S5: 22.61 | T5: 55 | U5: 0.275 | V5: 2.925 | AM5: 65.6 | AN5: 0.6946621902 | AO5: 0.9619722962 | AP5: 273.3737151
A6: Algarrobo (algarroba) | B6: 87 | C6: 0.843494905 | D6: 0.8273952756 | E6: 58 | F6: 20.57803675 | G6: 81.08159627 | H6: -76.25681175 | I6: 0.288174289 | L6: 2 | M6: 0.8014563863 | N6: 771.8025 | O6: 11 | P6: 87 | Q6: 257.16 | R6: 120.01 | S6: 23.83 | T6: 37 | U6: 0.825 | V6: 0.408 | AM6: 9.9 | AN6: 0.6052595731 | AO6: 0.8988026382 | AP6: 645.9087874
A7: Algarrobo pulpa deshidratada sin semilla, IAMZ | B7: 86 | C7: 0.8175571336 | D7: 0.8010099087 | E7: 56 | F7: 19.88740459 | G7: 81.02326077 | H7: -78.36477527 | I7: 0.286199543 | L7: 2 | M7: 0.8034925234 | N7: 773.7633 | O7: 0.1 | P7: 84.5 | Q7: 253.55 | R7: 116.87 | S7: 23.07 | T7: 37 | U7: 0.825 | V7: 0.408 | AM7: 0.08 | AN7: 0.6049783161 | AO7: 0.8990195713 | AP7: 332.8963114
A8: Algodón cáscara | B8: 91 | C8: 0.3662081422 | D8: 0.2380788633 | E8: 81 | F8: 16.10308659 | G8: 54.6536023 | H8: -25.8351808 | I8: 0.65129486 | L8: 2 | M8: 0.323182 | N8: 309.608356 | O8: 19 | P8: 547 | Q8: 900 | R8: 697.4 | S8: 184.6 | T8: 42 | U8: 0.77 | V8: 0.693 | AM8: 14.25 | AN8: 0.7237543586 | AO8: 0.7196621715 | AP8: 816.2571164
A9: Algodón torta sin aceite | B9: 89 | C9: 1.150192028 | D9: 1.125943813 | E9: 466 | F9: 160.9221094 | G9: 212.6445717 | H9: 184.5836527 | I9: 0.2994882 | L9: 2 | M9: 0.802196 | N9: 750.855456 | O9: 20 | P9: 127 | Q9: 232 | R9: 138 | S9: 32 | T9: 64 | U9: 2.585 | V9: 5.922 | W9: 5.2 | Y9: 15.2 | Z9: 0.4 | AM9: 15 | AN9: 0.6409096727 | AO9: 0.9616700558 | AP9: 814.2065213
A10: Algodón, grano | B10: 92 | C10: 1.105745464 | D10: 1.027155353 | E10: 220 | F10: 48.76444907 | G10: 91.65479282 | H10: 70.58383788 | I10: 0.5034 | L10: 2 | M10: 0.64652 | N10: 618.71964 | O10: 198 | P10: 276 | Q10: 456 | R10: 354 | S10: 105 | T10: 43 | U10: 1.155 | V10: 4.736 | AM10: 188.1 | AN10: 0.7394108541 | AO10: 0.8505979247 | AP10: 581.8575174
A11: Altramuz extrusionado | B11: 88 | C11: 1.52751288 | D11: 1.578192665 | E11: 406 | F11: 69.23209069 | G11: 127.7145253 | H11: 223.2811959 | I11: 0.1714 | L11: 2 | M11: 0.91027 | N11: 877.50028 | O11: 109 | P11: 121 | Q11: 214 | R11: 175 | S11: 34.4 | T11: 36 | U11: 1.1 | V11: 3.06 | W11: 1.7 | X11: 0.23 | Y11: 10 | Z11: 0.11 | AM11: 83.93 | AN11: 0.8224029302 | AO11: 0.9601644388 | AP11: 769.7935828
A12: Altramuz grano | B12: 86.7 | C12: 1.49857485 | D12: 1.544346092 | E12: 399 | F12: 69.09881582 | G12: 127.2670334 | H12: 218.10216 | I12: 0.1714 | L12: 2 | M12: 0.90507 | N12: 864.34185 | O12: 104 | P12: 161 | Q12: 229 | R12: 172 | S12: 17 | T12: 45 | U12: 1.1 | V12: 3.128 | W12: 2.5 | Y12: 9.5 | Z12: 0.55 | AM12: 93.6 | AN12: 0.822898728 | AO12: 0.9778585299 | AP12: 864.527247
A13: Avena | B13: 87.4 | C13: 1.002754804 | D13: 0.9548146189 | E13: 111 | F13: 20.39754399 | G13: 75.33304787 | H13: -14.56672481 | I13: 0.3208 | L13: 2 | M13: 0.72867 | N13: 706.8099 | O13: 67 | P13: 135 | Q13: 336 | R13: 162 | S13: 27 | T13: 30 | U13: 0.55 | V13: 3 | W13: 1.75 | Y13: 4.3 | Z13: 0.5 | AB13: 0.02 | AC13: 3.5 | AD13: 0.7 | AG13: 38.4 | AH13: 0.04 | AI13: 25.2 | AL13: 15 | AM13: 60.3 | AN13: 0.7980031538 | AO13: 0.9097253799 | AP13: 747.5170565
A14: Cacahuete, torta 48 | B14: 88.6 | C14: 1.194433583 | D14: 1.186516039 | E14: 524 | F14: 143.3022223 | G14: 198.101494 | H14: 261.736138 | I14: 0.2876 | L14: 2 | M14: 0.84376 | N14: 789.75936 | O14: 16 | P14: 77 | Q14: 150 | R14: 101 | S14: 26 | T14: 64 | U14: 0.99 | V14: 4.29 | W14: 3 | AB14: 0.3 | AC14: 14.5 | AD14: 1.7 | AF14: 450 | AG14: 47.5 | AH14: 0.11 | AI14: 61.5 | AM14: 12 | AN14: 0.7179423819 | AO14: 0.969580348 | AP14: 807.1947924
A15: Cacao torta | B15: 86.6 | C15: 0.9215256292 | D15: 0.8794694618 | E15: 232 | F15: 88.67087909 | G15: 140.270913 | H15: 25.81494705 | I15: 0.34659281 | L15: 2 | M15: 0.745465 | N15: 673.154895 | O15: 20 | P15: 161 | Q15: 363.86 | R15: 212.9 | S15: 47.29 | T15: 97 | U15: 1.43 | V15: 0.884 | AM15: 15 | AN15: 0.5829749087 | AO15: 0.9164965682 | AP15: 268.232459
A16: Cebada bagazo cervecería fresco | B16: 20.5 | C16: 0.8640921799 | D16: 0.7703702942 | E16: 300 | F16: 129.9487159 | G16: 172.9796551 | H16: 53.5641575 | I16: 0.4951 | L16: 2 | M16: 0.6385 | N16: 606.575 | O16: 86 | P16: 150 | Q16: 525 | R16: 206 | S16: 47 | T16: 50 | U16: 1.815 | V16: 4.446 | W16: 1.6 | Y16: 0.7 | Z16: 1.6 | AB16: 0.08 | AC16: 22.2 | AD16: 0.5 | AG16: 38.5 | AH16: 0.06 | AI16: 85 | AL16: 29 | AM16: 38.7 | AN16: 0.5325076887 | AO16: 0.9265657975 | AP16: 565.2052521
A17: Cebada bagazo cervecería seco | B17: 91.9 | C17: 0.871193565 | D17: 0.7805426295 | E17: 262.4 | F17: 107.6156328 | G17: 151.6383987 | H17: 35.09442835 | I17: 0.4951 | L17: 2 | M17: 0.62732 | N17: 601.348952 | O17: 79.9 | P17: 161.6 | Q17: 643.3 | R17: 236.4 | S17: 78.9 | T17: 41.4 | U17: 1.265 | V17: 4.914 | AB17: 0.08 | AC17: 22.2 | AD17: 0.5 | AG17: 38.5 | AH17: 0.06 | AI17: 85 | AL17: 29 | AM17: 35.955 | AN17: 0.5371850665 | AO17: 0.886143731 | AP17: 529.6572154
A18: Cebada grano | B18: 88.8 | C18: 1.078969989 | D18: 1.067752556 | E18: 112 | F18: 27.59508246 | G18: 89.46220189 | H18: -31.34737412 | I18: 0.2046 | L18: 2 | M18: 0.837328 | N18: 816.3948 | O18: 19 | P18: 54 | Q18: 215 | R18: 65 | S18: 12 | T18: 25 | U18: 0.44 | V18: 2.964 | W18: 1.3 | Y18: 5.55 | Z18: 0.35 | AB18: 0.01 | AC18: 4.1 | AD18: 0.3 | AF18: 90 | AG18: 17.6 | AH18: 0.02 | AI18: 24.4 | AJ18: 1000 | AL18: 25 | AM18: 14.25 | AN18: 0.7349259949 | AO18: 0.9294938772 | AP18: 596.0833771
A19: Cebada malta, grano germinado y secado | B19: 89.6 | C19: 0.8231856487 | D19: 0.7581965961 | E19: 255 | F19: 66.35502136 | G19: 127.2527654 | H19: 71.69727487 | I19: 0.2959 | L19: 2 | M19: 0.89925 | N19: 840.79875 | O19: 23 | P19: 10 | Q19: 94 | R19: 10 | S19: 6 | T19: 65 | U19: 1.485 | V19: 5.625 | AL19: 16 | AM19: 10.35 | AN19: 0.7318227862 | AO19: 0.9703127509 | AP19: 363.3900279
A20: Cebada salvado | B20: 89 | C20: 0.7604950037 | D20: 0.683000715 | E20: 118 | F20: 25.13276462 | G20: 75.56717545 | H20: -8.043766921 | I20: 0.3630071 | L20: 2 | M20: 0.620602 | N20: 581.504074 | O20: 32 | P20: 187 | Q20: 539 | R20: 239 | S20: 28 | T20: 63 | U20: 0.44 | V20: 2.925 | AB20: 0.03 | AC20: 11.7 | AD20: 0.6 | AG20: 123 | AH20: 0.05 | AI20: 59 | AM20: 25.6 | AN20: 0.7651033494 | AO20: 0.9067371975 | AP20: 563.5193635
A21: Centeno grano | B21: 86.5 | C21: 1.19 | D21: 1.21 | E21: 97 | F21: 20 | G21: 81 | H21: -34.72904868 | I21: 0.2129 | L21: 2 | M21: 0.88214 | N21: 864.4972 | O21: 16.2 | P21: 26 | Q21: 132 | R21: 42 | S21: 14 | T21: 20 | U21: 0.385 | V21: 3 | W21: 1.35 | Y21: 5.25 | Z21: 0.3 | AB21: 0.03 | AC21: 4.5 | AD21: 0.2 | AG21: 55 | AH21: 0.03 | AI21: 30 | AL21: 17 | AM21: 12.15 | AN21: 0.7769651377 | AO21: 0.9244544324 | AP21: 415.4862894
A22: Coco torta | B22: 90 | C22: 0.9709595673 | D22: 0.9339995141 | E22: 239 | F22: 87.26903545 | G22: 138.2098434 | H22: 30.48498753 | I22: 0.2876 | L22: 2 | M22: 0.71604 | N22: 660.18888 | O22: 18 | P22: 178 | Q22: 580 | R22: 316 | S22: 78 | T22: 78 | U22: 1.1 | V22: 4.488 | W22: 4 | Z22: 0.6 | AC22: 20 | AF22: 500 | AG22: 60 | AI22: 70 | AM22: 16.2 | AN22: 0.5872269422 | AO22: 0.8846081419 | AP22: 201.6193367
A23: Colza, grano | B23: 89.9 | C23: 1.96875359 | D23: 2.026164505 | E23: 217 | F23: 41.88482236 | G23: 81.98060891 | H23: 90.24033351 | I23: 0.2959 | L23: 2 | M23: 0.84608 | N23: 798.69952 | O23: 457 | P23: 68 | Q23: 199 | R23: 116 | S23: 41 | T23: 56 | U23: 1.815 | V23: 3.763 | AM23: 388.45 | AN23: 0.7911253228 | AO23: 0.924083365 | AP23: 581.9454468
A24: Colza, grano semidescascarillado | B24: 90 | C24: 2.006824385 | D24: 2.066056386 | E24: 217 | F24: 41.88482236 | G24: 80.92224091 | H24: 91.89403351 | I24: 0.2959 | L24: 2 | M24: 0.84608 | N24: 798.69952 | O24: 480 | P24: 68 | Q24: 115 | R24: 84 | S24: 41 | T24: 56 | U24: 1.815 | V24: 3.763 | AM24: 379.2 | AN24: 0.7911253228 | AO24: 0.924083365 | AP24: 817.1113866
A25: Colza, turtó | B25: 90 | C25: 0.958005025 | D25: 0.9098593603 | E25: 418 | F25: 103.9119909 | G25: 155.8627084 | H25: 193.047004 | I25: 0.3125 | L25: 2 | M25: 0.7842 | N25: 704.9958 | O25: 26 | P25: 120 | Q25: 287 | R25: 182 | S25: 74 | T25: 101 | U25: 4.62 | V25: 8.804 | W25: 5.15 | Y25: 12.4 | Z25: 0.75 | AB25: 0.1 | AC25: 5.5 | AD25: 0.5 | AF25: 300 | AG25: 63.5 | AH25: 0.07 | AI25: 64.5 | AL25: 20 | AM25: 20.8 | AN25: 0.7277738088 | AO25: 0.9131864885 | AP25: 325.121416
A26: Colza, turtó tanne, curtido | B26: 89 | C26: 1.240309081 | D26: 1.253284486 | E26: 391 | F26: 143.4249536 | G26: 193.4731611 | H26: 118.7396757 | I26: 0.3374 | L26: 2 | M26: 0.77349 | N26: 713.93127 | O26: 26 | P26: 129 | Q26: 302 | R26: 193 | S26: 79 | T26: 77 | U26: 4.62 | V26: 8.804 | Y26: 12.4 | Z26: 0.75 | AB26: 0.1 | AC26: 5.5 | AD26: 0.5 | AF26: 300 | AG26: 63.5 | AH26: 0.07 | AI26: 64.5 | AM26: 17.94 | AN26: 0.5952070214 | AO26: 0.9061810788 | AP26: 550.0468057
A27: Girasol torta descascarillado | B27: 91 | C27: 0.9910764189 | D27: 0.9439708695 | E27: 417 | F27: 80.25381508 | G27: 133.123438 | H27: 220.1112143 | I27: 0.3208 | L27: 2 | M27: 0.745917 | N27: 691.465059 | O27: 22 | P27: 176 | Q27: 299 | R27: 220 | S27: 70 | T27: 73 | U27: 2.09 | V27: 6.435 | W27: 5.5 | X27: 1.2 | Y27: 12 | Z27: 0.33 | AM27: 16.5 | AN27: 0.790120834 | AO27: 0.9169809263 | AP27: 601.9494415
A28: Girasol, grano | B28: 93 | C28: 1.708471184 | D28: 1.695156001 | E28: 174 | F28: 24.64749869 | G28: 60.41910651 | H28: 72.58686279 | I28: 0.2627 | L28: 2 | M28: 0.74312 | N28: 714.13832 | O28: 485 | P28: 164 | Q28: 294 | R28: 200 | S28: 56 | T28: 39 | U28: 0.99 | V28: 3.12 | AM28: 460.75 | AN28: 0.8418449238 | AO28: 0.8956544094 | AP28: 566.2107452
A29: Gramíneas deshidratadas y aglomeradas | B29: 91 | C29: 0.8289959418 | D29: 0.7851460594 | E29: 105 | F29: 26.82240135 | G29: 80.52058238 | H29: -29.85340787 | I29: 0.3818741 | L29: 2 | M29: 0.72207 | N29: 649.14093 | O29: 25 | P29: 238 | Q29: 508 | R29: 269 | S29: 73.08 | T29: 101 | U29: 2.365 | V29: 1.836 | AM29: 12.5 | AN29: 0.7018778114 | AO29: 0.8568682611
A30: Grasa vegetal, manteca de cerdo (todos los tipos) | B30: 99.9 | C30: 3.61 | D30: 3.94 | E30: 1e-07 | F30: 1e-07 | G30: 1e-07 | H30: -14 | I30: 0.25 | L30: 2 | M30: 0.9 | N30: 1e-07 | O30: 999 | P30: 1e-07 | Q30: 1e-07 | R30: 1e-07 | S30: 1e-07 | T30: 1e-07 | U30: 5.5e-08 | V30: 6.8e-08 | W30: 1e-07 | X30: 1e-07 | Y30: 1e-07 | Z30: 1e-07 | AA30: 1e-07 | AB30: 1e-07 | AC30: 1e-07 | AD30: 1e-07 | AF30: 1e-07 | AG30: 1e-07 | AH30: 1e-07 | AI30: 1e-07 | AJ30: 1300 | AK30: 1e-07 | AL30: 95 | AM30: 999 | AN30: 0 | AO30: 0
A31: Guisante grano | B31: 85.7 | C31: 1.262578618 | D31: 1.297789954 | E31: 259 | F31: 44.91173193 | G31: 108.9957771 | H31: 95.45867945 | I31: 0.1714 | L31: 2 | M31: 0.91768 | N31: 877.30208 | O31: 15 | P31: 64 | Q31: 162 | R31: 74 | S31: 3 | T31: 44 | U31: 0.495 | V31: 3.128 | W31: 1.45 | Y31: 11 | Z31: 0.3 | AB31: 0.07 | AC31: 7.2 | AD31: 1.1 | AG31: 8 | AH31: 0.2 | AI31: 37 | AM31: 12 | AN31: 0.8222202176 | AO31: 0.9753885851 | AP31: 696.3958697
A32: Habón grano | B32: 86.9 | C32: 1.286607118 | D32: 1.320957789 | E32: 302 | F32: 51.43027974 | G32: 115.0698849 | H32: 130.983117 | I32: 0.1714 | L32: 2 | M32: 0.9143 | N32: 876.8137 | O32: 16 | P32: 90 | Q32: 171 | R32: 108 | S32: 24.7 | T32: 41 | U32: 0.715 | V32: 3.264 | W32: 1.6 | X32: 0.8 | Y32: 12 | Z32: 0.25 | AB32: 0.4 | AC32: 13.8 | AD32: 1 | AF32: 100 | AG32: 12.7 | AH32: 0.02 | AI32: 43.7 | AM32: 12.8 | AN32: 0.8224539482 | AO32: 0.9591817888 | AP32: 509.2308572
A33: Judía grano | B33: 88 | C33: 1.269417567 | D33: 1.306008103 | E33: 257 | F33: 44.57202968 | G33: 108.5638422 | H33: 93.98279293 | I33: 0.1714 | L33: 2 | M33: 0.91937 | N33: 878.91772 | O33: 19 | P33: 51 | Q33: 162 | R33: 74 | S33: 3 | T33: 44 | U33: 0.715 | V33: 3.468 | W33: 1.6 | Y33: 14 | Z33: 0.4 | AM33: 15.2 | AN33: 0.8221354136 | AO33: 0.9750789946 | AP33: 689.6784425
A34: Lenteja grano | B34: 88 | C34: 1.292742572 | D34: 1.330655343 | E34: 281 | F34: 49.08181296 | G34: 113.199967 | H34: 113.2253843 | I34: 0.1714 | L34: 2 | M34: 0.91963 | N34: 886.52332 | O34: 19.3 | P34: 49 | Q34: 160 | R34: 72 | S34: 3 | T34: 36 | U34: 0.605 | V34: 3.06 | AM34: 14.475 | AN34: 0.8216657174 | AO34: 0.9794436099 | AP34: 617.4800936
A35: Levadura cervecería | B35: 93.3 | C35: 1.18 | D35: 1.17 | E35: 476 | F35: 87 | G35: 143 | H35: 278 | I35: 0.15 | L35: 2 | M35: 0.84 | N35: 756 | O35: 40 | P35: 21 | Q35: 88 | R35: 25 | S35: 7 | T35: 32 | U35: 1.65 | V35: 9.18 | W35: 2.4 | AM35: 32 | AN35: 0.815157707 | AO35: 0.98880568
A36: Linaza torta sin aceite | B36: 89 | C36: 1.151871054 | D36: 1.134141167 | E36: 377 | F36: 129.4671117 | G36: 180.6322598 | H36: 120.744456 | I36: 0.3064061 | L36: 2 | M36: 0.803904 | N36: 752.454144 | O36: 58 | P36: 118 | Q36: 236 | R36: 149 | S36: 88 | T36: 64 | U36: 2.585 | V36: 6.298 | W36: 6.1 | Y36: 14 | Z36: 1.3 | AB36: 0.6 | AC36: 21 | AD36: 0.6 | AF36: 250 | AG36: 59 | AH36: 0.5 | AI36: 73 | AL36: 9 | AM36: 43.5 | AN36: 0.6169566624 | AO36: 0.8965410847 | AP36: 595.3582566
A37: Lino, grano | B37: 90.3 | C37: 1.657583747 | D37: 1.660671498 | E37: 253 | F37: 51.01194867 | G37: 92.3191443 | H37: 111.0075068 | I37: 0.3208 | L37: 2 | M37: 0.780518 | N37: 743.3653432 | O37: 362 | P37: 101.9 | Q37: 244.7 | R37: 148.4 | S37: 62 | T37: 47.6 | U37: 2.314507198 | V37: 4.526024363 | W37: 3.986710963 | X37: 0.6644518272 | Y37: 7.973421927 | Z37: 0.7751937984 | AA37: 2.990033223 | AC37: 13.28903654 | AD37: 0.2214839424 | AF37: 163.8981174 | AG37: 32.11517165 | AI37: 49.83388704 | AM37: 343.9 | AN37: 0.7776919873 | AO37: 0.9069770052 | AP37: 614.3463707
A38: Maíz bagazo | B38: 88.1 | C38: 1.203463873 | D38: 1.20550115 | E38: 151 | F38: 56.28378672 | G38: 116.7748185 | H38: -22.64723712 | I38: 0.2876 | L38: 2 | M38: 0.850092 | N38: 833.940252 | O38: 34 | P38: 68 | Q38: 272 | R38: 78 | S38: 11 | T38: 19 | U38: 0.5 | V38: 3.7 | W38: 1.8 | Y38: 3.5 | Z38: 9.5 | AM38: 25.5 | AN38: 0.6042201418 | AO38: 0.9417869599 | AP38: 567.5727337
A39: Maíz carozo | B39: 90 | C39: 0.5231913971 | D39: 0.4115298955 | E39: 44 | F39: 14.39853914 | G39: 59.97738242 | H39: -62.53694262 | I39: 0.4692912 | L39: 2 | M39: 0.455276 | N39: 437.06496 | O39: 5 | P39: 302 | Q39: 822 | R39: 408 | S39: 38 | T39: 40 | U39: 0.66 | V39: 0.525 | AM39: 2 | AN39: 0.6232120323 | AO39: 0.8684978132 | AP39: 521.7862692
A40: Maíz copos | B40: 89 | C40: 1.285459442 | D40: 1.315633547 | E40: 100 | F40: 41.4985065 | G40: 103.9464693 | H40: -59.77494194 | I40: 0.231567 | L40: 2 | M40: 0.88266 | N40: 868.53744 | O40: 43 | P40: 26 | Q40: 90 | R40: 30 | S40: 10 | T40: 16 | U40: 0.165 | V40: 2.175 | W40: 1.4 | X40: 0.5 | Y40: 3.7 | Z40: 0.3 | AA40: 1.2 | AB40: 0.05 | AC40: 4 | AF40: 30 | AG40: 5 | AH40: 0.08 | AI40: 14 | AJ40: 1000 | AL40: 25 | AM40: 36.55 | AN40: 0.5536620228 | AO40: 0.9297552219 | AP40: 841.6236618
A41: Maíz extrusionado | B41: 90.3 | C41: 1.26592428 | D41: 1.305945141 | E41: 96.35 | F41: 55.42277845 | G41: 120.6512297 | H41: -82.39695502 | I41: 0.21464959 | L41: 2 | M41: 0.9181304 | N41: 904.9093222 | O41: 4.32 | P41: 2.55 | Q41: 12.18 | R41: 3.1 | S41: 0.55 | T41: 14.4 | U41: 0.165 | V41: 2.175 | W41: 1.4 | X41: 0.5 | Y41: 3.7 | Z41: 0.3 | AA41: 1.2 | AB41: 0.05 | AC41: 4 | AF41: 30 | AG41: 5 | AH41: 0.08 | AI41: 14 | AJ41: 1000 | AL41: 25 | AM41: 3.672 | AN41: 0.3880056001 | AO41: 0.9399161825 | AP41: 296.3737151
A42: Maíz gluten feed | B42: 87.7 | C42: 1.056307439 | D42: 1.029893853 | E42: 216 | F42: 53.8646516 | G42: 111.0030461 | H42: 49.88125855 | I42: 0.3125 | L42: 2 | M42: 0.825072 | N42: 769.792176 | O42: 45 | P42: 88 | Q42: 343 | R42: 100 | S42: 13 | T42: 67 | U42: 1.65 | V42: 5.304 | W42: 3.5 | Y42: 10.25 | Z42: 7 | AJ42: 3000 | AL42: 14 | AM42: 40.5 | AN42: 0.7383081976 | AO42: 0.9529277751 | AP42: 400.0063135
A43: Maíz gluten meal | B43: 89.3 | C43: 1.647747782 | D43: 1.703959302 | E43: 661 | F43: 427.8502116 | G43: 474.6927582 | H43: 117.5185209 | I43: 0.4868 | L43: 2 | M43: 0.943652 | N43: 929.49722 | O43: 35 | P43: 21 | Q43: 107 | R43: 28 | S43: 6 | T43: 15 | U43: 0.11 | V43: 2.72 | AJ43: 14000 | AL43: 26 | AM43: 28 | AN43: 0.3436078323 | AO43: 0.986113493 | AP43: 749.4135605
A44: Maíz grano | B44: 86 | C44: 1.24475541 | D44: 1.26 | E44: 89 | F44: 43 | G44: 94 | H44: -53 | I44: 0.3291 | L44: 2 | M44: 0.882846 | N44: 870.486156 | O44: 43 | P44: 26 | Q44: 125 | R44: 31 | S44: 60 | T44: 14 | U44: 0.275 | V44: 2.175 | W44: 1.4 | Y44: 3.6 | Z44: 0.33 | AB44: 0.02 | AC44: 2.3 | AD44: 0.3 | AF44: 80 | AG44: 10.8 | AH44: 0.02 | AI44: 21.4 | AM44: 36.55 | AN44: 0.4465708975 | AO44: 0.8730044467 | AP44: 780.9036423
A45: Maíz hominyfeed (mezcla salvado, germen y almidón) | B45: 90 | C45: 1.153355136 | D45: 1.157966805 | E45: 114 | F45: 46.52415979 | G45: 107.3745235 | H45: -49.99869329 | I45: 0.2535785 | L45: 2 | M45: 0.837476 | N45: 816.5391 | O45: 19 | P45: 54 | Q45: 215 | R45: 65 | S45: 12 | T45: 25 | U45: 0.275 | V45: 4.275 | W45: 2.6 | X45: 0.6 | Y45: 6.5 | Z45: 0.9 | AA45: 0.3 | AB45: 0.06 | AC45: 15 | AF45: 75 | AG45: 16 | AH45: 0.11 | AI45: 3 | AM45: 16.15 | AN45: 0.5612101445 | AO45: 0.9300731538 | AP45: 380.3273066
A46: Maíz salvado | B46: 88.3 | C46: 1.112973677 | D46: 1.10078662 | E46: 101 | F46: 43.23835933 | G46: 96.34428969 | H46: -50.71801618 | I46: 0.3706 | L46: 2 | M46: 0.707252 | N46: 669.060392 | O46: 40 | P46: 150 | Q46: 557 | R46: 164 | S46: 19 | T46: 54 | U46: 0.165 | V46: 1.875 | AM46: 34 | AN46: 0.5317077588 | AO46: 0.9141782203 | AP46: 556.4050738
A47: Maíz torta de gérmenes a presión | B47: 88.1 | C47: 1.17895975 | D47: 1.171602179 | E47: 146 | F47: 59.1015472 | G47: 113.8847817 | H47: -23.87880397 | I47: 0.2642698 | L47: 2 | M47: 0.801524 | N47: 763.050848 | O47: 82 | P47: 72 | Q47: 285 | R47: 82 | S47: 11 | T47: 48 | U47: 0.33 | V47: 3.525 | W47: 4.5 | Y47: 1.8 | Z47: 8.5 | AM47: 65.6 | AN47: 0.5685588128 | AO47: 0.9382625715 | AP47: 625.9611681
A48: Maíz torta de gérmenes con disolvente | B48: 87.9 | C48: 1.041990023 | D48: 1.023538393 | E48: 135 | F48: 54.17190727 | G48: 111.6965778 | H48: -33.88229766 | I48: 0.2686721 | L48: 2 | M48: 0.79028 | N48: 752.34656 | O48: 17 | P48: 79 | Q48: 310 | R48: 89 | S48: 12 | T48: 48 | U48: 0.495 | V48: 3.75 | W48: 4.5 | Y48: 1.8 | Z48: 8.5 | AJ48: 1000 | AL48: 94 | AM48: 12.75 | AN48: 0.5703343944 | AO48: 0.9339201973 | AP48: 543.5361192
A49: Mandioca | B49: 85 | C49: 1.142097463 | D49: 1.174454355 | E49: 31 | F49: 10.10542253 | G49: 75.49002249 | H49: -97.45343744 | I49: 0.1216 | L49: 2 | M49: 0.91762 | N49: 861.64518 | O49: 8.2 | P49: 54 | Q49: 118 | R49: 59 | S49: 14.01 | T49: 61 | U49: 1.375 | V49: 0.68 | W49: 0.9 | Y49: 7.5 | Z49: 0.35 | AC49: 2 | AF49: 50 | AG49: 5 | AI49: 30 | AM49: 6.56 | AN49: 0.638999494 | AO49: 0.9029942241
A50: Manzana desechos | B50: 22 | C50: 1.10018865 | D50: 1.102760433 | E50: 23 | F50: 8.795543217 | G50: 71.56469958 | H50: -100.0868068 | I50: 0.4868 | L50: 2 | M50: 0.82908 | N50: 813.32748 | O50: 18 | P50: 68 | Q50: 229.76 | R50: 96.16 | S50: 18 | T50: 19 | U50: 0.33 | V50: 0.408 | AM50: 16.2 | AN50: 0.5724362337 | AO50: 0.8944044201 | AP50: 695.25
A51: Manzana molienda ( "marco") deshidratada | B51: 94.1 | C51: 0.5535459391 | D51: 0.4298652377 | E51: 79 | F51: 22.41772409 | G51: 65.61179369 | H51: -39.82073375 | I51: 0.4868 | L51: 2 | M51: 0.44368 | N51: 435.25008 | O51: 39 | P51: 478 | Q51: 354 | R51: 610.79 | S51: 121 | T51: 19 | U51: 1.045 | V51: 1.088 | AM51: 35.1 | AN51: 0.6412637776 | AO51: 0.7910231575 | AP51: 0
A52: Manzana residuo deshidratado, NRC | B52: 89 | C52: 1.017592193 | D52: 0.9832011689 | E52: 49 | F52: 17.45620144 | G52: 73.71511167 | H52: -76.13454724 | I52: 0.4868 | L52: 2 | M52: 0.7332 | N52: 717.0696 | O52: 51 | P52: 170 | Q52: 376.83 | R52: 260 | S52: 50.24 | T52: 22 | U52: 0.715 | V52: 0.748 | W52: 0.7 | Y52: 4.6 | Z52: 1.2 | AA52: 0.2 | AC52: 10 | AF52: 300 | AG52: 7 | AM52: 45.9 | AN52: 0.5885548453 | AO52: 0.8658481085 | AP52: 628.0150685
A53: Melaza caña | B53: 75 | C53: 0.8610639099 | D53: 0.8391616233 | E53: 45 | F53: 3.15 | G53: 61.811424 | H53: -64.008475 | I53: -1.5384 | L53: 4 | M53: 0.8 | N53: 710.4 | O53: 12 | P53: 0 | Q53: 0 | R53: 0 | S53: 0 | T53: 112 | U53: 0.5 | V53: 1.4 | W53: 4.7 | X53: 27 | Y53: 33 | Z53: 1.7 | AM53: 12 | AN53: 0.93 | AO53: 1
A54: Melaza Remolacha | B54: 76 | C54: 1.184004733 | D54: 1.207089514 | E54: 146 | F54: 10.22 | G54: 76.74012851 | H54: 17.6422992 | I54: -0.7084 | L54: 3 | M54: 0.89 | N54: 878.252 | O54: 2 | P54: 0 | Q54: 0 | R54: 0 | S54: 0 | T54: 13.2 | U54: 1.925 | V54: 0.34 | W54: 16.5 | Y54: 55 | Z54: 12.5 | AM54: 2 | AN54: 0.93 | AO54: 1
A55: Mijo grano | B55: 88 | C55: 1.009546491 | D55: 0.9776763056 | E55: 131 | F55: 35.90764594 | G55: 91.77812279 | H55: -15.03762007 | I55: 0.2129 | L55: 2 | M55: 0.752754 | N55: 721.138332 | O55: 42 | P55: 106 | Q55: 284.5 | R55: 143.86 | S55: 29.7 | T55: 42 | U55: 0.22 | V55: 2.4 | W55: 1.7 | X55: 0.34 | Y55: 4.66 | Z55: 0.45 | AM55: 37.8 | AN55: 0.6997481148 | AO55: 0.9129140598 | AP55: 460.6219971
A56: Oliva molienda "orujo" | B56: 89 | C56: 0.3555684594 | D56: 0.2315284959 | E56: 111 | F56: 37.77367179 | G56: 72.19608588 | H56: -21.36502202 | I56: 0.5864 | L56: 2 | M56: 0.33429 | N56: 306.87822 | O56: 74 | P56: 339 | Q56: 620.51 | R56: 456.32 | S56: 108.36 | T56: 82 | U56: 7.7 | V56: 2.312 | AM56: 54.76 | AN56: 0.5799513971 | AO56: 0.8101523183 | AP56: 255.9763332
A57: Oliva pulpa de extracción ( "orujo"), IAMZ | B57: 87.6 | C57: 0.2835820822 | D57: 0.1630785602 | E57: 66 | F57: 20.21048157 | G57: 53.34965943 | H57: -38.25996541 | I57: 0.5864 | L57: 2 | M57: 0.26932 | N57: 252.89148 | O57: 74 | P57: 412 | Q57: 725.77 | R57: 527.95 | S57: 134.64 | T57: 61 | U57: 3.08 | V57: 0.612 | AM57: 54.76 | AN57: 0.6005460193 | AO57: 0.7665949833 | AP57: 731.0116457
A58: Oliva pulpa sin extracción, IAMZ | B58: 68.5 | C58: 0.5285256608 | D58: 0.4118821932 | E58: 114 | F58: 44.70328847 | G58: 84.48223093 | H58: -28.4745976 | I58: 0.5864 | L58: 2 | M58: 0.458 | N58: 425.024 | O58: 74 | P58: 200 | Q58: 341 | R58: 295 | S58: 60.21 | T58: 72 | U58: 3.08 | V58: 1.088 | AM58: 54.76 | AN58: 0.5473115864 | AO58: 0.8662340312 | AP58: 172.2609194
A59: Palmito torta (palmiste) | B59: 90 | C59: 0.8319475036 | D59: 0.7632996493 | E59: 206 | F59: 83.76805509 | G59: 136.5208369 | H59: -3.926221648 | I59: 0.4287 | L59: 2 | M59: 0.73056 | N59: 699.14592 | O59: 19 | P59: 167 | Q59: 632 | R59: 241 | S59: 103 | T59: 43 | U59: 1.705 | V59: 4.556 | AM59: 17.1 | AN59: 0.5228718322 | AO59: 0.8522679473 | AP59: 614.3463707
A60: Patata pulpa-ITEB | B60: 17 | C60: 1.047562058 | D60: 1.040325904 | E60: 50 | F60: 15.36772122 | G60: 77.36979178 | H60: -80.57823525 | I60: 0.1216 | L60: 2 | M60: 0.8101 | N60: 789.8475 | O60: 2.5 | P60: 150 | Q60: 348 | R60: 199.09 | S60: 43.7 | T60: 25 | U60: 2.75 | V60: 0.34 | W60: 0.8 | X60: 6 | AM60: 2 | AN60: 0.6489216562 | AO60: 0.8754582267 | AP60: 866.032
A61: Patata-ITEB | B61: 13 | C61: 1.224039877 | D61: 1.270348111 | E61: 100 | F61: 34.23948908 | G61: 100.5831692 | H61: -56.86200025 | I61: 0.1216 | L61: 2 | M61: 0.9445 | N61: 901.9975 | O61: 0.8 | P61: 30 | Q61: 174.97 | R61: 48.46 | S61: 7.28 | T61: 45 | U61: 0.55 | V61: 1.36 | W61: 1 | X61: 22 | AM61: 0.64 | AN61: 0.6332974699 | AO61: 0.9337129217 | AP61: 746.3181739
A62: Pulpas (cítricos) | B62: 90 | C62: 1.09457765 | D62: 1.103551588 | E62: 70 | F62: 20.49453097 | G62: 82.57976854 | H62: -65.70818372 | I62: 0.2212 | L62: 2 | M62: 0.87931 | N62: 822.15485 | O62: 28 | P62: 137 | Q62: 223 | R62: 158 | S62: 14 | T62: 65 | U62: 3.4 | V62: 0.9 | AM62: 16.8 | AN62: 0.6799461392 | AO62: 0.9147804468 | AP62: 367.9099184
A63: Pulpas (cítricos) ensiladas | B63: 21 | C63: 1.224764853 | D63: 1.238763409 | E63: 73 | F63: 20.57651646 | G63: 79.53725613 | H63: -58.87615574 | I63: 0.2212 | L63: 2 | M63: 0.87228 | N63: 824.3046 | O63: 97 | P63: 156 | Q63: 356.65 | R63: 206.62 | S63: 44.65 | T63: 55 | U63: 3.4 | V63: 0.9 | W63: 1.6 | Y63: 6.2 | Z63: 0.9 | AA63: 0.2 | AB63: 0.16 | AC63: 6 | AF63: 160 | AG63: 7 | AI63: 16 | AM63: 58.2 | AN63: 0.6807836781 | AO63: 0.883006504 | AP63: 785.4935134
A64: Remolacha pulpas deshidratadas | B64: 90 | C64: 1.025471629 | D64: 1.019108024 | E64: 98 | F64: 34.16981377 | G64: 94.98664694 | H64: -54.34630184 | I64: 0.2876 | L64: 2 | M64: 0.855001 | N64: 794.2104289 | O64: 9 | P64: 202.7 | Q64: 507.9 | R64: 302.1 | S64: 55.1 | T64: 71.1 | U64: 2.12 | V64: 0.68 | W64: 2.233333333 | X64: 0.4 | Y64: 4 | Z64: 2.233333333 | AA64: 2.2 | AB64: 0.09333333333 | AC64: 7.733333333 | AD64: 0.3 | AF64: 243 | AG64: 47.6 | AH64: 0.03 | AI64: 9.733333333 | AK64: 0.6 | AM64: 4 | AN64: 0.6031402548 | AO64: 0.8785763064 | AP64: 592.8381002
A65: Remolacha pulpas ensiladas | B65: 22 | C65: 1.00766597 | D65: 1.00149028 | E65: 98 | F65: 33.63126047 | G65: 93.73194347 | H65: -53.22731718 | I65: 0.2876 | L65: 2 | M65: 0.85378 | N65: 778.64736 | O65: 9 | P65: 206 | Q65: 428.74 | R65: 269.38 | S65: 62.22 | T65: 88 | U65: 2.6 | V65: 0.68 | AB65: 0.1 | AC65: 4.6 | AD65: 0.3 | AG65: 52.4 | AH65: 0.03 | AI65: 9.6 | AM65: 4.5 | AN65: 0.6057580172 | AO65: 0.8704707824 | AP65: 468.1746973
A66: Residuo pan deshidratado, NRC | B66: 92 | C66: 1.096141567 | D66: 1.054875419 | E66: 107 | F66: 22.01612961 | G66: 70.4665579 | H66: -10.7237942 | I66: 0.294457 | L66: 2 | M66: 0.714218 | N66: 628.1690154 | O66: 127 | P66: 130 | Q66: 180 | R66: 130 | S66: 10 | T66: 44 | U66: 0.77 | V66: 1.768 | W66: 2.6 | X66: 16.1 | Y66: 5.3 | Z66: 12.4 | AA66: 0.2 | AB66: 1.05 | AC66: 5 | AF66: 31 | AG66: 71 | AI66: 16 | AJ66: 2000 | AL66: 45 | AN66: 0.7773884271 | AO66: 0.9242925602
A67: Soja cascarilla | B67: 88.8 | C67: 1,08 | E67: 129 | F67: 38 | G67: 95 | H67: -32 | I67: 0,44 | L67: 2 | M67: 0,80 | N67: 957.6 | O67: 21 | P67: 391 | Q67: 652 | R67: 464 | S67: 24 | T67: 53 | U67: 3.08 | V67: 1.156 | W67: 2.5 | AE67: 57 | AM67: 20 | AN67: 0,56 | AO67: 0,67 | AP67: =N67-E67*(1-AN67)-O67 -> 879.84
A68: Soja torta 44 | B68: 87.2 | C68: 1.165625863 | D68: 1.159793832 | E68: 488 | F68: 153.419998 | G68: 207.0695265 | H68: 219.1726116 | I68: 0.2781056 | L68: 2 | M68: 0.849655 | N68: 779.133635 | O68: 22 | P68: 84 | Q68: 163 | R68: 104 | S68: 8 | T68: 83 | U68: 1.87 | V68: 4.9 | W68: 2.7 | Y68: 20 | Z68: 1.95 | AB68: 0.3 | AC68: 17.1 | AD68: 2.3 | AF68: 200 | AG68: 43.7 | AH68: 0.2 | AI68: 54.6 | AL68: 7 | AM68: 16.5 | AN68: 0.6819996035 | AO68: 0.9886316028 | AP68: 737.9075552
A69: Soja torta 46 | B69: 87.2 | C69: 1.204239972 | D69: 1.205333606 | E69: 505 | F69: 160.0692099 | G69: 214.4558798 | H69: 229.0708283 | I69: 0.2686721 | L69: 2 | M69: 0.863895 | N69: 799.102875 | O69: 20 | P69: 72 | Q69: 143 | R69: 89 | S69: 7 | T69: 75 | U69: 1.87 | V69: 5.18 | W69: 2.7 | Y69: 20 | Z69: 1.95 | AB69: 0.3 | AC69: 17.1 | AD69: 2.3 | AF69: 200 | AG69: 43.7 | AH69: 0.2 | AI69: 54.6 | AM69: 15 | AN69: 0.6799548883 | AO69: 0.99038767 | AP69: 751.5420857
A70: Soja torta 48 | B70: 88.3 | C70: 1.223810674 | D70: 1.22687166 | E70: 520 | F70: 165.0816182 | G70: 219.3151576 | H70: 239.0600948 | I70: 0.2674143 | L70: 2 | M70: 0.867341 | N70: 804.025107 | O70: 23 | P70: 70 | Q70: 140 | R70: 87 | S70: 7 | T70: 73 | U70: 1.87 | V70: 5.46 | W70: 2.7 | Y70: 19.7 | Z70: 1.95 | AB70: 0.3 | AC70: 17.1 | AD70: 2.3 | AF70: 200 | AG70: 43.7 | AH70: 0.2 | AI70: 54.6 | AM70: 17.25 | AN70: 0.6794639687 | AO70: 0.9904179858 | AP70: 186.2528251
A71: Soja torta 48 curtido "Tanne" | B71: 88.8 | C71: 1.223810674 | D71: 1.22687166 | E71: 520 | F71: 165.0816182 | G71: 219.3151576 | H71: 239.0600948 | I71: 0.2674143 | L71: 2 | M71: 0.867341 | N71: 804.025107 | O71: 23 | P71: 70 | Q71: 140 | R71: 87 | S71: 7 | T71: 73 | U71: 1.87 | V71: 5.46 | AB71: 0.3 | AC71: 17.1 | AD71: 2.3 | AF71: 200 | AG71: 43.7 | AH71: 0.2 | AI71: 54.6 | AM71: 15.18 | AN71: 0.6794639687 | AO71: 0.9904179858 | AP71: 152.5275173
A72: Soja torta 50 | B72: 87.8 | C72: 1.225744301 | D72: 1.225565004 | E72: 544 | F72: 172.4045434 | G72: 225.7154558 | H72: 256.1016993 | I72: 0.2498051 | L72: 2 | M72: 0.862027 | N72: 797.374975 | O72: 28 | P72: 77 | Q72: 102 | R72: 59 | S72: 6 | T72: 75 | U72: 1.65 | V72: 5.46 | W72: 2.7 | Y72: 19.7 | Z72: 1.95 | AB72: 0.3 | AC72: 17.1 | AD72: 2.3 | AF72: 200 | AG72: 43.7 | AH72: 0.2 | AI72: 54.6 | AM72: 21 | AN72: 0.6801163265 | AO72: 0.9907355167 | AP72: 299.4175209
A73: Soja, grano extrusionado | B73: 88 | C73: 1.485485602 | D73: 1.497390722 | E73: 402 | F73: 188.4323551 | G73: 238.0406285 | H73: 109.2870728 | I73: 0.3208 | L73: 2 | M73: 0.97179 | N73: 912.51081 | O73: 213 | P73: 74 | Q73: 146 | R73: 92 | S73: 7 | T73: 61 | U73: 1.54 | V73: 4.48 | AM73: 202.35 | AN73: 0.526666784 | AO73: 0.9902901084 | AP73: 704.0018085
A74: Soja, grano tostado | B74: 88.6 | C74: 1.490185728 | D74: 1.502445871 | E74: 397.3 | F74: 133.307895 | G74: 185.6891829 | H74: 158.2262376 | I74: 0.2959 | L74: 2 | M74: 0.975779 | N74: 918.5007727 | O74: 216.7 | P74: 63.2 | Q74: 132 | R74: 77.78 | S74: 13.5 | T74: 58.7 | U74: 1.986455982 | V74: 4.187358916 | W74: 2.595936795 | X74: 0.5643340858 | Y74: 20.76749436 | Z74: 0.9029345372 | AA74: 3.16027088 | AC74: 38.37471783 | AD74: 4.514672686 | AF74: 161.3995485 | AG74: 31.6027088 | AH74: 0.316027088 | AI74: 45.14672686 | AM74: 205.865 | AN74: 0.6587213001 | AO74: 0.9831688769 | AP74: 771.7510797
A75: Sorgo grano | B75: 86 | C75: 1.21 | D75: 1.23 | E75: 105 | F75: 47 | G75: 97.13096315 | H75: -48 | I75: 0.2129 | L75: 2 | M75: 0.884686 | N75: 869.646338 | O75: 37 | P75: 25 | Q75: 107 | R75: 49 | S75: 4 | T75: 17 | U75: 0.165 | V75: 2.4 | W75: 1.75 | Y75: 3.6 | Z75: 0.4 | AC75: 10 | AF75: 160 | AG75: 14 | AI75: 14 | AJ75: 14000 | AL75: 12 | AM75: 33.3 | AN75: 0.5226342292 | AO75: 0.9376856804 | AP75: 581.7628756
A76: Trigo grano | B76: 87 | C76: 1.191513797 | D76: 1.205062577 | E76: 157 | F76: 33.00144942 | G76: 96.50582734 | H76: 5.8944095 | I76: 0.1714 | L76: 2 | M76: 0.87875 | N76: 861.175 | O76: 23 | P76: 29 | Q76: 146 | R76: 38 | S76: 12 | T76: 20 | U76: 0.275 | V76: 2.808 | AB76: 0.02 | AC76: 4.4 | AD76: 0.3 | AG76: 33.7 | AH76: 0.04 | AI76: 32.5 | AL76: 12 | AM76: 17.25 | AN76: 0.7771204339 | AO76: 0.9431116475 | AP76: 740.1774934
A77: Trigo salvado trigo duro | B77: 87.7 | C77: 1.017694369 | D77: 0.9779078471 | E77: 167 | F77: 34.63114108 | G77: 88.47767853 | H77: 25.24478524 | I77: 0.3057772 | L77: 2 | M77: 0.731538 | N77: 692.034948 | O77: 58 | P77: 118 | Q77: 481 | R77: 148 | S77: 38 | T77: 54 | U77: 0.935 | V77: 7.8 | AC77: 10 | AF77: 200 | AG77: 90 | AI77: 80 | AJ77: 1000 | AL77: 21 | AM77: 46.4 | AN77: 0.7727450842 | AO77: 0.9125087639 | AP77: 677.3417032
A78: Triticale grano | B78: 87.1 | C78: 1.191793332 | D78: 1.210362141 | E78: 130 | F78: 38.225488 | G78: 101.2965379 | H78: -26.94851539 | I78: 0.2129 | L78: 2 | M78: 0.87145 | N78: 852.2781 | O78: 17 | P78: 33 | Q78: 148 | R78: 40 | S78: 13 | T78: 22 | U78: 0.275 | V78: 3.45 | AM78: 12.75 | AN78: 0.6853862298 | AO78: 0.9346133045 | AP78: 618.0604347
A79: Urea | B79: 99 | C79: 0.26 | D79: 0.2 | E79: 2870 | F79: 1e-06 | G79: 71 | H79: 2557 | I79: 0.23 | L79: 2 | M79: 0.99
A80: Uva pulpa | B80: 90 | C80: 0.3048901197 | D80: 0.1865548158 | E80: 120 | F80: 11.60850895 | G80: 48.20840292 | H80: -20.98733433 | I80: 0.5864 | L80: 2 | M80: 0.30492 | N80: 292.41828 | O80: 7 | P80: 372 | Q80: 754 | R80: 653 | S80: 499 | T80: 41 | U80: 4.4 | V80: 2.72 | AM80: 5.25 | AN80: 0.754650443 | AO80: 0.3942846922 | AP80: 477.3495771
A81: Uva torta de huesos | B81: 89 | C81: 0.1623041941 | D81: 0.0678723051 | E81: 112 | F81: -1.654010677 | G81: 29.6262119 | H81: -16.03534777 | I81: 0.5864 | L81: 2 | M81: 0.18833 | N81: 181.17346 | O81: 16 | P81: 503 | Q81: 847 | R81: 751 | S81: 644 | T81: 38 | U81: 3.63 | V81: 0.884 | AM81: 12 | AN81: 1.063280888 | AO81: 0.2333714493 | AP81: 842.2541643
A82: Uva vinaza sin pepitas | B82: 67 | C82: 0.6608050597 | D82: 0.5617156148 | E82: 172 | F82: 20.01576435 | G82: 59.87298187 | H82: -4.236902376 | I82: 0.5864 | L82: 2 | M82: 0.54433 | N82: 483.36504 | O82: 97 | P82: 103 | Q82: 777 | R82: 685 | S82: 536 | T82: 112 | U82: 3.3 | V82: 1.7 | AM82: 72.75 | AN82: 0.6891352988 | AO82: 0.3743452458 | AP82: 0
A83: Pienso 2,5 kg leche | B83: 80.86816523 | C83: 0.9216763367 | E83: 158.473179 | F83: 47.36229362 | G83: 101.215626 | H83: 7.283241724 | I83: 0.2236520049 | L83: 1.805673708 | M83: 0.7478090774 | N83: 716.6804341 | O83: 15.38261847 | P83: 64.31574757 | Q83: 196.3935963 | R83: 82.48178031 | S83: 13.53832076 | X83: 0.003138845981 | Y83: 6.202736226 | Z83: 0.535645275 | AA83: 0.01098596093 | AB83: 0.06258502224 | AC83: 5.2154456 | AD83: 0.5721740227 | AE83: 0 | AG83: 15.7923393 | AH83: 0.04723711048 | AI83: 20.72803053 | AJ83: 413.5321738 | AK83: 0 | AL83: 11.70213069 | AM83: 12.02284322 | AN83: 0.6150233255 | AP83: 580.4701822

Sheet 0_Taula Minerals-aa (hidden)
A1: INGREDIENTES | B1: MS | C1: UFL | D1: UFV | E1: MNT_PB | F1: PDIA | G1: PDI | H1: BPR | I1: UEL | J1: UEB | K1: UEM | L1: NI ref | M1: dMO | N1: MOD_TDN | O1: EE | P1: FB | Q1: NDF | R1: ADF | S1: Lignina | T1: Cenizas | U1: Ca | V1: P | W1: Mg | X1: Cl | Y1: K | Z1: Na | AA1: S | AB1: Co | AC1: Cu | AD1: Mo | AE1: Yodo | AF1: Fe | AG1: Mn | AH1: Se | AI1: Zn | AJ1: Vit A | AK1: Vit D | AL1: Vit E | AM1: AG | AN1: DT_N | AO1: dr | AP1: MOF
A3: Bicarbonato sódico | B3: 99.7 | Z3: 270
A4: Carbonato cálcico | B4: 98 | T4: 955 | U4: 145.54 | W4: 14 | X4: 0.2 | Y4: 0.7 | Z4: 0.7 | AA4: 0.7 | AC4: 12 | AF4: 620
A5: Carbonato de cobalto | B5: 100 | AB5: 49
A6: Carbonato de manganeso | B6: 100 | AG6: 47
A7: Carbonato de zinc | B7: 100 | AI7: 52
A8: Cloruro potásico | B8: 100 | Y8: 52
A9: Cloruro sódico | B9: 98 | X9: 570 | Z9: 360
A10: Fosfato bicálcico | B10: 98.8 | T10: 836 | U10: 244 | V10: 122.4 | W10: 5 | X10: 0.4 | Y10: 1.2 | Z10: 0.8 | AA10: 11 | AC10: 15 | AF10: 7800
A11: Fosfato monocálcico | B11: 98.8 | U11: 88.2 | V11: 155.04
A12: Fosfato sódico | B12: 100 | V12: 13.6 | Z12: 19
A13: Fosfórico | B13: 100 | V13: 21.488
A14: Harina de huesos | B14: 100 | U14: 11.8 | V14: 10.2
A15: Óxido de cobre | B15: 100 | AC15: 80
A16: Óxido de manganeso | B16: 100 | AG16: 77
A17: Óxido de zinc | B17: 100 | AI17: 80
A18: Óxido magnésico | B18: 100 | U18: 30 | W18: 510
A19: Sulfato de cobalto | B19: 100 | AB19: 22
A20: Sulfato de cobre | B20: 100 | AC20: 25
A21: Sulfato de zinc | B21: 100 | AI21: 23
A22: Sulfato magnésico | B22: 100 | W22: 10 | AA22: 13
A23: Sulfato sódico | B23: 100 | Z23: 32 | AA23: 22
A24: Yoduro potásico | B24: 100 | AE24: 76

Sheet Preus (hidden)
A1: Forrajes | B1: cts €/kg | C1: Uso habitual | D1: Fecha | E1: Concentrados | F1: cts €/kg | G1: Uso habitual | H1: Fecha | I1: Minerales y otros | J1: cts €/kg | K1: Uso habitual | L1: Fecha
A2: Ensilado maíz | B2: 7 | C2: <30 kg/vaca y día | D2: 2024-10-01 | E2: Bagazo fresco | F2: 5.5 | G2: <=12 kg/vaca y día | H2: 2024-10-01 | I2: Bicarbonato sódico | J2: 43.7 | K2: lactación <= 100 g/vaca y día | L2: 2024-09-01
A3: Ensilado pastone | B3: 14 | D3: 2024-10-01 | E3: Maíz (harina, grano) | F3: 23.9 | H3: 2024-10-01 | I3: Carbonato cálcico | J3: 7 | L3: 2024-09-01
A4: Ensilado raigras | B4: 6 | D4: 2024-10-01 | E4: Cascarilla soja | F4: 16.8 | G4: <=6 | H4: 2024-10-01 | I4: CVM | J4: 70 | K4: 60 g/vaca y día lactación | L4: 2024-09-01
A5: Ensilado triticale, cereales | B5: 5 | D5: 2024-10-01 | E5: Algodón (semilla) | F5: 35 | G5: <=3 | H5: 2024-10-01 | I5: Fosfato bicálcico | J5: 67.5 | L5: 2024-09-01
A6: Heno alfalfa | B6: 24 | D6: 2024-10-01 | E6: Grasa (jabón cálcico) | F6: 92.5 | G6: <=0,3 | H6: 2024-10-01 | I6: Sal | J6: 7.2 | K6: 60 g/vaca y día lactación | L6: 2024-09-01
A7: Heno avena | B7: 18 | D7: 2024-10-01 | E7: Cebada (harina, grano) | F7: 22.7 | H7: 2024-10-01 | L7: 2024-09-01
A8: Paja cebada | B8: 14 | D8: 2024-10-01 | E8: Pulpa manzana fresca | F8: 2.5 | G8: <=8 | H8: 2024-10-01 | L8: 2024-09-01
A9: Heno festuca | B9: 11.36 | D9: 2024-10-01 | E9: Pulpa remolach desh. | F9: 22.1 | G9: <=4 | H9: 2024-10-01
E10: Turtó colza | F10: 30.8 | G10: <=3 | H10: 2024-10-01
E11: Turtó soja 44% | F11: 38.2 | H11: 2024-10-01
E12: Urea | F12: 102.5 | G12: < 1% ración | H12: 2024-10-01
E13: Turtó girasol | F13: 20.7 | H13: 2024-10-01
E14: DDGS maíz | F14: 25.3 | H14: 2024-10-01
E15: Algarroba troceada | F15: 35.5 | H15: 2024-10-01
E16: Algarroba harina | F16: 31.3 | H16: 2024-10-01
E17: Guisante | F17: 26.5 | H17: 2024-10-01
E18: Mijo | F18: 38 | H18: 2024-10-01
E19: Trigo | F19: 22.8 | H19: 2024-10-01
E20: Alfalfa deshi | F20: 24 | H20: 2024-10-01
E21: Palmiste | F21: 19.3 | H21: 2024-10-01
E22: Gluten feed | F22: 93.6 | H22: 2024-10-01
E23: Segundas trigo | F23: 18 | H23: 2024-10-01
E24: Segundas sorgo | F24: 19.2 | H24: 2024-10-01 | M24: https://www.interempresas.net/ovino/316017-Lonja-de-Cereales-de-Barcelona-Cotizaciones-de-Cereal.html
E25: Gluten meal | F25: 95.5 | H25: 2024-10-01
M28: https://www.llotjadecereals.com/cotitzacions/
M32: https://www.mercolleida.com/ca/serveis

Sheet Paràmetres llet (hidden)
A1: COMPONENTS | B1: POSICIÓ | C1: PARÀMETRES DE CÀLCUL
A2: ='0_Taula Farratges'!B1 -> MS % | B2: 1 | C2: 2
A3: ='0_Taula Farratges'!C1 -> UFL | B3: =1+B2 -> 2 | C3: 1
A4: ='0_Taula Farratges'!$E1 -> MNT_PB | B4: 4 | C4: 1
A5: ='0_Taula Farratges'!F1 -> PDIA | B5: =1+B4 -> 5 | C5: 1
A6: ='0_Taula Farratges'!G1 -> PDI | B6: 6 | C6: 1
A7: ='0_Taula Farratges'!H1 -> BPR | B7: 7 | C7: 1
A8: ='0_Taula Farratges'!I1 -> UEL | B8: 8 | C8: 1
A9: ='0_Taula Farratges'!L1 -> NI ref | B9: 11 | C9: 1
A10: ='0_Taula Farratges'!M1 -> dMO | B10: 12 | C10: 1
A11: ='0_Taula Farratges'!N$1 -> MOD | B11: 13 | C11: 1
A12: ='0_Taula Farratges'!O1 -> EE | B12: 14 | C12: 1
A13: ='0_Taula Farratges'!P1 -> FB | B13: =1+B12 -> 15 | C13: 1
A14: ='0_Taula Farratges'!Q1 -> NDF | B14: 16 | C14: 1
A15: ='0_Taula Farratges'!R1 -> ADF | B15: 17 | C15: 1
A16: ='0_Taula Farratges'!S1 -> Lignina | B16: 18 | C16: 1
A17: ='0_Taula Farratges'!T1 -> Cenizas | B17: 19 | C17: 1
A18: ='0_Taula Farratges'!U1 -> Ca | B18: 20 | C18: 1
A19: ='0_Taula Farratges'!V1 -> P | B19: 21 | C19: 1
A20: ='0_Taula Farratges'!W1 -> Mg | B20: 22 | C20: 1
A21: ='0_Taula Farratges'!X1 -> Cl | B21: 23 | C21: 1
A22: ='0_Taula Farratges'!Y1 -> K | B22: 24 | C22: 1
A23: ='0_Taula Farratges'!Z1 -> Na | B23: 25 | C23: 1
A24: ='0_Taula Farratges'!AA1 -> S | B24: 26 | C24: 1
A25: ='0_Taula Farratges'!AB1 -> Co | B25: 27 | C25: 1
A26: ='0_Taula Farratges'!AC1 -> Cu | B26: 28 | C26: 1
A27: ='0_Taula Farratges'!AD1 -> Mo | B27: 29 | C27: 1
A28: ='0_Taula Farratges'!AE1 -> Almidón | B28: 30 | C28: 1
A29: ='0_Taula Farratges'!AF1 -> Fe | B29: 31 | C29: 1
A30: ='0_Taula Farratges'!AG1 -> Mn | B30: 32 | C30: 1
A31: ='0_Taula Farratges'!AH1 -> Se | B31: 33 | C31: 1
A32: ='0_Taula Farratges'!AI1 -> Zn | B32: 34 | C32: 1
A33: ='0_Taula Farratges'!AJ1 -> Vit A | B33: 35 | C33: 1
A34: ='0_Taula Farratges'!AK1 -> Vit D | B34: 36 | C34: 1
A35: ='0_Taula Farratges'!AL1 -> Vit E | B35: 37 | C35: 1

Sheet Criteris (hidden)
A1: Paritat
A2: Primípar
A3: Multípar
A4: Estat lactació
A5: 3 primeres setmanes
A6: 4 a 6 primeres setmanes
A7: 7 a 12 primeres setmanes
A8: Pic (90 a 150 dies en lactació)
A9: Resta lactació
A10: Eixugat
A11: Mitjana producció explotació
A12: < 5.000
A13: 5.000 a 6.000
A14: 6.000 a 8.000
A15: 8.000 a 10.000
A16: >10.000
A17: Edat primer part
A18: < 28 mesos
A19: > 28 mesos
A20: Gestació
A21: No
A22: 7è mes
A23: 8è mes
A24: 9è mes

Sheet I_Necessitats (hidden)
A1: Producció de carn: Engreix i finalització | J1: Guies
J2: Característiques d'algunes races | O2: Races de llet, carn, rústiques
J3: 0 | O3: 0
B5: Elegir tipus de boví
C6: 1
B7: Dades orientatives
B8: Pes viu inicial a partir de | D8: 200
B9: Pes viu final fins a | D9: 520 | E9: Pes adult | F9: 897.503811 | H9: GMD,Kg/dia objectiu | I9: 1.23
B10: Peso inicio | C10: 320 | D10: Per al pes inicial: GMD, kg/dia al voltant de... | G10: =NR!O16 -> 1.229301591 | H10: 1 | I10: =IF(I9>1.15*G10,"GMD excesivo",IF(I9<0.85*G10,"¿GMD tan bajo?","GMD normal")) -> GMD normal
B11: GMD, kg/día | C11: =I9 -> 1.23 | D11: Període racionament, temps en dies | G11: =IF(H10=1,H13,I13) -> 345.5284553 | H11: Pes final
B12: =IF(C11>1.15*G10,"GMD excesivo",IF(C11<0.85*G10,"¿GMD tan bajo?","GMD normal")) -> GMD normal | D12: Possible pes final assolit | F12: =H12 -> 745 | H12: 745 | I12: teòric
B13: Necessitats Totals | E13: Període racionament, temps en dies | H13: =(H12-C10)/C11 -> 345.5284553 | I13: =(H12-C10)/G10 -> 345.724762
B14: =IF(C6>=8,"UFL","UFV") -> UFV | C14: =NR!BE16 -> 5.8917779 | E14: Dades per al racionament
B15: PDI | C15: =NR!BF16 -> 589.3049975 | E15: Elegir modalitat racionament
B16: Ca | C16: =NR!BI16 -> 19.99354443 | E16: 0
B17: P | C17: =NR!BH16 -> 16.67090837
B18: CI, UEB | C18: =NR!BG16 -> 6.398811672 | E18: Tolerància càlculs (%) | G18: 12.5 | I18: =E16 -> 0
B19: Mg | C19: =NR!BJ16 -> 1.5135 | E19: Mínim % MS Farratge | G19: 40
B20: Cl | C20: =NR!BK16 -> 9.459375 | E20: =IF(C10<D8,"Pes inferior a tipus de boví",IF(C10>0.9*F9,"Valor superior a pes adult","")) -> 
B21: K | C21: =NR!BL16 -> 36.46206022 | E21: =IF(H12<=C10,"Ha de ser superior al pes inicial",IF(H12>=0.9*F9,"Valor massa alt","")) -> 
B22: Na | C22: =NR!BM16 -> 6.587878788
B23: S | C23: =NR!BN16 -> 14.37527246
B24: Co | C24: =NR!BO16 -> 0.7906399851 | F24: NR
B25: Cu | C25: =NR!BP16 -> 92.1625
B26: Mo | C26: =NR!BQ16 -> 0
B27: Iode | C27: =NR!BR16 -> 0
B28: Fe | C28: =NR!BS16 -> 418.2
B29: Mn | C29: =NR!BT16 -> 200.1333333
B30: Se | C30: =NR!BU16 -> 2.156290869
B31: Zn | C31: =NR!BV16 -> 292.8
B32: Vit A | C32: =NR!BW16 -> 35200
B33: Vit D | C33: =NR!BX16 -> 5120
B34: Vit E | C34: =NR!BY16 -> 832
B35: Gproteïnes/EfPDI | C35: =NR!AI16*1000/NR!AT16 -> 338.6346481
B36: CI, MSI | C36: =NR!AX16 -> 7.187636228
B37: EfPDI | C37: =NR!AT16 -> 0.64
B38: BPR màxim | C38: =NR!AU16 -> -2
B39: BPR mínim | C39: =NR!AV16 -> -7.5
B40: =NR!A16 -> 1.-Terneros Engorde (finalización) gran formato tardíos (Charolés, p.e); Peso inicio 300-Peso final 800
B41: Peso incial: | C41: =C10 -> 320
B42: Peso final objetivo: | C42: =H12 -> 745
B43: Ganancia prevista kg/día: | C43: =C11 -> 1.23
B44: Días racionamiento: | C44: =G11 -> 345.5284553
A80: Frisona-Holstein; Bruna Suïssa; Jersey; Ayshire; Guernsey; Menorquina; Shorthorn; Tarentaise; Normanda; Montbeliarda; Abondance; Danesa vermella; Bretona; Simental o Fleckvieh, etc. | W80: Leche
A81: Blonde d’Aquitaine; Charolaise; Blanc blau belga; Limousin; Hereford; Aberdeen angus; Shorthorn Durhan; Piamontesa; Rubia Gallega; Asturiana de los valles; Retinta; Bruna; etc. | W81: Carne
A82: Brunes, Aubrac, Salers, Retinta, Avilenya, Morucha, Cachena, Tudanca, Asturiana de los montes, etc. | W82: Rústicas
D145: 6

Sheet NR (hidden)
AM1: ok | AN1: ok
B2: Pvinicial | C2: Pvfinal | D2: d1 | E2: d2 | F2: CDinicial %PV | G2: CDfinal %Pv | H2: Lipinicial %Pvbuit | I2: Lipfinal %Pvbuit | J2: recEN_mant Kcla/KgPV0,75 | K2: Pv adult | L2: Pv t | M2: GMD | N2: Pes v t | O2: ΔPv t | P2: Pvbuit inicial | Q2: Pv buit final | R2: c1 | S2: c0 | T2: Pvbuit t1 | U2: Pv buit t2 | V2: Dif pv buit | W2: Lip_corp_i | X2: Lip_corp_t | Y2: b1 | Z2: b0 | AA2: Lip_corp t1 | AB2: Lip_corp t2 | AC2: Dif Lip_corp | AD2: Mdel t1 | AE2: Mdel t2 | AF2: Dif Mdel | AG2: Prot_corp_t1 | AH2: Prot_corp_t2 | AI2: Dif Prot_corp | AJ2: q | AK2: km | AL2: EN mant | AM2: NecEN_guany | AN2: Ep | AO2: kpf | AP2: kf | AQ2: kmf | AR2: NecUFL_mant | AS2: NecUFLguany | AT2: EfPDI | AU2: BPR máx | AV2: BPR mín | AW2: MOND g/kg MS | AX2: CI MSI | AY2: NecPDI_PEF | AZ2: NecPDI_Uendo | BA2: NecPDI_epidèrmiques | BB2: NecPDI_guany | BC2: Itip | BD2: c | BE2: UFV | BF2: PDI | BG2: CI UEB | BH2: Pabs | BI2: Caabs | BJ2: Mgabs | BK2: Cl | BL2: K | BM2: Na | BN2: S | BO2: Co | BP2: Cu | BQ2: Mo | BR2: Midó | BS2: Fe | BT2: Mn | BU2: Se | BV2: Zn | BW2: Vit A | BX2: Vit D | BY2: Vit E
A3: 1.-Terneros Engorde (finalización) gran formato tardíos (Charolés, p.e); Peso inicio 300-Peso final 800 | B3: 300 | C3: 800 | D3: 1.1028 | E3: 0.0037 | F3: 16 | G3: 11 | H3: 8 | I3: 16 | J3: 102 | K3: =B3*EXP(D3) -> 903.7768428 | L3: =IF(I_Necessitats!$C$6=1,I_Necessitats!$C$10,"") -> 320 | M3: =IF($A$15=1,I_Necessitats!$C$11,"") -> 1.23 | N3: =IF(L3="","",L3+M3) -> 321.23 | O3: =IF(L3="","",E3*L3*LN(K3/L3)) -> 1.229301591 | P3: =B3*(100-F3)/100 -> 252 | Q3: 712 | R3: =LN(Q3/P3)/LN(C3/B3) -> 1.05894968 | S3: =EXP(LN(P3)-R3*LN(B3)) -> 0.6001416667 | T3: =IF(L3="","",S3*L3^R3) -> 269.8246042 | U3: =IF(M3="","",S3*N3^R3) -> 270.9230058 | V3: =IF(L3="","",U3-T3) -> 1.098401573 | W3: =H3*P3/100 -> 20.16 | X3: 113.92 | Y3: =LN(X3/W3)/LN(Q3/P3) -> 1.667354706 | Z3: =EXP(LN(X3)-Y3*LN(Q3)) -> 0.001997579328 | AA3: =IF(L3="","",Z3*T3^Y3) -> 22.59328059 | AB3: =IF(M3="","",Z3*U3^Y3) -> 22.7468399 | AC3: =IF(L3="","",AB3-AA3) -> 0.1535593072 | AD3: =IF(L3="","",T3-AA3) -> 247.2313236 | AE3: =IF(L3="","",U3-AB3) -> 248.1761659 | AF3: =IF(L3="","",AE3-AD3) -> 0.9448422661 | AG3: =IF(L3="","",0.1436*AD3^1.0723) -> 52.87852306 | AH3: =IF(L3="","",0.1436*AE3^1.0723) -> 53.09524924 | AI3: =IF(L3="","",AH3-AG3) -> 0.2167261748 | AJ3: =IF(M3="","",IF(M3>1,0.6,0.62-0.262*EXP(-3.175*M3))) -> 0.6 | AK3: =IF(L3="","",0.287*AJ3+0.554) -> 0.7262 | AL3: =IF(L3="","",(J3*L3^0.75)/1000) -> 7.717251529 | AM3: =IF(L3="","",5.48*AI3+9.39*AC3) -> 2.629581332 | AN3: =IF(L3="","",5.48*AI3/(5.48*AI3+9.39*AC3)) -> 0.4516534337 | AO3: =IF(L3="","",0.35+0.25*(1-AN3)^2) -> 0.4251709892 | AP3: =IF(L3="","",0.78*0.6+0.006) -> 0.474 | AQ3: =IF(L3="","",(AK3*AP3*1.5)/(AP3+0.5*AK3)) -> 0.6168058774 | AR3: =IF(L3="","",AM3/AO3*AQ3/1.76) -> 2.167498572 | AS3: =IF(L3="","",AL3/AK3*AQ3/1.76) -> 3.724279328 | AT3: =IF(L3="","",IF(L3<550,0.64,0.47)) -> 0.64 | AU3: =IF(L3="","",IF(L3<550,-2,-6.6)) -> -2 | AV3: =IF(L3="","",IF(L3<550,-7.5,-13.3)) -> -7.5 | AW3: =IF(L3="","",IF(L3<550,262,240)) -> 262 | AX3: =IF(L3="","",95*L3^0.75/1000) -> 7.187636228 | AY3: =IF(AX3="","",(AX3*(0.5*(5.7+0.074*AW3)))/AT3) -> 140.8776701 | AZ3: =IF(L3="","",0.312*L3) -> 99.84 | BA3: =IF(L3="","",(0.2*L3^0.6)/AT3) -> 9.952679264 | BB3: =IF(AI3="","",AI3*1000/AT3) -> 338.6346481 | BC3: 0.284 | BD3: 0.54 | BE3: =IF(L3="","",AR3+AS3) -> 5.8917779 | BF3: =IF(L3="","",AY3+AZ3+BA3+BB3) -> 589.3049975 | BG3: =IF(L3="","",BC3*L3^BD3) -> 6.398811672 | BH3: =IF(L3="","",0.025*L3+(((1.2+((4.655*K3^0.22)*(L3^-0.22)))*M3))) -> 16.67090837 | BI3: =IF(L3="","",0.015*L3+(((9.83*(K3^0.22)*(L3^-0.22)*M3)))) -> 19.99354443 | BJ3: =IF(L3="","",(0.003*L3+0.45*M3)) -> 1.5135 | BK3: =IF(L3="","",(0.003*L3+0.45*M3)/0.16) -> 9.459375 | BL3: =IF(L3="","",((2.6*AX3)+0.038*L3+1.6*M3)/0.9) -> 36.46206022 | BM3: =IF(L3="","",(0.015*L3+1.4*M3)/0.99) -> 6.587878788 | BN3: =IF(BP3="","",2*AX3) -> 14.37527246 | BO3: =IF(BP3="","",0.11*AX3) -> 0.7906399851 | BP3: =IF(L3="","",(0.0071*L3+1.15*M3)/0.04) -> 92.1625 | BS3: =IF(M3="","",34*M3/0.1) -> 418.2 | BT3: =IF(M3="","",(0.002*L3+0.7*M3)/0.0075) -> 200.1333333 | BU3: =IF(BP3="","",0.3*AX3) -> 2.156290869 | BV3: =IF(L3="","",(0.045*L3+24*M3)/0.15) -> 292.8 | BW3: =IF(L3="","",110*L3) -> 35200 | BX3: =IF(L3="","",16*L3) -> 5120 | BY3: =IF(L3="","",2.6*L3) -> 832
A4: 2.-Terneros Engorde (finalización) tardíos (Limousines, p.e); Peso inicio 330-Peso final 730 | B4: 330 | C4: 730 | D4: 1.1028 | E4: 0.0037 | F4: 15 | G4: 10.8 | H4: 8 | I4: 15 | J4: 98 | K4: =B4*EXP(D4) -> 994.1545271 | L4: =IF(I_Necessitats!$C$6=2,I_Necessitats!$C$10,"") ->  | M4: =IF($A$15=2,I_Necessitats!$C$11,"") ->  | N4: =IF(L4="","",L4+M4) ->  | O4: =IF(L4="","",E4*L4*LN(K4/L4)) ->  | P4: 280.5 | Q4: 651.16 | R4: =LN(Q4/P4)/LN(C4/B4) -> 1.060746481 | S4: =EXP(LN(P4)-R4*LN(B4)) -> 0.5976240488 | T4: =IF(L4="","",S4*L4^R4) ->  | U4: =IF(M4="","",S4*N4^R4) ->  | V4: =IF(L4="","",U4-T4) ->  | W4: 22.44 | X4: 97.674 | Y4: =LN(X4/W4)/LN(Q4/P4) -> 1.746405066 | Z4: =EXP(LN(X4)-Y4*LN(Q4)) -> 0.001191078802 | AA4: =IF(L4="","",Z4*T4^Y4) ->  | AB4: =IF(M4="","",Z4*U4^Y4) ->  | AC4: =IF(L4="","",AB4-AA4) ->  | AD4: =IF(L4="","",T4-AA4) ->  | AE4: =IF(L4="","",U4-AB4) ->  | AF4: =IF(L4="","",AE4-AD4) ->  | AG4: =IF(L4="","",0.1436*AD4^1.0723) ->  | AH4: =IF(L4="","",0.1436*AE4^1.0723) ->  | AI4: =IF(L4="","",AH4-AG4) ->  | AJ4: =IF(M4="","",IF(M4>1,0.6,0.62-0.262*EXP(-3.175*M4))) ->  | AK4: =IF(L4="","",0.287*AJ4+0.554) ->  | AL4: =IF(L4="","",(J4*L4^0.75)/1000) ->  | AM4: =IF(L4="","",5.48*AI4+9.39*AC4) ->  | AN4: =IF(L4="","",5.48*AI4/(5.48*AI4+9.39*AC4)) ->  | AO4: =IF(L4="","",0.35+0.25*(1-AN4)^2) ->  | AP4: =IF(L4="","",0.78*0.6+0.006) ->  | AQ4: =IF(L4="","",(AK4*AP4*1.5)/(AP4+0.5*AK4)) ->  | AR4: =IF(L4="","",AM4/AO4*AQ4/1.76) ->  | AS4: =IF(L4="","",AL4/AK4*AQ4/1.76) ->  | AT4: =IF(L4="","",IF(L4<550,0.64,0.47)) ->  | AU4: =IF(L4="","",IF(L4<550,-2,-6.6)) ->  | AV4: =IF(L4="","",IF(L4<550,-7.5,-13.3)) ->  | AW4: =IF(L4="","",IF(L4<550,262,240)) ->  | AY4: =IF(AX4="","",(AX4*(0.5*(5.7+0.074*AW4)))/AT4) ->  | BC4: 0.22 | BD4: 0.57 | BH4: =IF(L4="","",0.025*L4+(((1.2+((4.655*K4^0.22)*(L4^-0.22))))*M4)) ->  | BJ4: =IF(L4="","",(0.003*L4+0.45*M4)/0.16) ->  | BN4: =IF(BP4="","",2*AX4) ->  | BO4: =IF(BP4="","",0.11*AX4) ->  | BU4: =IF(BP4="","",0.3*AX4) -> 
A5: 3.-Terneros Engorde (finalización) precocidad media (vacas rústicas); Peso inicio 250-Peso final 680 | B5: 250 | C5: 680 | D5: 1.4078 | E5: 0.003763 | F5: 18 | G5: 12 | H5: 10 | I5: 19.5 | J5: 100 | K5: =B5*EXP(D5) -> 1021.738552 | L5: =IF(I_Necessitats!$C$6=3,I_Necessitats!$C$10,"") ->  | M5: =IF($A$15=3,I_Necessitats!$C$11,"") ->  | P5: 205 | Q5: 598.4 | R5: =LN(Q5/P5)/LN(C5/B5) -> 1.070572974 | S5: =EXP(LN(P5)-R5*LN(B5)) -> 0.5553721475 | W5: 20.5 | X5: 116.688 | Y5: =LN(X5/W5)/LN(Q5/P5) -> 1.623411638 | Z5: =EXP(LN(X5)-Y5*LN(Q5)) -> 0.003620976775 | BC5: 0.233 | BD5: 0.575 | BH5: =IF(L5="","",0.025*L5+(((1.2+((4.655*K5^0.22)*(L5^-0.22)))*M5))) -> 
A6: 4.-Terneros Engorde (finalización) precocidad alta (vacas lecheras); Peso inicio 200-Peso final 550 | B6: 200 | C6: 550 | D6: 1.4078 | E6: 0.003763 | F6: 20 | G6: 12 | H6: 7.5 | I6: 21 | J6: 95 | K6: =B6*EXP(D6) -> 817.3908414 | L6: =IF(I_Necessitats!$C$6=4,I_Necessitats!$C$10,"") ->  | M6: =IF($A$15=4,I_Necessitats!$C$11,"") ->  | P6: 160 | Q6: 484 | R6: =LN(Q6/P6)/LN(C6/B6) -> 1.094217175 | S6: =EXP(LN(P6)-R6*LN(B6)) -> 0.4856165083 | W6: 12 | X6: 101.64 | Y6: =LN(X6/W6)/LN(Q6/P6) -> 1.930173548 | Z6: =EXP(LN(X6)-Y6*LN(Q6)) -> 0.0006681087492 | BC6: 0.157 | BD6: 0.652
A7: 5.-Toros tardíos Engorde (finalización) de 20 a 33 meses; Peso inicio 500-Peso final 750 | B7: 500 | C7: 750 | D7: 0.629 | E7: 0.0035 | F7: 12 | G7: 10 | H7: 11 | I7: 16.5 | J7: 106 | K7: =B7*EXP(D7) -> 937.8669536 | L7: =IF(I_Necessitats!$C$6=5,I_Necessitats!$C$10,"") ->  | M7: =IF($A$15=5,I_Necessitats!$C$11,"") ->  | P7: =B7*(100-F7)/100 -> 440 | Q7: 675 | R7: =LN(Q7/P7)/LN(C7/B7) -> 1.055424882 | S7: =EXP(LN(P7)-R7*LN(B7)) -> 0.6235805742 | W7: =H7*P7/100 -> 48.4 | X7: 111.375 | Y7: =LN(X7/W7)/LN(Q7/P7) -> 1.947485716 | Z7: =EXP(LN(X7)-Y7*LN(Q7)) -> 0.0003441589228 | BC7: 0.2205 | BD7: 0.6
A8: 6.-Toros precoces Engorde (finalización) de 24 a 28 meses; Peso inicio 540-Peso final 660 | B8: 540 | C8: 660 | D8: 0.629 | E8: 0.0035 | F8: 13 | G8: 11 | H8: 16 | I8: 21.2 | J8: 108 | K8: 1012.89631 | L8: =IF(I_Necessitats!$C$6=6,I_Necessitats!$C$10,"") ->  | M8: =IF($A$15=6,I_Necessitats!$C$11,"") ->  | P8: 469.8 | Q8: 587.4 | R8: 1.113261436 | S8: 0.4266231445 | W8: 75.168 | X8: 124.5288 | Y8: 2.259685705 | Z8: 6.892064866e-05 | BC8: 0.2425 | BD8: 0.6
A9: 7.-Terneras tardías Engorde (finalización) de 15 a 30 meses; Peso inicio 450-Peso final 700 | B9: 450 | C9: 700 | D9: 0.6174 | E9: 0.0035 | F9: 13 | G9: 10 | H9: 13 | I9: 18 | J9: 106 | K9: 834.345498 | L9: =IF(I_Necessitats!$C$6=7,I_Necessitats!$C$10,"") ->  | M9: =IF($A$15=7,I_Necessitats!$C$11,"") ->  | P9: 391.5 | Q9: 630 | R9: 1.076729377 | S9: 0.5444273197 | W9: 50.895 | X9: 113.4 | Y9: 1.684042327 | Z9: 0.002189803174 | BC9: 0.2205 | BD9: 0.6
A10: 8.-Terneros tardíos Crecimiento de 8 a 24 meses; Peso inicio 300-Peso final 540 | B10: 300 | C10: 540 | D10: 1.114 | E10: 0.0025 | F10: 16 | G10: 12 | H10: 8 | I10: 11 | J10: 94 | K10: 913.9560406 | L10: =IF(I_Necessitats!$C$6=8,I_Necessitats!$C$10,"") ->  | M10: =IF($A$15=8,I_Necessitats!$C$11,"") ->  | P10: 252 | Q10: 475.2 | R10: 1.079144388 | S10: 0.5348463561 | W10: 20.16 | X10: 52.272 | Y10: 1.502050098 | Z10: 0.004982721459 | BC10: 0.03459 | BD10: 0.9
A11: 9.-Terneros precoces Crecimiento de 6 a 24 meses; Peso inicio 200-Peso final 520 | B11: 200 | C11: 520 | D11: 1.5013 | E11: 0.0025 | F11: 20 | G11: 13 | H11: 7.5 | I11: 18 | J11: 94 | K11: 897.503811 | L11: =IF(I_Necessitats!$C$6=9,I_Necessitats!$C$10,"") ->  | M11: =IF($A$15=9,I_Necessitats!$C$11,"") ->  | P11: 160 | Q11: 452.4 | R11: 1.087787001 | S11: 0.5024460831 | W11: 12 | X11: 81.432 | Y11: 1.842288525 | Z11: 0.001043653403 | BC11: 0.03115 | BD11: 0.9
A12: 10.-Terneras tardías Crecimiento de 8 a 28 meses; Peso inicio 300-Peso final 600 | B12: 300 | C12: 600 | D12: 1.114 | E12: 0.0025 | F12: 18 | G12: 13 | H12: 9 | I12: 14 | J12: 94 | K12: 913.9560406 | L12: =IF(I_Necessitats!$C$6=10,I_Necessitats!$C$10,"") ->  | M12: =IF($A$15=10,I_Necessitats!$C$11,"") ->  | P12: 246 | Q12: 522 | R12: 1.085391491 | S12: 0.5038355117 | W12: 22.14 | X12: 73.08 | Y12: 1.587281111 | Z12: 0.003548881384 | BC12: 0.03459 | BD12: 0.9
A13: 11.-Terneras lecheras Crecimiento de 6 a 24 meses; Peso inicio 450-Peso final 600 | B13: 150 | C13: 600 | D13: 1.5013 | E13: 0.0025 | F13: 20 | G13: 13 | H13: 9 | I13: 21 | J13: 94 | K13: 673.1278582 | L13: =IF(I_Necessitats!$C$6=11,I_Necessitats!$C$10,"") ->  | M13: =IF($A$15=11,I_Necessitats!$C$11,"") ->  | P13: 120 | Q13: 522 | R13: 1.0605077 | S13: 0.5907717353 | W13: 10.8 | X13: 109.62 | Y13: 1.576324161 | Z13: 0.005701119212 | BC13: 0.03915 | BD13: 0.9
A15: =I_Necessitats!C6 -> 1
A16: =IF($A$15=1,A3,IF($A$15=2,A4,IF($A$15=3,A5,IF($A$15=4,A6,IF($A$15=5,A7,IF($A$15=6,A8,IF($A$15=7,A9,IF($A$15=8,A10,IF($A$15=9,A11,IF($A$15=10,A12,A13)))))))))) -> 1.-Terneros Engorde (finalización) gran formato tardíos (Charolés, p.e); Peso inicio 300-Peso final 800 | B16: =IF($A$15=1,B3,IF($A$15=2,B4,IF($A$15=3,B5,IF($A$15=4,B6,IF($A$15=5,B7,IF($A$15=6,B8,IF($A$15=7,B9,IF($A$15=8,B10,IF($A$15=9,B11,IF($A$15=10,B12,B13)))))))))) -> 300 | C16: =IF($A$15=1,C3,IF($A$15=2,C4,IF($A$15=3,C5,IF($A$15=4,C6,IF($A$15=5,C7,IF($A$15=6,C8,IF($A$15=7,C9,IF($A$15=8,C10,IF($A$15=9,C11,IF($A$15=10,C12,C13)))))))))) -> 800 | K16: =IF($A$15=1,K3,IF($A$15=2,K4,IF($A$15=3,K5,IF($A$15=4,K6,IF($A$15=5,K7,IF($A$15=6,K8,IF($A$15=7,K9,IF($A$15=8,K10,IF($A$15=9,K11,IF($A$15=10,K12,K13)))))))))) -> 903.7768428 | L16: =SUM(L3:L13) -> 320 | M16: =SUM(M3:M13) -> 1.23 | N16: 321.23 | O16: 1.229301591 | P16: 2976.8 | Q16: 6309.56 | R16: 11.84273258 | S16: 5.965285096 | T16: 269.8246042 | U16: 270.9230058 | V16: 1.098401573 | W16: 314.663 | X16: 1095.6298 | Y16: 19.3665026 | Z16: 0.02535700186 | AA16: =SUM(AA3:AA13) -> 22.59328059 | AB16: =SUM(AB3:AB13) -> 22.7468399 | AC16: 0.1535593072 | AD16: 247.2313236 | AE16: 248.1761659 | AF16: 0.9448422661 | AG16: 52.87852306 | AH16: 53.09524924 | AI16: 0.2167261748 | AJ16: 0.6 | AK16: 0.7262 | AL16: 7.717251529 | AM16: 2.629581332 | AN16: 0.4516534337 | AO16: 0.4251709892 | AP16: 0.474 | AQ16: 0.6168058774 | AR16: 2.167498572 | AS16: 3.724279328 | AT16: 0.64 | AU16: -2 | AV16: -7.5 | AW16: 262 | AX16: 7.187636228 | AY16: 140.8776701 | AZ16: 99.84 | BA16: 9.952679264 | BB16: 338.6346481 | BC16: 1.71698 | BD16: 7.737 | BE16: 5.8917779 | BF16: 589.3049975 | BG16: 6.398811672 | BH16: 16.67090837 | BI16: 19.99354443 | BJ16: 1.5135 | BK16: 9.459375 | BL16: 36.46206022 | BM16: 6.587878788 | BN16: 14.37527246 | BO16: 0.7906399851 | BP16: 92.1625 | BQ16: 0 | BR16: 0 | BS16: 418.2 | BT16: 200.1333333 | BU16: 2.156290869 | BV16: 292.8 | BW16: 35200 | BX16: 5120 | BY16: 832
AZ17: =AZ16/AY16 -> 0.708699966
E18: Pes inici | F18: =L9 ->  | K18: Pfinal | L18: TempsdiesT | M18: TempsDies
E19: Pes a assolir | F19: 720
A20: Farratge i complementació | E20: guany | F20: =M9 -> 
A21: Pinso i palla | E21: Temps necessari | F21: =(F19-F18)/F20 -> 
A27: Dades orientatives: Vedelles precoces de 350 a 600 kg; GPV de 0,8 a 1,2 kg; Pv adult = 700 kg | K27: 620 | L27: 559.5150869 | M27: 559.5150869
A28: Dades orientatives: Vedelles carn gran format (Llemosina, Blonda) de 450 a 600 kg; GPV de 0,8 a 1,2 kg.; Pv adult = 850 kg
A29: Dades orientatives: Vedelles carn tardanes (Xarolés i creuaments) de 450 a 600 kg; GPV de 0,8 a 1,2 kg; Pv adult = 850 kg
A30: Dades orientatives: Vedells frisons de 150 a 650 kg; GPV de 0,8 a 1,6 kg. Pv adult = 750 kg
A31: Dades orientatives: Vedells altres lleteres i creuaments Xarolés de 200 a 550 kg; GPV d'1 a 1,6 kg; Pv adult = 750 kg
A32: Dades orientatives: Vedells rústiques de 250 a 800 kg; GPV d'1 a 2 kg; Pv adult = 750 kg | H32: Padult | I32: =450*EXP(I9*(1-EXP(-J9*B9))) -> 2.954698611e+10 | J32: =J9*I32*LN((D9*EXP(I9))/I32) -> -2.064440502e+13 | L32: =(I32-D9)/B9 -> 65659969.14
A33: Dades orientatives: Vedells carn gran format (Llemosina, Blonda) de 300 a 650 kg; GPV d'1 a 2 kg; Pv adult = 900 kg
A34: Dades orientatives: Vedells carn tardanes (Xarolés i creuaments alletants) de 300 a 700 kg; GPV d'1 a 2 kg; Pv adult = 900 kg
A38: Peso nacimiento 47 kg. Destete a 6-8 meses. Ternero de 15 meses Pv = 550 kg. Ganancia media diaria 1.400 g. IC (4,6) Rendimiento a la canal 65-70%. Rendimiento carnicero 79-85% carne. | W38: Charolais
A39: Peso nacimiento 42 kg. Destete a 7-8 meses. Ternero de 15 meses Pv = 550 kg Ganancia media diario 1.500 g. Rendimiento canal 70%. Rendimiento carnicero 73% carne. | W39: Limousin
A40: Ganancia media diaria 1.500 a 1.700 g. Aprovechamiento de los terneros en matadero de 65 hasta 68%. Aprovechamiento de carne neta 75% hasta 80%. | W40: Blonde d’Aquitaine
A41: Ganancia media diaria: 1.400 g. Ternero a 12 meses (480 kg); Ternero 15-16 meses (650 kg); precoz; Edad al primer parto 32 meses; Rendimiento canal 66%. | W41: Blanco azul belga
A42: Peso nacimiento 47 kg. Ganancia media diaria: 1.300 a 1.400 g. Ternero a 12 meses (510 kg); Rendimientos canal de 57 a 60%. | W42: Fleckvieh-Simmenthal
A43: Ganancia media diaria: 1.560 g. IC (4,1) hasta 460 kg .; Ganancia media diaria: 1.580 g. IC (4,3) hasta 550 kg. Rendimiento canal: 60%. Rendimiento carnicero 73% carne, 8,8% grasa, 18,1% hueso. Producción de añojo (añojo): ciclo corto (14 meses y 500 kg), ciclo medio (18 meses y 600 kg). Ganancia media diaria: 1.400 g. IC (4,2) hasta 460 kg .; Ganancia media diaria: 1.530 g. IC (4,3) hasta 550 kg .; Rendimiento canal: 64%. Rendimiento carnicero 76,9% carne, 7,1% grasa, 16% hueso. | W43: Rubia Gallega
A44: Terneros 9-10 meses (300-350 kg), Terneros 12 meses (430 kg). Añojo pesado (550-600 kg). Ganancia media diaria: 1.540 g. IC (4,3) hasta 300 kg .; Ganancia media diaria: 1.670 g. IC (4,1) hasta 460 kg .; Ganancia media diaria: 1.750 g. IC (4,3) hasta 550 kg. | W44: Pirenaica
A45: Terneros "pastero" 5-6 meses (120-130 kg). | W45: Tudanca
A46: Ternero 12 meses (323 kg), Ganancia media diario: 1.940 g. IC (3,6) hasta 300 kg .; Ganancia media diaria: 1.350 g. IC (4,4) hasta 460 kg .; Ganancia media diaria: 1.590 g. IC (4,6) hasta 550 kg. | W46: Avileña-Negra Iberica
A47: Ternero 12 meses (393 kg). Ganancia media diaria: 1.360 g. IC (5,1) hasta 300 kg .; Ganancia media diaria: 1.510 g. IC (4,8) hasta 460 kg .; Ganancia media diaria: 1.400 g. IC (5,1) hasta 550 kg. | W47: Retinto
A48: Ternero pastero 5-9 meses (pesos escasos y variables). Ganancia media diaria: 1.200 g. IC (4,1) hasta 300 kg .; Ganancia media diaria: 1.240 g. IC (4,6) hasta 460 kg .; Ganancia media diaria: 1.280 g. IC (4,9) hasta 550 kg. Rendimiento canal: 56%. | W48: Morucha
A49: Peso medio vacas 600-700 kg, machos 800 a 1100 kg. Peso vivo sacrificio 550 kg. Ganancia media diaria: 1.850 g. IC (3,9) hasta 300 kg .; Ganancia media diaria: 1.690 g. IC (4,1) hasta 460 kg .; Ganancia media diaria: 1.740 g. IC (4,2) hasta 550 kg. Rendimiento canal: 60,9%. Rendimiento carnicero: 71,7% carne, 10% grasa, 18,3% hueso. | W49: Parda
A51: Frisona-Holstein; Pardo-Suiza; Jersey; Ayshire; Guernsey; Menorquina; Shorthorn; Tarentaise; Normanda; Montbeliarda; Abondance; Danesa vermella; Bretona; Simental o Fleckvieh, etc.
A52: Blonde d’Aquitaine; Charolaise; Blanco azul belga; Limousin; Hereford; Aberdeen angus; Shorthorn Durhan; Piamontesa; Rubia Gallega; Asturiana de los Valles; Retinta; Parda; etc. | W52: Leche
A53: Pardas Aubrac, Salers, Retinta, Avileña, Morucha, Cachena, Tudanca, Asturiana de los Montes, etc. | W53: Carne
W54: Rústicas
A56: Fase d’engreix (del deslletament endavant): En el punt d’inflexió el creixement és màxim, el pes a la pubertat és 2/3 del pes adult. Si l’alimentació és adequada les vedelles de raça lletera arriben a la pubertat entre 9 i 11 mesos, i els vedells entre 11 i 12 mesos. A les races de carn el període és més llarg.

Sheet Racionament VL

Sheet Guia (hidden)

Sheet Guia 6
Q6: 1

Sheet Respostes (hidden)
G1: pH ruminal
F3: MOFconcentrat | G3: =CàlculsEV!AM27/'II_Plantejar Ració'!K21 -> 263.643175 | H3: =IF(G4>6.22,"Sin riesgo acidosis",IF(G4<6.16,"Alto riesgo acidosis","Riesgo débil acidosis")) -> Riesgo débil acidosis
F4: pH | G4: =6.49-0.0109*G3/10 -> 6.202628939
A14: Nitrogen urinari
B16: Dades ració | C16: =IF(B17>0.4,"Fuerte exceso para el medio",IF(B17>=0.3,"Exceso para el medio",IF(B17<0.2,"Carencia en N","Dentro normalidad"))) -> Dentro normalidad
A17: NU g N/dia/kg pes viu | B17: ='II_Plantejar Ració'!B81 -> 0.2285999844
A18: N urinari, g/vedell i dia | B18: =B17*'III_Ració calculada'!B2 -> 73.15199501
A20: Nitrogen fecal
A21: Relació C/N al fems = 14,2 + 52,7 x EXP(-0,014 x MNT) – 3,76 x PCO
B22: Dades ració | C22: =IF(B25>25.6,"Relación buena",IF(B25<15,"Exceso N","Relación normal")) -> Relación normal
A23: MNT | B23: ='II_Plantejar Ració'!L45 -> 134.7516361
A24: PCO | B24: ='II_Plantejar Ració'!K12 -> 0.3621734984
A25: C/N | B25: =14.2+52.7*EXP(-0.014*B23)-3.76*B24 -> 20.82744299
A26: NND, g/kg MS | B26: =(26.9+0.193*'II_Plantejar Ració'!B39+0.106*'II_Plantejar Ració'!B41+0.022*(591-6.09*'II_Plantejar Ració'!B48))/6.25 -> 10.71274122
A27: N fecal, g/vaca i dia | B27: 248.4473621
A29: Emissions de metà
A30: CH4/MOD = 45,42 – 6,66 x NI + 0,75 x NI2 + 19,65 x PCO – 35,0 x PCO2 – 2,69 x NI x PCO
B31: Dades ració
A32: NI | B32: ='II_Plantejar Ració'!K27 -> 2.032616553
A33: PCO | B33: ='II_Plantejar Ració'!K12 -> 0.3621734984
A34: CH4/MOD | B34: =IF('II_Plantejar Ració'!K12>0,45.42-6.66*B32+0.75*B32^2+19.65*B33-35*B33^2-2.69*B32*B33,34.95-4.05*B32+0.027*'II_Plantejar Ració'!L51-0.01*'II_Plantejar Ració'!L48) -> 35.52692305 | C34: =IF(B34>43,"Producción metano por kg MOD alta",IF(B34<25,"Producción metano por kg MOD baja","Producción metano por kg MOD normal")) -> Producción metano por kg MOD normal
A35: CH4, g/dia | B35: ='II_Plantejar Ració'!K8*0.001*'II_Plantejar Ració'!L48*Respostes!B34 -> 168.7597685

Sheet Verd_Fenc_Ensitjat (hidden)
B1: Abans de calcular el valor nutritiu d'un fenc o d'un ensitjat, dels quals tenim l'anàlisi química del verd, s'han de determinar la fibra del sec o de l'ensitjat, la MNT, les cendres, ila dMO es té la dMO del verd (la ingestibilitat es pot calcular directament). És important tenir la MS del sec o de l'ensitjat al moment del consum
K2: Ensitjats | O2: Fencs
K3: Brins curts sense conservant MS<25% | L3: Brins curts amb corservant MS < 25% | M3: Prefenificats 30<= MS <= 35 | N3: Semiprenificats (bales encintades) 40<=MS<=70 | O3: Assecats en granja | P3: Assecats al sol bon temps | Q3: Assecats al sol temp plujós
B5: Valors del farratge verd
B6: MS % | C6: Cendres g/kg MS | D6: MNT g/kg MS | E6: FB g/kg MS | F6: ADF g/kg MS | G6: NDF g/kg MS | H6: dMO % | I6: MSVIm
A7: Prats i gramínies | J7: Cendres | K7: =-37.4+1.07*$C$7+1.5*$B$7 -> -37.4 | L7: =-37.4+1.07*$C$7+1.5*$B$7 -> -37.4 | M7: =21+0.882*C7 -> 21 | N7: =43.4+0.479*C7 -> 43.4 | O7: =35+0.587*C7 -> 35 | P7: =14.7+0.796*C7 -> 14.7 | Q7: =18.7+0.839*C7 -> 18.7
J8: MNT | K8: =16.1+0.81*D7+0.627*B7 -> 16.1 | L8: =K8 -> 16.1 | M8: =26.3+0.859*D7 -> 26.3 | N8: =11.1+0.926*D7 -> 11.1 | O8: =-1+0.963*D7 -> -1 | P8: =-1+0.963*D7 -> -1 | Q8: =-6+0.963*D7 -> -6
J9: FB | K9: =IF(E7<>"",125+0.77*E7-2.16*B7,IF(F7<>"",125+0.77*((F7-40)/0.95)-2.16*B7,IF(G7="","",125+0.77*((G7-260)/1.14)-2.16*B7))) ->  | L9: =K9 ->  | M9: =IF(E7<>"",31+0.935*E7,IF(F7<>"",31+0.935*((F7-40)/0.95),IF(G7="","",31+0.935*((G7-260)/1.14)))) ->  | N9: =IF(E7<>"",95+0.757*E7,IF(F7<>"",95+0.757*((F7-40)/0.95),IF(G7="","",96+0.757*((G7-260)/1.14)))) ->  | O9: =IF(E7<>"",42.5+0.927*E7,IF(F7<>"",42.5+0.927*((F7-40)/0.95),IF(G7="","",42.5+0.927*((G7-260)/1.14)))) ->  | P9: =IF(E7<>"",42.5+0.927*E7,IF(F7<>"",42.5+0.927*((F7-40)/0.95),IF(G7="","",42.5+0.927*((G7-260)/1.14)))) ->  | Q9: =IF(E7<>"",96.8+0.852*E7,IF(F7<>"",96.8+0.852*((F7-40)/0.95),IF(G7="","",96.8+0.852*((G7-260)/1.14)))) -> 
J10: dMO | K10: =IF(B7>21,6+0.92*H7,6+0.92*H7+R10) -> 0.75 | L10: =K10 -> 0.75 | M10: =4+0.92*H7 -> 4 | N10: =5+0.888*H7 -> 5 | O10: =4.8+0.867*H7 -> 4.8 | P10: =O10 -> 4.8 | Q10: =IF(H7>65,15+0.695*H7,3.8+0.867*H7) -> 3.8 | R10: =(B7-21)*0.25 -> -5.25
B11: MS % | C11: Cendres g/kg MS | D11: MNT g/kg MS | E11: FB g/kg MS | F11: ADF g/kg MS | G11: NDF g/kg MS | H11: dMO % | I11: MSVIm | J11: I_MS | K11: =IF(B7>21,25.4+0.416*B7,25.4+0.416*B7+R11) -> 24.86 | L11: =27.9+0.416*B7 -> 27.9 | M11: =-18+B7 -> -18 | N11: =19+0.498*B7 -> 19 | O11: =12.5+0.69*B7 -> 12.5 | P11: =8.5+0.69*B7 -> 8.5 | Q11: =4+0.69*B7 -> 4 | R11: -0.54
A12: Alfals | J12: Cendres | K12: =-37.4+1.07*C12+1.5*B12 -> -37.4 | L12: =K12 -> -37.4 | M12: =C12 -> 0 | N12: =4.1+0.888*C12 -> 4.1 | O12: =14.4+0.809*C12 -> 14.4 | P12: =2.4+0.809*C12 -> 2.4 | Q12: =0.4+0.809*C12 -> 0.4
J13: MNT | K13: =28.4+0.72*D12+0.827*B12 -> 28.4 | L13: =K13 -> 28.4 | M13: =D12 -> 0 | N13: =10+0.874*D12 -> 10 | O13: =87.4+0.472*D12 -> 87.4 | P13: =83.4+0.472*D12 -> 83.4 | Q13: =78.4+0.472*D12 -> 78.4
J14: FB | K14: =105+0.13*E12 -> 105 | L14: =K14 -> 105 | M14: =112+0.657*E12 -> 112 | N14: =140+0.651*E12 -> 140 | O14: =127+0.67*E12 -> 127 | P14: =150+0.67*E12 -> 150 | Q14: =193+0.67*E12 -> 193
J15: dMO | K15: =IF(B12>21,5+0.92*H12,5+0.92*H12+R15) -> -0.25 | L15: =K15 -> -0.25 | M15: =3+0.92*H12 -> 3 | N15: =12.5+0.743*H12 -> 12.5 | O15: =18.1+0.659*H12 -> 18.1 | P15: =17+0.659*H12 -> 17 | Q15: =12.1+0.659*H12 -> 12.1 | R15: =(B12-21)*0.25 -> -5.25
B16: MS % | C16: Cendres g/kg MS | D16: MNT g/kg MS | E16: FB g/kg MS | F16: ADF g/kg MS | G16: NDF g/kg MS | H16: dMO % | I16: MSVIm | J16: I_MS | K16: =IF(B12>21,6.1+0.76*B12,6.1+0.76*B12+R16) -> 5.84 | L16: =6.5+0.8*B12 -> 6.5 | M16: =0.85*B12 -> 0 | N16: =25.7+0.497*B12 -> 25.7 | O16: =34.4+0.42*B12 -> 34.4 | P16: =30.4+0.42*B12 -> 30.4 | Q16: =25.4+0.42*B12 -> 25.4 | R16: -0.26
A17: Trèvol violeta | J17: Cendres | K17: =-37.4+1.07*C17+1.5*B17 -> -37.4 | L17: =K17 -> -37.4 | N17: =4.1+0.88*C17 -> 4.1 | O17: =-12+C17 -> -12 | P17: =-3+C17 -> -3
J18: MNT | K18: =67.1+0.51*D17+0.864*B17 -> 67.1 | L18: =K18 -> 67.1 | N18: =10+0.874*D17 -> 10 | O18: =-16+D17 -> -16 | P18: =-13+C17 -> -13
J19: FB | K19: =IF(E17<>"",92.2+0.83*E17-1.96*B17,IF(F17<>"",92.2+0.83*((F17-40)/0.95)-1.96*B17,IF(G17="","",92.2+0.83*((G17-260)/1.14)-1.96*B17))) ->  | L19: =K19 ->  | N19: =IF(E17<>"",140+0.651*E17,IF(F17<>"",140+0.651*((F17-40)/0.95),IF(G17="","",140+0.651*((G17-260)/1.14)))) ->  | O19: =IF(E17<>"",38+E17,IF(F17<>"",38+((F17-40)/0.95),IF(G17="","",38+((G17-260)/1.14)))) ->  | P19: =IF(E17<>"",48+E17,IF(F17<>"",48+((F17-40)/0.95),IF(G17="","",48+((G17-260)/1.14)))) -> 
J20: dMO | K20: =IF(B17<21,3+0.92*H17,0.92*H17+R20) -> 3 | L20: =K20 -> 3 | N20: =12.5+0.743*H17 -> 12.5 | O20: =16.9+0.659*H17 -> 16.9 | P20: =29.7+0.415*H17 -> 29.7 | R20: =(B17-21)*0.25 -> -5.25
B21: MS % | C21: Cendres g/kg MS | D21: MNT g/kg MS | E21: FB g/kg MS | F21: ADF g/kg MS | G21: NDF g/kg MS | H21: dMO % | I21: MSVIm | J21: I_MS | K21: =IF(B17>21,6.1+0.76*B17,6.1+0.76*B17+R21) -> 6.9 | L21: =6.5+0.8*B17 -> 6.5 | N21: =25.7+0.497*B17 -> 25.7 | O21: =-3.5+0.96*B17 -> -3.5 | P21: =-3.5+0.96*B17 -> -3.5 | R21: 0.8
A22: Blat de moro | J22: Cendres | K22: =1.008*C22 -> 0
J23: MNT | K23: =1.063*D22 -> 0
J24: FB | K24: =IF(E22<>"",1.036*E22,IF(F22<>"",1.036*((F22-40)/0.95),IF(G22="","",1.036*((G22-260)/1.14)))) -> 
J25: dMO | K25: =H22 -> 0
J26: I_MS | K26: =IF(B22>21,,1.014*B22) -> 0 | R26: =1.014*B22 -> 0

Sheet Base_Rac (hidden)
A1: Base de racions | O1: CÀLCULS PER OBTENIR UN CONCENTRAT ADAPTAT ALS FARRATGES I A LA PRODUCCIÓ
A2: ='III_Ració calculada'!A1 -> 1.-Terneros Engorde (finalización) gran formato tardíos (Charolés, p.e); Peso inicio 300-Peso final 800 | B2: ='III_Ració calculada'!B1 -> Peso inicio: | C2: ='III_Ració calculada'!B2 -> 320 | D2: ='III_Ració calculada'!D2:E2 -> Ganancia prevista kg/día: | E2: ='III_Ració calculada'!D1 -> Días racionamiento:
A3: =TODAY() -> 2026-07-08 | B3: ='III_Ració calculada'!C1 -> Peso final: | C3: ='III_Ració calculada'!C2 -> 745 | D3: ='III_Ració calculada'!F2 -> 1.23 | E3: ='III_Ració calculada'!F1 -> 345.5284553
A4: ='III_Ració calculada'!A4 -> Ingredientes que entran en la ración | B4: ='III_Ració calculada'!C4 -> kg/bovino y día | C4: ='III_Ració calculada'!E4 -> kg MS | D4: Cost ct€ | E4: ='III_Ració calculada'!F20 -> 63.78265016
A5: ='III_Ració calculada'!A5 -> ENSILADO Maíz Lechoso | B5: ='III_Ració calculada'!C5 -> 16.59464117 | C5: ='III_Ració calculada'!E5 -> 4.148660292 | D5: dMO | E5: ='III_Ració calculada'!B32 -> 0.7114528928
A6: ='III_Ració calculada'!A6 -> Paja Cebada | B6: ='III_Ració calculada'!C6 -> 1.323308729e-06 | C6: ='III_Ració calculada'!E6 -> 1.164511681e-06 | D6: Ef proteica | E6: ='III_Ració calculada'!B34 -> 0.765196097
A7: ='III_Ració calculada'!A7 ->  | B7: ='III_Ració calculada'!C7 ->  | C7: ='III_Ració calculada'!E7 ->  | D7: ='III_Ració calculada'!L4 -> 0.8581086557 | E7: ='III_Ració calculada'!M4 -> UEB/kg MS
A8: ='III_Ració calculada'!A8 ->  | B8: ='III_Ració calculada'!C8 ->  | C8: ='III_Ració calculada'!E8 ->  | D8: ='III_Ració calculada'!L5 -> 0.9888490347 | E8: ='III_Ració calculada'!M5 -> UFV/kg MS
A9: ='III_Ració calculada'!A9 ->  | B9: ='III_Ració calculada'!C9 ->  | C9: ='III_Ració calculada'!E9 ->  | D9: ='III_Ració calculada'!L6 -> 557.7488337 | E9: g PDI/kg MS
A10: ='III_Ració calculada'!A10 -> Maíz grano | B10: ='III_Ració calculada'!C10 -> 1.640379657 | C10: ='III_Ració calculada'!E10 -> 1.410726505 | D10: ='III_Ració calculada'!L7 -> 1.990965793 | E10: g BPR/kg MD
A11: ='III_Ració calculada'!A11 -> Soja torta 44 | B11: ='III_Ració calculada'!C11 -> 0.9529675043 | C11: ='III_Ració calculada'!E11 -> 0.8309876638 | D11: ='III_Ració calculada'!L9 -> 3.44971773 | E11: g Ca/kg MS
A12: ='III_Ració calculada'!A12 ->  | B12: ='III_Ració calculada'!C12 ->  | C12: ='III_Ració calculada'!E12 ->  | D12: ='III_Ració calculada'!L10 -> 2.038970265 | E12: g P/kg MS
A13: ='III_Ració calculada'!A13 ->  | B13: ='III_Ració calculada'!C13 ->  | C13: ='III_Ració calculada'!E13 ->  | D13: ='III_Ració calculada'!B30 -> 123.1004803 | E13: g midó/kg MS
A14: ='III_Ració calculada'!A14 ->  | B14: ='III_Ració calculada'!C14 ->  | C14: ='III_Ració calculada'!E14 ->  | D14: prueba terneros
A15: ='III_Ració calculada'!A15 ->  | B15: ='III_Ració calculada'!C15 ->  | C15: ='III_Ració calculada'!E15 -> 
A16: ='III_Ració calculada'!A16 ->  | B16: ='III_Ració calculada'!C16 ->  | C16: ='III_Ració calculada'!E16 -> 
A17: ='III_Ració calculada'!A17 ->  | B17: ='III_Ració calculada'!C17 ->  | C17: ='III_Ració calculada'!E17 -> 
A18: ='III_Ració calculada'!A18 ->  | B18: ='III_Ració calculada'!C18 ->  | C18: ='III_Ració calculada'!E18 -> 
A19: ='III_Ració calculada'!A19 ->  | B19: ='III_Ració calculada'!C19 ->  | C19: ='III_Ració calculada'!E19 -> 
A20: ='III_Ració calculada'!A20 -> Totals | B20: ='III_Ració calculada'!C20 -> 19.18798965 | C20: ='III_Ració calculada'!E20 -> 6.390375625
A21: % MS farratgera | B21: ='III_Ració calculada'!D21 -> 63.78265016
A22: % MS concentrats | B22: ='III_Ració calculada'!D22 -> 36.21734984
A23: 10.-Terneras tardías Crecimiento de 8 a 28 meses; Peso inicio 300-Peso final 600 | B23: Peso inicio: | C23: 320 | D23: Ganancia prevista kg/día: | E23: Días racionamiento:
A24: 2026-07-08 | B24: Peso final: | C24: 596 | D24: 0.8 | E24: 345
A25: Ingredientes que entran en la ración | B25: kg/bovino y día | C25: kg MS | D25: Cost ct€ | E25: 74.57988204
A26: ENSILADO Maíz Lechoso | B26: 14.18895081 | C26: 3.547237703 | D26: dMO | E26: 0.6747076869
A27: Paja Cebada | B27: 1.240092384 | C27: 1.091281298 | D27: Ef proteica | E27: 0.7292774681
D28: 0.9996068173 | E28: UEB/kg MS
D29: 0.9251899104 | E29: UFV/kg MS
D30: 495.5450536 | E30: g PDI/kg MS
A31: Maíz grano | B31: 0.7614641639 | C31: 0.654859181 | D31: 1.999913621 | E31: g BPR/kg MD
A32: Soja torta 44 | B32: 0.9852067963 | C32: 0.8591003264 | D32: 2.684882276 | E32: g Ca/kg MS
D33: 1.920524692 | E33: g P/kg MS
D34: 110.0753191 | E34: g midó/kg MS
D35: prueba terneros
A41: Totals | B41: 17.17571416 | C41: 6.152478508
A42: % MS farratgera | B42: 74.57988204
A43: % MS concentrats | B43: 25.42011796
A44: 10.-Terneras tardías Crecimiento de 8 a 28 meses; Peso inicio 300-Peso final 600 | B44: Peso inicio: | C44: 320 | D44: Ganancia prevista kg/día: | E44: Días racionamiento:
A45: 2026-07-08 | B45: Peso final: | C45: 596 | D45: 0.8 | E45: 345
A46: Ingredientes que entran en la ración | B46: kg/bovino y día | C46: kg MS | D46: Cost ct€ | E46: 74.57988204
A47: ENSILADO Maíz Lechoso | B47: 14.18895081 | C47: 3.547237703 | D47: dMO | E47: 0.6747076869
A48: Paja Cebada | B48: 1.240092384 | C48: 1.091281298 | D48: Ef proteica | E48: 0.7292774681
D49: 0.9996068173 | E49: UEB/kg MS
D50: 0.9251899104 | E50: UFV/kg MS
D51: 495.5450536 | E51: g PDI/kg MS
A52: Maíz grano | B52: 0.7614641639 | C52: 0.654859181 | D52: 1.999913621 | E52: g BPR/kg MD
A53: Soja torta 44 | B53: 0.9852067963 | C53: 0.8591003264 | D53: 2.684882276 | E53: g Ca/kg MS
D54: 1.920524692 | E54: g P/kg MS
D55: 110.0753191 | E55: g midó/kg MS
D56: Prueba terneros
A62: Totals | B62: 17.17571416 | C62: 6.152478508
A63: % MS farratgera | B63: 74.57988204
A64: % MS concentrats | B64: 25.42011796
A65: 3.-Vedells Engreix (finalització) precocitat mitjana (vaques rústiques) | B65: Pes inici: | C65: 262 | D65: Guany previst kg/dia: | E65: Dies racionament:
A66: 2026-06-15 | B66: Pes final: | C66: 620 | D66: 1.4 | E66: 255.7142857
A67: Ingredients que entren a la ració | B67: kg/boví i dia | C67: kg MS | D67: Cost ct€ | E67: 62.68050186
A68: ENSITJAT Blat de moro Pastós-vidriós | B68: 12.43169686 | C68: 4.040301479 | D68: dMO | E68: 0.6488792592
D69: Ef proteica | E69: 0.6555315919
D70: 0.7764689076 | E70: UEB/kg MS
D71: 0.8497249105 | E71: UFV/kg MS
D72: 641.1790694 | E72: g PDI/kg MS
D73: 1.999999676 | E73: g BPR/kg MD
A74: Soja tortó 44 | B74: 0.1760049123 | C74: 0.1534762836 | D74: 3.152979871 | E74: g Ca/kg MS
D75: 2.311401535 | E75: g P/kg MS
A76: Alfals deshidratat i aglomerats | B76: 0.3148003019 | C76: 0.2839498723 | D76: 196.4972404 | E76: g midó/kg MS
D77: prova 2
A78: Ordi bagàs cerveseria fresc | B78: 9.307467768 | C78: 1.908030893
A83: Totals | B83: 22.22996984 | C83: 6.385758528
A84: % MS farratgera | B84: 62.68050186
A85: % MS concentrats | B85: 37.31949814

Sheet Guia1 (hidden)

Sheet Guia2 (hidden)

Sheet Guia3 (hidden)

Sheet Guia4 (hidden)

Sheet Concentrat (hidden)
A1: 0 | C1: MS % | D1: MNT | E1: EE | F1: EE | G1: FB | H1: NDF | I1: ADF | J1: EE | K1: FB | L1: NDF | M1: ADF | N1: Lignina | O1: Li | P1: cendres | Q1: Midó | R1: % MO | S1: MO s/total | T1: MNTO | U1: EEO | V1: FBO | W1: NDFO | X1: ADFO | Y1: LigninaO | Z1: dCs | AA1: Equació regressió dMO | AB1: dMO (pepsina-cel·lulasa) | AC1: dMO final | AD1: dE taules | AE1: dE | AF1: MOD | AG1: Degradabilitat DT_N (proteïnes) teòrica | AH1: Digestibilitat dr_N (proteïnes) real | AI1: Degradabilitat DE1 (proteïnes) enzimàtica | AJ1: DT6_N | AK1: Degradabilitat DT_N (proteïnes) | AL1: MOF | AM1: PDIM | AN1: c constant per EB | AO1: EB | AP1: ED | AQ1: Emetà | AR1: Eorina | AS1: EM | AT1: q | AU1: km | AV1: kf | AW1: kmf | AX1: kls | AY1: ENl | AZ1: ENmant i carn | BA1: DT_MS | BB1: Nom | BC1: MS | BD1: UFL | BE1: UFV | BF1: MNT_PB | BG1: PDIA | BH1: PDI | BI1: BPR | BJ1: UEL | BK1: UEB | BL1: UEM | BM1: NI ref | BN1: dMO | BO1: MOD_TDN | BP1: EE | BQ1: FB | BR1: NDF | BS1: ADF | BT1: Lignina | BU1: cendres | BV1: Ca | BW1: P | BX1: Mg | BY1: Cl | BZ1: K | CA1: Na | CB1: S | CC1: Co | CD1: Cu | CE1: Mo | CF1: Midó | CG1: Fe | CH1: Mn | CI1: Se | CJ1: Zn | CK1: Vit A | CL1: Vit D | CM1: Vit E | CN1: AG | CO1: DT_N | CP1: dr | CQ1: MOF | CR1: Euros/kg
A2: =A1+1 -> 1 | B2: --
A3: =A2+1 -> 2 | B3: Alfals deshidratat i aglomerats | C3: =IF(Valoració!$A$11=$A3,IF(Valoració!C$11>0,Valoració!C$11,""),"") ->  | D3: =IF(Valoració!$A$11=$A3,IF(Valoració!D$11>0,Valoració!D$11,""),"") ->  | E3: =IF(Valoració!$A$11=$A3,IF(Valoració!E$11>0,Valoració!E$11,""),"") ->  | G3: =IF(Valoració!$A$11=$A3,IF(Valoració!F$11>0,Valoració!F$11,""),"") ->  | H3: =IF(Valoració!$A$11=$A3,IF(Valoració!G$11>0,Valoració!G$11,""),"") ->  | I3: =IF(Valoració!$A$11=$A3,IF(Valoració!H$11>0,Valoració!H$11,""),"") ->  | J3: =IF(E3="",IF(F3="","Falta valor EE",F3*10),E3*10) -> Falta valor EE | K3: =IF(G3="",IF(H3="",IF(I3="","Falta valor fibra",-209+1.572*I3*10),(H3*10-320)/0.645),G3*10) -> Falta valor fibra | L3: =IF(H3="",IF(K3="Falta valor fibra",K3,(260+1.14*K3)),H3*10) -> Falta valor fibra | M3: =IF(I3="",IF(K3="Falta valor fibra",K3,40+0.95*K3),I3*10) -> Falta valor fibra | N3: =IF(Valoració!$A$11=$A3,IF(Valoració!I$11>0,Valoració!I$11,""),"") ->  | O3: =IF(N3="",IF(K3="Falta valor fibra",K3,0.1649*K3^1.1136),N3*10) -> Falta valor fibra | P3: =IF(Valoració!$A$11=$A3,IF(Valoració!J$11>0,Valoració!J$11,""),"") ->  | Q3: =IF(Valoració!$A$11=$A3,IF(Valoració!K$11>0,Valoració!K$11,""),"") ->  | R3: =IF(P3="","Falta valor cendres",100-P3) -> Falta valor cendres | S3: =IF(R3="Falta valor cendres",R3,R3*C3/100) -> Falta valor cendres | T3: =IF(D3="","Falta valor MNT",IF(P3="","Falta valor cendres",C3*D3*10/S3)) -> Falta valor MNT | U3: =IF(J3="Falta valor EE",J3,IF(P3="","Falta valor cendres",J3*C3/S3)) -> Falta valor EE | V3: =IF(K3="Falta valor fibra",K3,IF(P3="","Falta valor cendres",K3*C3/S3)) -> Falta valor fibra | W3: =IF(L3="Falta valor fibra",L3,IF(P3="","Falta valor cendres",L3*C3/S3)) -> Falta valor fibra | X3: =IF(M3="Falta valor fibra",M3,IF(P3="","Falta valor cendres",M3*C3/S3)) -> Falta valor fibra | Y3: =IF(O3="Falta valor fibra",O3,IF(P3="","Falta valor cendres",O3*C3/S3)) -> Falta valor fibra | Z3: =IF(Valoració!$A$11=$A3,IF(Valoració!M$11>0,Valoració!M$11,""),"") ->  | AA3: =IF(M3="Falta valor fibra",M3,(98.5-0.114*M3)/100) -> Falta valor fibra | AB3: =IF(Z3="",Z3,(-2.36+0.896*Z3*100)/100) ->  | AC3: =IF(Z3="",IF(K3="Falta valor fibra",K3,AA3),AB3) -> Falta valor fibra | AE3: =IF(AD3="",IF(AC3="Falta valor fibra", AC3,IF(D3="","Falta valor MNT",IF(J3="Falta valor EE",J3,IF(P3="","Falta valor cendres",(-3+1.003*AC3*100)/100)))),AD3) -> Falta valor fibra | AF3: =IF(S3="Falta valor cendres",S3,IF($AC3="Falta valor fibra",AC3,IF(AC3="Falta valor MNT", AC3,$R3*AC3*10))) -> Falta valor cendres | AG3: 0.6 | AH3: =IF(D3="","Falta valor MNT",IF(O3="Falta valor fibra",O3,IF(AF3="Falta valor fibra",AF3,IF(P3="","Falta valor cendres",(88.3+0.0371*D3*10-3.7*(10^-5)*(D3*10)^2-0.107*O3-0.0313*(1000-AF3))/100)))) -> Falta valor MNT | AI3: =IF(Valoració!$A$11=$A3,IF(Valoració!L$11>0,Valoració!L$11,""),"") ->  | AJ3: =IF(AI3="",AI3,(47.9+0.36*AI3*100+2.6)/100) ->  | AK3: =IF(AJ3="",IF(AG3="","Falta degradabilitat proteïnes",AG3),(6.92+0.945*AJ3*100-0.000811*(AJ3^2))/100) -> 0.6 | AL3: =IF(AF3="Falta valor cendres",AF3,IF(D3="","Falta valor MNT",IF(AK3="Falta degradabilitat proteïnes",AK3,IF(J3="Falta valor EE",J3,(AF3-D3*10*(1-AK3)-J3))))) -> Falta valor cendres | AM3: =IF(AL3="Falta valor cendres",AL3,IF(AL3="Falta valor MNT",AL3,IF(AL3="Falta degradabilitat proteïnes",AL3,IF(AL3="Falta valor EE",AL3,(41.67+AL3*71.9*10^-3)*0.8*0.8)))) -> Falta valor cendres | AO3: =IF(T3="Falta valor MNT",T3,IF(T3="Falta valor cendres",T3,(4618+2.051*T3)*S3/100)) -> Falta valor MNT | AP3: =IF(AO3="Falta valor MNT",AO3,IF(AO3="Falta valor fibra",AO3,IF(AO3="Falta valor cendres",AO3,IF(AO3="Falta valor EE",AO3,AO3*AE3)))) -> Falta valor MNT | AQ3: =IF(AF3="Falta valor fibra",AF3,IF(AF3="Falta valor cendres",AF3,IF(AF3="Falta valor MNT",AF3,((45.42-6.66*2+0.75*2^2)*AF3*12.5*(10^-3))))) -> Falta valor cendres | AR3: =IF(AO3="Falta valor MNT",AO3,IF(AO3="Falta valor EE",AO3,IF(AO3="Falta valor fibra",AO3,IF(AO3="Falta valor cendres",AO3,(2.9+0.017*D3*10-0.47*2)*AO3*0.01)))) -> Falta valor MNT | AS3: =IF(AP3="Falta valor MNT",AP3,IF(AP3="Falta valor fibra",AP3,IF(AP3="Falta valor cendres",AP3,IF(AP3="Falta valor EE",AP3,AP3-AQ3-AR3)))) -> Falta valor MNT | AT3: =IF(AS3="Falta valor MNT",AS3,IF(AS3="Falta valor fibra",AS3,IF(AS3="Falta valor cendres",AS3,IF(AS3="Falta valor EE",AS3,AS3/AO3)))) -> Falta valor MNT | AU3: =IF(AT3="Falta valor MNT",AT3,IF(AT3="Falta valor fibra",AT3,IF(AT3="Falta valor cendres",AT3,IF(AT3="Falta valor EE",AT3,0.287*AT3+0.554)))) -> Falta valor MNT | AV3: =IF(AT3="Falta valor MNT",AT3,IF(AT3="Falta valor fibra",AT3,IF(AT3="Falta valor cendres",AT3,IF(AT3="Falta valor EE",AT3,0.78*AT3+0.006)))) -> Falta valor MNT | AW3: =IF(AU3="Falta valor MNT",AU3,IF(AU3="Falta valor fibra",AU3,IF(AU3="Falta valor cendres",AU3,IF(AU3="Falta valor EE",AU3,(AU3*AV3*1.5)/(AV3+0.5*AU3))))) -> Falta valor MNT | AX3: =IF(AT3="Falta valor MNT",AT3,IF(AT3="Falta valor fibra",AT3,IF(AT3="Falta valor cendres",AT3,IF(AT3="Falta valor EE",AT3,0.65+0.247*(AT3-0.63))))) -> Falta valor MNT | AY3: =IF(AS3="Falta valor MNT",AS3,IF(AS3="Falta valor fibra",AS3,IF(AS3="Falta valor cendres",AS3,IF(AS3="Falta valor EE",AS3,AS3*AX3)))) -> Falta valor MNT | AZ3: =IF(AS3="Falta valor MNT",AS3,IF(AS3="Falta valor fibra",AS3,IF(AS3="Falta valor cendres",AS3,IF(AS3="Falta valor EE",AS3,AS3*AW3)))) -> Falta valor MNT | BA3: 0.52 | BB3: =B3 -> Alfals deshidratat i aglomerats | BC3: =IF(C3="","",C3) ->  | BD3: =IF(AY3="Falta valor MNT",AY3,IF(AY3="Falta valor fibra",AY3,IF(AY3="Falta valor cendres",AY3,IF(AY3="Falta valor EE",AY3,AY3/1760)))) -> Falta valor MNT | BE3: =IF(AZ3="Falta valor MNT",AZ3,IF(AZ3="Falta valor fibra",AZ3,IF(AZ3="Falta valor cendres",AZ3,IF(AZ3="Falta valor EE",AZ3,AZ3/1760)))) -> Falta valor MNT | BF3: =IF(D3="","Falta valor MNT",D3*10) -> Falta valor MNT | BG3: =IF(BF3="Falta valor MNT",BF3,IF(AK3="Falta degradabilitat proteïnes",AK3,IF(AH3="Falta valor fibra",AH3,IF(AH3="Falta valor cendres",AH3,BF3*(1-AK3)*AH3)))) -> Falta valor MNT | BH3: =IF(BG3="Falta valor MNT",BG3,IF(BG3="Falta degradabilitat proteïnes",BG3,IF(BG3="Falta valor fibra",BG3,IF(BG3="Falta valor cendres",BG3,BG3+AM3)))) -> Falta valor MNT | BI3: =IF(D3="","Falta valor MNT",IF(J3="Falta valor EE",J3,IF(P3="","Falta valor cendres",IF(AK3="Falta degradabilitat proteïnes",AK3,IF(AK3="Revisar components",AK3,BF3*AK3-(41.67+AL3*71.9*(10^-3))-14.2))))) -> Falta valor MNT | BJ3: =IF(BA3="",IF(Q3="",IF(M3="Falta valor fibra",M3,0.2127+0.0006289*M3),0.222-0.000082*Q3*10+0.000236*M3+0.328*(1-AC3)),0.8105-0.0083*BA3*100) -> 0.3789 | BM3: 2 | BN3: =AC3 -> Falta valor fibra | BO3: =AF3 -> Falta valor cendres | BP3: =J3 -> Falta valor EE | BQ3: =K3 -> Falta valor fibra | BR3: =L3 -> Falta valor fibra | BS3: =M3 -> Falta valor fibra | BT3: =O3 -> Falta valor fibra | BU3: =IF(P3="","Falta valor cendres",P3*10) -> Falta valor cendres | BV3: 6.63 | BW3: 1.89 | BX3: 2 | CF3: =IF(Q3="","",10*Q3) ->  | CN3: =BP3*0.5 ->  | CO3: =AK3 -> 0.6 | CP3: =AH3 -> Falta valor MNT | CQ3: =AL3 -> Falta valor cendres
A4: 3 | B4: Aliments concentrats COMPOSTOS | C4: =IF(Valoració!$A$11=$A4,IF(Valoració!C$11>0,Valoració!C$11,""),"") ->  | D4: =IF(Valoració!$A$11=$A4,IF(Valoració!D$11>0,Valoració!D$11,""),"") ->  | E4: =IF(Valoració!$A$11=$A4,IF(Valoració!E$11>0,Valoració!E$11,""),"") ->  | G4: =IF(Valoració!$A$11=$A4,IF(Valoració!F$11>0,Valoració!F$11,""),"") ->  | H4: =IF(Valoració!$A$11=$A4,IF(Valoració!G$11>0,Valoració!G$11,""),"") ->  | I4: =IF(Valoració!$A$11=$A4,IF(Valoració!H$11>0,Valoració!H$11,""),"") ->  | J4: Falta valor EE | K4: =IF(G4="",IF(H4="","Falta valor fibra",0.4793*H4*10-20.98),G4*10) -> Falta valor fibra | L4: =IF(H4="",IF(G4="","Falta valor fibra",1.4419*G4*10+131.71),H4*10) -> Falta valor fibra | M4: =IF(I4="",IF(G4="","Falta valor fibra",1.2552*G4*10+10.808),I4*10) -> Falta valor fibra | N4: =IF(Valoració!$A$11=$A4,IF(Valoració!I$11>0,Valoració!I$11,""),"") ->  | O4: Falta valor fibra | P4: =IF(Valoració!$A$11=$A4,IF(Valoració!J$11>0,Valoració!J$11,""),"") ->  | Q4: =IF(Valoració!$A$11=$A4,IF(Valoració!K$11>0,Valoració!K$11,""),"") ->  | R4: Falta valor cendres | S4: Falta valor cendres | T4: Falta valor MNT | U4: Falta valor EE | V4: Falta valor fibra | W4: Falta valor fibra | X4: Falta valor fibra | Y4: Falta valor fibra | Z4: =IF(Valoració!$A$11=$A4,IF(Valoració!M$11>0,Valoració!M$11,""),"") ->  | AA4: =IF(O4="Falta valor fibra",O4,IF(P4="","Falta valor cendres",(86.53-0.258*Y4)/100)) -> Falta valor fibra | AB4: =IF(Z4="",Z4,IF(P4="","Falta valor cendres",(25.13+0.648*Z4*10000/R4)/100)) ->  | AC4: Falta valor fibra | AE4: =IF(AD4="",IF(AC4="Falta valor fibra", AC4,IF(D4="","Falta valor MNT",IF(J4="Falta valor EE",J4,IF(P4="","Falta valor cendres",(-3.94+AC4*100+0.0104*D4*10+0.0149*J4+0.0022*L4-0.0244*P4*10)/100)))),AD4) -> Falta valor fibra | AF4: Falta valor cendres | AG4: =IF(Valoració!$A$11=$A4,IF(Valoració!N$11>0,Valoració!N$11,""),"") ->  | AH4: Falta valor MNT | AI4: =IF(Valoració!$A$11=$A4,IF(Valoració!L$11>0,Valoració!L$11,""),"") ->  | AJ4: =IF(AI4="",AI4,(34.4+0.87*AI4*100)/100) ->  | AK4: Falta degradabilitat proteïnes | AL4: =IF(AF4="Falta valor cendres",AF4,IF(D4="","Falta valor MNT",IF(AK4="Falta degradabilitat proteïnes",AK4,IF(J4="Falta valor EE",J4,IF(AK4="Revisar components",AK4,(AF4-D4*10*(1-AK4)-J4)))))) -> Falta valor cendres | AM4: =IF(AL4="Falta valor cendres",AL4,IF(AL4="Falta valor MNT",AL4,IF(AL4="Falta degradabilitat proteïnes",AL4,IF(AL4="Falta valor EE",AL4,IF(AL4="Revisar components",AL4,(41.67+AL4*71.9*10^-3)*0.8*0.8))))) -> Falta valor cendres | AO4: =IF(T4="Falta valor MNT",T4,IF(U4="Falta valor EE",U4,IF(S4="Falta valor cendres",S4,(5.7*T4+9.57*U4+4.24*(R4*10-T4-U4))*S4/100))) -> Falta valor MNT | AP4: Falta valor MNT | AQ4: Falta valor cendres | AR4: Falta valor MNT | AS4: Falta valor MNT | AT4: Falta valor MNT | AU4: Falta valor MNT | AV4: Falta valor MNT | AW4: Falta valor MNT | AX4: Falta valor MNT | AY4: Falta valor MNT | AZ4: Falta valor MNT | BB4: Aliments concentrats COMPOSTOS | BD4: Falta valor MNT | BE4: Falta valor MNT | BF4: Falta valor MNT | BG4: Falta valor MNT | BH4: =IF(BG4="Falta valor MNT",BG4,IF(BG4="Falta degradabilitat proteïnes",BG4,IF(BG4="Falta valor fibra",BG4,IF(BG4="Falta valor cendres",BG4,IF(BG4="Revisar components",BG4,BG4+AM4))))) -> Falta valor MNT | BI4: Falta valor MNT | BJ4: Falta valor fibra | BM4: 2 | BN4: Falta valor fibra | BO4: Falta valor cendres | BP4: Falta valor EE | BQ4: Falta valor fibra | BR4: Falta valor fibra | BS4: Falta valor fibra | BT4: Falta valor fibra | BU4: Falta valor cendres | BV4: 0.67375 | BW4: 2.86525 | CF4: =IF(Q4="","",10*Q4) ->  | CO4: Falta degradabilitat proteïnes | CP4: Falta valor MNT | CQ4: Falta valor cendres
A5: 4 | B5: Altres cereals i derivats | C5: =IF(Valoració!$A$11=$A5,IF(Valoració!C$11>0,Valoració!C$11,""),"") ->  | D5: =IF(Valoració!$A$11=$A5,IF(Valoració!D$11>0,Valoració!D$11,""),"") ->  | E5: =IF(Valoració!$A$11=$A5,IF(Valoració!E$11>0,Valoració!E$11,""),"") ->  | G5: =IF(Valoració!$A$11=$A5,IF(Valoració!F$11>0,Valoració!F$11,""),"") ->  | H5: =IF(Valoració!$A$11=$A5,IF(Valoració!G$11>0,Valoració!G$11,""),"") ->  | I5: =IF(Valoració!$A$11=$A5,IF(Valoració!H$11>0,Valoració!H$11,""),"") ->  | J5: Falta valor EE | K5: Falta valor fibra | L5: Falta valor fibra | M5: Falta valor fibra | N5: =IF(Valoració!$A$11=$A5,IF(Valoració!I$11>0,Valoració!I$11,""),"") ->  | O5: Falta valor fibra | P5: =IF(Valoració!$A$11=$A5,IF(Valoració!J$11>0,Valoració!J$11,""),"") ->  | Q5: =IF(Valoració!$A$11=$A5,IF(Valoració!K$11>0,Valoració!K$11,""),"") ->  | R5: Falta valor cendres | S5: Falta valor cendres | T5: Falta valor MNT | U5: Falta valor EE | V5: Falta valor fibra | W5: Falta valor fibra | X5: Falta valor fibra | Y5: Falta valor fibra | Z5: =IF(Valoració!$A$11=$A5,IF(Valoració!M$11>0,Valoració!M$11,""),"") ->  | AA5: =IF(K5="Falta valor fibra",K5,IF(D5="","Falta valor MNT",IF(P5="","Falta valor cendres",(92.2-0.149*K5+0.0074*D5*10-0.05*P5*10)/100))) -> Falta valor fibra | AB5: =IF(Z5="",Z5,IF(P5="","Falta valor cendres",(21.23+0.699*Z5*10000/R5)/100)) ->  | AC5: Falta valor fibra | AE5: Falta valor fibra | AF5: Falta valor cendres | AG5: 0.66 | AH5: Falta valor MNT | AI5: =IF(Valoració!$A$11=$A5,IF(Valoració!L$11>0,Valoració!L$11,""),"") ->  | AJ5: =IF(AI5="",AI5,(47.9+0.36*AI5*100+11)/100) ->  | AK5: 0.66 | AL5: =IF(AF5="Falta valor cendres",AF5,IF(D5="","Falta valor MNT",IF(AK5="Falta degradabilitat proteïnes",AK5,IF(J5="Falta valor EE",J5,(AF5-D5*10*(1-AK5)-J5))))) -> Falta valor cendres | AM5: =IF(AL5="Falta valor cendres",AL5,IF(AL5="Falta valor MNT",AL5,IF(AL5="Falta degradabilitat proteïnes",AL5,IF(AL5="Falta valor EE",AL5,(41.67+AL5*71.9*10^-3)*0.8*0.8)))) -> Falta valor cendres | AO5: =IF(D5="","Falta valor MNT",IF(J5="Falta valor EE",J5,IF(K5="Falta valor fibra",K5,IF(P5="","Falta valor cendres",4134+1.473*D5*10+5.239*J5+0.925*K5-4.46*P5*10+AN5)))) -> Falta valor MNT | AP5: Falta valor MNT | AQ5: Falta valor cendres | AR5: Falta valor MNT | AS5: Falta valor MNT | AT5: Falta valor MNT | AU5: Falta valor MNT | AV5: Falta valor MNT | AW5: Falta valor MNT | AX5: Falta valor MNT | AY5: Falta valor MNT | AZ5: Falta valor MNT | BA5: 0.72 | BB5: Altres cereals i derivats | BD5: Falta valor MNT | BE5: Falta valor MNT | BF5: Falta valor MNT | BG5: Falta valor MNT | BH5: =IF(BG5="Falta valor MNT",BG5,IF(BG5="Falta degradabilitat proteïnes",BG5,IF(BG5="Falta valor fibra",BG5,IF(BG5="Falta valor cendres",BG5,BG5+AM5)))) -> Falta valor MNT | BI5: Falta valor MNT | BJ5: 0.2129 | BM5: 2 | BN5: Falta valor fibra | BO5: Falta valor cendres | BP5: Falta valor EE | BQ5: Falta valor fibra | BR5: Falta valor fibra | BS5: Falta valor fibra | BT5: Falta valor fibra | BU5: Falta valor cendres | CO5: 0.66 | CP5: Falta valor MNT | CQ5: Falta valor cendres
A6: 5 | B6: Altres oleaginoses i derivats | C6: =IF(Valoració!$A$11=$A6,IF(Valoració!C$11>0,Valoració!C$11,""),"") ->  | D6: =IF(Valoració!$A$11=$A6,IF(Valoració!D$11>0,Valoració!D$11,""),"") ->  | E6: =IF(Valoració!$A$11=$A6,IF(Valoració!E$11>0,Valoració!E$11,""),"") ->  | G6: =IF(Valoració!$A$11=$A6,IF(Valoració!F$11>0,Valoració!F$11,""),"") ->  | H6: =IF(Valoració!$A$11=$A6,IF(Valoració!G$11>0,Valoració!G$11,""),"") ->  | I6: =IF(Valoració!$A$11=$A6,IF(Valoració!H$11>0,Valoració!H$11,""),"") ->  | J6: Falta valor EE | K6: Falta valor fibra | L6: Falta valor fibra | M6: Falta valor fibra | N6: =IF(Valoració!$A$11=$A6,IF(Valoració!I$11>0,Valoració!I$11,""),"") ->  | O6: Falta valor fibra | P6: =IF(Valoració!$A$11=$A6,IF(Valoració!J$11>0,Valoració!J$11,""),"") ->  | Q6: =IF(Valoració!$A$11=$A6,IF(Valoració!K$11>0,Valoració!K$11,""),"") ->  | R6: Falta valor cendres | S6: Falta valor cendres | T6: Falta valor MNT | U6: Falta valor EE | V6: Falta valor fibra | W6: Falta valor fibra | X6: Falta valor fibra | Y6: Falta valor fibra | Z6: =IF(Valoració!$A$11=$A6,IF(Valoració!M$11>0,Valoració!M$11,""),"") ->  | AA6: =IF(K6="Falta valor fibra",K6,IF(D6="","Falta valor MNT",IF(P6="","Falta valor cendres",(89.6-0.106*K6+0.0088*D6*10-0.003*P6)/100))) -> Falta valor fibra | AC6: Falta valor fibra | AE6: Falta valor fibra | AF6: Falta valor cendres | AG6: =IF(Valoració!$A$11=$A6,IF(Valoració!N$11>0,Valoració!N$11,""),"") ->  | AH6: Falta valor MNT | AI6: =IF(Valoració!$A$11=$A6,IF(Valoració!L$11>0,Valoració!L$11,""),"") ->  | AJ6: =IF(AI6="",AI6,(21.1+1.48*AI6*100-0.0076*(AI6*100)^2/100)) ->  | AK6: Falta degradabilitat proteïnes | AL6: Falta valor cendres | AM6: Falta valor cendres | AO6: Falta valor MNT | AP6: Falta valor MNT | AQ6: Falta valor cendres | AR6: Falta valor MNT | AS6: Falta valor MNT | AT6: Falta valor MNT | AU6: Falta valor MNT | AV6: Falta valor MNT | AW6: Falta valor MNT | AX6: Falta valor MNT | AY6: Falta valor MNT | AZ6: Falta valor MNT | BB6: Altres oleaginoses i derivats | BD6: Falta valor MNT | BE6: Falta valor MNT | BF6: Falta valor MNT | BG6: Falta valor MNT | BH6: Falta valor MNT | BI6: Falta valor MNT | BJ6: Falta valor fibra | BM6: 2 | BN6: Falta valor fibra | BO6: Falta valor cendres | BP6: Falta valor EE | BQ6: Falta valor fibra | BR6: Falta valor fibra | BS6: Falta valor fibra | BT6: Falta valor fibra | BU6: Falta valor cendres | CO6: Falta degradabilitat proteïnes | CP6: Falta valor MNT | CQ6: Falta valor cendres
A7: 6 | B7: Altres productes (raïm i oliva) | C7: =IF(Valoració!$A$11=$A7,IF(Valoració!C$11>0,Valoració!C$11,""),"") ->  | D7: =IF(Valoració!$A$11=$A7,IF(Valoració!D$11>0,Valoració!D$11,""),"") ->  | E7: =IF(Valoració!$A$11=$A7,IF(Valoració!E$11>0,Valoració!E$11,""),"") ->  | G7: =IF(Valoració!$A$11=$A7,IF(Valoració!F$11>0,Valoració!F$11,""),"") ->  | H7: =IF(Valoració!$A$11=$A7,IF(Valoració!G$11>0,Valoració!G$11,""),"") ->  | I7: =IF(Valoració!$A$11=$A7,IF(Valoració!H$11>0,Valoració!H$11,""),"") ->  | J7: Falta valor EE | K7: Falta valor fibra | L7: Falta valor fibra | M7: Falta valor fibra | N7: =IF(Valoració!$A$11=$A7,IF(Valoració!I$11>0,Valoració!I$11,""),"") ->  | O7: Falta valor fibra | P7: =IF(Valoració!$A$11=$A7,IF(Valoració!J$11>0,Valoració!J$11,""),"") ->  | Q7: =IF(Valoració!$A$11=$A7,IF(Valoració!K$11>0,Valoració!K$11,""),"") ->  | R7: Falta valor cendres | S7: Falta valor cendres | T7: Falta valor MNT | U7: Falta valor EE | V7: Falta valor fibra | W7: Falta valor fibra | X7: Falta valor fibra | Y7: Falta valor fibra | Z7: =IF(Valoració!$A$11=$A7,IF(Valoració!M$11>0,Valoració!M$11,""),"") ->  | AA7: =IF(K7="Falta valor fibra",K7,(63.6-0.089*K7)/100) -> Falta valor fibra | AC7: Falta valor fibra | AE7: Falta valor fibra | AF7: Falta valor cendres | AG7: 0.42 | AH7: Falta valor MNT | AI7: =IF(Valoració!$A$11=$A7,IF(Valoració!L$11>0,Valoració!L$11,""),"") ->  | AJ7: =IF(AI7="",AI7,(21.1+1.48*AI7*100-0.0076*(AI7*100)^2/100)) ->  | AK7: 0.42 | AL7: Falta valor cendres | AM7: Falta valor cendres | AO7: Falta valor MNT | AP7: Falta valor MNT | AQ7: Falta valor cendres | AR7: Falta valor MNT | AS7: Falta valor MNT | AT7: Falta valor MNT | AU7: Falta valor MNT | AV7: Falta valor MNT | AW7: Falta valor MNT | AX7: Falta valor MNT | AY7: Falta valor MNT | AZ7: Falta valor MNT | BA7: 0.27 | BB7: Altres productes (raïm i oliva) | BD7: Falta valor MNT | BE7: Falta valor MNT | BF7: Falta valor MNT | BG7: Falta valor MNT | BH7: Falta valor MNT | BI7: Falta valor MNT | BJ7: 0.5864 | BM7: 2 | BN7: Falta valor fibra | BO7: Falta valor cendres | BP7: Falta valor EE | BQ7: Falta valor fibra | BR7: Falta valor fibra | BS7: Falta valor fibra | BT7: Falta valor fibra | BU7: Falta valor cendres | BV7: 2.2 | BW7: 2.7 | CO7: 0.42 | CP7: Falta valor MNT | CQ7: Falta valor cendres
A8: 7 | B8: Arròs | C8: =IF(Valoració!$A$11=$A8,IF(Valoració!C$11>0,Valoració!C$11,""),"") ->  | D8: =IF(Valoració!$A$11=$A8,IF(Valoració!D$11>0,Valoració!D$11,""),"") ->  | E8: =IF(Valoració!$A$11=$A8,IF(Valoració!E$11>0,Valoració!E$11,""),"") ->  | F8: 2.1 | G8: =IF(Valoració!$A$11=$A8,IF(Valoració!F$11>0,Valoració!F$11,""),"") ->  | H8: =IF(Valoració!$A$11=$A8,IF(Valoració!G$11>0,Valoració!G$11,""),"") ->  | I8: =IF(Valoració!$A$11=$A8,IF(Valoració!H$11>0,Valoració!H$11,""),"") ->  | J8: 21 | K8: Falta valor fibra | L8: Falta valor fibra | M8: Falta valor fibra | N8: =IF(Valoració!$A$11=$A8,IF(Valoració!I$11>0,Valoració!I$11,""),"") ->  | O8: Falta valor fibra | P8: =IF(Valoració!$A$11=$A8,IF(Valoració!J$11>0,Valoració!J$11,""),"") ->  | Q8: =IF(Valoració!$A$11=$A8,IF(Valoració!K$11>0,Valoració!K$11,""),"") ->  | R8: Falta valor cendres | S8: Falta valor cendres | T8: Falta valor MNT | U8: Falta valor cendres | V8: Falta valor fibra | W8: Falta valor fibra | X8: Falta valor fibra | Y8: Falta valor fibra | Z8: =IF(Valoració!$A$11=$A8,IF(Valoració!M$11>0,Valoració!M$11,""),"") ->  | AA8: =IF(K8="Falta valor fibra",K8,IF(D8="","Falta valor MNT",(102-0.153*K8-0.104*D8*10)/100)) -> Falta valor fibra | AC8: Falta valor fibra | AD8: 0.88 | AE8: 0.88 | AF8: Falta valor cendres | AG8: 0.69 | AH8: Falta valor MNT | AI8: =IF(Valoració!$A$11=$A8,IF(Valoració!L$11>0,Valoració!L$11,""),"") ->  | AJ8: =IF(AI8="",AI8,(47.9+0.36*AI8*100+11)/100) ->  | AK8: 0.69 | AL8: Falta valor cendres | AM8: Falta valor cendres | AO8: Falta valor MNT | AP8: Falta valor MNT | AQ8: Falta valor cendres | AR8: Falta valor MNT | AS8: Falta valor MNT | AT8: Falta valor MNT | AU8: Falta valor MNT | AV8: Falta valor MNT | AW8: Falta valor MNT | AX8: Falta valor MNT | AY8: Falta valor MNT | AZ8: Falta valor MNT | BA8: 0.66 | BB8: Arròs | BD8: Falta valor MNT | BE8: Falta valor MNT | BF8: Falta valor MNT | BG8: Falta valor MNT | BH8: Falta valor MNT | BI8: Falta valor MNT | BJ8: 0.2627 | BM8: 2 | BN8: Falta valor fibra | BO8: Falta valor cendres | BP8: 21 | BQ8: Falta valor fibra | BR8: Falta valor fibra | BS8: Falta valor fibra | BT8: Falta valor fibra | BU8: Falta valor cendres | BV8: 0.11 | BW8: 1.92 | BX8: 1.6 | CO8: 0.69 | CP8: Falta valor MNT | CQ8: Falta valor cendres
A9: 8 | B9: Arròs derivats | C9: =IF(Valoració!$A$11=$A9,IF(Valoració!C$11>0,Valoració!C$11,""),"") ->  | D9: =IF(Valoració!$A$11=$A9,IF(Valoració!D$11>0,Valoració!D$11,""),"") ->  | E9: =IF(Valoració!$A$11=$A9,IF(Valoració!E$11>0,Valoració!E$11,""),"") ->  | G9: =IF(Valoració!$A$11=$A9,IF(Valoració!F$11>0,Valoració!F$11,""),"") ->  | H9: =IF(Valoració!$A$11=$A9,IF(Valoració!G$11>0,Valoració!G$11,""),"") ->  | I9: =IF(Valoració!$A$11=$A9,IF(Valoració!H$11>0,Valoració!H$11,""),"") ->  | J9: Falta valor EE | K9: Falta valor fibra | L9: Falta valor fibra | M9: Falta valor fibra | N9: =IF(Valoració!$A$11=$A9,IF(Valoració!I$11>0,Valoració!I$11,""),"") ->  | O9: Falta valor fibra | P9: =IF(Valoració!$A$11=$A9,IF(Valoració!J$11>0,Valoració!J$11,""),"") ->  | Q9: =IF(Valoració!$A$11=$A9,IF(Valoració!K$11>0,Valoració!K$11,""),"") ->  | R9: Falta valor cendres | S9: Falta valor cendres | T9: Falta valor MNT | U9: Falta valor EE | V9: Falta valor fibra | W9: Falta valor fibra | X9: Falta valor fibra | Y9: Falta valor fibra | Z9: =IF(Valoració!$A$11=$A9,IF(Valoració!M$11>0,Valoració!M$11,""),"") ->  | AA9: =IF(K9="Falta valor fibra",K9,IF(D9="","Falta valor MNT",IF(P9="","Falta valor cendres",(92.2-0.149*K9+0.0074*D9*10-0.05*P9*10)/100))) -> Falta valor fibra | AC9: Falta valor fibra | AE9: Falta valor fibra | AF9: Falta valor cendres | AG9: 0.57 | AH9: Falta valor MNT | AI9: =IF(Valoració!$A$11=$A9,IF(Valoració!L$11>0,Valoració!L$11,""),"") ->  | AJ9: =IF(AI9="",AI9,(47.9+0.36*AI9*100+11)/100) ->  | AK9: 0.57 | AL9: Falta valor cendres | AM9: Falta valor cendres | AN9: 138 | AO9: Falta valor MNT | AP9: Falta valor MNT | AQ9: Falta valor cendres | AR9: Falta valor MNT | AS9: Falta valor MNT | AT9: Falta valor MNT | AU9: Falta valor MNT | AV9: Falta valor MNT | AW9: Falta valor MNT | AX9: Falta valor MNT | AY9: Falta valor MNT | AZ9: Falta valor MNT | BB9: Arròs derivats | BD9: Falta valor MNT | BE9: Falta valor MNT | BF9: Falta valor MNT | BG9: Falta valor MNT | BH9: Falta valor MNT | BI9: Falta valor MNT | BJ9: Falta valor fibra | BM9: 2 | BN9: Falta valor fibra | BO9: Falta valor cendres | BP9: Falta valor EE | BQ9: Falta valor fibra | BR9: Falta valor fibra | BS9: Falta valor fibra | BT9: Falta valor fibra | BU9: Falta valor cendres | BV9: 0.55 | BW9: 10.24 | BX9: 4 | CO9: 0.57 | CP9: Falta valor MNT | CQ9: Falta valor cendres
A10: 9 | B10: Blat | C10: =IF(Valoració!$A$11=$A10,IF(Valoració!C$11>0,Valoració!C$11,""),"") ->  | D10: =IF(Valoració!$A$11=$A10,IF(Valoració!D$11>0,Valoració!D$11,""),"") ->  | E10: =IF(Valoració!$A$11=$A10,IF(Valoració!E$11>0,Valoració!E$11,""),"") ->  | F10: 2 | G10: =IF(Valoració!$A$11=$A10,IF(Valoració!F$11>0,Valoració!F$11,""),"") ->  | H10: =IF(Valoració!$A$11=$A10,IF(Valoració!G$11>0,Valoració!G$11,""),"") ->  | I10: =IF(Valoració!$A$11=$A10,IF(Valoració!H$11>0,Valoració!H$11,""),"") ->  | J10: 20 | K10: Falta valor fibra | L10: Falta valor fibra | M10: Falta valor fibra | N10: =IF(Valoració!$A$11=$A10,IF(Valoració!I$11>0,Valoració!I$11,""),"") ->  | O10: Falta valor fibra | P10: =IF(Valoració!$A$11=$A10,IF(Valoració!J$11>0,Valoració!J$11,""),"") ->  | Q10: =IF(Valoració!$A$11=$A10,IF(Valoració!K$11>0,Valoració!K$11,""),"") ->  | R10: Falta valor cendres | S10: Falta valor cendres | T10: Falta valor MNT | U10: Falta valor cendres | V10: Falta valor fibra | W10: Falta valor fibra | X10: Falta valor fibra | Y10: Falta valor fibra | Z10: =IF(Valoració!$A$11=$A10,IF(Valoració!M$11>0,Valoració!M$11,""),"") ->  | AA10: =IF(K10="Falta valor fibra",K10,(94.4-0.225*K10)/100) -> Falta valor fibra | AC10: Falta valor fibra | AD10: 0.84 | AE10: 0.84 | AF10: Falta valor cendres | AG10: 0.76 | AH10: Falta valor MNT | AI10: =IF(Valoració!$A$11=$A10,IF(Valoració!L$11>0,Valoració!L$11,""),"") ->  | AJ10: =IF(AI10="",AI10,(47.9+0.36*AI10*100+11)/100) ->  | AK10: 0.76 | AL10: Falta valor cendres | AM10: Falta valor cendres | AO10: Falta valor MNT | AP10: Falta valor MNT | AQ10: Falta valor cendres | AR10: Falta valor MNT | AS10: Falta valor MNT | AT10: Falta valor MNT | AU10: Falta valor MNT | AV10: Falta valor MNT | AW10: Falta valor MNT | AX10: Falta valor MNT | AY10: Falta valor MNT | AZ10: Falta valor MNT | BA10: 0.77 | BB10: Blat | BD10: Falta valor MNT | BE10: Falta valor MNT | BF10: Falta valor MNT | BG10: Falta valor MNT | BH10: Falta valor MNT | BI10: Falta valor MNT | BJ10: 0.1714 | BM10: 2 | BN10: Falta valor fibra | BO10: Falta valor cendres | BP10: 20 | BQ10: Falta valor fibra | BR10: Falta valor fibra | BS10: Falta valor fibra | BT10: Falta valor fibra | BU10: Falta valor cendres | BV10: 0.44 | BW10: 2.808 | BX10: 0.8 | CN10: =BP10*0.75 -> 15 | CO10: 0.76 | CP10: Falta valor MNT | CQ10: Falta valor cendres
A11: 10 | B11: Blat altres derivats | C11: =IF(Valoració!$A$11=$A11,IF(Valoració!C$11>0,Valoració!C$11,""),"") ->  | D11: =IF(Valoració!$A$11=$A11,IF(Valoració!D$11>0,Valoració!D$11,""),"") ->  | E11: =IF(Valoració!$A$11=$A11,IF(Valoració!E$11>0,Valoració!E$11,""),"") ->  | F11: 3.9 | G11: =IF(Valoració!$A$11=$A11,IF(Valoració!F$11>0,Valoració!F$11,""),"") ->  | H11: =IF(Valoració!$A$11=$A11,IF(Valoració!G$11>0,Valoració!G$11,""),"") ->  | I11: =IF(Valoració!$A$11=$A11,IF(Valoració!H$11>0,Valoració!H$11,""),"") ->  | J11: 39 | K11: Falta valor fibra | L11: Falta valor fibra | M11: Falta valor fibra | N11: =IF(Valoració!$A$11=$A11,IF(Valoració!I$11>0,Valoració!I$11,""),"") ->  | O11: Falta valor fibra | P11: =IF(Valoració!$A$11=$A11,IF(Valoració!J$11>0,Valoració!J$11,""),"") ->  | Q11: =IF(Valoració!$A$11=$A11,IF(Valoració!K$11>0,Valoració!K$11,""),"") ->  | R11: Falta valor cendres | S11: Falta valor cendres | T11: Falta valor MNT | U11: Falta valor cendres | V11: Falta valor fibra | W11: Falta valor fibra | X11: Falta valor fibra | Y11: Falta valor fibra | Z11: =IF(Valoració!$A$11=$A11,IF(Valoració!M$11>0,Valoració!M$11,""),"") ->  | AA11: =IF(K11="Falta valor fibra",K11,IF(D11="","Falta valor MNT",IF(P11="","Falta valor cendres",(92.2-0.149*K11+0.0074*D11*10-0.05*P11*10)/100))) -> Falta valor fibra | AC11: Falta valor fibra | AE11: Falta valor fibra | AF11: Falta valor cendres | AG11: 0.74 | AH11: Falta valor MNT | AI11: =IF(Valoració!$A$11=$A11,IF(Valoració!L$11>0,Valoració!L$11,""),"") ->  | AJ11: =IF(AI11="",AI11,(47.9+0.36*AI11*100+11)/100) ->  | AK11: 0.74 | AL11: Falta valor cendres | AM11: Falta valor cendres | AN11: 75 | AO11: Falta valor MNT | AP11: Falta valor MNT | AQ11: Falta valor cendres | AR11: Falta valor MNT | AS11: Falta valor MNT | AT11: Falta valor MNT | AU11: Falta valor MNT | AV11: Falta valor MNT | AW11: Falta valor MNT | AX11: Falta valor MNT | AY11: Falta valor MNT | AZ11: Falta valor MNT | BB11: Blat altres derivats | BD11: Falta valor MNT | BE11: Falta valor MNT | BF11: Falta valor MNT | BG11: Falta valor MNT | BH11: Falta valor MNT | BI11: Falta valor MNT | BJ11: Falta valor fibra | BM11: 2 | BN11: Falta valor fibra | BO11: Falta valor cendres | BP11: 39 | BQ11: Falta valor fibra | BR11: Falta valor fibra | BS11: Falta valor fibra | BT11: Falta valor fibra | BU11: Falta valor cendres | BV11: 0.6690087295 | BW11: 5.34859433 | BX11: 2.891982308 | CO11: 0.74 | CP11: Falta valor MNT | CQ11: Falta valor cendres
A12: 11 | B12: Blat de moro | C12: =IF(Valoració!$A$11=$A12,IF(Valoració!C$11>0,Valoració!C$11,""),"") ->  | D12: =IF(Valoració!$A$11=$A12,IF(Valoració!D$11>0,Valoració!D$11,""),"") ->  | E12: =IF(Valoració!$A$11=$A12,IF(Valoració!E$11>0,Valoració!E$11,""),"") ->  | F12: 4.1 | G12: =IF(Valoració!$A$11=$A12,IF(Valoració!F$11>0,Valoració!F$11,""),"") ->  | H12: =IF(Valoració!$A$11=$A12,IF(Valoració!G$11>0,Valoració!G$11,""),"") ->  | I12: =IF(Valoració!$A$11=$A12,IF(Valoració!H$11>0,Valoració!H$11,""),"") ->  | J12: 41 | K12: Falta valor fibra | L12: Falta valor fibra | M12: Falta valor fibra | N12: =IF(Valoració!$A$11=$A12,IF(Valoració!I$11>0,Valoració!I$11,""),"") ->  | O12: Falta valor fibra | P12: =IF(Valoració!$A$11=$A12,IF(Valoració!J$11>0,Valoració!J$11,""),"") ->  | Q12: =IF(Valoració!$A$11=$A12,IF(Valoració!K$11>0,Valoració!K$11,""),"") ->  | R12: Falta valor cendres | S12: Falta valor cendres | T12: Falta valor MNT | U12: Falta valor cendres | V12: Falta valor fibra | W12: Falta valor fibra | X12: Falta valor fibra | Y12: Falta valor fibra | Z12: =IF(Valoració!$A$11=$A12,IF(Valoració!M$11>0,Valoració!M$11,""),"") ->  | AA12: =IF(K12="Falta valor fibra",K12,IF(D12="","Falta valor MNT",IF(P12="","Falta valor cendres",(92.2-0.149*K12+0.0074*D12*10-0.05*P12*10)/100))) -> Falta valor fibra | AC12: Falta valor fibra | AD12: 0.85 | AE12: 0.85 | AF12: Falta valor cendres | AG12: 0.47 | AH12: Falta valor MNT | AI12: =IF(Valoració!$A$11=$A12,IF(Valoració!L$11>0,Valoració!L$11,""),"") ->  | AJ12: =IF(AI12="",AI12,(21.1+1.48*AI12*100-0.0076*(AI12*100)^2/100)) ->  | AK12: 0.47 | AL12: Falta valor cendres | AM12: Falta valor cendres | AO12: Falta valor MNT | AP12: Falta valor MNT | AQ12: Falta valor cendres | AR12: Falta valor MNT | AS12: Falta valor MNT | AT12: Falta valor MNT | AU12: Falta valor MNT | AV12: Falta valor MNT | AW12: Falta valor MNT | AX12: Falta valor MNT | AY12: Falta valor MNT | AZ12: Falta valor MNT | BA12: 0.58 | BB12: Blat de moro | BD12: Falta valor MNT | BE12: Falta valor MNT | BF12: Falta valor MNT | BG12: Falta valor MNT | BH12: Falta valor MNT | BI12: Falta valor MNT | BJ12: 0.3291 | BM12: 2 | BN12: Falta valor fibra | BO12: Falta valor cendres | BP12: 41 | BQ12: Falta valor fibra | BR12: Falta valor fibra | BS12: Falta valor fibra | BT12: Falta valor fibra | BU12: Falta valor cendres | BV12: 0.275 | BW12: 2.175 | BX12: 1.2 | CN12: =BP12*0.85 -> 34.85 | CO12: 0.47 | CP12: Falta valor MNT | CQ12: Falta valor cendres
A13: 12 | B13: Blat de moro altres derivats | C13: =IF(Valoració!$A$11=$A13,IF(Valoració!C$11>0,Valoració!C$11,""),"") ->  | D13: =IF(Valoració!$A$11=$A13,IF(Valoració!D$11>0,Valoració!D$11,""),"") ->  | E13: =IF(Valoració!$A$11=$A13,IF(Valoració!E$11>0,Valoració!E$11,""),"") ->  | G13: =IF(Valoració!$A$11=$A13,IF(Valoració!F$11>0,Valoració!F$11,""),"") ->  | H13: =IF(Valoració!$A$11=$A13,IF(Valoració!G$11>0,Valoració!G$11,""),"") ->  | I13: =IF(Valoració!$A$11=$A13,IF(Valoració!H$11>0,Valoració!H$11,""),"") ->  | J13: Falta valor EE | K13: Falta valor fibra | L13: Falta valor fibra | M13: Falta valor fibra | N13: =IF(Valoració!$A$11=$A13,IF(Valoració!I$11>0,Valoració!I$11,""),"") ->  | O13: Falta valor fibra | P13: =IF(Valoració!$A$11=$A13,IF(Valoració!J$11>0,Valoració!J$11,""),"") ->  | Q13: =IF(Valoració!$A$11=$A13,IF(Valoració!K$11>0,Valoració!K$11,""),"") ->  | R13: Falta valor cendres | S13: Falta valor cendres | T13: Falta valor MNT | U13: Falta valor EE | V13: Falta valor fibra | W13: Falta valor fibra | X13: Falta valor fibra | Y13: Falta valor fibra | Z13: =IF(Valoració!$A$11=$A13,IF(Valoració!M$11>0,Valoració!M$11,""),"") ->  | AA13: =IF(K13="Falta valor fibra",K13,IF(D13="","Falta valor MNT",IF(P13="","Falta valor cendres",(92.2-0.149*K13+0.0074*D13*10-0.05*P13*10)/100))) -> Falta valor fibra | AC13: Falta valor fibra | AE13: Falta valor fibra | AF13: Falta valor cendres | AG13: 0.35 | AH13: Falta valor MNT | AI13: =IF(Valoració!$A$11=$A13,IF(Valoració!L$11>0,Valoració!L$11,""),"") ->  | AJ13: =IF(AI13="",AI13,(21.1+1.48*AI13*100-0.0076*(AI13*100)^2/100)) ->  | AK13: 0.35 | AL13: Falta valor cendres | AM13: Falta valor cendres | AN13: 75 | AO13: Falta valor MNT | AP13: Falta valor MNT | AQ13: Falta valor cendres | AR13: Falta valor MNT | AS13: Falta valor MNT | AT13: Falta valor MNT | AU13: Falta valor MNT | AV13: Falta valor MNT | AW13: Falta valor MNT | AX13: Falta valor MNT | AY13: Falta valor MNT | AZ13: Falta valor MNT | BB13: Blat de moro altres derivats | BD13: Falta valor MNT | BE13: Falta valor MNT | BF13: Falta valor MNT | BG13: Falta valor MNT | BH13: Falta valor MNT | BI13: Falta valor MNT | BJ13: Falta valor fibra | BM13: 2 | BN13: Falta valor fibra | BO13: Falta valor cendres | BP13: Falta valor EE | BQ13: Falta valor fibra | BR13: Falta valor fibra | BS13: Falta valor fibra | BT13: Falta valor fibra | BU13: Falta valor cendres | BV13: 0.3905 | BW13: 4.2975 | BX13: 2.414285714 | CO13: 0.35 | CP13: Falta valor MNT | CQ13: Falta valor cendres
A14: 13 | B14: Blat de moro bagàs | C14: =IF(Valoració!$A$11=$A14,IF(Valoració!C$11>0,Valoració!C$11,""),"") ->  | D14: =IF(Valoració!$A$11=$A14,IF(Valoració!D$11>0,Valoració!D$11,""),"") ->  | E14: =IF(Valoració!$A$11=$A14,IF(Valoració!E$11>0,Valoració!E$11,""),"") ->  | F14: 5.1 | G14: =IF(Valoració!$A$11=$A14,IF(Valoració!F$11>0,Valoració!F$11,""),"") ->  | H14: =IF(Valoració!$A$11=$A14,IF(Valoració!G$11>0,Valoració!G$11,""),"") ->  | I14: =IF(Valoració!$A$11=$A14,IF(Valoració!H$11>0,Valoració!H$11,""),"") ->  | J14: 51 | K14: Falta valor fibra | L14: Falta valor fibra | M14: Falta valor fibra | N14: =IF(Valoració!$A$11=$A14,IF(Valoració!I$11>0,Valoració!I$11,""),"") ->  | O14: Falta valor fibra | P14: =IF(Valoració!$A$11=$A14,IF(Valoració!J$11>0,Valoració!J$11,""),"") ->  | Q14: =IF(Valoració!$A$11=$A14,IF(Valoració!K$11>0,Valoració!K$11,""),"") ->  | R14: Falta valor cendres | S14: Falta valor cendres | T14: Falta valor MNT | U14: Falta valor cendres | V14: Falta valor fibra | W14: Falta valor fibra | X14: Falta valor fibra | Y14: Falta valor fibra | Z14: =IF(Valoració!$A$11=$A14,IF(Valoració!M$11>0,Valoració!M$11,""),"") ->  | AA14: =IF(K14="Falta valor fibra",K14,IF(D14="","Falta valor MNT",(91.5-0.132*K14+0.0052*D14*10+1.7)/100)) -> Falta valor fibra | AC14: Falta valor fibra | AD14: 0.81 | AE14: 0.81 | AF14: Falta valor cendres | AG14: 0.57 | AH14: Falta valor MNT | AI14: =IF(Valoració!$A$11=$A14,IF(Valoració!L$11>0,Valoració!L$11,""),"") ->  | AJ14: =IF(AI14="",AI14,(47.9+0.36*AI14*100)/100) ->  | AK14: 0.57 | AL14: Falta valor cendres | AM14: Falta valor cendres | AN14: 138 | AO14: Falta valor MNT | AP14: Falta valor MNT | AQ14: Falta valor cendres | AR14: Falta valor MNT | AS14: Falta valor MNT | AT14: Falta valor MNT | AU14: Falta valor MNT | AV14: Falta valor MNT | AW14: Falta valor MNT | AX14: Falta valor MNT | AY14: Falta valor MNT | AZ14: Falta valor MNT | BA14: 0.63 | BB14: Blat de moro bagàs | BD14: Falta valor MNT | BE14: Falta valor MNT | BF14: Falta valor MNT | BG14: Falta valor MNT | BH14: Falta valor MNT | BI14: Falta valor MNT | BJ14: 0.2876 | BM14: 2 | BN14: Falta valor fibra | BO14: Falta valor cendres | BP14: 51 | BQ14: Falta valor fibra | BR14: Falta valor fibra | BS14: Falta valor fibra | BT14: Falta valor fibra | BU14: Falta valor cendres | BV14: 1.32 | BW14: 7.41 | BX14: 3.3 | CN14: =BP14*0.75 -> 38.25 | CO14: 0.57 | CP14: Falta valor MNT | CQ14: Falta valor cendres
A15: 14 | B15: Blat de moro gluten feed | C15: =IF(Valoració!$A$11=$A15,IF(Valoració!C$11>0,Valoració!C$11,""),"") ->  | D15: =IF(Valoració!$A$11=$A15,IF(Valoració!D$11>0,Valoració!D$11,""),"") ->  | E15: =IF(Valoració!$A$11=$A15,IF(Valoració!E$11>0,Valoració!E$11,""),"") ->  | F15: 2.8 | G15: =IF(Valoració!$A$11=$A15,IF(Valoració!F$11>0,Valoració!F$11,""),"") ->  | H15: =IF(Valoració!$A$11=$A15,IF(Valoració!G$11>0,Valoració!G$11,""),"") ->  | I15: =IF(Valoració!$A$11=$A15,IF(Valoració!H$11>0,Valoració!H$11,""),"") ->  | J15: 28 | K15: Falta valor fibra | L15: Falta valor fibra | M15: Falta valor fibra | N15: =IF(Valoració!$A$11=$A15,IF(Valoració!I$11>0,Valoració!I$11,""),"") ->  | O15: Falta valor fibra | P15: =IF(Valoració!$A$11=$A15,IF(Valoració!J$11>0,Valoració!J$11,""),"") ->  | Q15: =IF(Valoració!$A$11=$A15,IF(Valoració!K$11>0,Valoració!K$11,""),"") ->  | R15: Falta valor cendres | S15: Falta valor cendres | T15: Falta valor MNT | U15: Falta valor cendres | V15: Falta valor fibra | W15: Falta valor fibra | X15: Falta valor fibra | Y15: Falta valor fibra | Z15: =IF(Valoració!$A$11=$A15,IF(Valoració!M$11>0,Valoració!M$11,""),"") ->  | AA15: =IF(K15="Falta valor fibra",K15,IF(D15="","Falta valor MNT",(91.5-0.132*K15+0.0052*D15*10+1.5)/100)) -> Falta valor fibra | AC15: Falta valor fibra | AD15: 0.76 | AE15: 0.76 | AF15: Falta valor cendres | AG15: 0.71 | AH15: Falta valor MNT | AI15: =IF(Valoració!$A$11=$A15,IF(Valoració!L$11>0,Valoració!L$11,""),"") ->  | AJ15: =IF(AI15="",AI15,(47.9+0.36*AI15*100+11)/100) ->  | AK15: 0.71 | AL15: Falta valor cendres | AM15: Falta valor cendres | AN15: 75 | AO15: Falta valor MNT | AP15: Falta valor MNT | AQ15: Falta valor cendres | AR15: Falta valor MNT | AS15: Falta valor MNT | AT15: Falta valor MNT | AU15: Falta valor MNT | AV15: Falta valor MNT | AW15: Falta valor MNT | AX15: Falta valor MNT | AY15: Falta valor MNT | AZ15: Falta valor MNT | BA15: 0.6 | BB15: Blat de moro gluten feed | BD15: Falta valor MNT | BE15: Falta valor MNT | BF15: Falta valor MNT | BG15: Falta valor MNT | BH15: Falta valor MNT | BI15: Falta valor MNT | BJ15: 0.3125 | BM15: 2 | BN15: Falta valor fibra | BO15: Falta valor cendres | BP15: 28 | BQ15: Falta valor fibra | BR15: Falta valor fibra | BS15: Falta valor fibra | BT15: Falta valor fibra | BU15: Falta valor cendres | BV15: 0.88 | BW15: 6.664 | BX15: 4.2 | CN15: =BP15*0.9 -> 25.2 | CO15: 0.71 | CP15: Falta valor MNT | CQ15: Falta valor cendres
A16: 15 | B16: Blat de moro gluten meal | C16: =IF(Valoració!$A$11=$A16,IF(Valoració!C$11>0,Valoració!C$11,""),"") ->  | D16: =IF(Valoració!$A$11=$A16,IF(Valoració!D$11>0,Valoració!D$11,""),"") ->  | E16: =IF(Valoració!$A$11=$A16,IF(Valoració!E$11>0,Valoració!E$11,""),"") ->  | F16: 6.6 | G16: =IF(Valoració!$A$11=$A16,IF(Valoració!F$11>0,Valoració!F$11,""),"") ->  | H16: =IF(Valoració!$A$11=$A16,IF(Valoració!G$11>0,Valoració!G$11,""),"") ->  | I16: =IF(Valoració!$A$11=$A16,IF(Valoració!H$11>0,Valoració!H$11,""),"") ->  | J16: 66 | K16: Falta valor fibra | L16: Falta valor fibra | M16: Falta valor fibra | N16: =IF(Valoració!$A$11=$A16,IF(Valoració!I$11>0,Valoració!I$11,""),"") ->  | O16: Falta valor fibra | P16: =IF(Valoració!$A$11=$A16,IF(Valoració!J$11>0,Valoració!J$11,""),"") ->  | Q16: =IF(Valoració!$A$11=$A16,IF(Valoració!K$11>0,Valoració!K$11,""),"") ->  | R16: Falta valor cendres | S16: Falta valor cendres | T16: Falta valor MNT | U16: Falta valor cendres | V16: Falta valor fibra | W16: Falta valor fibra | X16: Falta valor fibra | Y16: Falta valor fibra | Z16: =IF(Valoració!$A$11=$A16,IF(Valoració!M$11>0,Valoració!M$11,""),"") ->  | AA16: =IF(K16="Falta valor fibra",K16,IF(D16="","Falta valor MNT",(91.5-0.132*K16+0.0052*D16*10+2.2)/100)) -> Falta valor fibra | AC16: Falta valor fibra | AD16: 0.97 | AE16: 0.97 | AF16: Falta valor cendres | AG16: 0.31 | AH16: Falta valor MNT | AI16: =IF(Valoració!$A$11=$A16,IF(Valoració!L$11>0,Valoració!L$11,""),"") ->  | AJ16: =IF(AI16="",AI16,(47.9+0.36*AI16*100-18.5)/100) ->  | AK16: 0.31 | AL16: Falta valor cendres | AM16: Falta valor cendres | AN16: 308 | AO16: Falta valor MNT | AP16: Falta valor MNT | AQ16: Falta valor cendres | AR16: Falta valor MNT | AS16: Falta valor MNT | AT16: Falta valor MNT | AU16: Falta valor MNT | AV16: Falta valor MNT | AW16: Falta valor MNT | AX16: Falta valor MNT | AY16: Falta valor MNT | AZ16: Falta valor MNT | BA16: 0.39 | BB16: Blat de moro gluten meal | BD16: Falta valor MNT | BE16: Falta valor MNT | BF16: Falta valor MNT | BG16: Falta valor MNT | BH16: Falta valor MNT | BI16: Falta valor MNT | BJ16: 0.4868 | BM16: 2 | BN16: Falta valor fibra | BO16: Falta valor cendres | BP16: 66 | BQ16: Falta valor fibra | BR16: Falta valor fibra | BS16: Falta valor fibra | BT16: Falta valor fibra | BU16: Falta valor cendres | BV16: 0.165 | BW16: 2.924 | BX16: 0.6 | CN16: =BP16*0.8 -> 52.8 | CO16: 0.31 | CP16: Falta valor MNT | CQ16: Falta valor cendres
A17: 16 | B17: Blat de moro segó | C17: =IF(Valoració!$A$11=$A17,IF(Valoració!C$11>0,Valoració!C$11,""),"") ->  | D17: =IF(Valoració!$A$11=$A17,IF(Valoració!D$11>0,Valoració!D$11,""),"") ->  | E17: =IF(Valoració!$A$11=$A17,IF(Valoració!E$11>0,Valoració!E$11,""),"") ->  | F17: 4.5 | G17: =IF(Valoració!$A$11=$A17,IF(Valoració!F$11>0,Valoració!F$11,""),"") ->  | H17: =IF(Valoració!$A$11=$A17,IF(Valoració!G$11>0,Valoració!G$11,""),"") ->  | I17: =IF(Valoració!$A$11=$A17,IF(Valoració!H$11>0,Valoració!H$11,""),"") ->  | J17: 45 | K17: Falta valor fibra | L17: Falta valor fibra | M17: Falta valor fibra | N17: =IF(Valoració!$A$11=$A17,IF(Valoració!I$11>0,Valoració!I$11,""),"") ->  | O17: Falta valor fibra | P17: =IF(Valoració!$A$11=$A17,IF(Valoració!J$11>0,Valoració!J$11,""),"") ->  | Q17: =IF(Valoració!$A$11=$A17,IF(Valoració!K$11>0,Valoració!K$11,""),"") ->  | R17: Falta valor cendres | S17: Falta valor cendres | T17: Falta valor MNT | U17: Falta valor cendres | V17: Falta valor fibra | W17: Falta valor fibra | X17: Falta valor fibra | Y17: Falta valor fibra | Z17: =IF(Valoració!$A$11=$A17,IF(Valoració!M$11>0,Valoració!M$11,""),"") ->  | AA17: =IF(K17="Falta valor fibra",K17,IF(D17="","Falta valor MNT",(91.5-0.132*K17+0.0052*D17*10-1.5)/100)) -> Falta valor fibra | AC17: Falta valor fibra | AD17: 0.76 | AE17: 0.76 | AF17: Falta valor cendres | AG17: 0.46 | AH17: Falta valor MNT | AI17: =IF(Valoració!$A$11=$A17,IF(Valoració!L$11>0,Valoració!L$11,""),"") ->  | AJ17: =IF(AI17="",AI17,(21.1+1.48*AI17*100-0.0076*(AI17*100)^2/100)) ->  | AK17: 0.46 | AL17: Falta valor cendres | AM17: Falta valor cendres | AN17: 138 | AO17: Falta valor MNT | AP17: Falta valor MNT | AQ17: Falta valor cendres | AR17: Falta valor MNT | AS17: Falta valor MNT | AT17: Falta valor MNT | AU17: Falta valor MNT | AV17: Falta valor MNT | AW17: Falta valor MNT | AX17: Falta valor MNT | AY17: Falta valor MNT | AZ17: Falta valor MNT | BA17: 0.53 | BB17: Blat de moro segó | BD17: Falta valor MNT | BE17: Falta valor MNT | BF17: Falta valor MNT | BG17: Falta valor MNT | BH17: Falta valor MNT | BI17: Falta valor MNT | BJ17: 0.3706 | BM17: 2 | BN17: Falta valor fibra | BO17: Falta valor cendres | BP17: 45 | BQ17: Falta valor fibra | BR17: Falta valor fibra | BS17: Falta valor fibra | BT17: Falta valor fibra | BU17: Falta valor cendres | BV17: 1.595 | BW17: 2.475 | BX17: 2.2 | CN17: =BP17*0.85 -> 38.25 | CO17: 0.46 | CP17: Falta valor MNT | CQ17: Falta valor cendres
A18: 17 | B18: Blat gluten | C18: =IF(Valoració!$A$11=$A18,IF(Valoració!C$11>0,Valoració!C$11,""),"") ->  | D18: =IF(Valoració!$A$11=$A18,IF(Valoració!D$11>0,Valoració!D$11,""),"") ->  | E18: =IF(Valoració!$A$11=$A18,IF(Valoració!E$11>0,Valoració!E$11,""),"") ->  | F18: 1.6 | G18: =IF(Valoració!$A$11=$A18,IF(Valoració!F$11>0,Valoració!F$11,""),"") ->  | H18: =IF(Valoració!$A$11=$A18,IF(Valoració!G$11>0,Valoració!G$11,""),"") ->  | I18: =IF(Valoració!$A$11=$A18,IF(Valoració!H$11>0,Valoració!H$11,""),"") ->  | J18: 16 | K18: Falta valor fibra | L18: Falta valor fibra | M18: Falta valor fibra | N18: =IF(Valoració!$A$11=$A18,IF(Valoració!I$11>0,Valoració!I$11,""),"") ->  | O18: Falta valor fibra | P18: =IF(Valoració!$A$11=$A18,IF(Valoració!J$11>0,Valoració!J$11,""),"") ->  | Q18: =IF(Valoració!$A$11=$A18,IF(Valoració!K$11>0,Valoració!K$11,""),"") ->  | R18: Falta valor cendres | S18: Falta valor cendres | T18: Falta valor MNT | U18: Falta valor cendres | V18: Falta valor fibra | W18: Falta valor fibra | X18: Falta valor fibra | Y18: Falta valor fibra | Z18: =IF(Valoració!$A$11=$A18,IF(Valoració!M$11>0,Valoració!M$11,""),"") ->  | AA18: =IF(K18="Falta valor fibra",K18,(94.4-0.225*K18)/100) -> Falta valor fibra | AC18: Falta valor fibra | AD18: 1 | AE18: 1 | AF18: Falta valor cendres | AG18: 0.34 | AH18: Falta valor MNT | AI18: =IF(Valoració!$A$11=$A18,IF(Valoració!L$11>0,Valoració!L$11,""),"") ->  | AJ18: =IF(AI18="",AI18,(47.9+0.36*AI18*100+11)/100) ->  | AK18: 0.34 | AL18: Falta valor cendres | AM18: Falta valor cendres | AN18: 138 | AO18: Falta valor MNT | AP18: Falta valor MNT | AQ18: Falta valor cendres | AR18: Falta valor MNT | AS18: Falta valor MNT | AT18: Falta valor MNT | AU18: Falta valor MNT | AV18: Falta valor MNT | AW18: Falta valor MNT | AX18: Falta valor MNT | AY18: Falta valor MNT | AZ18: Falta valor MNT | BA18: 0.29 | BB18: Blat gluten | BD18: Falta valor MNT | BE18: Falta valor MNT | BF18: Falta valor MNT | BG18: Falta valor MNT | BH18: Falta valor MNT | BI18: Falta valor MNT | BJ18: 0.5698 | BM18: 2 | BN18: Falta valor fibra | BO18: Falta valor cendres | BP18: 16 | BQ18: Falta valor fibra | BR18: Falta valor fibra | BS18: Falta valor fibra | BT18: Falta valor fibra | BU18: Falta valor cendres | BV18: 0.3905 | BW18: 3.8964 | BX18: 2.414285714 | CN18: =BP18*0.65 -> 10.4 | CO18: 0.34 | CP18: Falta valor MNT | CQ18: Falta valor cendres
A19: 18 | B19: Cacauet, tortó | C19: =IF(Valoració!$A$11=$A19,IF(Valoració!C$11>0,Valoració!C$11,""),"") ->  | D19: =IF(Valoració!$A$11=$A19,IF(Valoració!D$11>0,Valoració!D$11,""),"") ->  | E19: =IF(Valoració!$A$11=$A19,IF(Valoració!E$11>0,Valoració!E$11,""),"") ->  | F19: 2.6 | G19: =IF(Valoració!$A$11=$A19,IF(Valoració!F$11>0,Valoració!F$11,""),"") ->  | H19: =IF(Valoració!$A$11=$A19,IF(Valoració!G$11>0,Valoració!G$11,""),"") ->  | I19: =IF(Valoració!$A$11=$A19,IF(Valoració!H$11>0,Valoració!H$11,""),"") ->  | J19: 26 | K19: Falta valor fibra | L19: Falta valor fibra | M19: Falta valor fibra | N19: =IF(Valoració!$A$11=$A19,IF(Valoració!I$11>0,Valoració!I$11,""),"") ->  | O19: Falta valor fibra | P19: =IF(Valoració!$A$11=$A19,IF(Valoració!J$11>0,Valoració!J$11,""),"") ->  | Q19: =IF(Valoració!$A$11=$A19,IF(Valoració!K$11>0,Valoració!K$11,""),"") ->  | R19: Falta valor cendres | S19: Falta valor cendres | T19: Falta valor MNT | U19: Falta valor cendres | V19: Falta valor fibra | W19: Falta valor fibra | X19: Falta valor fibra | Y19: Falta valor fibra | Z19: =IF(Valoració!$A$11=$A19,IF(Valoració!M$11>0,Valoració!M$11,""),"") ->  | AA19: =IF(K19="Falta valor fibra",K19,(93-0.112*K19)/100) -> Falta valor fibra | AC19: Falta valor fibra | AE19: Falta valor fibra | AF19: Falta valor cendres | AG19: 0.69 | AH19: Falta valor MNT | AI19: =IF(Valoració!$A$11=$A19,IF(Valoració!L$11>0,Valoració!L$11,""),"") ->  | AJ19: =IF(AI19="",AI19,(21.1+1.48*AI19*100-0.0076*(AI19*100)^2/100)) ->  | AK19: 0.69 | AL19: Falta valor cendres | AM19: Falta valor cendres | AO19: Falta valor MNT | AP19: Falta valor MNT | AQ19: Falta valor cendres | AR19: Falta valor MNT | AS19: Falta valor MNT | AT19: Falta valor MNT | AU19: Falta valor MNT | AV19: Falta valor MNT | AW19: Falta valor MNT | AX19: Falta valor MNT | AY19: Falta valor MNT | AZ19: Falta valor MNT | BA19: 0.63 | BB19: Cacauet, tortó | BD19: Falta valor MNT | BE19: Falta valor MNT | BF19: Falta valor MNT | BG19: Falta valor MNT | BH19: Falta valor MNT | BI19: Falta valor MNT | BJ19: 0.2876 | BM19: 2 | BN19: Falta valor fibra | BO19: Falta valor cendres | BP19: 26 | BQ19: Falta valor fibra | BR19: Falta valor fibra | BS19: Falta valor fibra | BT19: Falta valor fibra | BU19: Falta valor cendres | BV19: 1.045 | BW19: 4.095 | BX19: 3.4 | CN19: =BP19*0.75 -> 19.5 | CO19: 0.69 | CP19: Falta valor MNT | CQ19: Falta valor cendres
A20: 19 | B20: Civada | C20: =IF(Valoració!$A$11=$A20,IF(Valoració!C$11>0,Valoració!C$11,""),"") ->  | D20: =IF(Valoració!$A$11=$A20,IF(Valoració!D$11>0,Valoració!D$11,""),"") ->  | E20: =IF(Valoració!$A$11=$A20,IF(Valoració!E$11>0,Valoració!E$11,""),"") ->  | F20: 5.4 | G20: =IF(Valoració!$A$11=$A20,IF(Valoració!F$11>0,Valoració!F$11,""),"") ->  | H20: =IF(Valoració!$A$11=$A20,IF(Valoració!G$11>0,Valoració!G$11,""),"") ->  | I20: =IF(Valoració!$A$11=$A20,IF(Valoració!H$11>0,Valoració!H$11,""),"") ->  | J20: 54 | K20: Falta valor fibra | L20: Falta valor fibra | M20: Falta valor fibra | N20: =IF(Valoració!$A$11=$A20,IF(Valoració!I$11>0,Valoració!I$11,""),"") ->  | O20: Falta valor fibra | P20: =IF(Valoració!$A$11=$A20,IF(Valoració!J$11>0,Valoració!J$11,""),"") ->  | Q20: =IF(Valoració!$A$11=$A20,IF(Valoració!K$11>0,Valoració!K$11,""),"") ->  | R20: Falta valor cendres | S20: Falta valor cendres | T20: Falta valor MNT | U20: Falta valor cendres | V20: Falta valor fibra | W20: Falta valor fibra | X20: Falta valor fibra | Y20: Falta valor fibra | Z20: =IF(Valoració!$A$11=$A20,IF(Valoració!M$11>0,Valoració!M$11,""),"") ->  | AA20: =IF(K20="Falta valor fibra",K20,IF(D20="","Falta valor MNT",(79.5-0.133*K20+0.102*D20*10)/100)) -> Falta valor fibra | AC20: Falta valor fibra | AD20: 0.69 | AE20: 0.69 | AF20: Falta valor cendres | AG20: 0.77 | AH20: Falta valor MNT | AI20: =IF(Valoració!$A$11=$A20,IF(Valoració!L$11>0,Valoració!L$11,""),"") ->  | AJ20: =IF(AI20="",AI20,(47.9+0.36*AI20*100+11)/100) ->  | AK20: 0.77 | AL20: Falta valor cendres | AM20: Falta valor cendres | AN20: 75 | AO20: Falta valor MNT | AP20: Falta valor MNT | AQ20: Falta valor cendres | AR20: Falta valor MNT | AS20: Falta valor MNT | AT20: Falta valor MNT | AU20: Falta valor MNT | AV20: Falta valor MNT | AW20: Falta valor MNT | AX20: Falta valor MNT | AY20: Falta valor MNT | AZ20: Falta valor MNT | BA20: 0.59 | BB20: Civada | BD20: Falta valor MNT | BE20: Falta valor MNT | BF20: Falta valor MNT | BG20: Falta valor MNT | BH20: Falta valor MNT | BI20: Falta valor MNT | BJ20: 0.3208 | BM20: 2 | BN20: Falta valor fibra | BO20: Falta valor cendres | BP20: 54 | BQ20: Falta valor fibra | BR20: Falta valor fibra | BS20: Falta valor fibra | BT20: Falta valor fibra | BU20: Falta valor cendres | BV20: 0.605 | BW20: 2.7 | BX20: 1 | CN20: =BP20*0.9 -> 48.6 | CO20: 0.77 | CP20: Falta valor MNT | CQ20: Falta valor cendres
A21: 20 | B21: Civada derivats | C21: =IF(Valoració!$A$11=$A21,IF(Valoració!C$11>0,Valoració!C$11,""),"") ->  | D21: =IF(Valoració!$A$11=$A21,IF(Valoració!D$11>0,Valoració!D$11,""),"") ->  | E21: =IF(Valoració!$A$11=$A21,IF(Valoració!E$11>0,Valoració!E$11,""),"") ->  | G21: =IF(Valoració!$A$11=$A21,IF(Valoració!F$11>0,Valoració!F$11,""),"") ->  | H21: =IF(Valoració!$A$11=$A21,IF(Valoració!G$11>0,Valoració!G$11,""),"") ->  | I21: =IF(Valoració!$A$11=$A21,IF(Valoració!H$11>0,Valoració!H$11,""),"") ->  | J21: Falta valor EE | K21: Falta valor fibra | L21: Falta valor fibra | M21: Falta valor fibra | N21: =IF(Valoració!$A$11=$A21,IF(Valoració!I$11>0,Valoració!I$11,""),"") ->  | O21: Falta valor fibra | P21: =IF(Valoració!$A$11=$A21,IF(Valoració!J$11>0,Valoració!J$11,""),"") ->  | Q21: =IF(Valoració!$A$11=$A21,IF(Valoració!K$11>0,Valoració!K$11,""),"") ->  | R21: Falta valor cendres | S21: Falta valor cendres | T21: Falta valor MNT | U21: Falta valor EE | V21: Falta valor fibra | W21: Falta valor fibra | X21: Falta valor fibra | Y21: Falta valor fibra | Z21: =IF(Valoració!$A$11=$A21,IF(Valoració!M$11>0,Valoració!M$11,""),"") ->  | AA21: =IF(K21="Falta valor fibra",K21,IF(D21="","Falta valor MNT",IF(P21="","Falta valor cendres",(92.2-0.149*K21+0.0074*D21*10-0.05*P21*10)/100))) -> Falta valor fibra | AC21: Falta valor fibra | AE21: Falta valor fibra | AF21: Falta valor cendres | AG21: 0.77 | AH21: Falta valor MNT | AI21: =IF(Valoració!$A$11=$A21,IF(Valoració!L$11>0,Valoració!L$11,""),"") ->  | AJ21: =IF(AI21="",AI21,(47.9+0.36*AI21*100+11)/100) ->  | AK21: 0.77 | AL21: Falta valor cendres | AM21: Falta valor cendres | AO21: Falta valor MNT | AP21: Falta valor MNT | AQ21: Falta valor cendres | AR21: Falta valor MNT | AS21: Falta valor MNT | AT21: Falta valor MNT | AU21: Falta valor MNT | AV21: Falta valor MNT | AW21: Falta valor MNT | AX21: Falta valor MNT | AY21: Falta valor MNT | AZ21: Falta valor MNT | BB21: Civada derivats | BD21: Falta valor MNT | BE21: Falta valor MNT | BF21: Falta valor MNT | BG21: Falta valor MNT | BH21: Falta valor MNT | BI21: Falta valor MNT | BJ21: Falta valor fibra | BM21: 2 | BN21: Falta valor fibra | BO21: Falta valor cendres | BP21: Falta valor EE | BQ21: Falta valor fibra | BR21: Falta valor fibra | BS21: Falta valor fibra | BT21: Falta valor fibra | BU21: Falta valor cendres | BV21: 0.605 | BW21: 2.7 | BX21: 1 | CO21: 0.77 | CP21: Falta valor MNT | CQ21: Falta valor cendres
A22: 21 | B22: Coco tortó | C22: =IF(Valoració!$A$11=$A22,IF(Valoració!C$11>0,Valoració!C$11,""),"") ->  | D22: =IF(Valoració!$A$11=$A22,IF(Valoració!D$11>0,Valoració!D$11,""),"") ->  | E22: =IF(Valoració!$A$11=$A22,IF(Valoració!E$11>0,Valoració!E$11,""),"") ->  | F22: 3.6 | G22: =IF(Valoració!$A$11=$A22,IF(Valoració!F$11>0,Valoració!F$11,""),"") ->  | H22: =IF(Valoració!$A$11=$A22,IF(Valoració!G$11>0,Valoració!G$11,""),"") ->  | I22: =IF(Valoració!$A$11=$A22,IF(Valoració!H$11>0,Valoració!H$11,""),"") ->  | J22: 36 | K22: Falta valor fibra | L22: Falta valor fibra | M22: Falta valor fibra | N22: =IF(Valoració!$A$11=$A22,IF(Valoració!I$11>0,Valoració!I$11,""),"") ->  | O22: Falta valor fibra | P22: =IF(Valoració!$A$11=$A22,IF(Valoració!J$11>0,Valoració!J$11,""),"") ->  | Q22: =IF(Valoració!$A$11=$A22,IF(Valoració!K$11>0,Valoració!K$11,""),"") ->  | R22: Falta valor cendres | S22: Falta valor cendres | T22: Falta valor MNT | U22: Falta valor cendres | V22: Falta valor fibra | W22: Falta valor fibra | X22: Falta valor fibra | Y22: Falta valor fibra | Z22: =IF(Valoració!$A$11=$A22,IF(Valoració!M$11>0,Valoració!M$11,""),"") ->  | AA22: =IF(K22="Falta valor fibra",K22,(95.1-0.132*K22)/100) -> Falta valor fibra | AC22: Falta valor fibra | AD22: 0.73 | AE22: 0.73 | AF22: Falta valor cendres | AG22: 0.52 | AH22: Falta valor MNT | AI22: =IF(Valoració!$A$11=$A22,IF(Valoració!L$11>0,Valoració!L$11,""),"") ->  | AJ22: =IF(AI22="",AI22,(21.1+1.48*AI22*100-0.0076*(AI22*100)^2/100)) ->  | AK22: 0.52 | AL22: Falta valor cendres | AM22: Falta valor cendres | AO22: Falta valor MNT | AP22: Falta valor MNT | AQ22: Falta valor cendres | AR22: Falta valor MNT | AS22: Falta valor MNT | AT22: Falta valor MNT | AU22: Falta valor MNT | AV22: Falta valor MNT | AW22: Falta valor MNT | AX22: Falta valor MNT | AY22: Falta valor MNT | AZ22: Falta valor MNT | BA22: 0.63 | BB22: Coco tortó | BD22: Falta valor MNT | BE22: Falta valor MNT | BF22: Falta valor MNT | BG22: Falta valor MNT | BH22: Falta valor MNT | BI22: Falta valor MNT | BJ22: 0.2876 | BM22: 2 | BN22: Falta valor fibra | BO22: Falta valor cendres | BP22: 36 | BQ22: Falta valor fibra | BR22: Falta valor fibra | BS22: Falta valor fibra | BT22: Falta valor fibra | BU22: Falta valor cendres | BV22: 0.55 | BW22: 3.944 | BX22: 3.3 | CN22: =BP22*0.9 -> 32.4 | CO22: 0.52 | CP22: Falta valor MNT | CQ22: Falta valor cendres
A23: 22 | B23: Colza altres derivats | C23: =IF(Valoració!$A$11=$A23,IF(Valoració!C$11>0,Valoració!C$11,""),"") ->  | D23: =IF(Valoració!$A$11=$A23,IF(Valoració!D$11>0,Valoració!D$11,""),"") ->  | E23: =IF(Valoració!$A$11=$A23,IF(Valoració!E$11>0,Valoració!E$11,""),"") ->  | G23: =IF(Valoració!$A$11=$A23,IF(Valoració!F$11>0,Valoració!F$11,""),"") ->  | H23: =IF(Valoració!$A$11=$A23,IF(Valoració!G$11>0,Valoració!G$11,""),"") ->  | I23: =IF(Valoració!$A$11=$A23,IF(Valoració!H$11>0,Valoració!H$11,""),"") ->  | J23: Falta valor EE | K23: Falta valor fibra | L23: Falta valor fibra | M23: Falta valor fibra | N23: =IF(Valoració!$A$11=$A23,IF(Valoració!I$11>0,Valoració!I$11,""),"") ->  | O23: Falta valor fibra | P23: =IF(Valoració!$A$11=$A23,IF(Valoració!J$11>0,Valoració!J$11,""),"") ->  | Q23: =IF(Valoració!$A$11=$A23,IF(Valoració!K$11>0,Valoració!K$11,""),"") ->  | R23: Falta valor cendres | S23: Falta valor cendres | T23: Falta valor MNT | U23: Falta valor EE | V23: Falta valor fibra | W23: Falta valor fibra | X23: Falta valor fibra | Y23: Falta valor fibra | Z23: =IF(Valoració!$A$11=$A23,IF(Valoració!M$11>0,Valoració!M$11,""),"") ->  | AA23: =IF(K23="Falta valor fibra",K23,IF(D23="","Falta valor MNT",IF(P23="","Falta valor cendres",(89.6-0.106*K23+0.0088*D23*10-0.003*P23)/100))) -> Falta valor fibra | AC23: Falta valor fibra | AE23: Falta valor fibra | AF23: Falta valor cendres | AG23: 0.69 | AH23: Falta valor MNT | AI23: =IF(Valoració!$A$11=$A23,IF(Valoració!L$11>0,Valoració!L$11,""),"") ->  | AJ23: =IF(AI23="",AI23,(47.9+0.36*AI23*100)/100) ->  | AK23: 0.69 | AL23: Falta valor cendres | AM23: Falta valor cendres | AO23: Falta valor MNT | AP23: Falta valor MNT | AQ23: Falta valor cendres | AR23: Falta valor MNT | AS23: Falta valor MNT | AT23: Falta valor MNT | AU23: Falta valor MNT | AV23: Falta valor MNT | AW23: Falta valor MNT | AX23: Falta valor MNT | AY23: Falta valor MNT | AZ23: Falta valor MNT | BB23: Colza altres derivats | BD23: Falta valor MNT | BE23: Falta valor MNT | BF23: Falta valor MNT | BG23: Falta valor MNT | BH23: Falta valor MNT | BI23: Falta valor MNT | BJ23: Falta valor fibra | BM23: 2 | BN23: Falta valor fibra | BO23: Falta valor cendres | BP23: Falta valor EE | BQ23: Falta valor fibra | BR23: Falta valor fibra | BS23: Falta valor fibra | BT23: Falta valor fibra | BU23: Falta valor cendres | BV23: 2.695 | BW23: 5.112 | BX23: 2.6 | CO23: 0.69 | CP23: Falta valor MNT | CQ23: Falta valor cendres
A24: 23 | B24: Colza, gra | C24: =IF(Valoració!$A$11=$A24,IF(Valoració!C$11>0,Valoració!C$11,""),"") ->  | D24: =IF(Valoració!$A$11=$A24,IF(Valoració!D$11>0,Valoració!D$11,""),"") ->  | E24: =IF(Valoració!$A$11=$A24,IF(Valoració!E$11>0,Valoració!E$11,""),"") ->  | F24: 47.6 | G24: =IF(Valoració!$A$11=$A24,IF(Valoració!F$11>0,Valoració!F$11,""),"") ->  | H24: =IF(Valoració!$A$11=$A24,IF(Valoració!G$11>0,Valoració!G$11,""),"") ->  | I24: =IF(Valoració!$A$11=$A24,IF(Valoració!H$11>0,Valoració!H$11,""),"") ->  | J24: 476 | K24: Falta valor fibra | L24: Falta valor fibra | M24: Falta valor fibra | N24: =IF(Valoració!$A$11=$A24,IF(Valoració!I$11>0,Valoració!I$11,""),"") ->  | O24: Falta valor fibra | P24: =IF(Valoració!$A$11=$A24,IF(Valoració!J$11>0,Valoració!J$11,""),"") ->  | Q24: =IF(Valoració!$A$11=$A24,IF(Valoració!K$11>0,Valoració!K$11,""),"") ->  | R24: Falta valor cendres | S24: Falta valor cendres | T24: Falta valor MNT | U24: Falta valor cendres | V24: Falta valor fibra | W24: Falta valor fibra | X24: Falta valor fibra | Y24: Falta valor fibra | Z24: =IF(Valoració!$A$11=$A24,IF(Valoració!M$11>0,Valoració!M$11,""),"") ->  | AA24: =IF(K24="Falta valor fibra",K24,(92.7-0.119*K24)/100) -> Falta valor fibra | AC24: Falta valor fibra | AD24: 0.86 | AE24: 0.86 | AF24: Falta valor cendres | AG24: 0.77 | AH24: Falta valor MNT | AI24: =IF(Valoració!$A$11=$A24,IF(Valoració!L$11>0,Valoració!L$11,""),"") ->  | AJ24: =IF(AI24="",AI24,(21.1+1.48*AI24*100-0.0076*(AI24*100)^2/100)) ->  | AK24: 0.77 | AL24: Falta valor cendres | AM24: Falta valor cendres | AN24: 116 | AO24: Falta valor MNT | AP24: Falta valor MNT | AQ24: Falta valor cendres | AR24: Falta valor MNT | AS24: Falta valor MNT | AT24: Falta valor MNT | AU24: Falta valor MNT | AV24: Falta valor MNT | AW24: Falta valor MNT | AX24: Falta valor MNT | AY24: Falta valor MNT | AZ24: Falta valor MNT | BA24: 0.62 | BB24: Colza, gra | BD24: Falta valor MNT | BE24: Falta valor MNT | BF24: Falta valor MNT | BG24: Falta valor MNT | BH24: Falta valor MNT | BI24: Falta valor MNT | BJ24: 0.2959 | BM24: 2 | BN24: Falta valor fibra | BO24: Falta valor cendres | BP24: 476 | BQ24: Falta valor fibra | BR24: Falta valor fibra | BS24: Falta valor fibra | BT24: Falta valor fibra | BU24: Falta valor cendres | BV24: 2.695 | BW24: 5.112 | BX24: 2.6 | CN24: =BP24*0.85 -> 404.6 | CO24: 0.77 | CP24: Falta valor MNT | CQ24: Falta valor cendres
A25: 24 | B25: Colza, gra tractat | C25: =IF(Valoració!$A$11=$A25,IF(Valoració!C$11>0,Valoració!C$11,""),"") ->  | D25: =IF(Valoració!$A$11=$A25,IF(Valoració!D$11>0,Valoració!D$11,""),"") ->  | E25: =IF(Valoració!$A$11=$A25,IF(Valoració!E$11>0,Valoració!E$11,""),"") ->  | F25: 47.6 | G25: =IF(Valoració!$A$11=$A25,IF(Valoració!F$11>0,Valoració!F$11,""),"") ->  | H25: =IF(Valoració!$A$11=$A25,IF(Valoració!G$11>0,Valoració!G$11,""),"") ->  | I25: =IF(Valoració!$A$11=$A25,IF(Valoració!H$11>0,Valoració!H$11,""),"") ->  | J25: 476 | K25: Falta valor fibra | L25: Falta valor fibra | M25: Falta valor fibra | N25: =IF(Valoració!$A$11=$A25,IF(Valoració!I$11>0,Valoració!I$11,""),"") ->  | O25: Falta valor fibra | P25: =IF(Valoració!$A$11=$A25,IF(Valoració!J$11>0,Valoració!J$11,""),"") ->  | Q25: =IF(Valoració!$A$11=$A25,IF(Valoració!K$11>0,Valoració!K$11,""),"") ->  | R25: Falta valor cendres | S25: Falta valor cendres | T25: Falta valor MNT | U25: Falta valor cendres | V25: Falta valor fibra | W25: Falta valor fibra | X25: Falta valor fibra | Y25: Falta valor fibra | Z25: =IF(Valoració!$A$11=$A25,IF(Valoració!M$11>0,Valoració!M$11,""),"") ->  | AA25: =IF(K25="Falta valor fibra",K25,(92.7-0.119*K25)/100) -> Falta valor fibra | AC25: Falta valor fibra | AD25: 0.86 | AE25: 0.86 | AF25: Falta valor cendres | AG25: 0.54 | AH25: Falta valor MNT | AI25: =IF(Valoració!$A$11=$A25,IF(Valoració!L$11>0,Valoració!L$11,""),"") ->  | AJ25: =IF(AI25="",AI25,(21.1+1.48*AI25*100-0.0076*(AI25*100)^2/100)) ->  | AK25: 0.54 | AL25: Falta valor cendres | AM25: Falta valor cendres | AO25: Falta valor MNT | AP25: Falta valor MNT | AQ25: Falta valor cendres | AR25: Falta valor MNT | AS25: Falta valor MNT | AT25: Falta valor MNT | AU25: Falta valor MNT | AV25: Falta valor MNT | AW25: Falta valor MNT | AX25: Falta valor MNT | AY25: Falta valor MNT | AZ25: Falta valor MNT | BA25: 0.57 | BB25: Colza, gra tractat | BD25: Falta valor MNT | BE25: Falta valor MNT | BF25: Falta valor MNT | BG25: Falta valor MNT | BH25: Falta valor MNT | BI25: Falta valor MNT | BJ25: 0.3374 | BM25: 2 | BN25: Falta valor fibra | BO25: Falta valor cendres | BP25: 476 | BQ25: Falta valor fibra | BR25: Falta valor fibra | BS25: Falta valor fibra | BT25: Falta valor fibra | BU25: Falta valor cendres | BV25: 2.695 | BW25: 5.112 | BX25: 2.6 | CN25: =BP25*0.79 -> 376.04 | CO25: 0.54 | CP25: Falta valor MNT | CQ25: Falta valor cendres
A26: 25 | B26: Colza, turtó | C26: =IF(Valoració!$A$11=$A26,IF(Valoració!C$11>0,Valoració!C$11,""),"") ->  | D26: =IF(Valoració!$A$11=$A26,IF(Valoració!D$11>0,Valoració!D$11,""),"") ->  | E26: =IF(Valoració!$A$11=$A26,IF(Valoració!E$11>0,Valoració!E$11,""),"") ->  | F26: 2.4 | G26: =IF(Valoració!$A$11=$A26,IF(Valoració!F$11>0,Valoració!F$11,""),"") ->  | H26: =IF(Valoració!$A$11=$A26,IF(Valoració!G$11>0,Valoració!G$11,""),"") ->  | I26: =IF(Valoració!$A$11=$A26,IF(Valoració!H$11>0,Valoració!H$11,""),"") ->  | J26: 24 | K26: Falta valor fibra | L26: Falta valor fibra | M26: Falta valor fibra | N26: =IF(Valoració!$A$11=$A26,IF(Valoració!I$11>0,Valoració!I$11,""),"") ->  | O26: Falta valor fibra | P26: =IF(Valoració!$A$11=$A26,IF(Valoració!J$11>0,Valoració!J$11,""),"") ->  | Q26: =IF(Valoració!$A$11=$A26,IF(Valoració!K$11>0,Valoració!K$11,""),"") ->  | R26: Falta valor cendres | S26: Falta valor cendres | T26: Falta valor MNT | U26: Falta valor cendres | V26: Falta valor fibra | W26: Falta valor fibra | X26: Falta valor fibra | Y26: Falta valor fibra | Z26: =IF(Valoració!$A$11=$A26,IF(Valoració!M$11>0,Valoració!M$11,""),"") ->  | AA26: =IF(K26="Falta valor fibra",K26,(92.7-0.119*K26)/100) -> Falta valor fibra | AC26: Falta valor fibra | AD26: 0.74 | AE26: 0.74 | AF26: Falta valor cendres | AG26: 0.69 | AH26: Falta valor MNT | AI26: =IF(Valoració!$A$11=$A26,IF(Valoració!L$11>0,Valoració!L$11,""),"") ->  | AJ26: =IF(AI26="",AI26,(47.9+0.36*AI26*100)/100) ->  | AK26: 0.69 | AL26: Falta valor cendres | AM26: Falta valor cendres | AO26: Falta valor MNT | AP26: Falta valor MNT | AQ26: Falta valor cendres | AR26: Falta valor MNT | AS26: Falta valor MNT | AT26: Falta valor MNT | AU26: Falta valor MNT | AV26: Falta valor MNT | AW26: Falta valor MNT | AX26: Falta valor MNT | AY26: Falta valor MNT | AZ26: Falta valor MNT | BA26: 0.6 | BB26: Colza, turtó | BD26: Falta valor MNT | BE26: Falta valor MNT | BF26: Falta valor MNT | BG26: Falta valor MNT | BH26: Falta valor MNT | BI26: Falta valor MNT | BJ26: 0.3125 | BM26: 2 | BN26: Falta valor fibra | BO26: Falta valor cendres | BP26: 24 | BQ26: Falta valor fibra | BR26: Falta valor fibra | BS26: Falta valor fibra | BT26: Falta valor fibra | BU26: Falta valor cendres | BV26: 4.565 | BW26: 8.378 | BX26: 5.8 | CN26: =BP26*0.8 -> 19.2 | CO26: 0.69 | CP26: Falta valor MNT | CQ26: Falta valor cendres
A27: 26 | B27: Cotó altres derivats | C27: =IF(Valoració!$A$11=$A27,IF(Valoració!C$11>0,Valoració!C$11,""),"") ->  | D27: =IF(Valoració!$A$11=$A27,IF(Valoració!D$11>0,Valoració!D$11,""),"") ->  | E27: =IF(Valoració!$A$11=$A27,IF(Valoració!E$11>0,Valoració!E$11,""),"") ->  | G27: =IF(Valoració!$A$11=$A27,IF(Valoració!F$11>0,Valoració!F$11,""),"") ->  | H27: =IF(Valoració!$A$11=$A27,IF(Valoració!G$11>0,Valoració!G$11,""),"") ->  | I27: =IF(Valoració!$A$11=$A27,IF(Valoració!H$11>0,Valoració!H$11,""),"") ->  | J27: Falta valor EE | K27: Falta valor fibra | L27: Falta valor fibra | M27: Falta valor fibra | N27: =IF(Valoració!$A$11=$A27,IF(Valoració!I$11>0,Valoració!I$11,""),"") ->  | O27: Falta valor fibra | P27: =IF(Valoració!$A$11=$A27,IF(Valoració!J$11>0,Valoració!J$11,""),"") ->  | Q27: =IF(Valoració!$A$11=$A27,IF(Valoració!K$11>0,Valoració!K$11,""),"") ->  | R27: Falta valor cendres | S27: Falta valor cendres | T27: Falta valor MNT | U27: Falta valor EE | V27: Falta valor fibra | W27: Falta valor fibra | X27: Falta valor fibra | Y27: Falta valor fibra | Z27: =IF(Valoració!$A$11=$A27,IF(Valoració!M$11>0,Valoració!M$11,""),"") ->  | AA27: =IF(K27="Falta valor fibra",K27,IF(D27="","Falta valor MNT",IF(P27="","Falta valor cendres",(89.6-0.106*K27+0.0088*D27*10-0.003*P27)/100))) -> Falta valor fibra | AC27: Falta valor fibra | AE27: Falta valor fibra | AF27: Falta valor cendres | AG27: 0.6 | AH27: Falta valor MNT | AI27: =IF(Valoració!$A$11=$A27,IF(Valoració!L$11>0,Valoració!L$11,""),"") ->  | AJ27: =IF(AI27="",AI27,(21.1+1.48*AI27*100-0.0076*(AI27*100)^2/100)) ->  | AK27: 0.6 | AL27: Falta valor cendres | AM27: Falta valor cendres | AN27: 116 | AO27: Falta valor MNT | AP27: Falta valor MNT | AQ27: Falta valor cendres | AR27: Falta valor MNT | AS27: Falta valor MNT | AT27: Falta valor MNT | AU27: Falta valor MNT | AV27: Falta valor MNT | AW27: Falta valor MNT | AX27: Falta valor MNT | AY27: Falta valor MNT | AZ27: Falta valor MNT | BB27: Cotó altres derivats | BD27: Falta valor MNT | BE27: Falta valor MNT | BF27: Falta valor MNT | BG27: Falta valor MNT | BH27: Falta valor MNT | BI27: Falta valor MNT | BJ27: Falta valor fibra | BM27: 2 | BN27: Falta valor fibra | BO27: Falta valor cendres | BP27: Falta valor EE | BQ27: Falta valor fibra | BR27: Falta valor fibra | BS27: Falta valor fibra | BT27: Falta valor fibra | BU27: Falta valor cendres | BV27: 0.88 | BW27: 3.654 | BX27: 3.5 | CN27: =BP27*0.75 ->  | CO27: 0.6 | CP27: Falta valor MNT | CQ27: Falta valor cendres
A28: 27 | B28: Cotó, gra | C28: =IF(Valoració!$A$11=$A28,IF(Valoració!C$11>0,Valoració!C$11,""),"") ->  | D28: =IF(Valoració!$A$11=$A28,IF(Valoració!D$11>0,Valoració!D$11,""),"") ->  | E28: =IF(Valoració!$A$11=$A28,IF(Valoració!E$11>0,Valoració!E$11,""),"") ->  | F28: 19.8 | G28: =IF(Valoració!$A$11=$A28,IF(Valoració!F$11>0,Valoració!F$11,""),"") ->  | H28: =IF(Valoració!$A$11=$A28,IF(Valoració!G$11>0,Valoració!G$11,""),"") ->  | I28: =IF(Valoració!$A$11=$A28,IF(Valoració!H$11>0,Valoració!H$11,""),"") ->  | J28: 198 | K28: Falta valor fibra | L28: Falta valor fibra | M28: Falta valor fibra | N28: =IF(Valoració!$A$11=$A28,IF(Valoració!I$11>0,Valoració!I$11,""),"") ->  | O28: Falta valor fibra | P28: =IF(Valoració!$A$11=$A28,IF(Valoració!J$11>0,Valoració!J$11,""),"") ->  | Q28: =IF(Valoració!$A$11=$A28,IF(Valoració!K$11>0,Valoració!K$11,""),"") ->  | R28: Falta valor cendres | S28: Falta valor cendres | T28: Falta valor MNT | U28: Falta valor cendres | V28: Falta valor fibra | W28: Falta valor fibra | X28: Falta valor fibra | Y28: Falta valor fibra | Z28: =IF(Valoració!$A$11=$A28,IF(Valoració!M$11>0,Valoració!M$11,""),"") ->  | AA28: =IF(K28="Falta valor fibra",K28,(84.8-0.073*K28)/100) -> Falta valor fibra | AC28: Falta valor fibra | AD28: 0.65 | AE28: 0.65 | AF28: Falta valor cendres | AG28: 0.69 | AH28: Falta valor MNT | AI28: =IF(Valoració!$A$11=$A28,IF(Valoració!L$11>0,Valoració!L$11,""),"") ->  | AJ28: =IF(AI28="",AI28,(21.1+1.48*AI28*100-0.0076*(AI28*100)^2/100)) ->  | AK28: 0.69 | AL28: Falta valor cendres | AM28: Falta valor cendres | AN28: 116 | AO28: Falta valor MNT | AP28: Falta valor MNT | AQ28: Falta valor cendres | AR28: Falta valor MNT | AS28: Falta valor MNT | AT28: Falta valor MNT | AU28: Falta valor MNT | AV28: Falta valor MNT | AW28: Falta valor MNT | AX28: Falta valor MNT | AY28: Falta valor MNT | AZ28: Falta valor MNT | BA28: 0.37 | BB28: Cotó, gra | BD28: Falta valor MNT | BE28: Falta valor MNT | BF28: Falta valor MNT | BG28: Falta valor MNT | BH28: Falta valor MNT | BI28: Falta valor MNT | BJ28: 0.5034 | BM28: 2 | BN28: Falta valor fibra | BO28: Falta valor cendres | BP28: 198 | BQ28: Falta valor fibra | BR28: Falta valor fibra | BS28: Falta valor fibra | BT28: Falta valor fibra | BU28: Falta valor cendres | BV28: 0.88 | BW28: 3.654 | BX28: 3.5 | CN28: =BP28*0.75 -> 148.5 | CO28: 0.69 | CP28: Falta valor MNT | CQ28: Falta valor cendres
A29: 28 | B29: Gira-sol derivats decorticats | C29: =IF(Valoració!$A$11=$A29,IF(Valoració!C$11>0,Valoració!C$11,""),"") ->  | D29: =IF(Valoració!$A$11=$A29,IF(Valoració!D$11>0,Valoració!D$11,""),"") ->  | E29: =IF(Valoració!$A$11=$A29,IF(Valoració!E$11>0,Valoració!E$11,""),"") ->  | G29: =IF(Valoració!$A$11=$A29,IF(Valoració!F$11>0,Valoració!F$11,""),"") ->  | H29: =IF(Valoració!$A$11=$A29,IF(Valoració!G$11>0,Valoració!G$11,""),"") ->  | I29: =IF(Valoració!$A$11=$A29,IF(Valoració!H$11>0,Valoració!H$11,""),"") ->  | J29: Falta valor EE | K29: Falta valor fibra | L29: Falta valor fibra | M29: Falta valor fibra | N29: =IF(Valoració!$A$11=$A29,IF(Valoració!I$11>0,Valoració!I$11,""),"") ->  | O29: Falta valor fibra | P29: =IF(Valoració!$A$11=$A29,IF(Valoració!J$11>0,Valoració!J$11,""),"") ->  | Q29: =IF(Valoració!$A$11=$A29,IF(Valoració!K$11>0,Valoració!K$11,""),"") ->  | R29: Falta valor cendres | S29: Falta valor cendres | T29: Falta valor MNT | U29: Falta valor EE | V29: Falta valor fibra | W29: Falta valor fibra | X29: Falta valor fibra | Y29: Falta valor fibra | Z29: =IF(Valoració!$A$11=$A29,IF(Valoració!M$11>0,Valoració!M$11,""),"") ->  | AA29: =IF(K29="Falta valor fibra",K29,IF(D29="","Falta valor MNT",IF(P29="","Falta valor cendres",(89.6-0.106*K29+0.0088*D29*10-0.003*P29)/100))) -> Falta valor fibra | AC29: Falta valor fibra | AE29: Falta valor fibra | AF29: Falta valor cendres | AG29: 0.76 | AH29: Falta valor MNT | AI29: =IF(Valoració!$A$11=$A29,IF(Valoració!L$11>0,Valoració!L$11,""),"") ->  | AJ29: =IF(AI29="",AI29,(47.9+0.36*AI29*100+8.5)/100) ->  | AK29: 0.76 | AL29: Falta valor cendres | AM29: Falta valor cendres | AN29: -46 | AO29: Falta valor MNT | AP29: Falta valor MNT | AQ29: Falta valor cendres | AR29: Falta valor MNT | AS29: Falta valor MNT | AT29: Falta valor MNT | AU29: Falta valor MNT | AV29: Falta valor MNT | AW29: Falta valor MNT | AX29: Falta valor MNT | AY29: Falta valor MNT | AZ29: Falta valor MNT | BA29: 0.59 | BB29: Gira-sol derivats decorticats | BD29: Falta valor MNT | BE29: Falta valor MNT | BF29: Falta valor MNT | BG29: Falta valor MNT | BH29: Falta valor MNT | BI29: Falta valor MNT | BJ29: 0.3208 | BM29: 2 | BN29: Falta valor fibra | BO29: Falta valor cendres | BP29: Falta valor EE | BQ29: Falta valor fibra | BR29: Falta valor fibra | BS29: Falta valor fibra | BT29: Falta valor fibra | BU29: Falta valor cendres | BV29: 2.365 | BW29: 7.085 | BX29: 5.3 | CN29: =BP29*0.75 ->  | CO29: 0.76 | CP29: Falta valor MNT | CQ29: Falta valor cendres
A30: 29 | B30: Gira-sol, gra | C30: =IF(Valoració!$A$11=$A30,IF(Valoració!C$11>0,Valoració!C$11,""),"") ->  | D30: =IF(Valoració!$A$11=$A30,IF(Valoració!D$11>0,Valoració!D$11,""),"") ->  | E30: =IF(Valoració!$A$11=$A30,IF(Valoració!E$11>0,Valoració!E$11,""),"") ->  | F30: 48 | G30: =IF(Valoració!$A$11=$A30,IF(Valoració!F$11>0,Valoració!F$11,""),"") ->  | H30: =IF(Valoració!$A$11=$A30,IF(Valoració!G$11>0,Valoració!G$11,""),"") ->  | I30: =IF(Valoració!$A$11=$A30,IF(Valoració!H$11>0,Valoració!H$11,""),"") ->  | J30: 480 | K30: Falta valor fibra | L30: Falta valor fibra | M30: Falta valor fibra | N30: =IF(Valoració!$A$11=$A30,IF(Valoració!I$11>0,Valoració!I$11,""),"") ->  | O30: Falta valor fibra | P30: =IF(Valoració!$A$11=$A30,IF(Valoració!J$11>0,Valoració!J$11,""),"") ->  | Q30: =IF(Valoració!$A$11=$A30,IF(Valoració!K$11>0,Valoració!K$11,""),"") ->  | R30: Falta valor cendres | S30: Falta valor cendres | T30: Falta valor MNT | U30: Falta valor cendres | V30: Falta valor fibra | W30: Falta valor fibra | X30: Falta valor fibra | Y30: Falta valor fibra | Z30: =IF(Valoració!$A$11=$A30,IF(Valoració!M$11>0,Valoració!M$11,""),"") ->  | AA30: =IF(K30="Falta valor fibra",K30,(97.6-0.142*K30)/100) -> Falta valor fibra | AC30: Falta valor fibra | AD30: 0.76 | AE30: 0.76 | AF30: Falta valor cendres | AG30: 0.82 | AH30: Falta valor MNT | AI30: =IF(Valoració!$A$11=$A30,IF(Valoració!L$11>0,Valoració!L$11,""),"") ->  | AJ30: =IF(AI30="",AI30,(21.1+1.48*AI30*100-0.0076*(AI30*100)^2/100)) ->  | AK30: 0.82 | AL30: Falta valor cendres | AM30: Falta valor cendres | AN30: -46 | AO30: Falta valor MNT | AP30: Falta valor MNT | AQ30: Falta valor cendres | AR30: Falta valor MNT | AS30: Falta valor MNT | AT30: Falta valor MNT | AU30: Falta valor MNT | AV30: Falta valor MNT | AW30: Falta valor MNT | AX30: Falta valor MNT | AY30: Falta valor MNT | AZ30: Falta valor MNT | BA30: 0.66 | BB30: Gira-sol, gra | BD30: Falta valor MNT | BE30: Falta valor MNT | BF30: Falta valor MNT | BG30: Falta valor MNT | BH30: Falta valor MNT | BI30: Falta valor MNT | BJ30: 0.2627 | BM30: 2 | BN30: Falta valor fibra | BO30: Falta valor cendres | BP30: 480 | BQ30: Falta valor fibra | BR30: Falta valor fibra | BS30: Falta valor fibra | BT30: Falta valor fibra | BU30: Falta valor cendres | BV30: 1.485 | BW30: 3.705 | BX30: 2.9 | CN30: =BP30*0.95 -> 456 | CO30: 0.82 | CP30: Falta valor MNT | CQ30: Falta valor cendres
A31: 30 | B31: Graminies deshidratades i aglomerades | C31: =IF(Valoració!$A$11=$A31,IF(Valoració!C$11>0,Valoració!C$11,""),"") ->  | D31: =IF(Valoració!$A$11=$A31,IF(Valoració!D$11>0,Valoració!D$11,""),"") ->  | E31: =IF(Valoració!$A$11=$A31,IF(Valoració!E$11>0,Valoració!E$11,""),"") ->  | G31: =IF(Valoració!$A$11=$A31,IF(Valoració!F$11>0,Valoració!F$11,""),"") ->  | H31: =IF(Valoració!$A$11=$A31,IF(Valoració!G$11>0,Valoració!G$11,""),"") ->  | I31: =IF(Valoració!$A$11=$A31,IF(Valoració!H$11>0,Valoració!H$11,""),"") ->  | J31: Falta valor EE | K31: =IF(G31="",IF(H31="",IF(I31="","Falta valor fibra",-19+0.98*I31*10),(H31*10-260)/1.21),G31*10) -> Falta valor fibra | L31: =IF(H31="",IF(K31="Falta valor fibra",K31,(260+1.14*K31)),H31*10) -> Falta valor fibra | M31: =IF(I31="",IF(K31="Falta valor fibra",K31,40+0.95*K31),I31*10) -> Falta valor fibra | N31: =IF(Valoració!$A$11=$A31,IF(Valoració!I$11>0,Valoració!I$11,""),"") ->  | O31: Falta valor fibra | P31: =IF(Valoració!$A$11=$A31,IF(Valoració!J$11>0,Valoració!J$11,""),"") ->  | Q31: =IF(Valoració!$A$11=$A31,IF(Valoració!K$11>0,Valoració!K$11,""),"") ->  | R31: Falta valor cendres | S31: Falta valor cendres | T31: Falta valor MNT | U31: Falta valor EE | V31: Falta valor fibra | W31: Falta valor fibra | X31: Falta valor fibra | Y31: Falta valor fibra | Z31: =IF(Valoració!$A$11=$A31,IF(Valoració!M$11>0,Valoració!M$11,""),"") ->  | AA31: =IF(M31="Falta valor fibra",M31,(104.9-0.127*M31+0.014*D31*10)/100) -> Falta valor fibra | AB31: =IF(Z31="",Z31,(-2.36+0.896*Z31*100)/100) ->  | AC31: Falta valor fibra | AE31: =IF(AD31="",IF(AC31="Falta valor fibra", AC31,IF(D31="","Falta valor MNT",IF(J31="Falta valor EE",J31,IF(P31="","Falta valor cendres",(-2.556+0.985*AA31*100)/100)))),AD31) -> Falta valor fibra | AF31: Falta valor cendres | AG31: 0.65 | AH31: Falta valor MNT | AI31: =IF(Valoració!$A$11=$A31,IF(Valoració!L$11>0,Valoració!L$11,""),"") ->  | AJ31: =IF(AI31="",AI31,(47.9+0.36*AI31*100+2.6)/100) ->  | AK31: 0.65 | AL31: Falta valor cendres | AM31: Falta valor cendres | AO31: =IF(T31="Falta valor MNT",T31,IF(T31="Falta valor cendres",T31,(4618+2.051*T31)*S31/100)) -> Falta valor MNT | AP31: Falta valor MNT | AQ31: Falta valor cendres | AR31: Falta valor MNT | AS31: Falta valor MNT | AT31: Falta valor MNT | AU31: Falta valor MNT | AV31: Falta valor MNT | AW31: Falta valor MNT | AX31: Falta valor MNT | AY31: Falta valor MNT | AZ31: Falta valor MNT | BB31: Graminies deshidratades i aglomerades | BD31: Falta valor MNT | BE31: Falta valor MNT | BF31: Falta valor MNT | BG31: Falta valor MNT | BH31: Falta valor MNT | BI31: Falta valor MNT | BJ31: Falta valor fibra | BM31: 2 | BN31: Falta valor fibra | BO31: Falta valor cendres | BP31: Falta valor EE | BQ31: Falta valor fibra | BR31: Falta valor fibra | BS31: Falta valor fibra | BT31: Falta valor fibra | BU31: Falta valor cendres | BV31: 2.365 | BW31: 2.34375 | BX31: 1.75 | CN31: =BP31*0.5 ->  | CO31: 0.65 | CP31: Falta valor MNT | CQ31: Falta valor cendres
A32: 31 | B32: Lleguminoses (pèsol, mongeta, llentia, tramús, etc.) | C32: =IF(Valoració!$A$11=$A32,IF(Valoració!C$11>0,Valoració!C$11,""),"") ->  | D32: =IF(Valoració!$A$11=$A32,IF(Valoració!D$11>0,Valoració!D$11,""),"") ->  | E32: =IF(Valoració!$A$11=$A32,IF(Valoració!E$11>0,Valoració!E$11,""),"") ->  | G32: =IF(Valoració!$A$11=$A32,IF(Valoració!F$11>0,Valoració!F$11,""),"") ->  | H32: =IF(Valoració!$A$11=$A32,IF(Valoració!G$11>0,Valoració!G$11,""),"") ->  | I32: =IF(Valoració!$A$11=$A32,IF(Valoració!H$11>0,Valoració!H$11,""),"") ->  | J32: Falta valor EE | K32: =IF(G32="",IF(H32="","Falta valor fibra",0.4793*H32*10-20.98),G32*10) -> Falta valor fibra | L32: =IF(H32="",IF(G32="","Falta valor fibra",1.4419*G32*10+131.71),H32*10) -> Falta valor fibra | M32: =IF(I32="",IF(G32="","Falta valor fibra",1.2552*G32*10+10.808),I32*10) -> Falta valor fibra | N32: =IF(Valoració!$A$11=$A32,IF(Valoració!I$11>0,Valoració!I$11,""),"") ->  | O32: Falta valor fibra | P32: =IF(Valoració!$A$11=$A32,IF(Valoració!J$11>0,Valoració!J$11,""),"") ->  | Q32: =IF(Valoració!$A$11=$A32,IF(Valoració!K$11>0,Valoració!K$11,""),"") ->  | R32: Falta valor cendres | S32: Falta valor cendres | T32: Falta valor MNT | U32: Falta valor EE | V32: Falta valor fibra | W32: Falta valor fibra | X32: Falta valor fibra | Y32: Falta valor fibra | Z32: =IF(Valoració!$A$11=$A32,IF(Valoració!M$11>0,Valoració!M$11,""),"") ->  | AA32: =IF(K32="Falta valor fibra",K32,(92.6-0.013*K32)/100) -> Falta valor fibra | AB32: =IF(Z32="",Z32,IF(P32="","Falta valor cendres",(21.23+0.699*Z32*10000/R32)/100)) ->  | AC32: Falta valor fibra | AE32: =IF(AD32="",IF(AC32="Falta valor fibra", AC32,IF(D32="","Falta valor MNT",IF(J32="Falta valor EE",J32,IF(P32="","Falta valor cendres",(-3.94+AC32*100+0.0104*D32*10+0.0149*J32+0.0022*L32-0.0244*P32*10)/100)))),AD32) -> Falta valor fibra | AF32: Falta valor cendres | AG32: 0.81 | AH32: Falta valor MNT | AI32: =IF(Valoració!$A$11=$A32,IF(Valoració!L$11>0,Valoració!L$11,""),"") ->  | AJ32: =IF(AI32="",AI32,(47.9+0.36*AI32*100+15.4)/100) ->  | AK32: 0.81 | AL32: Falta valor cendres | AM32: Falta valor cendres | AN32: -87 | AO32: =IF(D32="","Falta valor MNT",IF(J32="Falta valor EE",J32,IF(K32="Falta valor fibra",K32,IF(P32="","Falta valor cendres",4134+1.473*D32*10+5.239*J32+0.925*K32-4.46*P32*10+AN32)))) -> Falta valor MNT | AP32: Falta valor MNT | AQ32: Falta valor cendres | AR32: Falta valor MNT | AS32: Falta valor MNT | AT32: Falta valor MNT | AU32: Falta valor MNT | AV32: Falta valor MNT | AW32: Falta valor MNT | AX32: Falta valor MNT | AY32: Falta valor MNT | AZ32: Falta valor MNT | BA32: 0.77 | BB32: Lleguminoses (pèsol, mongeta, llentia, tramús, etc.) | BD32: Falta valor MNT | BE32: Falta valor MNT | BF32: Falta valor MNT | BG32: Falta valor MNT | BH32: Falta valor MNT | BI32: Falta valor MNT | BJ32: 0.1714 | BM32: 2 | BN32: Falta valor fibra | BO32: Falta valor cendres | BP32: Falta valor EE | BQ32: Falta valor fibra | BR32: Falta valor fibra | BS32: Falta valor fibra | BT32: Falta valor fibra | BU32: Falta valor cendres | BV32: 1.3145 | BW32: 3.4136 | BX32: 2.17 | CN32: =BP32*0.85 ->  | CO32: 0.81 | CP32: Falta valor MNT | CQ32: Falta valor cendres
A33: 32 | B33: Lleguminoses extrussionades | C33: =IF(Valoració!$A$11=$A33,IF(Valoració!C$11>0,Valoració!C$11,""),"") ->  | D33: =IF(Valoració!$A$11=$A33,IF(Valoració!D$11>0,Valoració!D$11,""),"") ->  | E33: =IF(Valoració!$A$11=$A33,IF(Valoració!E$11>0,Valoració!E$11,""),"") ->  | G33: =IF(Valoració!$A$11=$A33,IF(Valoració!F$11>0,Valoració!F$11,""),"") ->  | H33: =IF(Valoració!$A$11=$A33,IF(Valoració!G$11>0,Valoració!G$11,""),"") ->  | I33: =IF(Valoració!$A$11=$A33,IF(Valoració!H$11>0,Valoració!H$11,""),"") ->  | J33: Falta valor EE | K33: Falta valor fibra | L33: Falta valor fibra | M33: Falta valor fibra | N33: =IF(Valoració!$A$11=$A33,IF(Valoració!I$11>0,Valoració!I$11,""),"") ->  | O33: Falta valor fibra | P33: =IF(Valoració!$A$11=$A33,IF(Valoració!J$11>0,Valoració!J$11,""),"") ->  | Q33: =IF(Valoració!$A$11=$A33,IF(Valoració!K$11>0,Valoració!K$11,""),"") ->  | R33: Falta valor cendres | S33: Falta valor cendres | T33: Falta valor MNT | U33: Falta valor EE | V33: Falta valor fibra | W33: Falta valor fibra | X33: Falta valor fibra | Y33: Falta valor fibra | Z33: =IF(Valoració!$A$11=$A33,IF(Valoració!M$11>0,Valoració!M$11,""),"") ->  | AA33: =IF(K33="Falta valor fibra",K33,(92.6-0.013*K33)/100) -> Falta valor fibra | AC33: Falta valor fibra | AE33: Falta valor fibra | AF33: Falta valor cendres | AG33: =IF(Valoració!$A$11=$A33,IF(Valoració!N$11>0,Valoració!N$11,""),"") ->  | AH33: Falta valor MNT | AI33: =IF(Valoració!$A$11=$A33,IF(Valoració!L$11>0,Valoració!L$11,""),"") ->  | AJ33: =IF(AI33="",AI33,(47.9+0.36*AI33*100+5.7)/100) ->  | AK33: Falta degradabilitat proteïnes | AL33: Falta valor cendres | AM33: Falta valor cendres | AO33: Falta valor MNT | AP33: Falta valor MNT | AQ33: Falta valor cendres | AR33: Falta valor MNT | AS33: Falta valor MNT | AT33: Falta valor MNT | AU33: Falta valor MNT | AV33: Falta valor MNT | AW33: Falta valor MNT | AX33: Falta valor MNT | AY33: Falta valor MNT | AZ33: Falta valor MNT | BB33: Lleguminoses extrussionades | BD33: Falta valor MNT | BE33: Falta valor MNT | BF33: Falta valor MNT | BG33: Falta valor MNT | BH33: Falta valor MNT | BI33: Falta valor MNT | BJ33: Falta valor fibra | BM33: 2 | BN33: Falta valor fibra | BO33: Falta valor cendres | BP33: Falta valor EE | BQ33: Falta valor fibra | BR33: Falta valor fibra | BS33: Falta valor fibra | BT33: Falta valor fibra | BU33: Falta valor cendres | BV33: 1.43 | BW33: 3.876 | BX33: 2.7 | CO33: Falta degradabilitat proteïnes | CP33: Falta valor MNT | CQ33: Falta valor cendres
A34: 33 | B34: Llí altres derivats | C34: =IF(Valoració!$A$11=$A34,IF(Valoració!C$11>0,Valoració!C$11,""),"") ->  | D34: =IF(Valoració!$A$11=$A34,IF(Valoració!D$11>0,Valoració!D$11,""),"") ->  | E34: =IF(Valoració!$A$11=$A34,IF(Valoració!E$11>0,Valoració!E$11,""),"") ->  | G34: =IF(Valoració!$A$11=$A34,IF(Valoració!F$11>0,Valoració!F$11,""),"") ->  | H34: =IF(Valoració!$A$11=$A34,IF(Valoració!G$11>0,Valoració!G$11,""),"") ->  | I34: =IF(Valoració!$A$11=$A34,IF(Valoració!H$11>0,Valoració!H$11,""),"") ->  | J34: Falta valor EE | K34: Falta valor fibra | L34: Falta valor fibra | M34: Falta valor fibra | N34: =IF(Valoració!$A$11=$A34,IF(Valoració!I$11>0,Valoració!I$11,""),"") ->  | O34: Falta valor fibra | P34: =IF(Valoració!$A$11=$A34,IF(Valoració!J$11>0,Valoració!J$11,""),"") ->  | Q34: =IF(Valoració!$A$11=$A34,IF(Valoració!K$11>0,Valoració!K$11,""),"") ->  | R34: Falta valor cendres | S34: Falta valor cendres | T34: Falta valor MNT | U34: Falta valor EE | V34: Falta valor fibra | W34: Falta valor fibra | X34: Falta valor fibra | Y34: Falta valor fibra | Z34: =IF(Valoració!$A$11=$A34,IF(Valoració!M$11>0,Valoració!M$11,""),"") ->  | AA34: =IF(K34="Falta valor fibra",K34,IF(D34="","Falta valor MNT",IF(P34="","Falta valor cendres",(89.6-0.106*K34+0.0088*D34*10-0.003*P34)/100))) -> Falta valor fibra | AC34: Falta valor fibra | AE34: Falta valor fibra | AF34: Falta valor cendres | AG34: 0.57 | AH34: Falta valor MNT | AI34: =IF(Valoració!$A$11=$A34,IF(Valoració!L$11>0,Valoració!L$11,""),"") ->  | AJ34: =IF(AI34="",AI34,(21.1+1.48*AI34*100-0.0076*(AI34*100)^2/100)) ->  | AK34: 0.57 | AL34: Falta valor cendres | AM34: Falta valor cendres | AN34: -46 | AO34: Falta valor MNT | AP34: Falta valor MNT | AQ34: Falta valor cendres | AR34: Falta valor MNT | AS34: Falta valor MNT | AT34: Falta valor MNT | AU34: Falta valor MNT | AV34: Falta valor MNT | AW34: Falta valor MNT | AX34: Falta valor MNT | AY34: Falta valor MNT | AZ34: Falta valor MNT | BB34: Llí altres derivats | BD34: Falta valor MNT | BE34: Falta valor MNT | BF34: Falta valor MNT | BG34: Falta valor MNT | BH34: Falta valor MNT | BI34: Falta valor MNT | BJ34: Falta valor fibra | BM34: 2 | BN34: Falta valor fibra | BO34: Falta valor cendres | BP34: Falta valor EE | BQ34: Falta valor fibra | BR34: Falta valor fibra | BS34: Falta valor fibra | BT34: Falta valor fibra | BU34: Falta valor cendres | BV34: 2.163333333 | BW34: 5.583333333 | BX34: 4 | CN34: =BP34*0.75 ->  | CO34: 0.57 | CP34: Falta valor MNT | CQ34: Falta valor cendres
A35: =A34+1 -> 34 | B35: Llí, gra | C35: =IF(Valoració!$A$11=$A35,IF(Valoració!C$11>0,Valoració!C$11,""),"") ->  | D35: =IF(Valoració!$A$11=$A35,IF(Valoració!D$11>0,Valoració!D$11,""),"") ->  | E35: =IF(Valoració!$A$11=$A35,IF(Valoració!E$11>0,Valoració!E$11,""),"") ->  | F35: 37.3 | G35: =IF(Valoració!$A$11=$A35,IF(Valoració!F$11>0,Valoració!F$11,""),"") ->  | H35: =IF(Valoració!$A$11=$A35,IF(Valoració!G$11>0,Valoració!G$11,""),"") ->  | I35: =IF(Valoració!$A$11=$A35,IF(Valoració!H$11>0,Valoració!H$11,""),"") ->  | J35: =IF(E35="",IF(F35="","Falta valor EE",F35*10),E35*10) -> 373 | K35: Falta valor fibra | L35: Falta valor fibra | M35: Falta valor fibra | N35: =IF(Valoració!$A$11=$A35,IF(Valoració!I$11>0,Valoració!I$11,""),"") ->  | O35: =IF(N35="",IF(K35="Falta valor fibra",K35,0.1649*K35^1.1136),N35*10) -> Falta valor fibra | P35: =IF(Valoració!$A$11=$A35,IF(Valoració!J$11>0,Valoració!J$11,""),"") ->  | Q35: =IF(Valoració!$A$11=$A35,IF(Valoració!K$11>0,Valoració!K$11,""),"") ->  | R35: =IF(P35="","Falta valor cendres",100-P35) -> Falta valor cendres | S35: =IF(R35="Falta valor cendres",R35,R35*C35/100) -> Falta valor cendres | T35: =IF(D35="","Falta valor MNT",IF(P35="","Falta valor cendres",C35*D35*10/S35)) -> Falta valor MNT | U35: =IF(J35="Falta valor EE",J35,IF(P35="","Falta valor cendres",J35*C35/S35)) -> Falta valor cendres | V35: =IF(K35="Falta valor fibra",K35,IF(P35="","Falta valor cendres",K35*C35/S35)) -> Falta valor fibra | W35: =IF(L35="Falta valor fibra",L35,IF(P35="","Falta valor cendres",L35*C35/S35)) -> Falta valor fibra | X35: =IF(M35="Falta valor fibra",M35,IF(P35="","Falta valor cendres",M35*C35/S35)) -> Falta valor fibra | Y35: =IF(O35="Falta valor fibra",O35,IF(P35="","Falta valor cendres",O35*C35/S35)) -> Falta valor fibra | Z35: =IF(Valoració!$A$11=$A35,IF(Valoració!M$11>0,Valoració!M$11,""),"") ->  | AA35: =IF(K35="Falta valor fibra",K35,(86-0.078*K35)/100) -> Falta valor fibra | AC35: Falta valor fibra | AD35: 0.8 | AE35: 0.8 | AF35: =IF(S35="Falta valor cendres",S35,IF($AC35="Falta valor fibra",AC35,IF(AC35="Falta valor MNT", AC35,$R35*AC35*10))) -> Falta valor cendres | AG35: 0.75 | AH35: Falta valor MNT | AI35: =IF(Valoració!$A$11=$A35,IF(Valoració!L$11>0,Valoració!L$11,""),"") ->  | AK35: =IF(AJ35="",IF(AG35="","Falta degradabilitat proteïnes",AG35),(6.92+0.945*AJ35*100-0.000811*(AJ35^2))/100) -> 0.75 | AL35: Falta valor cendres | AM35: Falta valor cendres | AN35: 116 | AO35: Falta valor MNT | AP35: Falta valor MNT | AQ35: Falta valor cendres | AR35: =IF(AO35="Falta valor MNT",AO35,IF(AO35="Falta valor EE",AO35,IF(AO35="Falta valor fibra",AO35,IF(AO35="Falta valor cendres",AO35,(2.9+0.017*D35*10-0.47*2)*AO35*0.01)))) -> Falta valor MNT | AS35: Falta valor MNT | AT35: Falta valor MNT | AU35: Falta valor MNT | AV35: Falta valor MNT | AW35: Falta valor MNT | AX35: Falta valor MNT | AY35: Falta valor MNT | AZ35: Falta valor MNT | BA35: 0.59 | BB35: =B35 -> Llí, gra | BC35: =IF(C35="","",C35) ->  | BD35: Falta valor MNT | BE35: Falta valor MNT | BF35: =IF(D35="","Falta valor MNT",D35*10) -> Falta valor MNT | BG35: =IF(BF35="Falta valor MNT",BF35,IF(AK35="Falta degradabilitat proteïnes",AK35,IF(AH35="Falta valor fibra",AH35,IF(AH35="Falta valor cendres",AH35,BF35*(1-AK35)*AH35)))) -> Falta valor MNT | BH35: Falta valor MNT | BI35: Falta valor MNT | BJ35: =IF(BA35="",IF(Q35="",IF(M35="Falta valor fibra",M35,0.2127+0.0006289*M35),0.222-0.000082*Q35*10+0.000236*M35+0.328*(1-AC35)),0.8105-0.0083*BA35*100) -> 0.3208 | BM35: 2 | BN35: =AC35 -> Falta valor fibra | BO35: =AF35 -> Falta valor cendres | BP35: =J35 -> 373 | BQ35: =K35 -> Falta valor fibra | BR35: =L35 -> Falta valor fibra | BS35: =M35 -> Falta valor fibra | BT35: =O35 -> Falta valor fibra | BU35: =IF(P35="","Falta valor cendres",P35*10) -> Falta valor cendres | BV35: 1.65 | BW35: 4.221 | BX35: 4 | CN35: =BP35*0.95 -> 354.35 | CO35: =AK35 -> 0.75 | CP35: =AH35 -> Falta valor MNT | CQ35: =AL35 -> Falta valor cendres
A36: 35 | B36: Mandioca, patates | C36: =IF(Valoració!$A$11=$A36,IF(Valoració!C$11>0,Valoració!C$11,""),"") ->  | D36: =IF(Valoració!$A$11=$A36,IF(Valoració!D$11>0,Valoració!D$11,""),"") ->  | E36: =IF(Valoració!$A$11=$A36,IF(Valoració!E$11>0,Valoració!E$11,""),"") ->  | G36: =IF(Valoració!$A$11=$A36,IF(Valoració!F$11>0,Valoració!F$11,""),"") ->  | H36: =IF(Valoració!$A$11=$A36,IF(Valoració!G$11>0,Valoració!G$11,""),"") ->  | I36: =IF(Valoració!$A$11=$A36,IF(Valoració!H$11>0,Valoració!H$11,""),"") ->  | J36: Falta valor EE | K36: Falta valor fibra | L36: Falta valor fibra | M36: Falta valor fibra | N36: =IF(Valoració!$A$11=$A36,IF(Valoració!I$11>0,Valoració!I$11,""),"") ->  | O36: Falta valor fibra | P36: =IF(Valoració!$A$11=$A36,IF(Valoració!J$11>0,Valoració!J$11,""),"") ->  | Q36: =IF(Valoració!$A$11=$A36,IF(Valoració!K$11>0,Valoració!K$11,""),"") ->  | R36: Falta valor cendres | S36: Falta valor cendres | T36: Falta valor MNT | U36: Falta valor EE | V36: Falta valor fibra | W36: Falta valor fibra | X36: Falta valor fibra | Y36: Falta valor fibra | Z36: =IF(Valoració!$A$11=$A36,IF(Valoració!M$11>0,Valoració!M$11,""),"") ->  | AA36: =IF(K36="Falta valor fibra",K36,(97.81-0.112*K36)/100) -> Falta valor fibra | AC36: Falta valor fibra | AE36: Falta valor fibra | AF36: Falta valor cendres | AG36: 0.61 | AH36: Falta valor MNT | AI36: =IF(Valoració!$A$11=$A36,IF(Valoració!L$11>0,Valoració!L$11,""),"") ->  | AK36: 0.61 | AL36: Falta valor cendres | AM36: Falta valor cendres | AN36: -55 | AO36: Falta valor MNT | AP36: Falta valor MNT | AQ36: Falta valor cendres | AR36: Falta valor MNT | AS36: Falta valor MNT | AT36: Falta valor MNT | AU36: Falta valor MNT | AV36: Falta valor MNT | AW36: Falta valor MNT | AX36: Falta valor MNT | AY36: Falta valor MNT | AZ36: Falta valor MNT | BA36: 0.83 | BB36: Mandioca, patates | BD36: Falta valor MNT | BE36: Falta valor MNT | BF36: Falta valor MNT | BG36: Falta valor MNT | BH36: Falta valor MNT | BI36: Falta valor MNT | BJ36: 0.1216 | BM36: 2 | BN36: Falta valor fibra | BO36: Falta valor cendres | BP36: Falta valor EE | BQ36: Falta valor fibra | BR36: Falta valor fibra | BS36: Falta valor fibra | BT36: Falta valor fibra | BU36: Falta valor cendres | BV36: 1.19625 | BW36: 1.10625 | BX36: 1.1 | CN36: =BP36*0.8 ->  | CO36: 0.61 | CP36: Falta valor MNT | CQ36: Falta valor cendres
A37: 36 | B37: Margalló tortó (palmiste) | C37: =IF(Valoració!$A$11=$A37,IF(Valoració!C$11>0,Valoració!C$11,""),"") ->  | D37: =IF(Valoració!$A$11=$A37,IF(Valoració!D$11>0,Valoració!D$11,""),"") ->  | E37: =IF(Valoració!$A$11=$A37,IF(Valoració!E$11>0,Valoració!E$11,""),"") ->  | F37: 3.4 | G37: =IF(Valoració!$A$11=$A37,IF(Valoració!F$11>0,Valoració!F$11,""),"") ->  | H37: =IF(Valoració!$A$11=$A37,IF(Valoració!G$11>0,Valoració!G$11,""),"") ->  | I37: =IF(Valoració!$A$11=$A37,IF(Valoració!H$11>0,Valoració!H$11,""),"") ->  | J37: 34 | K37: Falta valor fibra | L37: Falta valor fibra | M37: Falta valor fibra | N37: =IF(Valoració!$A$11=$A37,IF(Valoració!I$11>0,Valoració!I$11,""),"") ->  | O37: Falta valor fibra | P37: =IF(Valoració!$A$11=$A37,IF(Valoració!J$11>0,Valoració!J$11,""),"") ->  | Q37: =IF(Valoració!$A$11=$A37,IF(Valoració!K$11>0,Valoració!K$11,""),"") ->  | R37: Falta valor cendres | S37: Falta valor cendres | T37: Falta valor MNT | U37: Falta valor cendres | V37: Falta valor fibra | W37: Falta valor fibra | X37: Falta valor fibra | Y37: Falta valor fibra | Z37: =IF(Valoració!$A$11=$A37,IF(Valoració!M$11>0,Valoració!M$11,""),"") ->  | AA37: =IF(K37="Falta valor fibra",K37,(95.1-0.132*K37)/100) -> Falta valor fibra | AC37: Falta valor fibra | AD37: 0.65 | AE37: 0.65 | AF37: Falta valor cendres | AG37: 0.45 | AH37: Falta valor MNT | AI37: =IF(Valoració!$A$11=$A37,IF(Valoració!L$11>0,Valoració!L$11,""),"") ->  | AK37: 0.45 | AL37: Falta valor cendres | AM37: Falta valor cendres | AN37: -46 | AO37: Falta valor MNT | AP37: Falta valor MNT | AQ37: Falta valor cendres | AR37: Falta valor MNT | AS37: Falta valor MNT | AT37: Falta valor MNT | AU37: Falta valor MNT | AV37: Falta valor MNT | AW37: Falta valor MNT | AX37: Falta valor MNT | AY37: Falta valor MNT | AZ37: Falta valor MNT | BA37: 0.46 | BB37: Margalló tortó (palmiste) | BD37: Falta valor MNT | BE37: Falta valor MNT | BF37: Falta valor MNT | BG37: Falta valor MNT | BH37: Falta valor MNT | BI37: Falta valor MNT | BJ37: 0.4287 | BM37: 2 | BN37: Falta valor fibra | BO37: Falta valor cendres | BP37: 34 | BQ37: Falta valor fibra | BR37: Falta valor fibra | BS37: Falta valor fibra | BT37: Falta valor fibra | BU37: Falta valor cendres | CN37: =BP37*0.9 -> 30.6 | CO37: 0.45 | CP37: Falta valor MNT | CQ37: Falta valor cendres
A38: 37 | B38: Melassa canya | C38: =IF(Valoració!$A$11=$A38,IF(Valoració!C$11>0,Valoració!C$11,""),"") ->  | D38: =IF(Valoració!$A$11=$A38,IF(Valoració!D$11>0,Valoració!D$11,""),"") ->  | E38: =IF(Valoració!$A$11=$A38,IF(Valoració!E$11>0,Valoració!E$11,""),"") ->  | G38: =IF(Valoració!$A$11=$A38,Valoració!F$11,"") ->  | H38: =IF(Valoració!$A$11=$A38,Valoració!G$11,"") ->  | I38: =IF(Valoració!$A$11=$A38,Valoració!H$11,"") ->  | J38: Falta valor EE | K38: Falta valor fibra | L38: Falta valor fibra | M38: Falta valor fibra | N38: =IF(Valoració!$A$11=$A38,IF(Valoració!I$11>0,Valoració!I$11,""),"") ->  | O38: Falta valor fibra | P38: =IF(Valoració!$A$11=$A38,IF(Valoració!J$11>0,Valoració!J$11,""),"") ->  | Q38: =IF(Valoració!$A$11=$A38,IF(Valoració!K$11>0,Valoració!K$11,""),"") ->  | R38: Falta valor cendres | S38: Falta valor cendres | T38: Falta valor MNT | U38: Falta valor EE | V38: Falta valor fibra | W38: Falta valor fibra | X38: Falta valor fibra | Y38: Falta valor fibra | Z38: =IF(Valoració!$A$11=$A38,IF(Valoració!M$11>0,Valoració!M$11,""),"") ->  | AA38: =IF(K38="Falta valor fibra",K38,IF(K38=0,"",(97.81-0.112*L38)/100)) -> Falta valor fibra | AC38: =IF(Z38="",IF(AA38="",IF(AB38="",0.74),AA38)) -> Falta valor fibra | AE38: =IF(AD38="",IF(AC38="No hi ha equació", AC38,IF(D38="","Falta valor MNT",IF(J38="Falta valor EE",J38,IF(P38="","Falta valor cendres",(-3.94+AC38*100+0.0104*D38*10+0.0149*J38+0.0022*L38-0.0244*P38*10)/100))))) -> Falta valor MNT | AF38: Falta valor cendres | AG38: 0.93 | AH38: 1 | AI38: =IF(Valoració!$A$11=$A38,IF(Valoració!L$11>0,Valoració!L$11,""),"") ->  | AK38: 0.93 | AL38: =IF(AF38="No hi ha equació",AF38,IF(D38="","Falta valor MNT",IF(AK38="Falta degradabilitat proteïnes",AK38,(AF38-D38*10*(1-AK38)-J38)))) -> Falta valor MNT | AM38: =IF(AL38="No hi ha equació",AL38,IF(AL38="Falta valor MNT",AL38,IF(AL38="Falta degradabilitat proteïnes",AL38,IF(AL38="Falta valor EE",AL38,(41.67+AL38*71.9*10^-3)*0.8*0.8)))) -> Falta valor MNT | AN38: -52 | AO38: =IF(D38="","Falta valor MNT",IF(P38="","Falta valor cendres",4134+1.473*D38*10+5.239*J38+0.925*K38-4.46*P38*10+AN38)) -> Falta valor MNT | AP38: =IF(AE38="No hi ha equació",AE38,IF(AO38="Falta valor MNT",AO38,IF(AO38="Falta valor fibra",AO38,IF(AO38="Falta valor cendres",AO38,IF(AO38="Falta valor EE",AO38,AO38*AE38))))) -> Falta valor MNT | AQ38: =IF(AF38="No hi ha equació",AF38,IF(AF38="Falta valor fibra",AF38,IF(AF38="Falta valor cendres",AF38,IF(AF38="Falta valor MNT",AF38,((45.42-6.66*2+0.75*2^2)*AF38*12.5*(10^-3)))))) -> Falta valor cendres | AR38: Falta valor MNT | AS38: =IF(AP38="No hi ha equació",AP38,IF(AP38="Falta valor MNT",AP38,IF(AP38="Falta valor fibra",AP38,IF(AP38="Falta valor cendres",AP38,IF(AP38="Falta valor EE",AP38,AP38-AQ38-AR38))))) -> Falta valor MNT | AT38: =IF(AS38="No hi ha equació",AS38,IF(AS38="Falta valor MNT",AS38,IF(AS38="Falta valor fibra",AS38,IF(AS38="Falta valor cendres",AS38,IF(AS38="Falta valor EE",AS38,AS38/AO38))))) -> Falta valor MNT | AU38: =IF(AT38="No hi ha equació",AT38,IF(AT38="Falta valor MNT",AT38,IF(AT38="Falta valor fibra",AT38,IF(AT38="Falta valor cendres",AT38,IF(AT38="Falta valor EE",AT38,0.287*AT38+0.554))))) -> Falta valor MNT | AV38: =IF(AT38="No hi ha equació",AT38,IF(AT38="Falta valor MNT",AT38,IF(AT38="Falta valor fibra",AT38,IF(AT38="Falta valor cendres",AT38,IF(AT38="Falta valor EE",AT38,0.78*AT38+0.006))))) -> Falta valor MNT | AW38: =IF(AV38="No hi ha equació",AV38,IF(AU38="Falta valor MNT",AU38,IF(AU38="Falta valor fibra",AU38,IF(AU38="Falta valor cendres",AU38,IF(AU38="Falta valor EE",AU38,(AU38*AV38*1.5)/(AV38+0.5*AU38)))))) -> Falta valor MNT | AX38: =IF(AT38="No hi ha equació",AT38,IF(AT38="Falta valor MNT",AT38,IF(AT38="Falta valor fibra",AT38,IF(AT38="Falta valor cendres",AT38,IF(AT38="Falta valor EE",AT38,0.65+0.247*(AT38-0.63)))))) -> Falta valor MNT | AY38: =IF(AS38="No hi ha equació",AS38,IF(AS38="Falta valor MNT",AS38,IF(AS38="Falta valor fibra",AS38,IF(AS38="Falta valor cendres",AS38,IF(AS38="Falta valor EE",AS38,AS38*AX38))))) -> Falta valor MNT | AZ38: =IF(AS38="No hi ha equació",AS38,IF(AS38="Falta valor MNT",AS38,IF(AS38="Falta valor fibra",AS38,IF(AS38="Falta valor cendres",AS38,IF(AS38="Falta valor EE",AS38,AS38*AW38))))) -> Falta valor MNT | BA38: 2.83 | BB38: Melassa canya | BD38: =IF(AY38="No hi ha equació",AY38,IF(AY38="Falta valor MNT",AY38,IF(AY38="Falta valor fibra",AY38,IF(AY38="Falta valor cendres",AY38,IF(AY38="Falta valor EE",AY38,AY38/1760))))) -> Falta valor MNT | BE38: =IF(AZ38="No hi ha equació",AZ38,IF(AZ38="Falta valor MNT",AZ38,IF(AZ38="Falta valor fibra",AZ38,IF(AZ38="Falta valor cendres",AZ38,IF(AZ38="Falta valor EE",AZ38,AZ38/1760))))) -> Falta valor MNT | BF38: Falta valor MNT | BG38: Falta valor MNT | BH38: =IF(AM38="No hi ha equació",AM38,IF(BG38="Falta valor MNT",BG38,IF(BG38="Falta degradabilitat proteïnes",BG38,IF(BG38="Falta valor fibra",BG38,IF(BG38="Falta valor cendres",BG38,BG38+AM38))))) -> Falta valor MNT | BI38: =IF(AL38="No hi ha equació",AL38,IF(D38="","Falta valor MNT",IF(J38="Falta valor EE",J38,IF(P38="","Falta valor cendres",IF(AK38="Falta degradabilitat proteïnes",AK38,IF(AK38="Revisar components",AK38,BF38*AK38-(41.67+AL38*71.9*(10^-3))-14.2)))))) -> Falta valor MNT | BJ38: -1.5384 | BM38: 4 | BN38: Falta valor fibra | BO38: Falta valor cendres | BP38: Falta valor EE | BQ38: Falta valor fibra | BR38: Falta valor fibra | BS38: Falta valor fibra | BT38: Falta valor fibra | BU38: Falta valor cendres | BV38: 5.005 | BW38: 0.63 | BX38: 4.3 | CN38: 12 | CO38: 0.93 | CP38: 1 | CQ38: Falta valor MNT
A39: 38 | B39: Melassa remolatxa | C39: =IF(Valoració!$A$11=$A39,IF(Valoració!C$11>0,Valoració!C$11,""),"") ->  | D39: =IF(Valoració!$A$11=$A39,IF(Valoració!D$11>0,Valoració!D$11,""),"") ->  | E39: =IF(Valoració!$A$11=$A39,IF(Valoració!E$11>0,Valoració!E$11,""),"") ->  | G39: =IF(Valoració!$A$11=$A39,Valoració!F$11,"") ->  | H39: =IF(Valoració!$A$11=$A39,Valoració!G$11,"") ->  | I39: =IF(Valoració!$A$11=$A39,Valoració!H$11,"") ->  | J39: Falta valor EE | K39: Falta valor fibra | L39: Falta valor fibra | M39: Falta valor fibra | N39: =IF(Valoració!$A$11=$A39,IF(Valoració!I$11>0,Valoració!I$11,""),"") ->  | O39: Falta valor fibra | P39: =IF(Valoració!$A$11=$A39,IF(Valoració!J$11>0,Valoració!J$11,""),"") ->  | Q39: =IF(Valoració!$A$11=$A39,IF(Valoració!K$11>0,Valoració!K$11,""),"") ->  | R39: Falta valor cendres | S39: Falta valor cendres | T39: Falta valor MNT | U39: Falta valor EE | V39: Falta valor fibra | W39: Falta valor fibra | X39: Falta valor fibra | Y39: Falta valor fibra | Z39: =IF(Valoració!$A$11=$A39,IF(Valoració!M$11>0,Valoració!M$11,""),"") ->  | AA39: =IF(K39="Falta valor fibra",K39,IF(K39=0,"",(97.81-0.112*L39)/100)) -> Falta valor fibra | AC39: =IF(Z39="",IF(AA39="",IF(AB39="",0.74),AA39)) -> Falta valor fibra | AE39: =IF(AD39="",IF(AC39="No hi ha equació", AC39,IF(D39="","Falta valor MNT",IF(J39="Falta valor EE",J39,IF(P39="","Falta valor cendres",(-3.94+AC39*100+0.0104*D39*10+0.0149*J39+0.0022*L39-0.0244*P39*10)/100))))) -> Falta valor MNT | AF39: Falta valor cendres | AG39: 0.93 | AH39: 1 | AI39: =IF(Valoració!$A$11=$A39,IF(Valoració!L$11>0,Valoració!L$11,""),"") ->  | AK39: 0.93 | AL39: =IF(AF39="No hi ha equació",AF39,IF(D39="","Falta valor MNT",IF(AK39="Falta degradabilitat proteïnes",AK39,(AF39-D39*10*(1-AK39)-J39)))) -> Falta valor MNT | AM39: =IF(AL39="No hi ha equació",AL39,IF(AL39="Falta valor MNT",AL39,IF(AL39="Falta degradabilitat proteïnes",AL39,IF(AL39="Falta valor EE",AL39,(41.67+AL39*71.9*10^-3)*0.8*0.8)))) -> Falta valor MNT | AN39: -53 | AO39: =IF(D39="","Falta valor MNT",IF(P39="","Falta valor cendres",4134+1.473*D39*10+5.239*J39+0.925*K39-4.46*P39*10+AN39)) -> Falta valor MNT | AP39: =IF(AE39="No hi ha equació",AE39,IF(AO39="Falta valor MNT",AO39,IF(AO39="Falta valor fibra",AO39,IF(AO39="Falta valor cendres",AO39,IF(AO39="Falta valor EE",AO39,AO39*AE39))))) -> Falta valor MNT | AQ39: =IF(AF39="No hi ha equació",AF39,IF(AF39="Falta valor fibra",AF39,IF(AF39="Falta valor cendres",AF39,IF(AF39="Falta valor MNT",AF39,((45.42-6.66*2+0.75*2^2)*AF39*12.5*(10^-3)))))) -> Falta valor cendres | AR39: Falta valor MNT | AS39: =IF(AP39="No hi ha equació",AP39,IF(AP39="Falta valor MNT",AP39,IF(AP39="Falta valor fibra",AP39,IF(AP39="Falta valor cendres",AP39,IF(AP39="Falta valor EE",AP39,AP39-AQ39-AR39))))) -> Falta valor MNT | AT39: =IF(AS39="No hi ha equació",AS39,IF(AS39="Falta valor MNT",AS39,IF(AS39="Falta valor fibra",AS39,IF(AS39="Falta valor cendres",AS39,IF(AS39="Falta valor EE",AS39,AS39/AO39))))) -> Falta valor MNT | AU39: =IF(AT39="No hi ha equació",AT39,IF(AT39="Falta valor MNT",AT39,IF(AT39="Falta valor fibra",AT39,IF(AT39="Falta valor cendres",AT39,IF(AT39="Falta valor EE",AT39,0.287*AT39+0.554))))) -> Falta valor MNT | AV39: =IF(AT39="No hi ha equació",AT39,IF(AT39="Falta valor MNT",AT39,IF(AT39="Falta valor fibra",AT39,IF(AT39="Falta valor cendres",AT39,IF(AT39="Falta valor EE",AT39,0.78*AT39+0.006))))) -> Falta valor MNT | AW39: =IF(AV39="No hi ha equació",AV39,IF(AU39="Falta valor MNT",AU39,IF(AU39="Falta valor fibra",AU39,IF(AU39="Falta valor cendres",AU39,IF(AU39="Falta valor EE",AU39,(AU39*AV39*1.5)/(AV39+0.5*AU39)))))) -> Falta valor MNT | AX39: =IF(AT39="No hi ha equació",AT39,IF(AT39="Falta valor MNT",AT39,IF(AT39="Falta valor fibra",AT39,IF(AT39="Falta valor cendres",AT39,IF(AT39="Falta valor EE",AT39,0.65+0.247*(AT39-0.63)))))) -> Falta valor MNT | AY39: =IF(AS39="No hi ha equació",AS39,IF(AS39="Falta valor MNT",AS39,IF(AS39="Falta valor fibra",AS39,IF(AS39="Falta valor cendres",AS39,IF(AS39="Falta valor EE",AS39,AS39*AX39))))) -> Falta valor MNT | AZ39: =IF(AS39="No hi ha equació",AS39,IF(AS39="Falta valor MNT",AS39,IF(AS39="Falta valor fibra",AS39,IF(AS39="Falta valor cendres",AS39,IF(AS39="Falta valor EE",AS39,AS39*AW39))))) -> Falta valor MNT | BA39: 1.83 | BB39: Melassa remolatxa | BD39: =IF(AY39="No hi ha equació",AY39,IF(AY39="Falta valor MNT",AY39,IF(AY39="Falta valor fibra",AY39,IF(AY39="Falta valor cendres",AY39,IF(AY39="Falta valor EE",AY39,AY39/1760))))) -> Falta valor MNT | BE39: =IF(AZ39="No hi ha equació",AZ39,IF(AZ39="Falta valor MNT",AZ39,IF(AZ39="Falta valor fibra",AZ39,IF(AZ39="Falta valor cendres",AZ39,IF(AZ39="Falta valor EE",AZ39,AZ39/1760))))) -> Falta valor MNT | BF39: Falta valor MNT | BG39: Falta valor MNT | BH39: =IF(AM39="No hi ha equació",AM39,IF(BG39="Falta valor MNT",BG39,IF(BG39="Falta degradabilitat proteïnes",BG39,IF(BG39="Falta valor fibra",BG39,IF(BG39="Falta valor cendres",BG39,BG39+AM39))))) -> Falta valor MNT | BI39: =IF(AL39="No hi ha equació",AL39,IF(D39="","Falta valor MNT",IF(J39="Falta valor EE",J39,IF(P39="","Falta valor cendres",IF(AK39="Falta degradabilitat proteïnes",AK39,IF(AK39="Revisar components",AK39,BF39*AK39-(41.67+AL39*71.9*(10^-3))-14.2)))))) -> Falta valor MNT | BJ39: -0.7084 | BM39: 3 | BN39: Falta valor fibra | BO39: Falta valor cendres | BP39: Falta valor EE | BQ39: Falta valor fibra | BR39: Falta valor fibra | BS39: Falta valor fibra | BT39: Falta valor fibra | BU39: Falta valor cendres | BV39: 0.66 | BW39: 0.27 | BX39: 0.3 | CN39: 2 | CO39: 0.93 | CP39: 1 | CQ39: Falta valor MNT
A40: 39 | B40: Ordi | C40: =IF(Valoració!$A$11=$A40,IF(Valoració!C$11>0,Valoració!C$11,""),"") ->  | D40: =IF(Valoració!$A$11=$A40,IF(Valoració!D$11>0,Valoració!D$11,""),"") ->  | E40: =IF(Valoració!$A$11=$A40,IF(Valoració!E$11>0,Valoració!E$11,""),"") ->  | F40: 1.9 | G40: =IF(Valoració!$A$11=$A40,IF(Valoració!F$11>0,Valoració!F$11,""),"") ->  | H40: =IF(Valoració!$A$11=$A40,IF(Valoració!G$11>0,Valoració!G$11,""),"") ->  | I40: =IF(Valoració!$A$11=$A40,IF(Valoració!H$11>0,Valoració!H$11,""),"") ->  | J40: 19 | K40: Falta valor fibra | L40: Falta valor fibra | M40: Falta valor fibra | N40: =IF(Valoració!$A$11=$A40,IF(Valoració!I$11>0,Valoració!I$11,""),"") ->  | O40: Falta valor fibra | P40: =IF(Valoració!$A$11=$A40,IF(Valoració!J$11>0,Valoració!J$11,""),"") ->  | Q40: =IF(Valoració!$A$11=$A40,IF(Valoració!K$11>0,Valoració!K$11,""),"") ->  | R40: Falta valor cendres | S40: Falta valor cendres | T40: Falta valor MNT | U40: Falta valor cendres | V40: Falta valor fibra | W40: Falta valor fibra | X40: Falta valor fibra | Y40: Falta valor fibra | Z40: =IF(Valoració!$A$11=$A40,IF(Valoració!M$11>0,Valoració!M$11,""),"") ->  | AA40: =IF(K40="Falta valor fibra",K40,IF(D40="","Falta valor MNT",IF(P40="","Falta valor cendres",(92.2-0.149*K40+0.0074*D40*10-0.05*P40*10)/100))) -> Falta valor fibra | AC40: =IF(Z40="",IF(K40="Falta valor fibra",K40,AA40),AB40) -> Falta valor fibra | AD40: 0.78 | AE40: =IF(AD40="",IF(AC40="Falta valor fibra", AC40,IF(D40="","Falta valor MNT",IF(J40="Falta valor EE",J40,IF(P40="","Falta valor cendres",(-3.94+AC40*100+0.0104*D40*10+0.0149*J40+0.0022*L40-0.0244*P40*10)/100)))),AD40) -> 0.78 | AF40: Falta valor cendres | AG40: 0.71 | AH40: =IF(D40="","Falta valor MNT",IF(O40="Falta valor fibra",O40,IF(AF40="Falta valor fibra",AF40,IF(P40="","Falta valor cendres",(88.3+0.0371*D40*10-3.7*(10^-5)*(D40*10)^2-0.107*O40-0.0313*(1000-AF40))/100)))) -> Falta valor MNT | AI40: =IF(Valoració!$A$11=$A40,IF(Valoració!L$11>0,Valoració!L$11,""),"") ->  | AJ40: =IF(AI40="",AI40,(47.9+0.36*AI40*100+11)/100) ->  | AK40: 0.71 | AL40: =IF(AF40="Falta valor cendres",AF40,IF(D40="","Falta valor MNT",IF(AK40="Falta degradabilitat proteïnes",AK40,IF(J40="Falta valor EE",J40,(AF40-D40*10*(1-AK40)-J40))))) -> Falta valor cendres | AM40: =IF(AL40="Falta valor cendres",AL40,IF(AL40="Falta valor MNT",AL40,IF(AL40="Falta degradabilitat proteïnes",AL40,IF(AL40="Falta valor EE",AL40,(41.67+AL40*71.9*10^-3)*0.8*0.8)))) -> Falta valor cendres | AN40: 36 | AO40: =IF(D40="","Falta valor MNT",IF(J40="Falta valor EE",J40,IF(K40="Falta valor fibra",K40,IF(P40="","Falta valor cendres",(4134+1.473*T40+5.239*U40+0.925*V40-4.46*P40/R40+AN40)*R40/100)))) -> Falta valor MNT | AP40: =IF(AO40="Falta valor MNT",AO40,IF(AO40="Falta valor fibra",AO40,IF(AO40="Falta valor cendres",AO40,IF(AO40="Falta valor EE",AO40,AO40*AE40)))) -> Falta valor MNT | AQ40: =IF(AF40="Falta valor fibra",AF40,IF(AF40="Falta valor cendres",AF40,IF(AF40="Falta valor MNT",AF40,((45.42-6.66*2+0.75*2^2)*AF40*12.5*(10^-3))))) -> Falta valor cendres | AR40: Falta valor MNT | AS40: =IF(AP40="Falta valor MNT",AP40,IF(AP40="Falta valor fibra",AP40,IF(AP40="Falta valor cendres",AP40,IF(AP40="Falta valor EE",AP40,AP40-AQ40-AR40)))) -> Falta valor MNT | AT40: =IF(AS40="Falta valor MNT",AS40,IF(AS40="Falta valor fibra",AS40,IF(AS40="Falta valor cendres",AS40,IF(AS40="Falta valor EE",AS40,AS40/AO40)))) -> Falta valor MNT | AU40: =IF(AT40="Falta valor MNT",AT40,IF(AT40="Falta valor fibra",AT40,IF(AT40="Falta valor cendres",AT40,IF(AT40="Falta valor EE",AT40,0.287*AT40+0.554)))) -> Falta valor MNT | AV40: =IF(AT40="Falta valor MNT",AT40,IF(AT40="Falta valor fibra",AT40,IF(AT40="Falta valor cendres",AT40,IF(AT40="Falta valor EE",AT40,0.78*AT40+0.006)))) -> Falta valor MNT | AW40: =IF(AU40="Falta valor MNT",AU40,IF(AU40="Falta valor fibra",AU40,IF(AU40="Falta valor cendres",AU40,IF(AU40="Falta valor EE",AU40,(AU40*AV40*1.5)/(AV40+0.5*AU40))))) -> Falta valor MNT | AX40: =IF(AT40="Falta valor MNT",AT40,IF(AT40="Falta valor fibra",AT40,IF(AT40="Falta valor cendres",AT40,IF(AT40="Falta valor EE",AT40,0.65+0.247*(AT40-0.63))))) -> Falta valor MNT | AY40: =IF(AS40="Falta valor MNT",AS40,IF(AS40="Falta valor fibra",AS40,IF(AS40="Falta valor cendres",AS40,IF(AS40="Falta valor EE",AS40,AS40*AX40)))) -> Falta valor MNT | AZ40: =IF(AS40="Falta valor MNT",AS40,IF(AS40="Falta valor fibra",AS40,IF(AS40="Falta valor cendres",AS40,IF(AS40="Falta valor EE",AS40,AS40*AW40)))) -> Falta valor MNT | BA40: 0.73 | BB40: Ordi | BD40: =IF(AY40="Falta valor MNT",AY40,IF(AY40="Falta valor fibra",AY40,IF(AY40="Falta valor cendres",AY40,IF(AY40="Falta valor EE",AY40,AY40/1760)))) -> Falta valor MNT | BE40: =IF(AZ40="Falta valor MNT",AZ40,IF(AZ40="Falta valor fibra",AZ40,IF(AZ40="Falta valor cendres",AZ40,IF(AZ40="Falta valor EE",AZ40,AZ40/1760)))) -> Falta valor MNT | BF40: Falta valor MNT | BG40: Falta valor MNT | BH40: =IF(BG40="Falta valor MNT",BG40,IF(BG40="Falta degradabilitat proteïnes",BG40,IF(BG40="Falta valor fibra",BG40,IF(BG40="Falta valor cendres",BG40,BG40+AM40)))) -> Falta valor MNT | BI40: =IF(D40="","Falta valor MNT",IF(J40="Falta valor EE",J40,IF(P40="","Falta valor cendres",IF(AK40="Falta degradabilitat proteïnes",AK40,IF(AK40="Revisar components",AK40,BF40*AK40-(41.67+AL40*71.9*(10^-3))-14.2))))) -> Falta valor MNT | BJ40: 0.2046 | BM40: 2 | BN40: Falta valor fibra | BO40: Falta valor cendres | BP40: 19 | BQ40: Falta valor fibra | BR40: Falta valor fibra | BS40: Falta valor fibra | BT40: Falta valor fibra | BU40: Falta valor cendres | BV40: 0.44 | BW40: 2.964 | BX40: 1.3 | CN40: =BP40*0.75 -> 14.25 | CO40: 0.71 | CP40: Falta valor MNT | CQ40: Falta valor cendres
A41: 40 | B41: Ordi altres derivats | C41: =IF(Valoració!$A$11=$A41,IF(Valoració!C$11>0,Valoració!C$11,""),"") ->  | D41: =IF(Valoració!$A$11=$A41,IF(Valoració!D$11>0,Valoració!D$11,""),"") ->  | E41: =IF(Valoració!$A$11=$A41,IF(Valoració!E$11>0,Valoració!E$11,""),"") ->  | G41: =IF(Valoració!$A$11=$A41,IF(Valoració!F$11>0,Valoració!F$11,""),"") ->  | H41: =IF(Valoració!$A$11=$A41,IF(Valoració!G$11>0,Valoració!G$11,""),"") ->  | I41: =IF(Valoració!$A$11=$A41,IF(Valoració!H$11>0,Valoració!H$11,""),"") ->  | J41: Falta valor EE | K41: Falta valor fibra | L41: Falta valor fibra | M41: Falta valor fibra | N41: =IF(Valoració!$A$11=$A41,IF(Valoració!I$11>0,Valoració!I$11,""),"") ->  | O41: Falta valor fibra | P41: =IF(Valoració!$A$11=$A41,IF(Valoració!J$11>0,Valoració!J$11,""),"") ->  | Q41: =IF(Valoració!$A$11=$A41,IF(Valoració!K$11>0,Valoració!K$11,""),"") ->  | R41: Falta valor cendres | S41: Falta valor cendres | T41: Falta valor MNT | U41: Falta valor EE | V41: Falta valor fibra | W41: Falta valor fibra | X41: Falta valor fibra | Y41: Falta valor fibra | Z41: =IF(Valoració!$A$11=$A41,IF(Valoració!M$11>0,Valoració!M$11,""),"") ->  | AA41: =IF(K41="Falta valor fibra",K41,IF(D41="","Falta valor MNT",IF(P41="","Falta valor cendres",(92.2-0.149*K41+0.0074*D41*10-0.05*P41*10)/100))) -> Falta valor fibra | AC41: Falta valor fibra | AE41: Falta valor fibra | AF41: Falta valor cendres | AG41: 0.72 | AH41: Falta valor MNT | AI41: =IF(Valoració!$A$11=$A41,IF(Valoració!L$11>0,Valoració!L$11,""),"") ->  | AJ41: =IF(AI41="",AI41,(47.9+0.36*AI41*100+11)/100) ->  | AK41: 0.72 | AL41: Falta valor cendres | AM41: Falta valor cendres | AO41: =IF(D41="","Falta valor MNT",IF(J41="Falta valor EE",J41,IF(K41="Falta valor fibra",K41,IF(P41="","Falta valor cendres",4134+1.473*D41*10+5.239*J41+0.925*K41-4.46*P41*10+AN41)))) -> Falta valor MNT | AP41: Falta valor MNT | AQ41: Falta valor cendres | AR41: Falta valor MNT | AS41: Falta valor MNT | AT41: Falta valor MNT | AU41: Falta valor MNT | AV41: Falta valor MNT | AW41: Falta valor MNT | AX41: Falta valor MNT | AY41: Falta valor MNT | AZ41: Falta valor MNT | BB41: Ordi altres derivats | BD41: Falta valor MNT | BE41: Falta valor MNT | BF41: Falta valor MNT | BG41: Falta valor MNT | BH41: Falta valor MNT | BI41: Falta valor MNT | BJ41: Falta valor fibra | BM41: 2 | BN41: Falta valor fibra | BO41: Falta valor cendres | BP41: Falta valor EE | BQ41: Falta valor fibra | BR41: Falta valor fibra | BS41: Falta valor fibra | BT41: Falta valor fibra | BU41: Falta valor cendres | BV41: 3.135 | BW41: 2.888 | BX41: 4 | CO41: 0.72 | CP41: Falta valor MNT | CQ41: Falta valor cendres
A42: 41 | B42: Ordi bagàs | C42: =IF(Valoració!$A$11=$A42,IF(Valoració!C$11>0,Valoració!C$11,""),"") ->  | D42: =IF(Valoració!$A$11=$A42,IF(Valoració!D$11>0,Valoració!D$11,""),"") ->  | E42: =IF(Valoració!$A$11=$A42,IF(Valoració!E$11>0,Valoració!E$11,""),"") ->  | F42: 8.6 | G42: =IF(Valoració!$A$11=$A42,IF(Valoració!F$11>0,Valoració!F$11,""),"") ->  | H42: =IF(Valoració!$A$11=$A42,IF(Valoració!G$11>0,Valoració!G$11,""),"") ->  | I42: =IF(Valoració!$A$11=$A42,IF(Valoració!H$11>0,Valoració!H$11,""),"") ->  | J42: 86 | K42: Falta valor fibra | L42: Falta valor fibra | M42: Falta valor fibra | N42: =IF(Valoració!$A$11=$A42,IF(Valoració!I$11>0,Valoració!I$11,""),"") ->  | O42: Falta valor fibra | P42: =IF(Valoració!$A$11=$A42,IF(Valoració!J$11>0,Valoració!J$11,""),"") ->  | Q42: =IF(Valoració!$A$11=$A42,IF(Valoració!K$11>0,Valoració!K$11,""),"") ->  | R42: Falta valor cendres | S42: Falta valor cendres | T42: Falta valor MNT | U42: Falta valor cendres | V42: Falta valor fibra | W42: Falta valor fibra | X42: Falta valor fibra | Y42: Falta valor fibra | Z42: =IF(Valoració!$A$11=$A42,IF(Valoració!M$11>0,Valoració!M$11,""),"") ->  | AA42: =IF(K42="Falta valor fibra",K42,IF(D42="","Falta valor MNT",(93.1-0.145*K42-0.015*D42*10-3)/100)) -> Falta valor fibra | AC42: Falta valor fibra | AD42: 0.61 | AE42: 0.61 | AF42: Falta valor cendres | AG42: 0.45 | AH42: Falta valor MNT | AI42: =IF(Valoració!$A$11=$A42,IF(Valoració!L$11>0,Valoració!L$11,""),"") ->  | AJ42: =IF(AI42="",AI42,(47.9+0.36*AI42*100+11)/100) ->  | AK42: 0.45 | AL42: Falta valor cendres | AM42: Falta valor cendres | AN42: 138 | AO42: Falta valor MNT | AP42: Falta valor MNT | AQ42: Falta valor cendres | AR42: Falta valor MNT | AS42: Falta valor MNT | AT42: Falta valor MNT | AU42: Falta valor MNT | AV42: Falta valor MNT | AW42: Falta valor MNT | AX42: Falta valor MNT | AY42: Falta valor MNT | AZ42: Falta valor MNT | BA42: 0.38 | BB42: Ordi bagàs | BD42: Falta valor MNT | BE42: Falta valor MNT | BF42: Falta valor MNT | BG42: Falta valor MNT | BH42: Falta valor MNT | BI42: Falta valor MNT | BJ42: 0.4951 | BM42: 2 | BN42: Falta valor fibra | BO42: Falta valor cendres | BP42: 86 | BQ42: Falta valor fibra | BR42: Falta valor fibra | BS42: Falta valor fibra | BT42: Falta valor fibra | BU42: Falta valor cendres | BV42: 1.375 | BW42: 4.602 | BX42: 2.5 | CN42: =BP42*0.45 -> 38.7 | CO42: 0.45 | CP42: Falta valor MNT | CQ42: Falta valor cendres
A43: 42 | B43: Ordi gèrmens | C43: =IF(Valoració!$A$11=$A43,IF(Valoració!C$11>0,Valoració!C$11,""),"") ->  | D43: =IF(Valoració!$A$11=$A43,IF(Valoració!D$11>0,Valoració!D$11,""),"") ->  | E43: =IF(Valoració!$A$11=$A43,IF(Valoració!E$11>0,Valoració!E$11,""),"") ->  | F43: 1.8 | G43: =IF(Valoració!$A$11=$A43,IF(Valoració!F$11>0,Valoració!F$11,""),"") ->  | H43: =IF(Valoració!$A$11=$A43,IF(Valoració!G$11>0,Valoració!G$11,""),"") ->  | I43: =IF(Valoració!$A$11=$A43,IF(Valoració!H$11>0,Valoració!H$11,""),"") ->  | J43: 18 | K43: Falta valor fibra | L43: Falta valor fibra | M43: Falta valor fibra | N43: =IF(Valoració!$A$11=$A43,IF(Valoració!I$11>0,Valoració!I$11,""),"") ->  | O43: Falta valor fibra | P43: =IF(Valoració!$A$11=$A43,IF(Valoració!J$11>0,Valoració!J$11,""),"") ->  | Q43: =IF(Valoració!$A$11=$A43,IF(Valoració!K$11>0,Valoració!K$11,""),"") ->  | R43: Falta valor cendres | S43: Falta valor cendres | T43: Falta valor MNT | U43: Falta valor cendres | V43: Falta valor fibra | W43: Falta valor fibra | X43: Falta valor fibra | Y43: Falta valor fibra | Z43: =IF(Valoració!$A$11=$A43,IF(Valoració!M$11>0,Valoració!M$11,""),"") ->  | AA43: =IF(K43="Falta valor fibra",K43,IF(D43="","Falta valor MNT",(93.1-0.145*K43-0.015*D43*10+2.1)/100)) -> Falta valor fibra | AC43: Falta valor fibra | AD43: 0.68 | AE43: 0.68 | AF43: Falta valor cendres | AG43: 0.71 | AH43: Falta valor MNT | AI43: =IF(Valoració!$A$11=$A43,IF(Valoració!L$11>0,Valoració!L$11,""),"") ->  | AJ43: =IF(AI43="",AI43,(47.9+0.36*AI43*100+11)/100) ->  | AK43: 0.71 | AL43: Falta valor cendres | AM43: Falta valor cendres | AO43: Falta valor MNT | AP43: Falta valor MNT | AQ43: Falta valor cendres | AR43: Falta valor MNT | AS43: Falta valor MNT | AT43: Falta valor MNT | AU43: Falta valor MNT | AV43: Falta valor MNT | AW43: Falta valor MNT | AX43: Falta valor MNT | AY43: Falta valor MNT | AZ43: Falta valor MNT | BA43: 0.62 | BB43: Ordi gèrmens | BD43: Falta valor MNT | BE43: Falta valor MNT | BF43: Falta valor MNT | BG43: Falta valor MNT | BH43: Falta valor MNT | BI43: Falta valor MNT | BJ43: 0.2959 | BM43: 2 | BN43: Falta valor fibra | BO43: Falta valor cendres | BP43: 18 | BQ43: Falta valor fibra | BR43: Falta valor fibra | BS43: Falta valor fibra | BT43: Falta valor fibra | BU43: Falta valor cendres | BV43: 1.265 | BW43: 4.602 | BX43: 1.7 | CN43: =BP43*0.45 -> 8.1 | CO43: 0.71 | CP43: Falta valor MNT | CQ43: Falta valor cendres
A44: 43 | B44: Polpes (cítrics) | C44: =IF(Valoració!$A$11=$A44,IF(Valoració!C$11>0,Valoració!C$11,""),"") ->  | D44: =IF(Valoració!$A$11=$A44,IF(Valoració!D$11>0,Valoració!D$11,""),"") ->  | E44: =IF(Valoració!$A$11=$A44,IF(Valoració!E$11>0,Valoració!E$11,""),"") ->  | G44: =IF(Valoració!$A$11=$A44,IF(Valoració!F$11>0,Valoració!F$11,""),"") ->  | H44: =IF(Valoració!$A$11=$A44,IF(Valoració!G$11>0,Valoració!G$11,""),"") ->  | I44: =IF(Valoració!$A$11=$A44,IF(Valoració!H$11>0,Valoració!H$11,""),"") ->  | J44: Falta valor EE | K44: Falta valor fibra | L44: Falta valor fibra | M44: Falta valor fibra | N44: =IF(Valoració!$A$11=$A44,IF(Valoració!I$11>0,Valoració!I$11,""),"") ->  | O44: Falta valor fibra | P44: =IF(Valoració!$A$11=$A44,IF(Valoració!J$11>0,Valoració!J$11,""),"") ->  | Q44: =IF(Valoració!$A$11=$A44,IF(Valoració!K$11>0,Valoració!K$11,""),"") ->  | R44: Falta valor cendres | S44: Falta valor cendres | T44: Falta valor MNT | U44: Falta valor EE | V44: Falta valor fibra | W44: Falta valor fibra | X44: Falta valor fibra | Y44: Falta valor fibra | Z44: =IF(Valoració!$A$11=$A44,IF(Valoració!M$11>0,Valoració!M$11,""),"") ->  | AA44: =IF(K44="Falta valor fibra",K44,(93-0.037*K44)/100) -> Falta valor fibra | AC44: Falta valor fibra | AD44: 0.82 | AE44: 0.82 | AF44: Falta valor cendres | AG44: 0.65 | AH44: Falta valor MNT | AI44: =IF(Valoració!$A$11=$A44,IF(Valoració!L$11>0,Valoració!L$11,""),"") ->  | AJ44: =IF(AI44="",AI44,(47.9+0.36*AI44*100-4.2)/100) ->  | AK44: 0.65 | AL44: Falta valor cendres | AM44: Falta valor cendres | AN44: -103 | AO44: Falta valor MNT | AP44: Falta valor MNT | AQ44: Falta valor cendres | AR44: Falta valor MNT | AS44: Falta valor MNT | AT44: Falta valor MNT | AU44: Falta valor MNT | AV44: Falta valor MNT | AW44: Falta valor MNT | AX44: Falta valor MNT | AY44: Falta valor MNT | AZ44: Falta valor MNT | BA44: 0.71 | BB44: Polpes (cítrics) | BD44: Falta valor MNT | BE44: Falta valor MNT | BF44: Falta valor MNT | BG44: Falta valor MNT | BH44: Falta valor MNT | BI44: Falta valor MNT | BJ44: 0.2212 | BM44: 2 | BN44: Falta valor fibra | BO44: Falta valor cendres | BP44: Falta valor EE | BQ44: Falta valor fibra | BR44: Falta valor fibra | BS44: Falta valor fibra | BT44: Falta valor fibra | BU44: Falta valor cendres | BV44: 9.295 | BW44: 0.9 | BX44: 1.3 | CN44: =BP44*0.6 ->  | CO44: 0.65 | CP44: Falta valor MNT | CQ44: Falta valor cendres
A45: 44 | B45: Polpes (remolatxa) | C45: =IF(Valoració!$A$11=$A45,IF(Valoració!C$11>0,Valoració!C$11,""),"") ->  | D45: =IF(Valoració!$A$11=$A45,IF(Valoració!D$11>0,Valoració!D$11,""),"") ->  | E45: =IF(Valoració!$A$11=$A45,IF(Valoració!E$11>0,Valoració!E$11,""),"") ->  | G45: =IF(Valoració!$A$11=$A45,IF(Valoració!F$11>0,Valoració!F$11,""),"") ->  | H45: =IF(Valoració!$A$11=$A45,IF(Valoració!G$11>0,Valoració!G$11,""),"") ->  | I45: =IF(Valoració!$A$11=$A45,IF(Valoració!H$11>0,Valoració!H$11,""),"") ->  | J45: Falta valor EE | K45: Falta valor fibra | L45: Falta valor fibra | M45: Falta valor fibra | N45: =IF(Valoració!$A$11=$A45,IF(Valoració!I$11>0,Valoració!I$11,""),"") ->  | O45: Falta valor fibra | P45: =IF(Valoració!$A$11=$A45,IF(Valoració!J$11>0,Valoració!J$11,""),"") ->  | Q45: =IF(Valoració!$A$11=$A45,IF(Valoració!K$11>0,Valoració!K$11,""),"") ->  | R45: Falta valor cendres | S45: Falta valor cendres | T45: Falta valor MNT | U45: Falta valor EE | V45: Falta valor fibra | W45: Falta valor fibra | X45: Falta valor fibra | Y45: Falta valor fibra | Z45: =IF(Valoració!$A$11=$A45,IF(Valoració!M$11>0,Valoració!M$11,""),"") ->  | AA45: =IF(K45="Falta valor fibra",K45,(93-0.037*K45)/100) -> Falta valor fibra | AC45: Falta valor fibra | AD45: 0.79 | AE45: 0.79 | AF45: Falta valor cendres | AG45: 0.56 | AH45: Falta valor MNT | AI45: =IF(Valoració!$A$11=$A45,IF(Valoració!L$11>0,Valoració!L$11,""),"") ->  | AJ45: =IF(AI45="",AI45,(47.9+0.36*AI45*100-4.2)/100) ->  | AK45: 0.56 | AL45: Falta valor cendres | AM45: Falta valor cendres | AN45: -103 | AO45: Falta valor MNT | AP45: Falta valor MNT | AQ45: Falta valor cendres | AR45: Falta valor MNT | AS45: Falta valor MNT | AT45: Falta valor MNT | AU45: Falta valor MNT | AV45: Falta valor MNT | AW45: Falta valor MNT | AX45: Falta valor MNT | AY45: Falta valor MNT | AZ45: Falta valor MNT | BA45: 0.63 | BB45: Polpes (remolatxa) | BD45: Falta valor MNT | BE45: Falta valor MNT | BF45: Falta valor MNT | BG45: Falta valor MNT | BH45: Falta valor MNT | BI45: Falta valor MNT | BJ45: 0.2876 | BM45: 2 | BN45: Falta valor fibra | BO45: Falta valor cendres | BP45: Falta valor EE | BQ45: Falta valor fibra | BR45: Falta valor fibra | BS45: Falta valor fibra | BT45: Falta valor fibra | BU45: Falta valor cendres | BV45: 7.975 | BW45: 0.9 | BX45: 1.8 | CN45: =BP45*0.5 ->  | CO45: 0.56 | CP45: Falta valor MNT | CQ45: Falta valor cendres
A46: 45 | B46: Residus de fruites (pomes, tomàquet, plàtans, carabassa, etc.) | C46: =IF(Valoració!$A$11=$A46,IF(Valoració!C$11>0,Valoració!C$11,""),"") ->  | D46: =IF(Valoració!$A$11=$A46,IF(Valoració!D$11>0,Valoració!D$11,""),"") ->  | E46: =IF(Valoració!$A$11=$A46,IF(Valoració!E$11>0,Valoració!E$11,""),"") ->  | G46: =IF(Valoració!$A$11=$A46,IF(Valoració!F$11>0,Valoració!F$11,""),"") ->  | H46: =IF(Valoració!$A$11=$A46,IF(Valoració!G$11>0,Valoració!G$11,""),"") ->  | I46: =IF(Valoració!$A$11=$A46,IF(Valoració!H$11>0,Valoració!H$11,""),"") ->  | J46: Falta valor EE | K46: Falta valor fibra | L46: Falta valor fibra | M46: Falta valor fibra | N46: =IF(Valoració!$A$11=$A46,IF(Valoració!I$11>0,Valoració!I$11,""),"") ->  | O46: Falta valor fibra | P46: =IF(Valoració!$A$11=$A46,IF(Valoració!J$11>0,Valoració!J$11,""),"") ->  | Q46: =IF(Valoració!$A$11=$A46,IF(Valoració!K$11>0,Valoració!K$11,""),"") ->  | R46: Falta valor cendres | S46: Falta valor cendres | T46: Falta valor MNT | U46: Falta valor EE | V46: Falta valor fibra | W46: Falta valor fibra | X46: Falta valor fibra | Y46: Falta valor fibra | Z46: =IF(Valoració!$A$11=$A46,IF(Valoració!M$11>0,Valoració!M$11,""),"") ->  | AA46: =IF(K46="Falta valor fibra",K46,(89.3-0.094*K46)/100) -> Falta valor fibra | AC46: Falta valor fibra | AE46: Falta valor fibra | AF46: Falta valor cendres | AG46: 0.53 | AH46: Falta valor MNT | AI46: =IF(Valoració!$A$11=$A46,IF(Valoració!L$11>0,Valoració!L$11,""),"") ->  | AJ46: =IF(AI46="",AI46,(21.1+1.48*AI46*100-0.0076*(AI46*100)^2/100)) ->  | AK46: 0.53 | AL46: Falta valor cendres | AM46: Falta valor cendres | AO46: Falta valor MNT | AP46: Falta valor MNT | AQ46: Falta valor cendres | AR46: Falta valor MNT | AS46: Falta valor MNT | AT46: Falta valor MNT | AU46: Falta valor MNT | AV46: Falta valor MNT | AW46: Falta valor MNT | AX46: Falta valor MNT | AY46: Falta valor MNT | AZ46: Falta valor MNT | BA46: 0.39 | BB46: Residus de fruites (pomes, tomàquet, plàtans, carabassa, etc.) | BD46: Falta valor MNT | BE46: Falta valor MNT | BF46: Falta valor MNT | BG46: Falta valor MNT | BH46: Falta valor MNT | BI46: Falta valor MNT | BJ46: 0.4868 | BM46: 2 | BN46: Falta valor fibra | BO46: Falta valor cendres | BP46: Falta valor EE | BQ46: Falta valor fibra | BR46: Falta valor fibra | BS46: Falta valor fibra | BT46: Falta valor fibra | BU46: Falta valor cendres | CO46: 0.53 | CP46: Falta valor MNT | CQ46: Falta valor cendres
A47: 46 | B47: Soja altres derivats | C47: =IF(Valoració!$A$11=$A47,IF(Valoració!C$11>0,Valoració!C$11,""),"") ->  | D47: =IF(Valoració!$A$11=$A47,IF(Valoració!D$11>0,Valoració!D$11,""),"") ->  | E47: =IF(Valoració!$A$11=$A47,IF(Valoració!E$11>0,Valoració!E$11,""),"") ->  | G47: =IF(Valoració!$A$11=$A47,IF(Valoració!F$11>0,Valoració!F$11,""),"") ->  | H47: =IF(Valoració!$A$11=$A47,IF(Valoració!G$11>0,Valoració!G$11,""),"") ->  | I47: =IF(Valoració!$A$11=$A47,IF(Valoració!H$11>0,Valoració!H$11,""),"") ->  | J47: Falta valor EE | K47: Falta valor fibra | L47: Falta valor fibra | M47: Falta valor fibra | N47: =IF(Valoració!$A$11=$A47,IF(Valoració!I$11>0,Valoració!I$11,""),"") ->  | O47: Falta valor fibra | P47: =IF(Valoració!$A$11=$A47,IF(Valoració!J$11>0,Valoració!J$11,""),"") ->  | Q47: =IF(Valoració!$A$11=$A47,IF(Valoració!K$11>0,Valoració!K$11,""),"") ->  | R47: Falta valor cendres | S47: Falta valor cendres | T47: Falta valor MNT | U47: Falta valor EE | V47: Falta valor fibra | W47: Falta valor fibra | X47: Falta valor fibra | Y47: Falta valor fibra | Z47: =IF(Valoració!$A$11=$A47,IF(Valoració!M$11>0,Valoració!M$11,""),"") ->  | AA47: =IF(K47="Falta valor fibra",K47,IF(D47="","Falta valor MNT",IF(P47="","Falta valor cendres",(89.6-0.106*K47+0.0088*D47*10-0.003*P47)/100))) -> Falta valor fibra | AC47: Falta valor fibra | AE47: Falta valor fibra | AF47: Falta valor cendres | AG47: 0.65 | AH47: Falta valor MNT | AI47: =IF(Valoració!$A$11=$A47,IF(Valoració!L$11>0,Valoració!L$11,""),"") ->  | AJ47: =IF(AI47="",AI47,(47.9+0.36*AI47*100+3.6)/100) ->  | AK47: 0.65 | AL47: Falta valor cendres | AM47: Falta valor cendres | AN47: -46 | AO47: Falta valor MNT | AP47: Falta valor MNT | AQ47: Falta valor cendres | AR47: Falta valor MNT | AS47: Falta valor MNT | AT47: Falta valor MNT | AU47: Falta valor MNT | AV47: Falta valor MNT | AW47: Falta valor MNT | AX47: Falta valor MNT | AY47: Falta valor MNT | AZ47: Falta valor MNT | BB47: Soja altres derivats | BD47: Falta valor MNT | BE47: Falta valor MNT | BF47: Falta valor MNT | BG47: Falta valor MNT | BH47: Falta valor MNT | BI47: Falta valor MNT | BJ47: Falta valor fibra | BM47: 2 | BN47: Falta valor fibra | BO47: Falta valor cendres | BP47: Falta valor EE | BQ47: Falta valor fibra | BR47: Falta valor fibra | BS47: Falta valor fibra | BT47: Falta valor fibra | BU47: Falta valor cendres | BV47: 2.099166667 | BW47: 4.911666667 | BX47: 3.116666667 | CN47: =BP47*0.75 ->  | CO47: 0.65 | CP47: Falta valor MNT | CQ47: Falta valor cendres
A48: 47 | B48: Soja, gra extrussionat | C48: =IF(Valoració!$A$11=$A48,IF(Valoració!C$11>0,Valoració!C$11,""),"") ->  | D48: =IF(Valoració!$A$11=$A48,IF(Valoració!D$11>0,Valoració!D$11,""),"") ->  | E48: =IF(Valoració!$A$11=$A48,IF(Valoració!E$11>0,Valoració!E$11,""),"") ->  | F48: 21.6 | G48: =IF(Valoració!$A$11=$A48,IF(Valoració!F$11>0,Valoració!F$11,""),"") ->  | H48: =IF(Valoració!$A$11=$A48,IF(Valoració!G$11>0,Valoració!G$11,""),"") ->  | I48: =IF(Valoració!$A$11=$A48,IF(Valoració!H$11>0,Valoració!H$11,""),"") ->  | J48: 216 | K48: Falta valor fibra | L48: Falta valor fibra | M48: Falta valor fibra | N48: =IF(Valoració!$A$11=$A48,IF(Valoració!I$11>0,Valoració!I$11,""),"") ->  | O48: Falta valor fibra | P48: =IF(Valoració!$A$11=$A48,IF(Valoració!J$11>0,Valoració!J$11,""),"") ->  | Q48: =IF(Valoració!$A$11=$A48,IF(Valoració!K$11>0,Valoració!K$11,""),"") ->  | R48: Falta valor cendres | S48: Falta valor cendres | T48: Falta valor MNT | U48: Falta valor cendres | V48: Falta valor fibra | W48: Falta valor fibra | X48: Falta valor fibra | Y48: Falta valor fibra | Z48: =IF(Valoració!$A$11=$A48,IF(Valoració!M$11>0,Valoració!M$11,""),"") ->  | AA48: =IF(K48="Falta valor fibra",K48,IF(J48="Falta valor EE",J48,(93-0.027*K48+0.029*J48)/100)) -> Falta valor fibra | AC48: Falta valor fibra | AD48: 0.86 | AE48: 0.86 | AF48: Falta valor cendres | AG48: 0.5 | AH48: Falta valor MNT | AI48: =IF(Valoració!$A$11=$A48,IF(Valoració!L$11>0,Valoració!L$11,""),"") ->  | AJ48: =IF(AI48="",AI48,(47.9+0.36*AI48*100+15.4)/100) ->  | AK48: 0.5 | AL48: Falta valor cendres | AM48: Falta valor cendres | AN48: -46 | AO48: Falta valor MNT | AP48: Falta valor MNT | AQ48: Falta valor cendres | AR48: Falta valor MNT | AS48: Falta valor MNT | AT48: Falta valor MNT | AU48: Falta valor MNT | AV48: Falta valor MNT | AW48: Falta valor MNT | AX48: Falta valor MNT | AY48: Falta valor MNT | AZ48: Falta valor MNT | BA48: 0.59 | BB48: Soja, gra extrussionat | BD48: Falta valor MNT | BE48: Falta valor MNT | BF48: Falta valor MNT | BG48: Falta valor MNT | BH48: Falta valor MNT | BI48: Falta valor MNT | BJ48: 0.3208 | BM48: 2 | BN48: Falta valor fibra | BO48: Falta valor cendres | BP48: 216 | BQ48: Falta valor fibra | BR48: Falta valor fibra | BS48: Falta valor fibra | BT48: Falta valor fibra | BU48: Falta valor cendres | BV48: 1.815 | BW48: 4.34 | BX48: 2.6 | CN48: =BP48*0.95 -> 205.2 | CO48: 0.5 | CP48: Falta valor MNT | CQ48: Falta valor cendres
A49: 48 | B49: Soja, gra flocs | C49: =IF(Valoració!$A$11=$A49,IF(Valoració!C$11>0,Valoració!C$11,""),"") ->  | D49: =IF(Valoració!$A$11=$A49,IF(Valoració!D$11>0,Valoració!D$11,""),"") ->  | E49: =IF(Valoració!$A$11=$A49,IF(Valoració!E$11>0,Valoració!E$11,""),"") ->  | F49: 20 | G49: =IF(Valoració!$A$11=$A49,IF(Valoració!F$11>0,Valoració!F$11,""),"") ->  | H49: =IF(Valoració!$A$11=$A49,IF(Valoració!G$11>0,Valoració!G$11,""),"") ->  | I49: =IF(Valoració!$A$11=$A49,IF(Valoració!H$11>0,Valoració!H$11,""),"") ->  | J49: 200 | K49: Falta valor fibra | L49: Falta valor fibra | M49: Falta valor fibra | N49: =IF(Valoració!$A$11=$A49,IF(Valoració!I$11>0,Valoració!I$11,""),"") ->  | O49: Falta valor fibra | P49: =IF(Valoració!$A$11=$A49,IF(Valoració!J$11>0,Valoració!J$11,""),"") ->  | Q49: =IF(Valoració!$A$11=$A49,IF(Valoració!K$11>0,Valoració!K$11,""),"") ->  | R49: Falta valor cendres | S49: Falta valor cendres | T49: Falta valor MNT | U49: Falta valor cendres | V49: Falta valor fibra | W49: Falta valor fibra | X49: Falta valor fibra | Y49: Falta valor fibra | Z49: =IF(Valoració!$A$11=$A49,IF(Valoració!M$11>0,Valoració!M$11,""),"") ->  | AA49: =IF(K49="Falta valor fibra",K49,IF(J49="","Falta valor EE",(93-0.027*K49+0.029*J49)/100)) -> Falta valor fibra | AC49: Falta valor fibra | AD49: 0.86 | AE49: 0.86 | AF49: Falta valor cendres | AG49: 0.7 | AH49: Falta valor MNT | AK49: 0.7 | AL49: Falta valor cendres | AM49: Falta valor cendres | AN49: -46 | AO49: Falta valor MNT | AP49: Falta valor MNT | AQ49: Falta valor cendres | AR49: Falta valor MNT | AS49: Falta valor MNT | AT49: Falta valor MNT | AU49: Falta valor MNT | AV49: Falta valor MNT | AW49: Falta valor MNT | AX49: Falta valor MNT | AY49: Falta valor MNT | AZ49: Falta valor MNT | BA49: 0.81 | BB49: Soja, gra flocs | BD49: Falta valor MNT | BE49: Falta valor MNT | BF49: Falta valor MNT | BG49: Falta valor MNT | BH49: Falta valor MNT | BI49: Falta valor MNT | BJ49: 0.1382 | BM49: 2 | BN49: Falta valor fibra | BO49: Falta valor cendres | BP49: 200 | BQ49: Falta valor fibra | BR49: Falta valor fibra | BS49: Falta valor fibra | BT49: Falta valor fibra | BU49: Falta valor cendres | BV49: 1.54 | BW49: 4.76 | BX49: 2.6 | CO49: 0.7 | CP49: Falta valor MNT | CQ49: Falta valor cendres
A50: 49 | B50: Soja, gra torrat | C50: =IF(Valoració!$A$11=$A50,IF(Valoració!C$11>0,Valoració!C$11,""),"") ->  | D50: =IF(Valoració!$A$11=$A50,IF(Valoració!D$11>0,Valoració!D$11,""),"") ->  | E50: =IF(Valoració!$A$11=$A50,IF(Valoració!E$11>0,Valoració!E$11,""),"") ->  | F50: 21.8 | G50: =IF(Valoració!$A$11=$A50,IF(Valoració!F$11>0,Valoració!F$11,""),"") ->  | H50: =IF(Valoració!$A$11=$A50,IF(Valoració!G$11>0,Valoració!G$11,""),"") ->  | I50: =IF(Valoració!$A$11=$A50,IF(Valoració!H$11>0,Valoració!H$11,""),"") ->  | J50: 218 | K50: Falta valor fibra | L50: Falta valor fibra | M50: Falta valor fibra | N50: =IF(Valoració!$A$11=$A50,IF(Valoració!I$11>0,Valoració!I$11,""),"") ->  | O50: Falta valor fibra | P50: =IF(Valoració!$A$11=$A50,IF(Valoració!J$11>0,Valoració!J$11,""),"") ->  | Q50: =IF(Valoració!$A$11=$A50,IF(Valoració!K$11>0,Valoració!K$11,""),"") ->  | R50: Falta valor cendres | S50: Falta valor cendres | T50: Falta valor MNT | U50: Falta valor cendres | V50: Falta valor fibra | W50: Falta valor fibra | X50: Falta valor fibra | Y50: Falta valor fibra | Z50: =IF(Valoració!$A$11=$A50,IF(Valoració!M$11>0,Valoració!M$11,""),"") ->  | AA50: =IF(K50="Falta valor fibra",K50,IF(J50="","Falta valor EE",(93-0.027*K50+0.029*J50)/100)) -> Falta valor fibra | AC50: Falta valor fibra | AD50: 0.86 | AE50: 0.86 | AF50: Falta valor cendres | AG50: 0.64 | AH50: Falta valor MNT | AK50: 0.64 | AL50: Falta valor cendres | AM50: Falta valor cendres | AN50: -46 | AO50: Falta valor MNT | AP50: Falta valor MNT | AQ50: Falta valor cendres | AR50: Falta valor MNT | AS50: Falta valor MNT | AT50: Falta valor MNT | AU50: Falta valor MNT | AV50: Falta valor MNT | AW50: Falta valor MNT | AX50: Falta valor MNT | AY50: Falta valor MNT | AZ50: Falta valor MNT | BA50: 0.62 | BB50: Soja, gra torrat | BD50: Falta valor MNT | BE50: Falta valor MNT | BF50: Falta valor MNT | BG50: Falta valor MNT | BH50: Falta valor MNT | BI50: Falta valor MNT | BJ50: 0.2959 | BM50: 2 | BN50: Falta valor fibra | BO50: Falta valor cendres | BP50: 218 | BQ50: Falta valor fibra | BR50: Falta valor fibra | BS50: Falta valor fibra | BT50: Falta valor fibra | BU50: Falta valor cendres | BV50: 1.925 | BW50: 4.2 | BX50: 2.5 | CN50: =BP50*0.95 -> 207.1 | CO50: 0.64 | CP50: Falta valor MNT | CQ50: Falta valor cendres
A51: 50 | B51: Soja, turtó | C51: =IF(Valoració!$A$11=$A51,IF(Valoració!C$11>0,Valoració!C$11,""),"") -> 90 | D51: =IF(Valoració!$A$11=$A51,IF(Valoració!D$11>0,Valoració!D$11,""),"") -> 45 | E51: =IF(Valoració!$A$11=$A51,IF(Valoració!E$11>0,Valoració!E$11,""),"") -> 25 | F51: 21.6 | G51: =IF(Valoració!$A$11=$A51,IF(Valoració!F$11>0,Valoració!F$11,""),"") -> 19 | H51: =IF(Valoració!$A$11=$A51,IF(Valoració!G$11>0,Valoració!G$11,""),"") ->  | I51: =IF(Valoració!$A$11=$A51,IF(Valoració!H$11>0,Valoració!H$11,""),"") ->  | J51: 250 | K51: 190 | L51: 405.671 | M51: 249.296 | N51: =IF(Valoració!$A$11=$A51,IF(Valoració!I$11>0,Valoració!I$11,""),"") ->  | O51: 56.86442679 | P51: =IF(Valoració!$A$11=$A51,IF(Valoració!J$11>0,Valoració!J$11,""),"") -> 10 | Q51: =IF(Valoració!$A$11=$A51,IF(Valoració!K$11>0,Valoració!K$11,""),"") ->  | R51: 90 | S51: 81 | T51: 500 | U51: 277.7777778 | V51: 211.1111111 | W51: 450.7455556 | X51: 276.9955556 | Y51: 63.18269643 | Z51: =IF(Valoració!$A$11=$A51,IF(Valoració!M$11>0,Valoració!M$11,""),"") ->  | AA51: =IF(K51="Falta valor fibra",K51,IF(D51="","Falta valor MNT",IF(P51="","Falta valor cendres",(89.6-0.106*K51+0.0088*D51*10-0.003*P51)/100))) -> 0.7339 | AC51: 0.7339 | AE51: 0.763074762 | AF51: 660.51 | AG51: 0.62 | AH51: 0.8079196933 | AI51: =IF(Valoració!$A$11=$A51,IF(Valoració!L$11>0,Valoració!L$11,""),"") ->  | AJ51: =IF(AI51="",AI51,(47.9+0.36*AI51*100-16.6)/100) ->  | AK51: 0.62 | AL51: 239.51 | AM51: 37.69009216 | AN51: -46 | AO51: 5790.35 | AP51: 4418.469948 | AQ51: 289.7987625 | AR51: 556.452635 | AS51: 3572.218551 | AT51: 0.6169261876 | AU51: 0.7310578159 | AV51: 0.4872024264 | AW51: 0.6265275956 | AX51: 0.6467707683 | AY51: 2310.406537 | AZ51: 2238.093499 | BA51: 0.47 | BB51: Soja, turtó | BC51: 90 | BD51: 1.312730987 | BE51: 1.271644034 | BF51: 450 | BG51: 138.1542676 | BH51: 175.8443597 | BI51: 205.909231 | BJ51: 0.4204 | BM51: 2 | BN51: 0.7339 | BO51: 660.51 | BP51: 250 | BQ51: 190 | BR51: 405.671 | BS51: 249.296 | BT51: 56.86442679 | BU51: 100 | BV51: 2.099166667 | BW51: 4.911666667 | BX51: 3.116666667 | CN51: =BP51*0.66 -> 165 | CO51: 0.62 | CP51: 0.8079196933 | CQ51: 239.51
A52: 51 | B52: Vinasses | C52: =IF(Valoració!$A$11=$A52,IF(Valoració!C$11>0,Valoració!C$11,""),"") ->  | D52: =IF(Valoració!$A$11=$A52,IF(Valoració!D$11>0,Valoració!D$11,""),"") ->  | E52: =IF(Valoració!$A$11=$A52,IF(Valoració!E$11>0,Valoració!E$11,""),"") ->  | G52: =IF(Valoració!$A$11=$A52,IF(Valoració!F$11="","",Valoració!F$11)) -> FALSE | H52: =IF(Valoració!$A$11=$A52,IF(Valoració!G$11="","",Valoració!G$11)) -> FALSE | I52: =IF(Valoració!$A$11=$A52,IF(Valoració!H$11="","",Valoració!H$11)) -> FALSE | J52: Falta valor EE | K52: 0 | L52: 0 | M52: 0 | N52: =IF(Valoració!$A$11=$A52,IF(Valoració!I$11>0,Valoració!I$11,""),"") ->  | O52: 0 | P52: =IF(Valoració!$A$11=$A52,IF(Valoració!J$11>0,Valoració!J$11,""),"") ->  | Q52: =IF(Valoració!$A$11=$A52,IF(Valoració!K$11>0,Valoració!K$11,""),"") ->  | R52: Falta valor cendres | S52: Falta valor cendres | T52: Falta valor MNT | U52: Falta valor EE | V52: Falta valor cendres | W52: Falta valor cendres | X52: Falta valor cendres | Y52: Falta valor cendres | Z52: =IF(Valoració!$A$11=$A52,IF(Valoració!M$11>0,Valoració!M$11,""),"") ->  | AA52: =IF(K52="Falta valor fibra",K52,IF(K52=0,"",(97.81-0.112*L52)/100)) ->  | AC52: =IF(Z52="",IF(AA52="",IF(AB52="",0.74),AA52)) -> 0.74 | AE52: =IF(AD52="",IF(AC52="No hi ha equació", AC52,IF(D52="","Falta valor MNT",IF(J52="Falta valor EE",J52,IF(P52="","Falta valor cendres",(-3.94+AC52*100+0.0104*D52*10+0.0149*J52+0.0022*L52-0.0244*P52*10)/100))))) -> Falta valor MNT | AF52: Falta valor cendres | AG52: 0.93 | AH52: 1 | AI52: =IF(Valoració!$A$11=$A52,IF(Valoració!L$11>0,Valoració!L$11,""),"") ->  | AJ52: =IF(AI52="",AI52,(21.1+1.48*AI52*100-0.0076*(AI52*100)^2/100)) ->  | AK52: 0.93 | AL52: =IF(AF52="No hi ha equació",AF52,IF(D52="","Falta valor MNT",IF(AK52="Falta degradabilitat proteïnes",AK52,(AF52-D52*10*(1-AK52)-J52)))) -> Falta valor MNT | AM52: =IF(AL52="No hi ha equació",AL52,IF(AL52="Falta valor MNT",AL52,IF(AL52="Falta degradabilitat proteïnes",AL52,IF(AL52="Falta valor EE",AL52,(41.67+AL52*71.9*10^-3)*0.8*0.8)))) -> Falta valor MNT | AN52: -54 | AO52: =IF(D52="","Falta valor MNT",IF(P52="","Falta valor cendres",4134+1.473*D52*10+5.239*J52+0.925*K52-4.46*P52*10+AN52)) -> Falta valor MNT | AP52: =IF(AE52="No hi ha equació",AE52,IF(AO52="Falta valor MNT",AO52,IF(AO52="Falta valor fibra",AO52,IF(AO52="Falta valor cendres",AO52,IF(AO52="Falta valor EE",AO52,AO52*AE52))))) -> Falta valor MNT | AQ52: =IF(AF52="No hi ha equació",AF52,IF(AF52="Falta valor fibra",AF52,IF(AF52="Falta valor cendres",AF52,IF(AF52="Falta valor MNT",AF52,((45.42-6.66*2+0.75*2^2)*AF52*12.5*(10^-3)))))) -> Falta valor cendres | AR52: Falta valor MNT | AS52: =IF(AP52="No hi ha equació",AP52,IF(AP52="Falta valor MNT",AP52,IF(AP52="Falta valor fibra",AP52,IF(AP52="Falta valor cendres",AP52,IF(AP52="Falta valor EE",AP52,AP52-AQ52-AR52))))) -> Falta valor MNT | AT52: =IF(AS52="No hi ha equació",AS52,IF(AS52="Falta valor MNT",AS52,IF(AS52="Falta valor fibra",AS52,IF(AS52="Falta valor cendres",AS52,IF(AS52="Falta valor EE",AS52,AS52/AO52))))) -> Falta valor MNT | AU52: =IF(AT52="No hi ha equació",AT52,IF(AT52="Falta valor MNT",AT52,IF(AT52="Falta valor fibra",AT52,IF(AT52="Falta valor cendres",AT52,IF(AT52="Falta valor EE",AT52,0.287*AT52+0.554))))) -> Falta valor MNT | AV52: =IF(AT52="No hi ha equació",AT52,IF(AT52="Falta valor MNT",AT52,IF(AT52="Falta valor fibra",AT52,IF(AT52="Falta valor cendres",AT52,IF(AT52="Falta valor EE",AT52,0.78*AT52+0.006))))) -> Falta valor MNT | AW52: =IF(AV52="No hi ha equació",AV52,IF(AU52="Falta valor MNT",AU52,IF(AU52="Falta valor fibra",AU52,IF(AU52="Falta valor cendres",AU52,IF(AU52="Falta valor EE",AU52,(AU52*AV52*1.5)/(AV52+0.5*AU52)))))) -> Falta valor MNT | AX52: =IF(AT52="No hi ha equació",AT52,IF(AT52="Falta valor MNT",AT52,IF(AT52="Falta valor fibra",AT52,IF(AT52="Falta valor cendres",AT52,IF(AT52="Falta valor EE",AT52,0.65+0.247*(AT52-0.63)))))) -> Falta valor MNT | AY52: =IF(AS52="No hi ha equació",AS52,IF(AS52="Falta valor MNT",AS52,IF(AS52="Falta valor fibra",AS52,IF(AS52="Falta valor cendres",AS52,IF(AS52="Falta valor EE",AS52,AS52*AX52))))) -> Falta valor MNT | AZ52: =IF(AS52="No hi ha equació",AS52,IF(AS52="Falta valor MNT",AS52,IF(AS52="Falta valor fibra",AS52,IF(AS52="Falta valor cendres",AS52,IF(AS52="Falta valor EE",AS52,AS52*AW52))))) -> Falta valor MNT | BA52: 0.83 | BB52: Vinasses | BD52: =IF(AY52="No hi ha equació",AY52,IF(AY52="Falta valor MNT",AY52,IF(AY52="Falta valor fibra",AY52,IF(AY52="Falta valor cendres",AY52,IF(AY52="Falta valor EE",AY52,AY52/1760))))) -> Falta valor MNT | BE52: =IF(AZ52="No hi ha equació",AZ52,IF(AZ52="Falta valor MNT",AZ52,IF(AZ52="Falta valor fibra",AZ52,IF(AZ52="Falta valor cendres",AZ52,IF(AZ52="Falta valor EE",AZ52,AZ52/1760))))) -> Falta valor MNT | BF52: Falta valor MNT | BG52: Falta valor MNT | BH52: =IF(AM52="No hi ha equació",AM52,IF(BG52="Falta valor MNT",BG52,IF(BG52="Falta degradabilitat proteïnes",BG52,IF(BG52="Falta valor fibra",BG52,IF(BG52="Falta valor cendres",BG52,BG52+AM52))))) -> Falta valor MNT | BI52: =IF(AL52="No hi ha equació",AL52,IF(D52="","Falta valor MNT",IF(J52="Falta valor EE",J52,IF(P52="","Falta valor cendres",IF(AK52="Falta degradabilitat proteïnes",AK52,IF(AK52="Revisar components",AK52,BF52*AK52-(41.67+AL52*71.9*(10^-3))-14.2)))))) -> Falta valor MNT | BJ52: 0.1216 | BM52: 2 | BN52: 0.74 | BO52: Falta valor cendres | BP52: Falta valor EE | BQ52: 0 | BR52: 0 | BS52: 0 | BT52: 0 | BU52: Falta valor cendres | BV52: 0.66 | BW52: 2.31 | BX52: 1.5 | CO52: 0.93 | CP52: 1 | CQ52: Falta valor MNT
W56: 1

Sheet Verd (hidden)
A1: 0 | C1: MS % | D1: MNT_PB | E1: EE | F1: EE | G1: FB | H1: NDF | I1: ADF | J1: EE | K1: FB | L1: NDF | M1: ADF | N1: Lignina | O1: cendres | P1: MO % | Q1: MO s/Total | R1: MNTO | S1: EEO | T1: FBO | U1: NDFO | V1: ADFO | W1: LigninaO | X1: dMO Taules INRA/NRC | Y1: dMO a partir anàlisi | Z1: dCs Dig enzimàtica | AA1: dMO | AB1: dE | AC1: MOD | AD1: Degradabilitat DT (proteïnes) teòrica | AE1: Digestibilitat dr (proteïnes) real | AF1: DT6_Ami | AG1: DT_Ami | AH1: NDFND | AI1: PDIA | AJ1: AmiD_int | AK1: NDFD_int | AL1: AGD_int | AM1: MOF fermentescible | AN1: PDIM | AO1: c constant per EB | AP1: EB Kcal/kg MS | AQ1: ED Kcal/kg MS | AR1: MSVIm g/kg pes metabòlic | AS1: MSVIl/kg pes metabòlic | AT1: MSVIb g/kg pes metabòlic | AU1: NIref | AV1: Emetà | AW1: Eorina | AX1: EM Kcal/kg MS | AY1: q | AZ1: km | BA1: kf | BB1: kmf | BC1: kl | BD1: ENl | BE1: ENmant i carn | BF1: Nom | BG1: MS % | BH1: UFL | BI1: UFV | BJ1: MNT_PB | BK1: PDIA | BL1: PDI | BM1: BPR | BN1: UEL | BO1: UEB | BP1: UEM | BQ1: NI ref | BR1: dMO | BS1: MOD_TDN | BT1: EE | BU1: FB | BV1: NDF | BW1: ADF | BX1: Lignina | BY1: cendres | BZ1: Ca | CA1: P | CB1: Mg | CC1: Cl | CD1: K | CE1: Na | CF1: S | CG1: Co | CH1: Cu | CI1: Mo | CJ1: Midó | CK1: Fe | CL1: Mn | CM1: Se | CN1: Zn | CO1: Vit A | CP1: Vit D | CQ1: Vit E | CR1: AG | CS1: Degradabilitat DT (proteïnes) teòrica | CT1: PF | CU1: MOF | CV1: C16:0 | CW1: C18:0 | CX1: C18:1 | CY1: C18:2 | CZ1: C18:3
A2: =A1+1 -> 1 | B2: --
A3: =A2+1 -> 2 | B3: Acàcia (acacia cyanophylla) branques verdes | C3: =IF(Valoració!$A$5=$A3,IF(Valoració!C$5>0,Valoració!C$5,""),"") ->  | D3: =IF(Valoració!$A$5=$A3,IF(Valoració!D$5>0,Valoració!D$5,""),"") ->  | E3: =IF(Valoració!$A$5=$A3,IF(Valoració!E$5>0,Valoració!E$5,""),"") ->  | F3: 2.5 | G3: =IF(Valoració!$A$5=$A3,IF(Valoració!F$5>0,Valoració!F$5,""),"") ->  | H3: =IF(Valoració!$A$5=$A3,IF(Valoració!G$5>0,Valoració!G$5,""),"") ->  | I3: =IF(Valoració!$A$5=$A3,IF(Valoració!H$5>0,Valoració!H$5,""),"") ->  | J3: =IF(E3="",IF(F3="","Falta valor EE",F3*10),E3*10) -> 25 | K3: =IF(G3="",IF(H3="",IF(I3="","Falta valor fibra",-4.7593+0.8559*I4*10),""),G3*10) -> Falta valor fibra | L3: =IF(H3="",IF(K3="Falta valor fibra",K3,(260+1.14*K3)),H3*10) -> Falta valor fibra | M3: =IF(I3="",IF(K3="Falta valor fibra",K3,40+0.95*K3),I3*10) -> Falta valor fibra | N3: =IF(Valoració!$A$5=$A3,IF(Valoració!I$5>0,Valoració!I$5,""),"") ->  | O3: =IF(Valoració!$A$5=$A3,IF(Valoració!J$5>0,Valoració!J$5,""),"") ->  | P3: =IF(O3="","Falta valor cendres",100-O3) -> Falta valor cendres | Q3: =IF(P3="Falta valor cendres",P3,P3*C3/100) -> Falta valor cendres | R3: =IF(D3="","Falta valor MNT",IF(Q3="Falta valor cendres",Q3,D3*10*C3/Q3)) -> Falta valor MNT | S3: =IF(Q3="Falta valor cendres",Q3,$J3*$C3/$Q3) -> Falta valor cendres | T3: =IF(K3="Falta valor fibra",K3,IF(Q3="Falta valor cendres",Q3,K3*C3/Q3)) -> Falta valor fibra | U3: =IF(L3="Falta valor fibra",L3,IF(Q3="Falta valor cendres",Q3,L3*C3/Q3)) -> Falta valor fibra | V3: =IF(M3="Falta valor fibra",M3,IF(Q3="Falta valor cendres",Q3,M3*C3/Q3)) -> Falta valor fibra | W3: =IF(N3="",N3,IF(Q3="Falta valor cendres",Q3,N3*10*C3/Q3)) ->  | X3: 0.51 | Y3: no equació | Z3: =IF(Valoració!$A$5=A3,IF(Valoració!$K$5>0,Valoració!K$5,""),"") ->  | AA3: =IF($Z3="",IF(Y3= "no equació",IF(X3="","",X3),Y3),Z3) -> 0.51 | AB3: =IF(AA3="Falta valor fibra",AA3,0.957*AA3-0.00068) -> 0.48739 | AC3: =IF($AA3="Falta valor fibra",AA3,IF(P3="Falta valor cendres",P3,$P3*10*$AA3)) -> Falta valor cendres | AD3: 0.73 | AE3: 0.33 | AH3: =785-8.62*AA3*100 -> 345.38 | AI3: =IF(D3="","Falta valor MNT",IF(AD3="","Falta degradabilitat proteïnes",IF(AE3="","Falta digestibilitat proteïnes",D3*10*(1-AD3)*AE3))) -> Falta valor MNT | AK3: =11.4+1.08*AH3-AH3 -> 39.0304 | AL3: =IF(CR3="Falta valor MNT",CR3,6+0.599*(9.7+0.75*CR3)) -> Falta valor MNT | AM3: =IF(AC3="Falta valor cendres",AC3,IF(AI3="Falta valor MNT",AI3,AC3-AI3-AJ3-AK3-AL3)) -> Falta valor cendres | AN3: =IF(AM3="Falta valor cendres",AM3,IF(AM3="Falta valor MNT",AM3,(41.67+71.9*10^-3*AM3)*0.8*0.8)) -> Falta valor cendres | AO3: -71 | AP3: =IF(R3="Falta valor MNT",R3,IF(P3="Falta valor cendres",P3,(4531+1.735*$R3+$AO3)*P3/100)) -> Falta valor MNT | AQ3: =IF($AP3="Falta valor MNT",AP3,IF(AP3="Falta valor cendres",AP3,$AP3*$AB3)) -> Falta valor MNT | AR3: =IF(D3="","Falta valor MNT",(-16+0.806*AA3*100+0.115*10*D3+0.686*BG3-1.7)) -> Falta valor MNT | AS3: =IF(AR3="Falta valor MNT",AR3,78+0.826*AR3) -> Falta valor MNT | AT3: =IF(AR3="Falta valor MNT",AR3,IF(AR3="Falta valor fibra",AR3,22.4+0.969*AR3)) -> Falta valor MNT | AU3: =IF(AR3="Falta valor MNT",AR3,IF(AR3="Falta valor fibra",AR3,(AR3*(60^0.75)/60)/10)) -> Falta valor MNT | AV3: =IF(AU3="Falta valor MNT",AU3,IF(AU3="Falta valor fibra",AU3,IF(AC3="Falta valor cendres",AC3,((45.42-6.66*AU3+0.75*AU3^2)*AC3*12.5*(10^-3))))) -> Falta valor MNT | AW3: =IF(AU3="Falta valor MNT",AU3,IF(AU3="Falta valor fibra",AU3,(2.9+0.017*D3-0.47*AU3)*AP3*0.01)) -> Falta valor MNT | AX3: =IF(AQ3="Falta valor MNT",AQ3,IF(AQ3="Falta valor fibra",AQ3,AQ3-AV3-AW3)) -> Falta valor MNT | AY3: =IF(AX3="Falta valor MNT",AX3,IF(AX3="Falta valor fibra",AX3,IF(AX3="Falta valor cendres",AX3,IF(AX3="Falta valor EE",AR3,AX3/AP3)))) -> Falta valor MNT | AZ3: =IF(AY3="Falta valor MNT",AY3,IF(AY3="Falta valor fibra",AY3,IF(AY3="Falta valor cendres",AY3,IF(AY3="Falta valor EE",AY3,0.287*AY3+0.554)))) -> Falta valor MNT | BA3: =IF(AY3="Falta valor MNT",AY3,IF(AY3="Falta valor fibra",AY3,IF(AY3="Falta valor cendres",AY3,IF(AY3="Falta valor EE",AY3,0.78*AY3+0.006)))) -> Falta valor MNT | BB3: =IF(AZ3="Falta valor MNT",AZ3,IF(AZ3="Falta valor fibra",AZ3,IF(AZ3="Falta valor cendres",AZ3,IF(AZ3="Falta valor EE",AZ3,(AZ3*BA3*1.5)/(BA3+0.5*AZ3))))) -> Falta valor MNT | BC3: =IF(AY3="Falta valor MNT",AY3,IF(AY3="Falta valor fibra",AY3,IF(AY3="Falta valor cendres",AY3,IF(AY3="Falta valor EE",AY3,0.65+0.247*(AY3-0.63))))) -> Falta valor MNT | BD3: =IF(AX3="Falta valor MNT",AX3,IF(AX3="Falta valor fibra",AX3,IF(AX3="Falta valor cendres",AX3,IF(AX3="Falta valor EE",AX3,AX3*BC3)))) -> Falta valor MNT | BE3: =IF(AX3="Falta valor MNT",AX3,IF(AX3="Falta valor fibra",AX3,IF(AX3="Falta valor cendres",AX3,IF(AX3="Falta valor EE",AX3,AX3*BB3)))) -> Falta valor MNT | BF3: =B3 -> Acàcia (acacia cyanophylla) branques verdes | BG3: =IF(C3="","",C3) ->  | BH3: =IF(BD3="Falta valor MNT",BD3,IF(BD3="Falta valor fibra",BD3,IF(BD3="Falta valor cendres",BD3,IF(BD3="Falta valor EE",BD3,BD3/1760)))) -> Falta valor MNT | BI3: =IF(BE3="Falta valor MNT",BE3,IF(BE3="Falta valor fibra",BE3,IF(BE3="Falta valor cendres",BE3,IF(BE3="Falta valor EE",BE3,BE3/1760)))) -> Falta valor MNT | BJ3: =IF(D3="","Falta valor MNT",D3*10) -> Falta valor MNT | BK3: =AI3 -> Falta valor MNT | BL3: =IF(BK3="Falta valor MNT",BK3,IF(BK3="Falta degradabilitat proteïnes",BK3,IF(BK3="Falta valor fibra",BK3,IF(BK3="Falta valor cendres",BK3,IF(AN3="Falta valor fibra",AN3,BK3+AN3))))) -> Falta valor MNT | BM3: =IF(D3="","Falta valor MNT",IF(O3="","Falta valor cendres",BJ3*AD3-(41.67+AM3*71.9*(10^-3))-14.2)) -> Falta valor MNT | BN3: =IF(AS3="Falta valor MNT",AS3,IF(AS3="Falta valor fibra",AS3,140/AS3)) -> Falta valor MNT | BO3: =IF(AT3="Falta valor MNT",AT3,IF(AT3="Falta valor fibra",AT3,95/AT3)) -> Falta valor MNT | BP3: =IF(AR3="Falta valor MNT",AR3,IF(AR3="Falta valor fibra",AR3,75/AR3)) -> Falta valor MNT | BQ3: =AU3 -> Falta valor MNT | BR3: =AA3 -> 0.51 | BS3: =AC3 -> Falta valor cendres | BT3: =J3 -> 25 | BU3: =IF(K3="","",K3) -> Falta valor fibra | BV3: =IF(L3="","",L3) -> Falta valor fibra | BW3: =IF(M3="","",M3) -> Falta valor fibra | BX3: =IF(N3="","",N3*10) ->  | BY3: =IF(O3="","",O3*10) ->  | CR3: =IF(BJ3="Falta valor MNT",BJ3,1.78+0.105*BJ3) -> Falta valor MNT | CS3: =AD3 -> 0.73 | CU3: =AM3 -> Falta valor cendres | CV3: =IF(CR3="Falta valor MNT",CR3,23.24-0.445*CR3+0.005*CR3^2) -> Falta valor MNT | CW3: =IF(CR3="Falta valor MNT",CR3,2.92-0.027*CR3+0.6) -> Falta valor MNT | CX3: =IF(CR3="Falta valor MNT",CR3,5.23-0.052*CR3) -> Falta valor MNT | CY3: =IF(CR3="Falta valor MNT",CR3,20.59-0.16*CR3+2.04) -> Falta valor MNT | CZ3: =IF(CR3="Falta valor MNT",CR3,35.47+1.107*CR3-0.012*CR3^2-3.1) -> Falta valor MNT
A4: 3 | B4: Acàcia (acacia cyanophylla) fulles verdes | C4: =IF(Valoració!$A$5=$A4,IF(Valoració!C$5>0,Valoració!C$5,""),"") ->  | D4: =IF(Valoració!$A$5=$A4,IF(Valoració!D$5>0,Valoració!D$5,""),"") ->  | E4: =IF(Valoració!$A$5=$A4,IF(Valoració!E$5>0,Valoració!E$5,""),"") ->  | F4: 2.5 | G4: =IF(Valoració!$A$5=$A4,IF(Valoració!F$5>0,Valoració!F$5,""),"") ->  | H4: =IF(Valoració!$A$5=$A4,IF(Valoració!G$5>0,Valoració!G$5,""),"") ->  | I4: =IF(Valoració!$A$5=$A4,IF(Valoració!H$5>0,Valoració!H$5,""),"") ->  | J4: 25 | K4: =IF(G4="",IF(H4="",IF(I4="","Falta valor fibra",-4.7593+0.8559*I5*10),""),G4*10) -> Falta valor fibra | L4: Falta valor fibra | M4: Falta valor fibra | N4: =IF(Valoració!$A$5=$A4,IF(Valoració!I$5>0,Valoració!I$5,""),"") ->  | O4: =IF(Valoració!$A$5=$A4,IF(Valoració!J$5>0,Valoració!J$5,""),"") ->  | P4: Falta valor cendres | Q4: Falta valor cendres | R4: Falta valor MNT | S4: Falta valor cendres | T4: Falta valor fibra | U4: Falta valor fibra | V4: Falta valor fibra | X4: 0.433 | Y4: no equació | Z4: =IF(Valoració!$A$5=A4,IF(Valoració!$K$5>0,Valoració!K$5,""),"") ->  | AA4: =IF($Z4="",IF(Y4= "no equació",IF(X4="","",X4),Y4),Z4) -> 0.433 | AB4: 0.413701 | AC4: Falta valor cendres | AD4: 0.73 | AE4: 0.605 | AH4: 411.754 | AI4: Falta valor MNT | AK4: 44.34032 | AL4: Falta valor MNT | AM4: Falta valor cendres | AN4: Falta valor cendres | AO4: -71 | AP4: Falta valor MNT | AQ4: Falta valor MNT | AR4: =IF(D4="","Falta valor MNT",(-16+0.806*AA4*100+0.115*10*D4+0.686*BG4-1.7)) -> Falta valor MNT | AS4: Falta valor MNT | AT4: Falta valor MNT | AU4: Falta valor MNT | AV4: Falta valor MNT | AW4: Falta valor MNT | AX4: Falta valor MNT | AY4: Falta valor MNT | AZ4: Falta valor MNT | BA4: Falta valor MNT | BB4: Falta valor MNT | BC4: Falta valor MNT | BD4: Falta valor MNT | BE4: Falta valor MNT | BF4: Acàcia (acacia cyanophylla) fulles verdes | BH4: Falta valor MNT | BI4: Falta valor MNT | BJ4: Falta valor MNT | BK4: Falta valor MNT | BL4: Falta valor MNT | BM4: Falta valor MNT | BN4: Falta valor MNT | BO4: Falta valor MNT | BP4: Falta valor MNT | BQ4: Falta valor MNT | BR4: 0.433 | BS4: Falta valor cendres | BT4: 25 | BU4: Falta valor fibra | BV4: Falta valor fibra | BW4: Falta valor fibra | CR4: =IF(BJ4="Falta valor MNT",BJ4,1.78+0.105*BJ4) -> Falta valor MNT | CS4: 0.73 | CU4: Falta valor cendres | CV4: =IF(CR4="Falta valor MNT",CR4,23.24-0.445*CR4+0.005*CR4^2) -> Falta valor MNT | CW4: =IF(CR4="Falta valor MNT",CR4,2.92-0.027*CR4+0.6) -> Falta valor MNT | CX4: =IF(CR4="Falta valor MNT",CR4,5.23-0.052*CR4) -> Falta valor MNT | CY4: =IF(CR4="Falta valor MNT",CR4,20.59-0.16*CR4+2.04) -> Falta valor MNT | CZ4: =IF(CR4="Falta valor MNT",CR4,35.47+1.107*CR4-0.012*CR4^2-3.1) -> Falta valor MNT
A5: 4 | B5: Alfals Botons florals, Verd | C5: =IF(Valoració!$A$5=$A5,IF(Valoració!C$5>0,Valoració!C$5,""),"") -> 25 | D5: =IF(Valoració!$A$5=$A5,IF(Valoració!D$5>0,Valoració!D$5,""),"") -> 25.25 | E5: =IF(Valoració!$A$5=$A5,IF(Valoració!E$5>0,Valoració!E$5,""),"") -> 2 | F5: 2.7 | G5: =IF(Valoració!$A$5=$A5,IF(Valoració!F$5>0,Valoració!F$5,""),"") -> 15.56 | H5: =IF(Valoració!$A$5=$A5,IF(Valoració!G$5>0,Valoració!G$5,""),"") ->  | I5: =IF(Valoració!$A$5=$A5,IF(Valoració!H$5>0,Valoració!H$5,""),"") ->  | J5: 20 | K5: =IF(G5="",IF(H5="",IF(I5="","Falta valor fibra",-209+1.572*I5*10),(H5*10-320)/0.575),G5*10) -> 155.6 | L5: 437.384 | M5: 187.82 | N5: =IF(Valoració!$A$5=$A5,IF(Valoració!I$5>0,Valoració!I$5,""),"") ->  | O5: =IF(Valoració!$A$5=$A5,IF(Valoració!J$5>0,Valoració!J$5,""),"") -> 8.5 | P5: 91.5 | Q5: 22.875 | R5: 275.9562842 | S5: 21.8579235 | T5: 170.0546448 | U5: 478.0153005 | V5: 205.2677596 | X5: 0.6599099099 | Y5: =IF(K5="Falta valor fibra",K5,(95.5-0.101*K5)/100) -> 0.797844 | Z5: =IF(Valoració!$A$5=A5,IF(Valoració!$K$5>0,Valoració!K$5,""),"") ->  | AA5: =IF($Z5="",IF(Y5="Falta valor MNT",X5,IF(Y5="Falta valor fibra",X5,Y5)),(3+0.949*Z6*100)/100) -> 0.797844 | AB5: 0.762856708 | AC5: 730.02726 | AD5: 0.76 | AE5: 0.75 | AH5: 97.258472 | AI5: 45.45 | AK5: 19.18067776 | AL5: 23.56829562 | AM5: 641.8282866 | AN5: 56.20317044 | AO5: 82 | AP5: 4658.9825 | AQ5: 3554.136053 | AR5: =IF(D5="","Falta valor MNT",(-16+0.806*AA5*100+0.115*10*D5+0.686*BG5+4.2)) -> 98.6937264 | AS5: 159.521018 | AT5: 118.0342209 | AU5: 3.546106172 | AV5: 285.0216653 | AW5: 77.45931587 | AX5: 3191.655071 | AY5: 0.6850541017 | AZ5: 0.7506105272 | BA5: 0.5403421993 | BB5: 0.6644258181 | BC5: 0.6635983631 | BD5: 2117.977081 | BE5: 2120.618032 | BF5: Alfals Botons florals, Verd | BG5: 25 | BH5: 1.203396069 | BI5: 1.204896609 | BJ5: 252.5 | BK5: 45.45 | BL5: 101.6531704 | BM5: 89.88254619 | BN5: 0.877627298 | BO5: 0.8048513329 | BP5: 0.7599267222 | BQ5: 3.546106172 | BR5: 0.797844 | BS5: 730.02726 | BT5: 20 | BU5: 155.6 | BV5: 437.384 | BW5: 187.82 | BY5: 85 | CR5: =IF(BJ5="Falta valor MNT",BJ5,1.78+0.105*BJ5-2.12) -> 26.1725 | CS5: 0.76 | CU5: 641.8282866 | CV5: =IF(CR5="Falta valor MNT",CR5,23.24-0.445*CR5+0.005*CR5^2+5.65) -> 20.66823628 | CW5: =IF(CR5="Falta valor MNT",CR5,2.92-0.027*CR5+1.64) -> 3.8533425 | CX5: =IF(CR5="Falta valor MNT",CR5,5.23-0.052*CR5-0.68) -> 3.18903 | CY5: =IF(CR5="Falta valor MNT",CR5,20.59-0.16*CR5+1.09) -> 17.4924 | CZ5: =IF(CR5="Falta valor MNT",CR5,35.47+1.107*CR5-0.012*CR5^2-6.71) -> 49.51296043
A6: 5 | B6: Alfals Botons florals, Verd rebrots entre 5 i 7 setmana quart cicle | C6: =IF(Valoració!$A$5=$A6,IF(Valoració!C$5>0,Valoració!C$5,""),"") ->  | D6: =IF(Valoració!$A$5=$A6,IF(Valoració!D$5>0,Valoració!D$5,""),"") ->  | E6: =IF(Valoració!$A$5=$A6,IF(Valoració!E$5>0,Valoració!E$5,""),"") ->  | F6: 3.4 | G6: =IF(Valoració!$A$5=$A6,IF(Valoració!F$5>0,Valoració!F$5,""),"") ->  | H6: =IF(Valoració!$A$5=$A6,IF(Valoració!G$5>0,Valoració!G$5,""),"") ->  | I6: =IF(Valoració!$A$5=$A6,IF(Valoració!H$5>0,Valoració!H$5,""),"") ->  | J6: 34 | K6: Falta valor fibra | L6: Falta valor fibra | M6: Falta valor fibra | N6: =IF(Valoració!$A$5=$A6,IF(Valoració!I$5>0,Valoració!I$5,""),"") ->  | O6: =IF(Valoració!$A$5=$A6,IF(Valoració!J$5>0,Valoració!J$5,""),"") ->  | P6: Falta valor cendres | Q6: Falta valor cendres | R6: Falta valor MNT | S6: Falta valor cendres | T6: Falta valor fibra | U6: Falta valor fibra | V6: Falta valor fibra | X6: 0.6980023502 | Y6: Falta valor fibra | Z6: =IF(Valoració!$A$5=A6,IF(Valoració!$K$5>0,Valoració!K$5,""),"") ->  | AA6: 0.6980023502 | AB6: 0.6673082491 | AC6: Falta valor cendres | AD6: 0.76 | AE6: 0.75 | AH6: 183.3219741 | AI6: Falta valor MNT | AK6: 26.06575793 | AL6: Falta valor MNT | AM6: Falta valor cendres | AN6: Falta valor cendres | AO6: 82 | AP6: Falta valor MNT | AQ6: Falta valor MNT | AR6: Falta valor MNT | AS6: Falta valor MNT | AT6: Falta valor MNT | AU6: Falta valor MNT | AV6: Falta valor MNT | AW6: Falta valor MNT | AX6: Falta valor MNT | AY6: Falta valor MNT | AZ6: Falta valor MNT | BA6: Falta valor MNT | BB6: Falta valor MNT | BC6: Falta valor MNT | BD6: Falta valor MNT | BE6: Falta valor MNT | BF6: Alfals Botons florals, Verd rebrots entre 5 i 7 setmana quart cicle | BH6: Falta valor MNT | BI6: Falta valor MNT | BJ6: Falta valor MNT | BK6: Falta valor MNT | BL6: Falta valor MNT | BM6: Falta valor MNT | BN6: Falta valor MNT | BO6: Falta valor MNT | BP6: Falta valor MNT | BQ6: Falta valor MNT | BR6: 0.6980023502 | BS6: Falta valor cendres | BT6: 34 | BU6: Falta valor fibra | BV6: Falta valor fibra | BW6: Falta valor fibra | CR6: Falta valor MNT | CS6: 0.76 | CU6: Falta valor cendres | CV6: Falta valor MNT | CW6: Falta valor MNT | CX6: Falta valor MNT | CY6: Falta valor MNT | CZ6: Falta valor MNT
A7: 6 | B7: Alfals Botons florals, Verd rebrots entre 5 i 7 setmana segon cicle | C7: =IF(Valoració!$A$5=$A7,IF(Valoració!C$5>0,Valoració!C$5,""),"") ->  | D7: =IF(Valoració!$A$5=$A7,IF(Valoració!D$5>0,Valoració!D$5,""),"") ->  | E7: =IF(Valoració!$A$5=$A7,IF(Valoració!E$5>0,Valoració!E$5,""),"") ->  | F7: 3 | G7: =IF(Valoració!$A$5=$A7,IF(Valoració!F$5>0,Valoració!F$5,""),"") ->  | H7: =IF(Valoració!$A$5=$A7,IF(Valoració!G$5>0,Valoració!G$5,""),"") ->  | I7: =IF(Valoració!$A$5=$A7,IF(Valoració!H$5>0,Valoració!H$5,""),"") ->  | J7: 30 | K7: Falta valor fibra | L7: Falta valor fibra | M7: Falta valor fibra | N7: =IF(Valoració!$A$5=$A7,IF(Valoració!I$5>0,Valoració!I$5,""),"") ->  | O7: =IF(Valoració!$A$5=$A7,IF(Valoració!J$5>0,Valoració!J$5,""),"") ->  | P7: Falta valor cendres | Q7: Falta valor cendres | R7: Falta valor MNT | S7: Falta valor cendres | T7: Falta valor fibra | U7: Falta valor fibra | V7: Falta valor fibra | X7: 0.669273743 | Y7: Falta valor fibra | Z7: =IF(Valoració!$A$5=A7,IF(Valoració!$K$5>0,Valoració!K$5,""),"") ->  | AA7: 0.669273743 | AB7: 0.6398149721 | AC7: Falta valor cendres | AD7: 0.76 | AE7: 0.75 | AH7: 208.0860335 | AI7: Falta valor MNT | AK7: 28.04688268 | AL7: Falta valor MNT | AM7: Falta valor cendres | AN7: Falta valor cendres | AO7: 82 | AP7: Falta valor MNT | AQ7: Falta valor MNT | AR7: Falta valor MNT | AS7: Falta valor MNT | AT7: Falta valor MNT | AU7: Falta valor MNT | AV7: Falta valor MNT | AW7: Falta valor MNT | AX7: Falta valor MNT | AY7: Falta valor MNT | AZ7: Falta valor MNT | BA7: Falta valor MNT | BB7: Falta valor MNT | BC7: Falta valor MNT | BD7: Falta valor MNT | BE7: Falta valor MNT | BF7: Alfals Botons florals, Verd rebrots entre 5 i 7 setmana segon cicle | BH7: Falta valor MNT | BI7: Falta valor MNT | BJ7: Falta valor MNT | BK7: Falta valor MNT | BL7: Falta valor MNT | BM7: Falta valor MNT | BN7: Falta valor MNT | BO7: Falta valor MNT | BP7: Falta valor MNT | BQ7: Falta valor MNT | BR7: 0.669273743 | BS7: Falta valor cendres | BT7: 30 | BU7: Falta valor fibra | BV7: Falta valor fibra | BW7: Falta valor fibra | CR7: Falta valor MNT | CS7: 0.76 | CU7: Falta valor cendres | CV7: Falta valor MNT | CW7: Falta valor MNT | CX7: Falta valor MNT | CY7: Falta valor MNT | CZ7: Falta valor MNT
A8: 7 | B8: Alfals Botons florals, Verd rebrots entre 5 i 7 setmana tercer cicle | C8: =IF(Valoració!$A$5=$A8,IF(Valoració!C$5>0,Valoració!C$5,""),"") ->  | D8: =IF(Valoració!$A$5=$A8,IF(Valoració!D$5>0,Valoració!D$5,""),"") ->  | E8: =IF(Valoració!$A$5=$A8,IF(Valoració!E$5>0,Valoració!E$5,""),"") ->  | F8: 3.2 | G8: =IF(Valoració!$A$5=$A8,IF(Valoració!F$5>0,Valoració!F$5,""),"") ->  | H8: =IF(Valoració!$A$5=$A8,IF(Valoració!G$5>0,Valoració!G$5,""),"") ->  | I8: =IF(Valoració!$A$5=$A8,IF(Valoració!H$5>0,Valoració!H$5,""),"") ->  | J8: 32 | K8: Falta valor fibra | L8: Falta valor fibra | M8: Falta valor fibra | N8: =IF(Valoració!$A$5=$A8,IF(Valoració!I$5>0,Valoració!I$5,""),"") ->  | O8: =IF(Valoració!$A$5=$A8,IF(Valoració!J$5>0,Valoració!J$5,""),"") ->  | P8: Falta valor cendres | Q8: Falta valor cendres | R8: Falta valor MNT | S8: Falta valor cendres | T8: Falta valor fibra | U8: Falta valor fibra | V8: Falta valor fibra | X8: 0.6700564972 | Y8: Falta valor fibra | Z8: =IF(Valoració!$A$5=A8,IF(Valoració!$K$5>0,Valoració!K$5,""),"") ->  | AA8: 0.6700564972 | AB8: 0.6405640678 | AC8: Falta valor cendres | AD8: 0.76 | AE8: 0.75 | AH8: 207.4112994 | AI8: Falta valor MNT | AK8: 27.99290395 | AL8: Falta valor MNT | AM8: Falta valor cendres | AN8: Falta valor cendres | AO8: 82 | AP8: Falta valor MNT | AQ8: Falta valor MNT | AR8: Falta valor MNT | AS8: Falta valor MNT | AT8: Falta valor MNT | AU8: Falta valor MNT | AV8: Falta valor MNT | AW8: Falta valor MNT | AX8: Falta valor MNT | AY8: Falta valor MNT | AZ8: Falta valor MNT | BA8: Falta valor MNT | BB8: Falta valor MNT | BC8: Falta valor MNT | BD8: Falta valor MNT | BE8: Falta valor MNT | BF8: Alfals Botons florals, Verd rebrots entre 5 i 7 setmana tercer cicle | BH8: Falta valor MNT | BI8: Falta valor MNT | BJ8: Falta valor MNT | BK8: Falta valor MNT | BL8: Falta valor MNT | BM8: Falta valor MNT | BN8: Falta valor MNT | BO8: Falta valor MNT | BP8: Falta valor MNT | BQ8: Falta valor MNT | BR8: 0.6700564972 | BS8: Falta valor cendres | BT8: 32 | BU8: Falta valor fibra | BV8: Falta valor fibra | BW8: Falta valor fibra | CR8: Falta valor MNT | CS8: 0.76 | CU8: Falta valor cendres | CV8: Falta valor MNT | CW8: Falta valor MNT | CX8: Falta valor MNT | CY8: Falta valor MNT | CZ8: Falta valor MNT
A9: 8 | B9: Alfals Botons florals, Verd rebrots entre 8 i 9 setmana quart cicle | C9: =IF(Valoració!$A$5=$A9,IF(Valoració!C$5>0,Valoració!C$5,""),"") ->  | D9: =IF(Valoració!$A$5=$A9,IF(Valoració!D$5>0,Valoració!D$5,""),"") ->  | E9: =IF(Valoració!$A$5=$A9,IF(Valoració!E$5>0,Valoració!E$5,""),"") ->  | F9: 3.2 | G9: =IF(Valoració!$A$5=$A9,IF(Valoració!F$5>0,Valoració!F$5,""),"") ->  | H9: =IF(Valoració!$A$5=$A9,IF(Valoració!G$5>0,Valoració!G$5,""),"") ->  | I9: =IF(Valoració!$A$5=$A9,IF(Valoració!H$5>0,Valoració!H$5,""),"") ->  | J9: 32 | K9: Falta valor fibra | L9: Falta valor fibra | M9: Falta valor fibra | N9: =IF(Valoració!$A$5=$A9,IF(Valoració!I$5>0,Valoració!I$5,""),"") ->  | O9: =IF(Valoració!$A$5=$A9,IF(Valoració!J$5>0,Valoració!J$5,""),"") ->  | P9: Falta valor cendres | Q9: Falta valor cendres | R9: Falta valor MNT | S9: Falta valor cendres | T9: Falta valor fibra | U9: Falta valor fibra | V9: Falta valor fibra | X9: 0.6651108518 | Y9: Falta valor fibra | Z9: =IF(Valoració!$A$5=A9,IF(Valoració!$K$5>0,Valoració!K$5,""),"") ->  | AA9: 0.6651108518 | AB9: 0.6358310852 | AC9: Falta valor cendres | AD9: 0.76 | AE9: 0.75 | AH9: 211.6744457 | AI9: Falta valor MNT | AK9: 28.33395566 | AL9: Falta valor MNT | AM9: Falta valor cendres | AN9: Falta valor cendres | AO9: 82 | AP9: Falta valor MNT | AQ9: Falta valor MNT | AR9: Falta valor MNT | AS9: Falta valor MNT | AT9: Falta valor MNT | AU9: Falta valor MNT | AV9: Falta valor MNT | AW9: Falta valor MNT | AX9: Falta valor MNT | AY9: Falta valor MNT | AZ9: Falta valor MNT | BA9: Falta valor MNT | BB9: Falta valor MNT | BC9: Falta valor MNT | BD9: Falta valor MNT | BE9: Falta valor MNT | BF9: Alfals Botons florals, Verd rebrots entre 8 i 9 setmana quart cicle | BH9: Falta valor MNT | BI9: Falta valor MNT | BJ9: Falta valor MNT | BK9: Falta valor MNT | BL9: Falta valor MNT | BM9: Falta valor MNT | BN9: Falta valor MNT | BO9: Falta valor MNT | BP9: Falta valor MNT | BQ9: Falta valor MNT | BR9: 0.6651108518 | BS9: Falta valor cendres | BT9: 32 | BU9: Falta valor fibra | BV9: Falta valor fibra | BW9: Falta valor fibra | CR9: Falta valor MNT | CS9: 0.76 | CU9: Falta valor cendres | CV9: Falta valor MNT | CW9: Falta valor MNT | CX9: Falta valor MNT | CY9: Falta valor MNT | CZ9: Falta valor MNT
A10: 9 | B10: Alfals Botons florals, Verd rebrots entre 8 i 9 setmana segon cicle | C10: =IF(Valoració!$A$5=$A10,IF(Valoració!C$5>0,Valoració!C$5,""),"") ->  | D10: =IF(Valoració!$A$5=$A10,IF(Valoració!D$5>0,Valoració!D$5,""),"") ->  | E10: =IF(Valoració!$A$5=$A10,IF(Valoració!E$5>0,Valoració!E$5,""),"") ->  | F10: 2.7 | G10: =IF(Valoració!$A$5=$A10,IF(Valoració!F$5>0,Valoració!F$5,""),"") ->  | H10: =IF(Valoració!$A$5=$A10,IF(Valoració!G$5>0,Valoració!G$5,""),"") ->  | I10: =IF(Valoració!$A$5=$A10,IF(Valoració!H$5>0,Valoració!H$5,""),"") ->  | J10: 27 | K10: Falta valor fibra | L10: Falta valor fibra | M10: Falta valor fibra | N10: =IF(Valoració!$A$5=$A10,IF(Valoració!I$5>0,Valoració!I$5,""),"") ->  | O10: =IF(Valoració!$A$5=$A10,IF(Valoració!J$5>0,Valoració!J$5,""),"") ->  | P10: Falta valor cendres | Q10: Falta valor cendres | R10: Falta valor MNT | S10: Falta valor cendres | T10: Falta valor fibra | U10: Falta valor fibra | V10: Falta valor fibra | X10: 0.5005586592 | Y10: Falta valor fibra | Z10: =IF(Valoració!$A$5=A10,IF(Valoració!$K$5>0,Valoració!K$5,""),"") ->  | AA10: 0.5005586592 | AB10: 0.4783546369 | AC10: Falta valor cendres | AD10: 0.76 | AE10: 0.75 | AH10: 353.5184358 | AI10: Falta valor MNT | AK10: 39.68147486 | AL10: Falta valor MNT | AM10: Falta valor cendres | AN10: Falta valor cendres | AO10: 82 | AP10: Falta valor MNT | AQ10: Falta valor MNT | AR10: Falta valor MNT | AS10: Falta valor MNT | AT10: Falta valor MNT | AU10: Falta valor MNT | AV10: Falta valor MNT | AW10: Falta valor MNT | AX10: Falta valor MNT | AY10: Falta valor MNT | AZ10: Falta valor MNT | BA10: Falta valor MNT | BB10: Falta valor MNT | BC10: Falta valor MNT | BD10: Falta valor MNT | BE10: Falta valor MNT | BF10: Alfals Botons florals, Verd rebrots entre 8 i 9 setmana segon cicle | BH10: Falta valor MNT | BI10: Falta valor MNT | BJ10: Falta valor MNT | BK10: Falta valor MNT | BL10: Falta valor MNT | BM10: Falta valor MNT | BN10: Falta valor MNT | BO10: Falta valor MNT | BP10: Falta valor MNT | BQ10: Falta valor MNT | BR10: 0.5005586592 | BS10: Falta valor cendres | BT10: 27 | BU10: Falta valor fibra | BV10: Falta valor fibra | BW10: Falta valor fibra | CR10: Falta valor MNT | CS10: 0.76 | CU10: Falta valor cendres | CV10: Falta valor MNT | CW10: Falta valor MNT | CX10: Falta valor MNT | CY10: Falta valor MNT | CZ10: Falta valor MNT
A11: 10 | B11: Alfals Botons florals, Verd rebrots entre 8 i 9 setmana tercer cicle | C11: =IF(Valoració!$A$5=$A11,IF(Valoració!C$5>0,Valoració!C$5,""),"") ->  | D11: =IF(Valoració!$A$5=$A11,IF(Valoració!D$5>0,Valoració!D$5,""),"") ->  | E11: =IF(Valoració!$A$5=$A11,IF(Valoració!E$5>0,Valoració!E$5,""),"") ->  | F11: 2.8 | G11: =IF(Valoració!$A$5=$A11,IF(Valoració!F$5>0,Valoració!F$5,""),"") ->  | H11: =IF(Valoració!$A$5=$A11,IF(Valoració!G$5>0,Valoració!G$5,""),"") ->  | I11: =IF(Valoració!$A$5=$A11,IF(Valoració!H$5>0,Valoració!H$5,""),"") ->  | J11: 28 | K11: Falta valor fibra | L11: Falta valor fibra | M11: Falta valor fibra | N11: =IF(Valoració!$A$5=$A11,IF(Valoració!I$5>0,Valoració!I$5,""),"") ->  | O11: =IF(Valoració!$A$5=$A11,IF(Valoració!J$5>0,Valoració!J$5,""),"") ->  | P11: Falta valor cendres | Q11: Falta valor cendres | R11: Falta valor MNT | S11: Falta valor cendres | T11: Falta valor fibra | U11: Falta valor fibra | V11: Falta valor fibra | X11: 0.6254218223 | Y11: Falta valor fibra | Z11: =IF(Valoració!$A$5=A11,IF(Valoració!$K$5>0,Valoració!K$5,""),"") ->  | AA11: 0.6254218223 | AB11: 0.5978486839 | AC11: Falta valor cendres | AD11: 0.76 | AE11: 0.75 | AH11: 245.8863892 | AI11: Falta valor MNT | AK11: 31.07091114 | AL11: Falta valor MNT | AM11: Falta valor cendres | AN11: Falta valor cendres | AO11: 82 | AP11: Falta valor MNT | AQ11: Falta valor MNT | AR11: Falta valor MNT | AS11: Falta valor MNT | AT11: Falta valor MNT | AU11: Falta valor MNT | AV11: Falta valor MNT | AW11: Falta valor MNT | AX11: Falta valor MNT | AY11: Falta valor MNT | AZ11: Falta valor MNT | BA11: Falta valor MNT | BB11: Falta valor MNT | BC11: Falta valor MNT | BD11: Falta valor MNT | BE11: Falta valor MNT | BF11: Alfals Botons florals, Verd rebrots entre 8 i 9 setmana tercer cicle | BH11: Falta valor MNT | BI11: Falta valor MNT | BJ11: Falta valor MNT | BK11: Falta valor MNT | BL11: Falta valor MNT | BM11: Falta valor MNT | BN11: Falta valor MNT | BO11: Falta valor MNT | BP11: Falta valor MNT | BQ11: Falta valor MNT | BR11: 0.6254218223 | BS11: Falta valor cendres | BT11: 28 | BU11: Falta valor fibra | BV11: Falta valor fibra | BW11: Falta valor fibra | CR11: Falta valor MNT | CS11: 0.76 | CU11: Falta valor cendres | CV11: Falta valor MNT | CW11: Falta valor MNT | CX11: Falta valor MNT | CY11: Falta valor MNT | CZ11: Falta valor MNT
A12: 11 | B12: Alfals Floració, Verd | C12: =IF(Valoració!$A$5=$A12,IF(Valoració!C$5>0,Valoració!C$5,""),"") ->  | D12: =IF(Valoració!$A$5=$A12,IF(Valoració!D$5>0,Valoració!D$5,""),"") ->  | E12: =IF(Valoració!$A$5=$A12,IF(Valoració!E$5>0,Valoració!E$5,""),"") ->  | F12: 2.4 | G12: =IF(Valoració!$A$5=$A12,IF(Valoració!F$5>0,Valoració!F$5,""),"") ->  | H12: =IF(Valoració!$A$5=$A12,IF(Valoració!G$5>0,Valoració!G$5,""),"") ->  | I12: =IF(Valoració!$A$5=$A12,IF(Valoració!H$5>0,Valoració!H$5,""),"") ->  | J12: 24 | K12: Falta valor fibra | L12: Falta valor fibra | M12: Falta valor fibra | N12: =IF(Valoració!$A$5=$A12,IF(Valoració!I$5>0,Valoració!I$5,""),"") ->  | O12: =IF(Valoració!$A$5=$A12,IF(Valoració!J$5>0,Valoració!J$5,""),"") ->  | P12: Falta valor cendres | Q12: Falta valor cendres | R12: Falta valor MNT | S12: Falta valor cendres | T12: Falta valor fibra | U12: Falta valor fibra | V12: Falta valor fibra | X12: 0.6002227171 | Y12: Falta valor fibra | Z12: =IF(Valoració!$A$5=A12,IF(Valoració!$K$5>0,Valoració!K$5,""),"") ->  | AA12: 0.6002227171 | AB12: 0.5737331403 | AC12: Falta valor cendres | AD12: 0.76 | AE12: 0.75 | AH12: 267.6080178 | AI12: Falta valor MNT | AK12: 32.80864143 | AL12: Falta valor MNT | AM12: Falta valor cendres | AN12: Falta valor cendres | AO12: 82 | AP12: Falta valor MNT | AQ12: Falta valor MNT | AR12: Falta valor MNT | AS12: Falta valor MNT | AT12: Falta valor MNT | AU12: Falta valor MNT | AV12: Falta valor MNT | AW12: Falta valor MNT | AX12: Falta valor MNT | AY12: Falta valor MNT | AZ12: Falta valor MNT | BA12: Falta valor MNT | BB12: Falta valor MNT | BC12: Falta valor MNT | BD12: Falta valor MNT | BE12: Falta valor MNT | BF12: Alfals Floració, Verd | BH12: Falta valor MNT | BI12: Falta valor MNT | BJ12: Falta valor MNT | BK12: Falta valor MNT | BL12: Falta valor MNT | BM12: Falta valor MNT | BN12: Falta valor MNT | BO12: Falta valor MNT | BP12: Falta valor MNT | BQ12: Falta valor MNT | BR12: 0.6002227171 | BS12: Falta valor cendres | BT12: 24 | BU12: Falta valor fibra | BV12: Falta valor fibra | BW12: Falta valor fibra | CR12: Falta valor MNT | CS12: 0.76 | CU12: Falta valor cendres | CV12: Falta valor MNT | CW12: Falta valor MNT | CX12: Falta valor MNT | CY12: Falta valor MNT | CZ12: Falta valor MNT
A13: 12 | B13: Alfals Inici botons florals, Verd | C13: =IF(Valoració!$A$5=$A13,IF(Valoració!C$5>0,Valoració!C$5,""),"") ->  | D13: =IF(Valoració!$A$5=$A13,IF(Valoració!D$5>0,Valoració!D$5,""),"") ->  | E13: =IF(Valoració!$A$5=$A13,IF(Valoració!E$5>0,Valoració!E$5,""),"") ->  | F13: 2.9 | G13: =IF(Valoració!$A$5=$A13,IF(Valoració!F$5>0,Valoració!F$5,""),"") ->  | H13: =IF(Valoració!$A$5=$A13,IF(Valoració!G$5>0,Valoració!G$5,""),"") ->  | I13: =IF(Valoració!$A$5=$A13,IF(Valoració!H$5>0,Valoració!H$5,""),"") ->  | J13: 29 | K13: Falta valor fibra | L13: Falta valor fibra | M13: Falta valor fibra | N13: =IF(Valoració!$A$5=$A13,IF(Valoració!I$5>0,Valoració!I$5,""),"") ->  | O13: =IF(Valoració!$A$5=$A13,IF(Valoració!J$5>0,Valoració!J$5,""),"") ->  | P13: Falta valor cendres | Q13: Falta valor cendres | R13: Falta valor MNT | S13: Falta valor cendres | T13: Falta valor fibra | U13: Falta valor fibra | V13: Falta valor fibra | X13: 0.6896942242 | Y13: Falta valor fibra | Z13: =IF(Valoració!$A$5=A13,IF(Valoració!$K$5>0,Valoració!K$5,""),"") ->  | AA13: 0.6896942242 | AB13: 0.6593573726 | AC13: Falta valor cendres | AD13: 0.77 | AE13: 0.75 | AH13: 190.4835787 | AI13: Falta valor MNT | AK13: 26.6386863 | AL13: Falta valor MNT | AM13: Falta valor cendres | AN13: Falta valor cendres | AO13: 82 | AP13: Falta valor MNT | AQ13: Falta valor MNT | AR13: Falta valor MNT | AS13: Falta valor MNT | AT13: Falta valor MNT | AU13: Falta valor MNT | AV13: Falta valor MNT | AW13: Falta valor MNT | AX13: Falta valor MNT | AY13: Falta valor MNT | AZ13: Falta valor MNT | BA13: Falta valor MNT | BB13: Falta valor MNT | BC13: Falta valor MNT | BD13: Falta valor MNT | BE13: Falta valor MNT | BF13: Alfals Inici botons florals, Verd | BH13: Falta valor MNT | BI13: Falta valor MNT | BJ13: Falta valor MNT | BK13: Falta valor MNT | BL13: Falta valor MNT | BM13: Falta valor MNT | BN13: Falta valor MNT | BO13: Falta valor MNT | BP13: Falta valor MNT | BQ13: Falta valor MNT | BR13: 0.6896942242 | BS13: Falta valor cendres | BT13: 29 | BU13: Falta valor fibra | BV13: Falta valor fibra | BW13: Falta valor fibra | CR13: Falta valor MNT | CS13: 0.77 | CU13: Falta valor cendres | CV13: Falta valor MNT | CW13: Falta valor MNT | CX13: Falta valor MNT | CY13: Falta valor MNT | CZ13: Falta valor MNT
A14: 13 | B14: Alfals Inici floració, Verd | C14: =IF(Valoració!$A$5=$A14,IF(Valoració!C$5>0,Valoració!C$5,""),"") ->  | D14: =IF(Valoració!$A$5=$A14,IF(Valoració!D$5>0,Valoració!D$5,""),"") ->  | E14: =IF(Valoració!$A$5=$A14,IF(Valoració!E$5>0,Valoració!E$5,""),"") ->  | F14: 2.5 | G14: =IF(Valoració!$A$5=$A14,IF(Valoració!F$5>0,Valoració!F$5,""),"") ->  | H14: =IF(Valoració!$A$5=$A14,IF(Valoració!G$5>0,Valoració!G$5,""),"") ->  | I14: =IF(Valoració!$A$5=$A14,IF(Valoració!H$5>0,Valoració!H$5,""),"") ->  | J14: 25 | K14: Falta valor fibra | L14: Falta valor fibra | M14: Falta valor fibra | N14: =IF(Valoració!$A$5=$A14,IF(Valoració!I$5>0,Valoració!I$5,""),"") ->  | O14: =IF(Valoració!$A$5=$A14,IF(Valoració!J$5>0,Valoració!J$5,""),"") ->  | P14: Falta valor cendres | Q14: Falta valor cendres | R14: Falta valor MNT | S14: Falta valor cendres | T14: Falta valor fibra | U14: Falta valor fibra | V14: Falta valor fibra | X14: 0.6296296296 | Y14: Falta valor fibra | Z14: =IF(Valoració!$A$5=A14,IF(Valoració!$K$5>0,Valoració!K$5,""),"") ->  | AA14: 0.6296296296 | AB14: 0.6018755556 | AC14: Falta valor cendres | AD14: 0.76 | AE14: 0.75 | AH14: 242.2592593 | AI14: Falta valor MNT | AK14: 30.78074074 | AL14: Falta valor MNT | AM14: Falta valor cendres | AN14: Falta valor cendres | AO14: 82 | AP14: Falta valor MNT | AQ14: Falta valor MNT | AR14: Falta valor MNT | AS14: Falta valor MNT | AT14: Falta valor MNT | AU14: Falta valor MNT | AV14: Falta valor MNT | AW14: Falta valor MNT | AX14: Falta valor MNT | AY14: Falta valor MNT | AZ14: Falta valor MNT | BA14: Falta valor MNT | BB14: Falta valor MNT | BC14: Falta valor MNT | BD14: Falta valor MNT | BE14: Falta valor MNT | BF14: Alfals Inici floració, Verd | BH14: Falta valor MNT | BI14: Falta valor MNT | BJ14: Falta valor MNT | BK14: Falta valor MNT | BL14: Falta valor MNT | BM14: Falta valor MNT | BN14: Falta valor MNT | BO14: Falta valor MNT | BP14: Falta valor MNT | BQ14: Falta valor MNT | BR14: 0.6296296296 | BS14: Falta valor cendres | BT14: 25 | BU14: Falta valor fibra | BV14: Falta valor fibra | BW14: Falta valor fibra | CR14: Falta valor MNT | CS14: 0.76 | CU14: Falta valor cendres | CV14: Falta valor MNT | CW14: Falta valor MNT | CX14: Falta valor MNT | CY14: Falta valor MNT | CZ14: Falta valor MNT
